Workbook

Sheet PORTADA
T1: DATOS HOJAS | AC1: CALCULOS
D2: OPOSICIONES PERMANENCIA - TEST DE MUESTRA | T2: Adaptar la primera celda | AE2: Control | AG2: =+AF8+1 -> 2 | AH2: =+AG2+1 -> 3 | AI2: 4 | AJ2: 5 | AK2: 6 | AL2: 7 | AM2: 8 | AN2: 9 | AO2: 10
D3: ACADEMIA DE FORMACIÓN MILITAR Y GUARDIA CIVIL LICTOR | T3: Copiar y arrastrar
D4: lictorformacion@lictorformacion.com / info@lictorformacion.com
D5: www.lictorformacion.com
D6: Tlf 642539835
D7: ®Copyright | AP7: NOTAS
C8: TEMAS | E8: Preguntas | G8: Evolución | T8: preguntas | U8: aciertos | V8: Fallos | W8: Ptos Negativos | X8: Contestadas | Y8: % evolución | Z8: Puntuación | AA8: Nota Puntual | AB8: test | AC8: evolución 2 | AD8: Resultado | AE8: fecha | AF8: 1 | AG8: =+AG2-0.1 -> 1.9 | AH8: 2.9 | AI8: 3.9 | AJ8: 4.9 | AK8: 5.9 | AL8: 6.9 | AM8: 7.9 | AN8: 8.9 | AO8: 9.9 | AP8: Mal, repasar temario | AQ8: Hay que mejorar | AR8: Mejorable | AS8: Notable, está dominado | AT8: Excelente | AW8: RESULTADO
C10: BLOQUE I - ORGANIZACIÓN
D11: =+AB11 -> Tema 1 - ORGANIZACIÓN POLÍTICA Y TERRITORIAL I | E11: =+T11 -> 20 | G11: =+AF11 ->  | H11: =+AG11 ->  | I11: =+AH11 ->  | J11: =+AI11 ->  | K11: =+AJ11 ->  | L11: =+AK11 ->  | M11: =+AL11 ->  | N11: =+AM11 ->  | O11: =+AN11 ->  | P11: =+AO11 ->  | R11: =IF(CONTROL!$I$4="A",AW11,"") -> ¡¡Listo para empezar!! | S11: =+S9+1 -> 1 | T11: =+'1'!AD$2 -> 20 | U11: =+'1'!AE$2 -> 0 | V11: =+'1'!AF$2 -> 0 | W11: =+'1'!AG$2 -> 0 | X11: =+'1'!AH$2 -> 0 | Y11: =+'1'!AI$2 -> 0 | Z11: =+'1'!AJ$2 -> 0 | AA11: =+'1'!AK$2 ->  | AB11: =+'1'!AL$2 -> Tema 1 - ORGANIZACIÓN POLÍTICA Y TERRITORIAL I | AC11: =IF(X11=0,0,ROUND(Y11*10,1)) -> 0 | AD11: =IF(AA11>4.99,"B","M") ->  | AE11: =IF(CONTROL!$I$4="A",AD11,"") ->  | AF11: =IF(AF$8<$AC11,AE11,"") ->  | AG11: =IF(AG$8<$AC11,AF11,"") ->  | AH11: =IF(AH$8<$AC11,AG11,"") ->  | AI11: =IF(AI$8<$AC11,AH11,"") ->  | AJ11: =IF(AJ$8<$AC11,AI11,"") ->  | AK11: =IF(AK$8<$AC11,AJ11,"") ->  | AL11: =IF(AL$8<$AC11,AK11,"") ->  | AM11: =IF(AM$8<$AC11,AL11,"") ->  | AN11: =IF(AN$8<$AC11,AM11,"") ->  | AO11: =IF(AO$8<$AC11,AN11,"") ->  | AP11: =IF(AA11<4,AP$8,"") ->  | AQ11: =IF(AND(AA11>3.99,AA11<5),AQ$8,"") ->  | AR11: =IF(AND(AA11>4.99,AA11<7),AR$8,"") ->  | AS11: =IF(AND(AA11>6.99,AA11<8),AS$8,"") ->  | AT11: =IF(AA11>8,AT$8,"") ->  | AU11: =CONCATENATE(AY11," ",AP11,AQ11,AR11,AS11,AT11) ->  | AV11: =T11-(U11+V11) -> 20 | AW11: =IF(AV11=0,AU11,IF(X11=0,"¡¡Listo para empezar!!",CONCATENATE(AX11,"% - Nota Puntual: ",AY11))) -> ¡¡Listo para empezar!! | AX11: =TRUNC(Y11*100,2) -> 0 | AY11: =IF(AA11<0,"(0)",CONCATENATE("(",AA11,")")) -> 
D12: =+AB12 -> Tema 1 - ORGANIZACIÓN POLÍTICA Y TERRITORIAL II | E12: =+T12 -> 0 | G12: =+AF12 ->  | H12: =+AG12 ->  | I12: =+AH12 ->  | J12: =+AI12 ->  | K12: =+AJ12 ->  | L12: =+AK12 ->  | M12: =+AL12 ->  | N12: =+AM12 ->  | O12: =+AN12 ->  | P12: =+AO12 ->  | R12: =IF(CONTROL!$I$4="A",AW12,"") ->  | S12: =+S11+1 -> 2 | T12: =+'2'!AD$2 -> 0 | U12: =+'2'!AE$2 -> 0 | V12: =+'2'!AF$2 -> 0 | W12: =+'2'!AG$2 -> 0 | X12: =+'2'!AH$2 -> 0 | Y12: =+'2'!AI$2 ->  | Z12: =+'2'!AJ$2 -> 0 | AA12: =+'2'!AK$2 ->  | AB12: =+'2'!AL$2 -> Tema 1 - ORGANIZACIÓN POLÍTICA Y TERRITORIAL II | AC12: =IF(X12=0,0,ROUND(Y12*10,1)) -> 0 | AD12: =IF(AA12>4.99,"B","M") ->  | AE12: =IF(CONTROL!$I$4="A",AD12,"") ->  | AF12: =IF(AF$8<$AC12,AE12,"") ->  | AG12: =IF(AG$8<$AC12,AF12,"") ->  | AH12: =IF(AH$8<$AC12,AG12,"") ->  | AI12: =IF(AI$8<$AC12,AH12,"") ->  | AJ12: =IF(AJ$8<$AC12,AI12,"") ->  | AK12: =IF(AK$8<$AC12,AJ12,"") ->  | AL12: =IF(AL$8<$AC12,AK12,"") ->  | AM12: =IF(AM$8<$AC12,AL12,"") ->  | AN12: =IF(AN$8<$AC12,AM12,"") ->  | AO12: =IF(AO$8<$AC12,AN12,"") ->  | AP12: =IF(AA12<4,AP$8,"") ->  | AQ12: =IF(AND(AA12>3.99,AA12<5),AQ$8,"") ->  | AR12: =IF(AND(AA12>4.99,AA12<7),AR$8,"") ->  | AS12: =IF(AND(AA12>6.99,AA12<8),AS$8,"") ->  | AT12: =IF(AA12>8,AT$8,"") ->  | AU12: =CONCATENATE(AY12," ",AP12,AQ12,AR12,AS12,AT12) ->  | AV12: =T12-(U12+V12) -> 0 | AW12: =IF(AV12=0,AU12,IF(X12=0,"¡¡Listo para empezar!!",CONCATENATE(AX12,"% - Nota Puntual: ",AY12))) ->  | AX12: =TRUNC(Y12*100,2) ->  | AY12: =IF(AA12<0,"(0)",CONCATENATE("(",AA12,")")) -> 
D13: Tema 1 - ORGANIZACIÓN POLÍTICA Y TERRITORIAL III | E13: 0 | R13: =IF(CONTROL!$I$4="A",AW13,"") ->  | S13: =+S12+1 -> 3 | T13: =+'3'!AD$2 -> 0 | U13: =+'3'!AE$2 -> 0 | V13: =+'3'!AF$2 -> 1 | W13: =+'3'!AG$2 -> -0.25 | X13: =+'3'!AH$2 -> 1 | Y13: =+'3'!AI$2 ->  | Z13: =+'3'!AJ$2 -> -0.25 | AA13: =+'3'!AK$2 -> -2.5 | AB13: =+'3'!AL$2 -> Tema 1 - ORGANIZACIÓN POLÍTICA Y TERRITORIAL III | AD13: M | AE13: =IF(CONTROL!$I$4="A",AD13,"") -> M | AP13: Mal, repasar temario | AU13: (0) Mal, repasar temario | AV13: -1 | AY13: (0)
D14: Tema 2 - LA REGULACIÓN DE LA DEFENSA NACIONAL | E14: 0 | R14: =IF(CONTROL!$I$4="A",AW14,"") ->  | S14: 4 | T14: =+'4'!AD$2 -> 0 | U14: =+'4'!AE$2 -> 0 | V14: =+'4'!AF$2 -> 0 | W14: =+'4'!AG$2 -> 0 | X14: =+'4'!AH$2 -> 0 | Y14: =+'4'!AI$2 ->  | Z14: =+'4'!AJ$2 -> 0 | AA14: =+'4'!AK$2 ->  | AB14: =+'4'!AL$2 -> Tema 2 - LA REGULACIÓN DE LA DEFENSA NACIONAL | AC14: 0 | AE14: =IF(CONTROL!$I$4="A",AD14,"") ->  | AV14: 0
D15: Tema 3 - RÉGIMEN JURÍDICO DEL SECTOR PÚBLICO I | E15: 0 | R15: =IF(CONTROL!$I$4="A",AW15,"") ->  | S15: 5 | T15: =+'5'!AD$2 -> 0 | U15: =+'5'!AE$2 -> 0 | V15: =+'5'!AF$2 -> 0 | W15: =+'5'!AG$2 -> 0 | X15: =+'5'!AH$2 -> 0 | Y15: =+'5'!AI$2 ->  | Z15: =+'5'!AJ$2 -> 0 | AA15: =+'5'!AK$2 ->  | AB15: =+'5'!AL$2 -> Tema 3 - RÉGIMEN JURÍDICO DEL SECTOR PÚBLICO I | AC15: 0 | AE15: =IF(CONTROL!$I$4="A",AD15,"") ->  | AV15: 0
D16: Tema 3 - RÉGIMEN JURÍDICO DEL SECTOR PÚBLICO II | E16: 0 | R16: =IF(CONTROL!$I$4="A",AW16,"") ->  | S16: 6 | T16: =+'6'!AD$2 -> 0 | U16: =+'6'!AE$2 -> 0 | V16: =+'6'!AF$2 -> 0 | W16: =+'6'!AG$2 -> 0 | X16: =+'6'!AH$2 -> 0 | Y16: =+'6'!AI$2 ->  | Z16: =+'6'!AJ$2 -> 0 | AA16: =+'6'!AK$2 ->  | AB16: =+'6'!AL$2 -> Tema 3 - RÉGIMEN JURÍDICO DEL SECTOR PÚBLICO II | AC16: 0 | AE16: =IF(CONTROL!$I$4="A",AD16,"") ->  | AV16: 0
D17: Tema 3 - RÉGIMEN JURÍDICO DEL SECTOR PÚBLICO III | E17: 0 | R17: =IF(CONTROL!$I$4="A",AW17,"") ->  | S17: 7 | T17: =+'7'!AD$2 -> 0 | U17: =+'7'!AE$2 -> 0 | V17: =+'7'!AF$2 -> 0 | W17: =+'7'!AG$2 -> 0 | X17: =+'7'!AH$2 -> 0 | Y17: =+'7'!AI$2 ->  | Z17: =+'7'!AJ$2 -> 0 | AA17: =+'7'!AK$2 ->  | AB17: =+'7'!AL$2 -> Tema 3 - RÉGIMEN JURÍDICO DEL SECTOR PÚBLICO III | AC17: 0 | AE17: =IF(CONTROL!$I$4="A",AD17,"") ->  | AV17: 0
D18: Tema 4 - MINISTERIO DE DEFENSA ESTRUCTURA ORGÁNICA | E18: 0 | R18: =IF(CONTROL!$I$4="A",AW18,"") ->  | S18: 8 | T18: =+'8'!AD$2 -> 0 | U18: =+'8'!AE$2 -> 0 | V18: =+'8'!AF$2 -> 0 | W18: =+'8'!AG$2 -> 0 | X18: =+'8'!AH$2 -> 0 | Y18: =+'8'!AI$2 ->  | Z18: =+'8'!AJ$2 -> 0 | AA18: =+'8'!AK$2 ->  | AB18: =+'8'!AL$2 -> Tema 4 - MINISTERIO DE DEFENSA ESTRUCTURA ORGÁNICA | AC18: 0 | AE18: =IF(CONTROL!$I$4="A",AD18,"") ->  | AV18: 0
D19: Tema 5 - ORGANIZACIÓN BÁSICA DE LAS FUERZAS ARMADAS Y SU DESARROLLO | E19: 0 | R19: =IF(CONTROL!$I$4="A",AW19,"") ->  | S19: 9 | T19: =+'9'!AD$2 -> 0 | U19: =+'9'!AE$2 -> 0 | V19: =+'9'!AF$2 -> 0 | W19: =+'9'!AG$2 -> 0 | X19: =+'9'!AH$2 -> 0 | Y19: =+'9'!AI$2 ->  | Z19: =+'9'!AJ$2 -> 0 | AA19: =+'9'!AK$2 ->  | AB19: =+'9'!AL$2 -> Tema 5 - ORGANIZACIÓN BÁSICA DE LAS FUERZAS ARMADAS Y SU DESARROLLO | AC19: 0 | AE19: =IF(CONTROL!$I$4="A",AD19,"") ->  | AV19: 0
D20: Tema 6 - ORGANIZACIÓN BÁSICA DEL ESTADO MAYOR DE LA DEFENSA, EJÉRCITO DE TIERRA, ARMADA Y EJÉRCITO DEL AIRE I | E20: 0 | R20: =IF(CONTROL!$I$4="A",AW20,"") ->  | S20: 10 | T20: =+'10'!AD$2 -> 0 | U20: =+'10'!AE$2 -> 0 | V20: =+'10'!AF$2 -> 0 | W20: =+'10'!AG$2 -> 0 | X20: =+'10'!AH$2 -> 0 | Y20: =+'10'!AI$2 ->  | Z20: =+'10'!AJ$2 -> 0 | AA20: =+'10'!AK$2 ->  | AB20: =+'10'!AL$2 -> Tema 6 - ORGANIZACIÓN BÁSICA DEL ESTADO MAYOR DE LA DEFENSA, EJÉRCITO DE TIERRA, ARMADA Y EJÉRCITO DEL AIRE I | AC20: 0 | AE20: =IF(CONTROL!$I$4="A",AD20,"") ->  | AV20: 0
D21: Tema 6 - ORGANIZACIÓN BÁSICA DEL ESTADO MAYOR DE LA DEFENSA, EJÉRCITO DE TIERRA, ARMADA Y EJÉRCITO DEL AIRE II | E21: 0 | R21: =IF(CONTROL!$I$4="A",AW21,"") ->  | S21: 11 | T21: =+'11'!AD$2 -> 0 | U21: =+'11'!AE$2 -> 0 | V21: =+'11'!AF$2 -> 0 | W21: =+'11'!AG$2 -> 0 | X21: =+'11'!AH$2 -> 0 | Y21: =+'11'!AI$2 ->  | Z21: =+'11'!AJ$2 -> 0 | AA21: =+'11'!AK$2 ->  | AB21: =+'11'!AL$2 -> Tema 6 - ORGANIZACIÓN BÁSICA DEL ESTADO MAYOR DE LA DEFENSA, EJÉRCITO DE TIERRA, ARMADA Y EJÉRCITO DEL AIRE II | AC21: 0 | AE21: =IF(CONTROL!$I$4="A",AD21,"") ->  | AV21: 0
D22: =+AB22 -> Tema 6 - ORGANIZACIÓN BÁSICA DEL ESTADO MAYOR DE LA DEFENSA, EJÉRCITO DE TIERRA, ARMADA Y EJÉRCITO DEL AIRE III | E22: =+T22 -> 0 | G22: =+AF22 ->  | H22: =+AG22 ->  | I22: =+AH22 ->  | J22: =+AI22 ->  | K22: =+AJ22 ->  | L22: =+AK22 ->  | M22: =+AL22 ->  | N22: =+AM22 ->  | O22: =+AN22 ->  | P22: =+AO22 ->  | R22: =IF(CONTROL!$I$4="A",AW22,"") ->  | S22: 12 | T22: =+'12'!AD$2 -> 0 | U22: =+'12'!AE$2 -> 0 | V22: =+'12'!AF$2 -> 0 | W22: =+'12'!AG$2 -> 0 | X22: =+'12'!AH$2 -> 0 | Y22: =+'12'!AI$2 ->  | Z22: =+'12'!AJ$2 -> 0 | AA22: =+'12'!AK$2 ->  | AB22: =+'12'!AL$2 -> Tema 6 - ORGANIZACIÓN BÁSICA DEL ESTADO MAYOR DE LA DEFENSA, EJÉRCITO DE TIERRA, ARMADA Y EJÉRCITO DEL AIRE III | AC22: =IF(X22=0,0,ROUND(Y22*10,1)) -> 0 | AD22: =IF(AA22>4.99,"B","M") ->  | AE22: =IF(CONTROL!$I$4="A",AD22,"") ->  | AF22: =IF(AF$8<$AC22,AE22,"") ->  | AG22: =IF(AG$8<$AC22,AF22,"") ->  | AH22: =IF(AH$8<$AC22,AG22,"") ->  | AI22: =IF(AI$8<$AC22,AH22,"") ->  | AJ22: =IF(AJ$8<$AC22,AI22,"") ->  | AK22: =IF(AK$8<$AC22,AJ22,"") ->  | AL22: =IF(AL$8<$AC22,AK22,"") ->  | AM22: =IF(AM$8<$AC22,AL22,"") ->  | AN22: =IF(AN$8<$AC22,AM22,"") ->  | AO22: =IF(AO$8<$AC22,AN22,"") ->  | AP22: =IF(AA22<4,AP$8,"") ->  | AQ22: =IF(AND(AA22>3.99,AA22<5),AQ$8,"") ->  | AR22: =IF(AND(AA22>4.99,AA22<7),AR$8,"") ->  | AS22: =IF(AND(AA22>6.99,AA22<8),AS$8,"") ->  | AT22: =IF(AA22>8,AT$8,"") ->  | AU22: =CONCATENATE(AY22," ",AP22,AQ22,AR22,AS22,AT22) ->  | AV22: =T22-(U22+V22) -> 0 | AW22: =IF(AV22=0,AU22,IF(X22=0,"¡¡Listo para empezar!!",CONCATENATE(AX22,"% - Nota Puntual: ",AY22))) ->  | AX22: =TRUNC(Y22*100,2) ->  | AY22: =IF(AA22<0,"(0)",CONCATENATE("(",AA22,")")) -> 
D23: Tema 6 - ORGANIZACIÓN BÁSICA DEL ESTADO MAYOR DE LA DEFENSA, EJÉRCITO DE TIERRA, ARMADA Y EJÉRCITO DEL AIRE IV | E23: 0 | R23: =IF(CONTROL!$I$4="A",AW23,"") ->  | S23: 13 | T23: =+'13'!AD$2 -> 0 | U23: =+'13'!AE$2 -> 0 | V23: =+'13'!AF$2 -> 0 | W23: =+'13'!AG$2 -> 0 | X23: =+'13'!AH$2 -> 0 | Y23: =+'13'!AI$2 ->  | Z23: =+'13'!AJ$2 -> 0 | AA23: =+'13'!AK$2 ->  | AB23: =+'13'!AL$2 -> Tema 6 - ORGANIZACIÓN BÁSICA DEL ESTADO MAYOR DE LA DEFENSA, EJÉRCITO DE TIERRA, ARMADA Y EJÉRCITO DEL AIRE IV | AC23: 0 | AE23: =IF(CONTROL!$I$4="A",AD23,"") ->  | AV23: 0
C25: BLOQUE II - JURÍDICO SOCIAL
D26: Tema 1 - RÉGIMEN DE PERSONAL MILITAR (LEY 39/2007, DE 19 DE NOVIEMBRE, DE LA CARRERA MILITAR) I | E26: 0 | R26: =IF(CONTROL!$I$4="A",AW26,"") ->  | S26: =+S23+1 -> 14 | T26: =+'14'!AD$2 -> 0 | U26: =+'14'!AE$2 -> 0 | V26: =+'14'!AF$2 -> 0 | W26: =+'14'!AG$2 -> 0 | X26: =+'14'!AH$2 -> 0 | Y26: =+'14'!AI$2 ->  | Z26: =+'14'!AJ$2 -> 0 | AA26: =+'14'!AK$2 ->  | AB26: =+'14'!AL$2 -> Tema 1 - RÉGIMEN DE PERSONAL MILITAR (LEY 39/2007, DE 19 DE NOVIEMBRE, DE LA CARRERA MILITAR) I | AC26: 0 | AE26: =IF(CONTROL!$I$4="A",AD26,"") ->  | AV26: 0
D27: Tema 1 - RÉGIMEN DE PERSONAL MILITAR (LEY 39/2007, DE 19 DE NOVIEMBRE, DE LA CARRERA MILITAR) II | E27: 0 | R27: =IF(CONTROL!$I$4="A",AW27,"") ->  | S27: 15 | T27: =+'15'!AD$2 -> 0 | U27: =+'15'!AE$2 -> 0 | V27: =+'15'!AF$2 -> 0 | W27: =+'15'!AG$2 -> 0 | X27: =+'15'!AH$2 -> 0 | Y27: =+'15'!AI$2 ->  | Z27: =+'15'!AJ$2 -> 0 | AA27: =+'15'!AK$2 ->  | AB27: =+'15'!AL$2 -> Tema 1 - RÉGIMEN DE PERSONAL MILITAR (LEY 39/2007, DE 19 DE NOVIEMBRE, DE LA CARRERA MILITAR) II | AC27: 0 | AE27: =IF(CONTROL!$I$4="A",AD27,"") ->  | AV27: 0
D28: Tema 1 - RÉGIMEN DE PERSONAL MILITAR (LEY 39/2007, DE 19 DE NOVIEMBRE, DE LA CARRERA MILITAR) III | E28: 0 | R28: =IF(CONTROL!$I$4="A",AW28,"") ->  | S28: 16 | T28: =+'16'!AD$2 -> 0 | U28: =+'16'!AE$2 -> 0 | V28: =+'16'!AF$2 -> 0 | W28: =+'16'!AG$2 -> 0 | X28: =+'16'!AH$2 -> 0 | Y28: =+'16'!AI$2 ->  | Z28: =+'16'!AJ$2 -> 0 | AA28: =+'16'!AK$2 ->  | AB28: =+'16'!AL$2 -> Tema 1 - RÉGIMEN DE PERSONAL MILITAR (LEY 39/2007, DE 19 DE NOVIEMBRE, DE LA CARRERA MILITAR) III | AC28: 0 | AE28: =IF(CONTROL!$I$4="A",AD28,"") ->  | AV28: 0
D29: Tema 1 - RÉGIMEN DE PERSONAL MILITAR (LEY 39/2007, DE 19 DE NOVIEMBRE, DE LA CARRERA MILITAR) IV | E29: 0 | R29: =IF(CONTROL!$I$4="A",AW29,"") ->  | S29: 17 | T29: =+'17'!AD$2 -> 0 | U29: =+'17'!AE$2 -> 0 | V29: =+'17'!AF$2 -> 1 | W29: =+'17'!AG$2 -> 0 | X29: =+'17'!AH$2 -> 1 | Y29: =+'17'!AI$2 ->  | Z29: =+'17'!AJ$2 -> 0 | AA29: =+'17'!AK$2 -> 0 | AB29: =+'17'!AL$2 -> Tema 1 - RÉGIMEN DE PERSONAL MILITAR (LEY 39/2007, DE 19 DE NOVIEMBRE, DE LA CARRERA MILITAR) IV | AD29: M | AE29: =IF(CONTROL!$I$4="A",AD29,"") -> M | AP29: Mal, repasar temario | AU29: (0) Mal, repasar temario | AV29: -1 | AY29: (0)
D30: Tema 2 - RROO PARA LAS FUERZAS ARMADAS I | E30: 0 | R30: =IF(CONTROL!$I$4="A",AW30,"") ->  | S30: 18 | T30: =+'18'!AD$2 -> 0 | U30: =+'18'!AE$2 -> 0 | V30: =+'18'!AF$2 -> 0 | W30: =+'18'!AG$2 -> 0 | X30: =+'18'!AH$2 -> 0 | Y30: =+'18'!AI$2 ->  | Z30: =+'18'!AJ$2 -> 0 | AA30: =+'18'!AK$2 ->  | AB30: =+'18'!AL$2 -> Tema 2 - RROO PARA LAS FUERZAS ARMADAS I | AC30: 0 | AE30: =IF(CONTROL!$I$4="A",AD30,"") ->  | AV30: 0
D31: Tema 2 - RROO PARA LAS FUERZAS ARMADAS II | E31: 0 | R31: =IF(CONTROL!$I$4="A",AW31,"") ->  | S31: 19 | T31: =+'19'!AD$2 -> 0 | U31: =+'19'!AE$2 -> 0 | V31: =+'19'!AF$2 -> 0 | W31: =+'19'!AG$2 -> 0 | X31: =+'19'!AH$2 -> 0 | Y31: =+'19'!AI$2 ->  | Z31: =+'19'!AJ$2 -> 0 | AA31: =+'19'!AK$2 ->  | AB31: =+'19'!AL$2 -> Tema 2 - RROO PARA LAS FUERZAS ARMADAS II | AC31: 0 | AE31: =IF(CONTROL!$I$4="A",AD31,"") ->  | AV31: 0
D32: Tema 3 - DERECHOS Y DEBERES DE LOS MIEMBROS DE LAS FUERZAS ARMADAS I | E32: 0 | R32: =IF(CONTROL!$I$4="A",AW32,"") ->  | S32: 20 | T32: =+'20'!AD$2 -> 0 | U32: =+'20'!AE$2 -> 0 | V32: =+'20'!AF$2 -> 0 | W32: =+'20'!AG$2 -> 0 | X32: =+'20'!AH$2 -> 0 | Y32: =+'20'!AI$2 ->  | Z32: =+'20'!AJ$2 -> 0 | AA32: =+'20'!AK$2 ->  | AB32: =+'20'!AL$2 -> Tema 3 - DERECHOS Y DEBERES DE LOS MIEMBROS DE LAS FUERZAS ARMADAS I | AC32: 0 | AE32: =IF(CONTROL!$I$4="A",AD32,"") ->  | AV32: 0
D33: Tema 3 - DERECHOS Y DEBERES DE LOS MIEMBROS DE LAS FUERZAS ARMADAS II | E33: 0 | R33: =IF(CONTROL!$I$4="A",AW33,"") ->  | S33: 21 | T33: =+'21'!AD$2 -> 0 | U33: =+'21'!AE$2 -> 0 | V33: =+'21'!AF$2 -> 0 | W33: =+'21'!AG$2 -> 0 | X33: =+'21'!AH$2 -> 0 | Y33: =+'21'!AI$2 ->  | Z33: =+'21'!AJ$2 -> 0 | AA33: =+'21'!AK$2 ->  | AB33: =+'21'!AL$2 -> Tema 3 - DERECHOS Y DEBERES DE LOS MIEMBROS DE LAS FUERZAS ARMADAS II | AC33: 0 | AE33: =IF(CONTROL!$I$4="A",AD33,"") ->  | AV33: 0
D34: Tema 4 - RÉGIMEN DISCIPLINARIO DE LAS FUERZAS ARMADAS I | E34: 0 | R34: =IF(CONTROL!$I$4="A",AW34,"") ->  | S34: 22 | T34: =+'22'!AD$2 -> 0 | U34: =+'22'!AE$2 -> 0 | V34: =+'22'!AF$2 -> 0 | W34: =+'22'!AG$2 -> 0 | X34: =+'22'!AH$2 -> 0 | Y34: =+'22'!AI$2 ->  | Z34: =+'22'!AJ$2 -> 0 | AA34: =+'22'!AK$2 ->  | AB34: =+'22'!AL$2 -> Tema 4 - RÉGIMEN DISCIPLINARIO DE LAS FUERZAS ARMADAS I | AC34: 0 | AE34: =IF(CONTROL!$I$4="A",AD34,"") ->  | AV34: 0
D35: =+AB35 -> Tema 4 - RÉGIMEN DISCIPLINARIO DE LAS FUERZAS ARMADAS II | E35: =+T35 -> 0 | G35: =+AF35 ->  | H35: =+AG35 ->  | I35: =+AH35 ->  | J35: =+AI35 ->  | K35: =+AJ35 ->  | L35: =+AK35 ->  | M35: =+AL35 ->  | N35: =+AM35 ->  | O35: =+AN35 ->  | P35: =+AO35 ->  | R35: =IF(CONTROL!$I$4="A",AW35,"") ->  | S35: 23 | T35: =+'23'!AD$2 -> 0 | U35: =+'23'!AE$2 -> 0 | V35: =+'23'!AF$2 -> 0 | W35: =+'23'!AG$2 -> 0 | X35: =+'23'!AH$2 -> 0 | Y35: =+'23'!AI$2 ->  | Z35: =+'23'!AJ$2 -> 0 | AA35: =+'23'!AK$2 ->  | AB35: =+'23'!AL$2 -> Tema 4 - RÉGIMEN DISCIPLINARIO DE LAS FUERZAS ARMADAS II | AC35: =IF(X35=0,0,ROUND(Y35*10,1)) -> 0 | AD35: =IF(AA35>4.99,"B","M") ->  | AE35: =IF(CONTROL!$I$4="A",AD35,"") ->  | AF35: =IF(AF$8<$AC35,AE35,"") ->  | AG35: =IF(AG$8<$AC35,AF35,"") ->  | AH35: =IF(AH$8<$AC35,AG35,"") ->  | AI35: =IF(AI$8<$AC35,AH35,"") ->  | AJ35: =IF(AJ$8<$AC35,AI35,"") ->  | AK35: =IF(AK$8<$AC35,AJ35,"") ->  | AL35: =IF(AL$8<$AC35,AK35,"") ->  | AM35: =IF(AM$8<$AC35,AL35,"") ->  | AN35: =IF(AN$8<$AC35,AM35,"") ->  | AO35: =IF(AO$8<$AC35,AN35,"") ->  | AP35: =IF(AA35<4,AP$8,"") ->  | AQ35: =IF(AND(AA35>3.99,AA35<5),AQ$8,"") ->  | AR35: =IF(AND(AA35>4.99,AA35<7),AR$8,"") ->  | AS35: =IF(AND(AA35>6.99,AA35<8),AS$8,"") ->  | AT35: =IF(AA35>8,AT$8,"") ->  | AU35: =CONCATENATE(AY35," ",AP35,AQ35,AR35,AS35,AT35) ->  | AV35: =T35-(U35+V35) -> 0 | AW35: =IF(AV35=0,AU35,IF(X35=0,"¡¡Listo para empezar!!",CONCATENATE(AX35,"% - Nota Puntual: ",AY35))) ->  | AX35: =TRUNC(Y35*100,2) ->  | AY35: =IF(AA35<0,"(0)",CONCATENATE("(",AA35,")")) -> 
D36: Tema 4 - RÉGIMEN DISCIPLINARIO DE LAS FUERZAS ARMADAS III | E36: 0 | R36: =IF(CONTROL!$I$4="A",AW36,"") ->  | S36: 24 | T36: =+'24'!AD$2 -> 0 | U36: =+'24'!AE$2 -> 0 | V36: =+'24'!AF$2 -> 0 | W36: =+'24'!AG$2 -> 0 | X36: =+'24'!AH$2 -> 0 | Y36: =+'24'!AI$2 ->  | Z36: =+'24'!AJ$2 -> 0 | AA36: =+'24'!AK$2 ->  | AB36: =+'24'!AL$2 -> Tema 4 - RÉGIMEN DISCIPLINARIO DE LAS FUERZAS ARMADAS III | AC36: 0 | AE36: =IF(CONTROL!$I$4="A",AD36,"") ->  | AV36: 0
D37: Tema 5 - TRAMITACIÓN DE INICIATIVAS Y QUEJAS | E37: 0 | R37: =IF(CONTROL!$I$4="A",AW37,"") ->  | S37: 25 | T37: =+'25'!AD$2 -> 0 | U37: =+'25'!AE$2 -> 0 | V37: =+'25'!AF$2 -> 0 | W37: =+'25'!AG$2 -> 0 | X37: =+'25'!AH$2 -> 0 | Y37: =+'25'!AI$2 ->  | Z37: =+'25'!AJ$2 -> 0 | AA37: =+'25'!AK$2 ->  | AB37: =+'25'!AL$2 -> Tema 5 - TRAMITACIÓN DE INICIATIVAS Y QUEJAS | AC37: 0 | AE37: =IF(CONTROL!$I$4="A",AD37,"") ->  | AV37: 0
D38: Tema 6 - LA IGUALDAD DE TRATO Y OPORTUNIDADES ENTRE MUJERES Y HOMBRES I | E38: 0 | R38: =IF(CONTROL!$I$4="A",AW38,"") ->  | S38: 26 | T38: =+'26'!AD$2 -> 0 | U38: =+'26'!AE$2 -> 0 | V38: =+'26'!AF$2 -> 0 | W38: =+'26'!AG$2 -> 0 | X38: =+'26'!AH$2 -> 0 | Y38: =+'26'!AI$2 ->  | Z38: =+'26'!AJ$2 -> 0 | AA38: =+'26'!AK$2 ->  | AB38: =+'26'!AL$2 -> Tema 6 - LA IGUALDAD DE TRATO Y OPORTUNIDADES ENTRE MUJERES Y HOMBRES I | AC38: 0 | AE38: =IF(CONTROL!$I$4="A",AD38,"") ->  | AV38: 0
D39: Tema 6 - LA IGUALDAD DE TRATO Y OPORTUNIDADES ENTRE MUJERES Y HOMBRES II | E39: 0 | R39: =IF(CONTROL!$I$4="A",AW39,"") ->  | S39: 27 | T39: =+'27'!AD$2 -> 0 | U39: =+'27'!AE$2 -> 0 | V39: =+'27'!AF$2 -> 0 | W39: =+'27'!AG$2 -> 0 | X39: =+'27'!AH$2 -> 0 | Y39: =+'27'!AI$2 ->  | Z39: =+'27'!AJ$2 -> 0 | AA39: =+'27'!AK$2 ->  | AB39: =+'27'!AL$2 -> Tema 6 - LA IGUALDAD DE TRATO Y OPORTUNIDADES ENTRE MUJERES Y HOMBRES II | AC39: 0 | AE39: =IF(CONTROL!$I$4="A",AD39,"") ->  | AV39: 0
D40: Tema 7 - OBSERVATORIO MILITAR PARA LA IGUALDAD ENTRE MUJERES Y HOMBRES EN LAS FUERZAS ARMADAS I | E40: 0 | R40: =IF(CONTROL!$I$4="A",AW40,"") ->  | S40: 28 | T40: =+'28'!AD$2 -> 0 | U40: =+'28'!AE$2 -> 0 | V40: =+'28'!AF$2 -> 0 | W40: =+'28'!AG$2 -> 0 | X40: =+'28'!AH$2 -> 0 | Y40: =+'28'!AI$2 ->  | Z40: =+'28'!AJ$2 -> 0 | AA40: =+'28'!AK$2 ->  | AB40: =+'28'!AL$2 -> Tema 7 - OBSERVATORIO MILITAR PARA LA IGUALDAD ENTRE MUJERES Y HOMBRES EN LAS FUERZAS ARMADAS I | AC40: 0 | AE40: =IF(CONTROL!$I$4="A",AD40,"") ->  | AV40: 0
D41: Tema 7 - OBSERVATORIO MILITAR PARA LA IGUALDAD ENTRE MUJERES Y HOMBRES EN LAS FUERZAS ARMADAS II | E41: 0 | R41: =IF(CONTROL!$I$4="A",AW41,"") ->  | S41: 29 | T41: =+'29'!AD$2 -> 0 | U41: =+'29'!AE$2 -> 0 | V41: =+'29'!AF$2 -> 0 | W41: =+'29'!AG$2 -> 0 | X41: =+'29'!AH$2 -> 0 | Y41: =+'29'!AI$2 ->  | Z41: =+'29'!AJ$2 -> 0 | AA41: =+'29'!AK$2 ->  | AB41: =+'29'!AL$2 -> Tema 7 - OBSERVATORIO MILITAR PARA LA IGUALDAD ENTRE MUJERES Y HOMBRES EN LAS FUERZAS ARMADAS II | AC41: 0 | AE41: =IF(CONTROL!$I$4="A",AD41,"") ->  | AV41: 0
D42: Tema 8 - PROCEDIMIENTO ADMINISTRATIVO COMÚN I | E42: 0 | R42: =IF(CONTROL!$I$4="A",AW42,"") ->  | S42: 30 | T42: =+'30'!AD$2 -> 0 | U42: =+'30'!AE$2 -> 0 | V42: =+'30'!AF$2 -> 0 | W42: =+'30'!AG$2 -> 0 | X42: =+'30'!AH$2 -> 0 | Y42: =+'30'!AI$2 ->  | Z42: =+'30'!AJ$2 -> 0 | AA42: =+'30'!AK$2 ->  | AB42: =+'30'!AL$2 -> Tema 8 - PROCEDIMIENTO ADMINISTRATIVO COMÚN I | AC42: 0 | AE42: =IF(CONTROL!$I$4="A",AD42,"") ->  | AV42: 0
D43: Tema 8 - PROCEDIMIENTO ADMINISTRATIVO COMÚN II | E43: 0 | R43: =IF(CONTROL!$I$4="A",AW43,"") ->  | S43: 31 | T43: =+'31'!AD$2 -> 0 | U43: =+'31'!AE$2 -> 0 | V43: =+'31'!AF$2 -> 0 | W43: =+'31'!AG$2 -> 0 | X43: =+'31'!AH$2 -> 0 | Y43: =+'31'!AI$2 ->  | Z43: =+'31'!AJ$2 -> 0 | AA43: =+'31'!AK$2 ->  | AB43: =+'31'!AL$2 -> Tema 8 - PROCEDIMIENTO ADMINISTRATIVO COMÚN II | AC43: 0 | AE43: =IF(CONTROL!$I$4="A",AD43,"") ->  | AV43: 0
D44: Tema 8 - PROCEDIMIENTO ADMINISTRATIVO COMÚN III | E44: 0 | R44: =IF(CONTROL!$I$4="A",AW44,"") ->  | S44: 32 | T44: =+'32'!AD$2 -> 0 | U44: =+'32'!AE$2 -> 0 | V44: =+'32'!AF$2 -> 0 | W44: =+'32'!AG$2 -> 0 | X44: =+'32'!AH$2 -> 0 | Y44: =+'32'!AI$2 ->  | Z44: =+'32'!AJ$2 -> 0 | AA44: =+'32'!AK$2 ->  | AB44: =+'32'!AL$2 -> Tema 8 - PROCEDIMIENTO ADMINISTRATIVO COMÚN III | AC44: 0 | AE44: =IF(CONTROL!$I$4="A",AD44,"") ->  | AV44: 0
C46: BLOQUE III - SEGURIDAD NACIONAL
D47: Tema 1 - ESTRATEGIA I | E47: 0 | R47: =IF(CONTROL!$I$4="A",AW47,"") ->  | S47: =+S44+1 -> 33 | T47: =+'33'!AD$2 -> 0 | U47: =+'33'!AE$2 -> 0 | V47: =+'33'!AF$2 -> 0 | W47: =+'33'!AG$2 -> 0 | X47: =+'33'!AH$2 -> 0 | Y47: =+'33'!AI$2 ->  | Z47: =+'33'!AJ$2 -> 0 | AA47: =+'33'!AK$2 ->  | AB47: =+'33'!AL$2 -> Tema 1 - ESTRATEGIA I | AC47: 0 | AE47: =IF(CONTROL!$I$4="A",AD47,"") ->  | AV47: 0
D48: Tema 1 - ESTRATEGIA II | E48: 0 | R48: =IF(CONTROL!$I$4="A",AW48,"") ->  | S48: 34 | T48: =+'34'!AD$2 -> 0 | U48: =+'34'!AE$2 -> 0 | V48: =+'34'!AF$2 -> 0 | W48: =+'34'!AG$2 -> 0 | X48: =+'34'!AH$2 -> 0 | Y48: =+'34'!AI$2 ->  | Z48: =+'34'!AJ$2 -> 0 | AA48: =+'34'!AK$2 ->  | AB48: =+'34'!AL$2 -> Tema 1 - ESTRATEGIA II | AC48: 0 | AE48: =IF(CONTROL!$I$4="A",AD48,"") ->  | AV48: 0
D49: Tema 2 - DOCTRINA PARA LA ACCIÓN CONJUNTA DE LAS FUERZAS ARMADAS DPDC01A I | E49: 0 | R49: =IF(CONTROL!$I$4="A",AW49,"") ->  | S49: 35 | T49: =+'35'!AD$2 -> 0 | U49: =+'35'!AE$2 -> 0 | V49: =+'35'!AF$2 -> 0 | W49: =+'35'!AG$2 -> 0 | X49: =+'35'!AH$2 -> 0 | Y49: =+'35'!AI$2 ->  | Z49: =+'35'!AJ$2 -> 0 | AA49: =+'35'!AK$2 ->  | AB49: =+'35'!AL$2 -> Tema 2 - DOCTRINA PARA LA ACCIÓN CONJUNTA DE LAS FUERZAS ARMADAS DPDC01A I | AC49: 0 | AE49: =IF(CONTROL!$I$4="A",AD49,"") ->  | AV49: 0
D50: Tema 2 - DOCTRINA PARA LA ACCIÓN CONJUNTA DE LAS FUERZAS ARMADAS DPDC01A II | E50: 0 | R50: =IF(CONTROL!$I$4="A",AW50,"") ->  | S50: 36 | T50: =+'36'!AD$2 -> 0 | U50: =+'36'!AE$2 -> 0 | V50: =+'36'!AF$2 -> 0 | W50: =+'36'!AG$2 -> 0 | X50: =+'36'!AH$2 -> 0 | Y50: =+'36'!AI$2 ->  | Z50: =+'36'!AJ$2 -> 0 | AA50: =+'36'!AK$2 ->  | AB50: =+'36'!AL$2 -> Tema 2 - DOCTRINA PARA LA ACCIÓN CONJUNTA DE LAS FUERZAS ARMADAS DPDC01A II | AC50: 0 | AE50: =IF(CONTROL!$I$4="A",AD50,"") ->  | AV50: 0
D51: Tema 2 - DOCTRINA PARA LA ACCIÓN CONJUNTA DE LAS FUERZAS ARMADAS DPDC01A III | E51: 0 | R51: =IF(CONTROL!$I$4="A",AW51,"") ->  | S51: 37 | T51: =+'37'!AD$2 -> 0 | U51: =+'37'!AE$2 -> 0 | V51: =+'37'!AF$2 -> 0 | W51: =+'37'!AG$2 -> 0 | X51: =+'37'!AH$2 -> 0 | Y51: =+'37'!AI$2 ->  | Z51: =+'37'!AJ$2 -> 0 | AA51: =+'37'!AK$2 ->  | AB51: =+'37'!AL$2 -> Tema 2 - DOCTRINA PARA LA ACCIÓN CONJUNTA DE LAS FUERZAS ARMADAS DPDC01A III | AC51: 0 | AE51: =IF(CONTROL!$I$4="A",AD51,"") ->  | AV51: 0
D52: Tema 3 - ORGANIZACIÓN DE LAS NACIONES UNIDAS (ONU) I | E52: 0 | R52: =IF(CONTROL!$I$4="A",AW52,"") ->  | S52: 38 | T52: =+'38'!AD$2 -> 0 | U52: =+'38'!AE$2 -> 0 | V52: =+'38'!AF$2 -> 0 | W52: =+'38'!AG$2 -> 0 | X52: =+'38'!AH$2 -> 0 | Y52: =+'38'!AI$2 ->  | Z52: =+'38'!AJ$2 -> 0 | AA52: =+'38'!AK$2 ->  | AB52: =+'38'!AL$2 -> Tema 3 - ORGANIZACIÓN DE LAS NACIONES UNIDAS (ONU) I | AC52: 0 | AE52: =IF(CONTROL!$I$4="A",AD52,"") ->  | AV52: 0
D53: Tema 3 - ORGANIZACIÓN DE LAS NACIONES UNIDAS (ONU) II | E53: 0 | R53: =IF(CONTROL!$I$4="A",AW53,"") ->  | S53: 39 | T53: =+'39'!AD$2 -> 0 | U53: =+'39'!AE$2 -> 0 | V53: =+'39'!AF$2 -> 0 | W53: =+'39'!AG$2 -> 0 | X53: =+'39'!AH$2 -> 0 | Y53: =+'39'!AI$2 ->  | Z53: =+'39'!AJ$2 -> 0 | AA53: =+'39'!AK$2 ->  | AB53: =+'39'!AL$2 -> Tema 3 - ORGANIZACIÓN DE LAS NACIONES UNIDAS (ONU) II | AC53: 0 | AE53: =IF(CONTROL!$I$4="A",AD53,"") ->  | AV53: 0
D54: Tema 4 - ORGANIZACIÓN DEL TRATADO DEL ATLÁNTICO NORTE (OTAN) | E54: 0 | R54: =IF(CONTROL!$I$4="A",AW54,"") ->  | S54: 40 | T54: =+'40'!AD$2 -> 0 | U54: =+'40'!AE$2 -> 0 | V54: =+'40'!AF$2 -> 0 | W54: =+'40'!AG$2 -> 0 | X54: =+'40'!AH$2 -> 0 | Y54: =+'40'!AI$2 ->  | Z54: =+'40'!AJ$2 -> 0 | AA54: =+'40'!AK$2 ->  | AB54: =+'40'!AL$2 -> Tema 4 - ORGANIZACIÓN DEL TRATADO DEL ATLÁNTICO NORTE (OTAN) | AC54: 0 | AE54: =IF(CONTROL!$I$4="A",AD54,"") ->  | AV54: 0
D55: Tema 5 - ORGANIZACIÓN PARA LA SEGURIDAD Y DEFENSA EN EUROPA (OSCE) | E55: 0 | R55: =IF(CONTROL!$I$4="A",AW55,"") ->  | S55: 41 | T55: =+'41'!AD$2 -> 0 | U55: =+'41'!AE$2 -> 0 | V55: =+'41'!AF$2 -> 0 | W55: =+'41'!AG$2 -> 0 | X55: =+'41'!AH$2 -> 0 | Y55: =+'41'!AI$2 ->  | Z55: =+'41'!AJ$2 -> 0 | AA55: =+'41'!AK$2 ->  | AB55: =+'41'!AL$2 -> Tema 5 - ORGANIZACIÓN PARA LA SEGURIDAD Y DEFENSA EN EUROPA (OSCE) | AC55: 0 | AE55: =IF(CONTROL!$I$4="A",AD55,"") ->  | AV55: 0
D56: Tema 6 - UNIÓN EUROPEA (UE) I | E56: 0 | R56: =IF(CONTROL!$I$4="A",AW56,"") ->  | S56: 42 | T56: =+'42'!AD$2 -> 0 | U56: =+'42'!AE$2 -> 0 | V56: =+'42'!AF$2 -> 0 | W56: =+'42'!AG$2 -> 0 | X56: =+'42'!AH$2 -> 0 | Y56: =+'42'!AI$2 ->  | Z56: =+'42'!AJ$2 -> 0 | AA56: =+'42'!AK$2 ->  | AB56: =+'42'!AL$2 -> Tema 6 - UNIÓN EUROPEA (UE) I | AC56: 0 | AE56: =IF(CONTROL!$I$4="A",AD56,"") ->  | AV56: 0
D57: Tema 6 - UNIÓN EUROPEA (UE) II | E57: 0 | R57: =IF(CONTROL!$I$4="A",AW57,"") ->  | S57: 43 | T57: =+'43'!AD$2 -> 0 | U57: =+'43'!AE$2 -> 0 | V57: =+'43'!AF$2 -> 0 | W57: =+'43'!AG$2 -> 0 | X57: =+'43'!AH$2 -> 0 | Y57: =+'43'!AI$2 ->  | Z57: =+'43'!AJ$2 -> 0 | AA57: =+'43'!AK$2 ->  | AB57: =+'43'!AL$2 -> Tema 6 - UNIÓN EUROPEA (UE) II | AC57: 0 | AE57: =IF(CONTROL!$I$4="A",AD57,"") ->  | AV57: 0
D58: =+AB58 -> Tema 7 - ESPAÑA Y SU PARTICIPACIÓN EN MISIONES INTERNACIONALES | E58: =+T58 -> 0 | G58: =+AF58 ->  | H58: =+AG58 ->  | I58: =+AH58 ->  | J58: =+AI58 ->  | K58: =+AJ58 ->  | L58: =+AK58 ->  | M58: =+AL58 ->  | N58: =+AM58 ->  | O58: =+AN58 ->  | P58: =+AO58 ->  | R58: =IF(CONTROL!$I$4="A",AW58,"") ->  | S58: 44 | T58: =+'44'!AD$2 -> 0 | U58: =+'44'!AE$2 -> 0 | V58: =+'44'!AF$2 -> 0 | W58: =+'44'!AG$2 -> 0 | X58: =+'44'!AH$2 -> 0 | Y58: =+'44'!AI$2 ->  | Z58: =+'44'!AJ$2 -> 0 | AA58: =+'44'!AK$2 ->  | AB58: =+'44'!AL$2 -> Tema 7 - ESPAÑA Y SU PARTICIPACIÓN EN MISIONES INTERNACIONALES | AC58: =IF(X58=0,0,ROUND(Y58*10,1)) -> 0 | AD58: =IF(AA58>4.99,"B","M") ->  | AE58: =IF(CONTROL!$I$4="A",AD58,"") ->  | AF58: =IF(AF$8<$AC58,AE58,"") ->  | AG58: =IF(AG$8<$AC58,AF58,"") ->  | AH58: =IF(AH$8<$AC58,AG58,"") ->  | AI58: =IF(AI$8<$AC58,AH58,"") ->  | AJ58: =IF(AJ$8<$AC58,AI58,"") ->  | AK58: =IF(AK$8<$AC58,AJ58,"") ->  | AL58: =IF(AL$8<$AC58,AK58,"") ->  | AM58: =IF(AM$8<$AC58,AL58,"") ->  | AN58: =IF(AN$8<$AC58,AM58,"") ->  | AO58: =IF(AO$8<$AC58,AN58,"") ->  | AP58: =IF(AA58<4,AP$8,"") ->  | AQ58: =IF(AND(AA58>3.99,AA58<5),AQ$8,"") ->  | AR58: =IF(AND(AA58>4.99,AA58<7),AR$8,"") ->  | AS58: =IF(AND(AA58>6.99,AA58<8),AS$8,"") ->  | AT58: =IF(AA58>8,AT$8,"") ->  | AU58: =CONCATENATE(AY58," ",AP58,AQ58,AR58,AS58,AT58) ->  | AV58: =T58-(U58+V58) -> 0 | AW58: =IF(AV58=0,AU58,IF(X58=0,"¡¡Listo para empezar!!",CONCATENATE(AX58,"% - Nota Puntual: ",AY58))) ->  | AX58: =TRUNC(Y58*100,2) ->  | AY58: =IF(AA58<0,"(0)",CONCATENATE("(",AA58,")")) -> 
D61: TODOS LOS BLOQUES
D62: =CONCATENATE("A U T O T E S T - "," Total Preguntas: ",CONTROL!I11) -> A U T O T E S T - Total Preguntas: 3200 | E62: =+T62 -> 100 | G62: =+AF62 ->  | R62: =AW62 -> ¡¡Listo para empezar!! | T62: =+'0'!AD$2 -> 100 | U62: =+'0'!AE$2 -> 0 | V62: =+'0'!AF$2 -> 0 | W62: =+'0'!AG$2 -> 0 | X62: =+'0'!AH$2 -> 0 | Y62: =+'0'!AI$2 -> 0 | Z62: =+'0'!AJ$2 -> 0 | AA62: =+'0'!AK$2 ->  | AC62: =IF(X62=0,0,ROUND(Y62*10,1)) -> 0 | AD62: =IF(AA62>4.99,"B","M") ->  | AE62: =IF(CONTROL!I4="A",AD62,"") ->  | AF62: =IF(AF$8<$AC62,AE62,"") ->  | AP62: =IF(AA62<4,AP$8,"") ->  | AQ62: =IF(AND(AA62>3.99,AA62<5),AQ$8,"") ->  | AR62: =IF(AND(AA62>4.99,AA62<7),AR$8,"") ->  | AS62: =IF(AND(AA62>6.99,AA62<8),AS$8,"") ->  | AT62: =IF(AA62>8,AT$8,"") ->  | AU62: =CONCATENATE(AP62,AQ62,AR62,AS62,AT62) ->  | AV62: =T62-(U62+V62) -> 100 | AW62: =IF(AV62=0,AU62,IF(X62=0,"¡¡Listo para empezar!!",CONCATENATE(AX62,"% - Nota Puntual: ", AA62))) -> ¡¡Listo para empezar!! | AX62: =TRUNC(Y62*100,2) -> 0
C69: BLOQUES
C70: =+CONTROL!B17 -> 0 | D70: =+CONTROL!C17 -> TODOS LOS BLOQUES
C71: =+CONTROL!B18 -> 1 | D71: =+CONTROL!C18 -> ORGANIZACIÓN
C72: =+CONTROL!B19 -> 2 | D72: =+CONTROL!C19 -> JURÍDICO SOCIAL
C73: =+CONTROL!B20 -> 3 | D73: =+CONTROL!C20 -> SEGURIDAD NACIONAL
C74: =+CONTROL!B21 -> 4 | D74: =+CONTROL!C21 -> ORG + J.SOCIAL
C75: =+CONTROL!B22 -> 5 | D75: =+CONTROL!C22 -> ORG + S.NACIONAL
C76: =+CONTROL!B23 -> 6 | D76: =+CONTROL!C23 -> J. SOCIAL + S.NACIONAL

Sheet 1
A1: ◄ | C1: =AO1 -> Tema 1 - ORGANIZACIÓN POLÍTICA Y TERRITORIAL I | E1: =ROUND(Q2/K2*10,2) -> 0 | I1: 1 | J1: COLUMNA | K1: preguntas | L1: aciertos | M1: Fallos | N1: Ptos Negativos | O1: Contestadas | P1: % evolución | Q1: Puntuación | R1: Nota Puntual | S1: Nota Final | T1: Texto Notas | U1: Texto completo | V1: Testo simple | W1: Control Respuestas | X1: Control caducidad | AD1: preguntas | AE1: aciertos | AF1: Fallos | AG1: Ptos Negativos | AH1: Contestadas | AI1: % evolución | AJ1: Puntuación | AK1: Nota Puntual | AL1: Tests | AN1: Test | AO1: =LOOKUP(I5,DATOS!A:A,DATOS!F:F) -> Tema 1 - ORGANIZACIÓN POLÍTICA Y TERRITORIAL I
C2: =IF(CONTROL!I4="A",X2,"") -> Test, compuesto por 20 preguntas | K2: =COUNTA(H:H)-COUNT(H:H) -> 20 | L2: =SUM(L3:L1048576) -> 0 | M2: =SUM(M3:M1048576) -> 0 | N2: =SUM(N3:N52) -> 0 | O2: =L2+M2 -> 0 | P2: =+O2/K2 -> 0 | Q2: =+L2+N2 -> 0 | R2: =ROUND(Q2/(L2+M2)*10,2) ->  | S2: =ROUND(Q2/K2*10,2) -> 0 | T2: =CONCATENATE("puntual: ", R2," Nota final: ", S2) ->  | U2: =CONCATENATE("Evolución: ", K2," preguntas, ",L2," aciertos, ",M2," errores, ",Q2," puntos. Nota ",T2) ->  | V2: =CONCATENATE("Test, compuesto por ",K2," preguntas") -> Test, compuesto por 20 preguntas | W2: =IF(E2="X",V2,IF(O2>0,U2,V2)) -> Test, compuesto por 20 preguntas | X2: =IF(CONTROL!I4="A",W2,V2) -> Test, compuesto por 20 preguntas | AD2: =IF(CONTROL!$I$4="A",K2,0) -> 20 | AE2: =IF(CONTROL!$I$4="A",L2,0) -> 0 | AF2: =IF(CONTROL!$I$4="A",M2,0) -> 0 | AG2: =IF(CONTROL!$I$4="A",N2,0) -> 0 | AH2: =IF(CONTROL!$I$4="A",O2,0) -> 0 | AI2: =IF(CONTROL!$I$4="A",P2,0) -> 0 | AJ2: =IF(CONTROL!$I$4="A",Q2,0) -> 0 | AK2: =IF(CONTROL!$I$4="A",R2,0) ->  | AL2: =+AO1 -> Tema 1 - ORGANIZACIÓN POLÍTICA Y TERRITORIAL I | AN2: Portada | AO2: =LOOKUP(I5,DATOS!A:A,DATOS!E:E) -> Tema 1 - ORGANIZACIÓN POLÍTICA Y TERRITORIAL
C5: =+CONCATENATE(K5,".- ",G5) -> 1.- CONSTITUCIÓN. ¿Quién aprueba los presupuestos de las Cortes Generales? | G5: =LOOKUP(I5,DATOS!A:A,DATOS!G:G) -> CONSTITUCIÓN. ¿Quién aprueba los presupuestos de las Cortes Generales? | H5: =LOOKUP(I5,DATOS!A:A,DATOS!N:N) -> B | I5: =LOOKUP(I1,DATOS!C:C,DATOS!A:A) -> 1 | J5: =LOOKUP(I5,DATOS!A:A,DATOS!C:C) -> 1 | K5: 1 | L5: ACIERTOS | M5: ERROR | N5: Ptos negativos | O5: RESPUESTAS | P5: Control Respuesta | Q5: OPCIONES | R5: =CONCATENATE("X",H5) -> XB | S5: CONTROL SOLUCION
A6: =IF($E$2="X",0,IF(K7>2,H5,K7)) -> 0 | C6: =+CONCATENATE(I6," ",G6) -> a) El Congreso, previa autorización del Senado | G6: =LOOKUP(I5,DATOS!A:A,DATOS!J:J) -> El Congreso, previa autorización del Senado | I6: a) | K6: CONTROL | L6: =IF(M6>0,0,P6) -> 0 | M6: =IF(P7>0,1,0) -> 0 | N6: =IF(M6=1,-1/COUNTA(Q6:Q9),0) -> 0 | O6: =COUNTA(B6:B9) -> 0 | P6: =COUNTIF(R6:R9,R5) -> 0 | Q6: A | R6: =CONCATENATE(B6,Q6) -> A | S6: =IF(P6>0,P6+O6,O6*3) -> 0
C7: =+CONCATENATE(I7," ",G7) -> b) Las propias Cortes Generales | G7: =LOOKUP(I5,DATOS!A:A,DATOS!K:K) -> Las propias Cortes Generales | I7: b) | K7: =S6 -> 0 | P7: =O6-P6 -> 0 | Q7: B | R7: =CONCATENATE(B7,Q7) -> B
C8: =+CONCATENATE(I8," ",G8) -> c) Cada cámara aprueba sus propios presupuestos | G8: =LOOKUP(I5,DATOS!A:A,DATOS!L:L) -> Cada cámara aprueba sus propios presupuestos | I8: c) | Q8: C | R8: =CONCATENATE(B8,Q8) -> C
C9: =+CONCATENATE(I9," ",G9) -> d) Ninguna es correcta | G9: =LOOKUP(I5,DATOS!A:A,DATOS!M:M) -> Ninguna es correcta | I9: d) | Q9: D | R9: =CONCATENATE(B9,Q9) -> D
C11: =+CONCATENATE(K11,".- ",G11) -> 2.- CONSTITUCIÓN. Constitución. De las Cortes Generales. ¿Quién o qué reconocerá y facilitará el ejercicio del derecho de sufragio a los españoles que se encuentren fuera del territorio de España? | G11: =IF(J12="FIN","",LOOKUP(I11,DATOS!A:A,DATOS!G:G)) -> CONSTITUCIÓN. Constitución. De las Cortes Generales. ¿Quién o qué reconocerá y facilitará el ejercicio del derecho de sufragio a los españoles que se encuentren fuera del territorio de España? | H11: =IF(J12="FIN",0,LOOKUP(I11,DATOS!A:A,DATOS!N:N)) -> A | I11: =+I5+1 -> 2 | J11: =IF(LOOKUP(I11,DATOS!A:A,DATOS!C:C)=0,J5,(LOOKUP(I11,DATOS!A:A,DATOS!C:C))) -> 1 | K11: =+K5+1 -> 2 | L11: ACIERTOS | M11: ERROR | N11: Ptos negativos | O11: RESPUESTAS | P11: Control Respuesta | Q11: OPCIONES | R11: =CONCATENATE("X",H11) -> XA | S11: CONTROL SOLUCION
A12: =IF($E$2="X",0,IF(K13>2,H11,K13)) -> 0 | C12: =+CONCATENATE(I12," ",G12) -> a) El Estado lo facilitará y la ley lo reconocerá. | G12: =IF(J12="FIN","",LOOKUP(I11,DATOS!A:A,DATOS!J:J)) -> El Estado lo facilitará y la ley lo reconocerá. | I12: a) | J12: =IF(J6="FIN","FIN",IF(J11=J5,"","FIN")) ->  | K12: CONTROL | L12: =IF(M12>0,0,P12) -> 0 | M12: =IF(P13>0,1,0) -> 0 | N12: =IF(M12=1,-1/COUNTA(Q12:Q15),0) -> 0 | O12: =COUNTA(B12:B15) -> 0 | P12: =COUNTIF(R12:R15,R11) -> 0 | Q12: A | R12: =CONCATENATE(B12,Q12) -> A | S12: =IF(P12>0,P12+O12,O12*3) -> 0
C13: =+CONCATENATE(I13," ",G13) -> b) El Estado lo reconocerá y la ley lo facilitará. | G13: =IF(J12="FIN","",LOOKUP(I11,DATOS!A:A,DATOS!K:K)) -> El Estado lo reconocerá y la ley lo facilitará. | I13: b) | K13: =S12 -> 0 | P13: =O12-P12 -> 0 | Q13: B | R13: =CONCATENATE(B13,Q13) -> B
C14: =+CONCATENATE(I14," ",G14) -> c) El Gobierno lo reconocerá y la ley lo facilitará. | G14: =IF(J12="FIN","",LOOKUP(I11,DATOS!A:A,DATOS!L:L)) -> El Gobierno lo reconocerá y la ley lo facilitará. | I14: c) | Q14: C | R14: =CONCATENATE(B14,Q14) -> C
C15: =+CONCATENATE(I15," ",G15) -> d) El Congreso lo facilitará y el Senado lo reconocerá. | G15: =IF(J12="FIN","",LOOKUP(I11,DATOS!A:A,DATOS!M:M)) -> El Congreso lo facilitará y el Senado lo reconocerá. | I15: d) | Q15: D | R15: =CONCATENATE(B15,Q15) -> D
C17: =+CONCATENATE(K17,".- ",G17) -> 3.- CONSTITUCIÓN. ¿Qué plazo dispone el Senado para vetar o introducir enmiendas a un proyecto de ley ordinaria y orgánica declarado urgente por el Gobierno o por el Congreso de los Diputados? (Exa PER AI - 2019) | G17: =IF(J18="FIN","",LOOKUP(I17,DATOS!A:A,DATOS!G:G)) -> CONSTITUCIÓN. ¿Qué plazo dispone el Senado para vetar o introducir enmiendas a un proyecto de ley ordinaria y orgánica declarado urgente por el Gobierno o por el Congreso de los Diputados? (Exa PER AI - 2019) | H17: =IF(J18="FIN",0,LOOKUP(I17,DATOS!A:A,DATOS!N:N)) -> B | I17: =+I11+1 -> 3 | J17: =IF(LOOKUP(I17,DATOS!A:A,DATOS!C:C)=0,J11,(LOOKUP(I17,DATOS!A:A,DATOS!C:C))) -> 1 | K17: =+K11+1 -> 3 | L17: ACIERTOS | M17: ERROR | N17: Ptos negativos | O17: RESPUESTAS | P17: Control Respuesta | Q17: OPCIONES | R17: =CONCATENATE("X",H17) -> XB | S17: CONTROL SOLUCION
A18: =IF($E$2="X",0,IF(K19>2,H17,K19)) -> 0 | C18: =+CONCATENATE(I18," ",G18) -> a) 15 días naturales | G18: =IF(J18="FIN","",LOOKUP(I17,DATOS!A:A,DATOS!J:J)) -> 15 días naturales | I18: a) | J18: =IF(J12="FIN","FIN",IF(J17=J11,"","FIN")) ->  | K18: CONTROL | L18: =IF(M18>0,0,P18) -> 0 | M18: =IF(P19>0,1,0) -> 0 | N18: =IF(M18=1,-1/COUNTA(Q18:Q21),0) -> 0 | O18: =COUNTA(B18:B21) -> 0 | P18: =COUNTIF(R18:R21,R17) -> 0 | Q18: A | R18: =CONCATENATE(B18,Q18) -> A | S18: =IF(P18>0,P18+O18,O18*3) -> 0
C19: =+CONCATENATE(I19," ",G19) -> b) 20 días naturales | G19: =IF(J18="FIN","",LOOKUP(I17,DATOS!A:A,DATOS!K:K)) -> 20 días naturales | I19: b) | K19: =S18 -> 0 | P19: =O18-P18 -> 0 | Q19: B | R19: =CONCATENATE(B19,Q19) -> B
C20: =+CONCATENATE(I20," ",G20) -> c) 21 días naturales | G20: =IF(J18="FIN","",LOOKUP(I17,DATOS!A:A,DATOS!L:L)) -> 21 días naturales | I20: c) | Q20: C | R20: =CONCATENATE(B20,Q20) -> C
C21: =+CONCATENATE(I21," ",G21) -> d) 2 meses | G21: =IF(J18="FIN","",LOOKUP(I17,DATOS!A:A,DATOS!M:M)) -> 2 meses | I21: d) | Q21: D | R21: =CONCATENATE(B21,Q21) -> D
C23: =+CONCATENATE(K23,".- ",G23) -> 4.- CONSTITUCIÓN. ¿En qué plazo el Rey sancionará las leyes aprobadas por las Cortes generales y las promulgará y ordenará su inmediata publicación? (Exa PER AI - 2019) | G23: =IF(J24="FIN","",LOOKUP(I23,DATOS!A:A,DATOS!G:G)) -> CONSTITUCIÓN. ¿En qué plazo el Rey sancionará las leyes aprobadas por las Cortes generales y las promulgará y ordenará su inmediata publicación? (Exa PER AI - 2019) | H23: =IF(J24="FIN",0,LOOKUP(I23,DATOS!A:A,DATOS!N:N)) -> B | I23: =+I17+1 -> 4 | J23: =IF(LOOKUP(I23,DATOS!A:A,DATOS!C:C)=0,J17,(LOOKUP(I23,DATOS!A:A,DATOS!C:C))) -> 1 | K23: =+K17+1 -> 4 | L23: ACIERTOS | M23: ERROR | N23: Ptos negativos | O23: RESPUESTAS | P23: Control Respuesta | Q23: OPCIONES | R23: =CONCATENATE("X",H23) -> XB | S23: CONTROL SOLUCION
A24: =IF($E$2="X",0,IF(K25>2,H23,K25)) -> 0 | C24: =+CONCATENATE(I24," ",G24) -> a) 10 días | G24: =IF(J24="FIN","",LOOKUP(I23,DATOS!A:A,DATOS!J:J)) -> 10 días | I24: a) | J24: =IF(J18="FIN","FIN",IF(J23=J17,"","FIN")) ->  | K24: CONTROL | L24: =IF(M24>0,0,P24) -> 0 | M24: =IF(P25>0,1,0) -> 0 | N24: =IF(M24=1,-1/COUNTA(Q24:Q27),0) -> 0 | O24: =COUNTA(B24:B27) -> 0 | P24: =COUNTIF(R24:R27,R23) -> 0 | Q24: A | R24: =CONCATENATE(B24,Q24) -> A | S24: =IF(P24>0,P24+O24,O24*3) -> 0
C25: =+CONCATENATE(I25," ",G25) -> b) 15 días | G25: =IF(J24="FIN","",LOOKUP(I23,DATOS!A:A,DATOS!K:K)) -> 15 días | I25: b) | K25: =S24 -> 0 | P25: =O24-P24 -> 0 | Q25: B | R25: =CONCATENATE(B25,Q25) -> B
C26: =+CONCATENATE(I26," ",G26) -> c) 20 días | G26: =IF(J24="FIN","",LOOKUP(I23,DATOS!A:A,DATOS!L:L)) -> 20 días | I26: c) | Q26: C | R26: =CONCATENATE(B26,Q26) -> C
C27: =+CONCATENATE(I27," ",G27) -> d) 25 días | G27: =IF(J24="FIN","",LOOKUP(I23,DATOS!A:A,DATOS!M:M)) -> 25 días | I27: d) | Q27: D | R27: =CONCATENATE(B27,Q27) -> D
C29: =+CONCATENATE(K29,".- ",G29) -> 5.- CONSTITUCIÓN. La Diputación Permanente de cada Cámara estará compuesta por un mínimo de … miembros. (Exa PER AI - 2019) | G29: =IF(J30="FIN","",LOOKUP(I29,DATOS!A:A,DATOS!G:G)) -> CONSTITUCIÓN. La Diputación Permanente de cada Cámara estará compuesta por un mínimo de … miembros. (Exa PER AI - 2019) | H29: =IF(J30="FIN",0,LOOKUP(I29,DATOS!A:A,DATOS!N:N)) -> B | I29: =+I23+1 -> 5 | J29: =IF(LOOKUP(I29,DATOS!A:A,DATOS!C:C)=0,J23,(LOOKUP(I29,DATOS!A:A,DATOS!C:C))) -> 1 | K29: =+K23+1 -> 5 | L29: ACIERTOS | M29: ERROR | N29: Ptos negativos | O29: RESPUESTAS | P29: Control Respuesta | Q29: OPCIONES | R29: =CONCATENATE("X",H29) -> XB | S29: CONTROL SOLUCION
A30: =IF($E$2="X",0,IF(K31>2,H29,K31)) -> 0 | C30: =+CONCATENATE(I30," ",G30) -> a) 20 | G30: =IF(J30="FIN","",LOOKUP(I29,DATOS!A:A,DATOS!J:J)) -> 20 | I30: a) | J30: =IF(J24="FIN","FIN",IF(J29=J23,"","FIN")) ->  | K30: CONTROL | L30: =IF(M30>0,0,P30) -> 0 | M30: =IF(P31>0,1,0) -> 0 | N30: =IF(M30=1,-1/COUNTA(Q30:Q33),0) -> 0 | O30: =COUNTA(B30:B33) -> 0 | P30: =COUNTIF(R30:R33,R29) -> 0 | Q30: A | R30: =CONCATENATE(B30,Q30) -> A | S30: =IF(P30>0,P30+O30,O30*3) -> 0
C31: =+CONCATENATE(I31," ",G31) -> b) 21 | G31: =IF(J30="FIN","",LOOKUP(I29,DATOS!A:A,DATOS!K:K)) -> 21 | I31: b) | K31: =S30 -> 0 | P31: =O30-P30 -> 0 | Q31: B | R31: =CONCATENATE(B31,Q31) -> B
C32: =+CONCATENATE(I32," ",G32) -> c) 25 | G32: =IF(J30="FIN","",LOOKUP(I29,DATOS!A:A,DATOS!L:L)) -> 25 | I32: c) | Q32: C | R32: =CONCATENATE(B32,Q32) -> C
C33: =+CONCATENATE(I33," ",G33) -> d) El número será acordado por la Mesa de la Cámara, previa audiencia de la Junta de Portavoces | G33: =IF(J30="FIN","",LOOKUP(I29,DATOS!A:A,DATOS!M:M)) -> El número será acordado por la Mesa de la Cámara, previa audiencia de la Junta de Portavoces | I33: d) | Q33: D | R33: =CONCATENATE(B33,Q33) -> D
C35: =+CONCATENATE(K35,".- ",G35) -> 6.- CONSTITUCIÓN. Constitución. De las Cortes Generales. Indique la proposición CORRECTA. | G35: =IF(J36="FIN","",LOOKUP(I35,DATOS!A:A,DATOS!G:G)) -> CONSTITUCIÓN. Constitución. De las Cortes Generales. Indique la proposición CORRECTA. | H35: =IF(J36="FIN",0,LOOKUP(I35,DATOS!A:A,DATOS!N:N)) -> D | I35: =+I29+1 -> 6 | J35: =IF(LOOKUP(I35,DATOS!A:A,DATOS!C:C)=0,J29,(LOOKUP(I35,DATOS!A:A,DATOS!C:C))) -> 1 | K35: =+K29+1 -> 6 | L35: ACIERTOS | M35: ERROR | N35: Ptos negativos | O35: RESPUESTAS | P35: Control Respuesta | Q35: OPCIONES | R35: =CONCATENATE("X",H35) -> XD | S35: CONTROL SOLUCION
A36: =IF($E$2="X",0,IF(K37>2,H35,K37)) -> 0 | C36: =+CONCATENATE(I36," ",G36) -> a) Las poblaciones de Ceuta y Melilla estarán representadas cada una de ellas por un Senador. | G36: =IF(J36="FIN","",LOOKUP(I35,DATOS!A:A,DATOS!J:J)) -> Las poblaciones de Ceuta y Melilla estarán representadas cada una de ellas por un Senador. | I36: a) | J36: =IF(J30="FIN","FIN",IF(J35=J29,"","FIN")) ->  | K36: CONTROL | L36: =IF(M36>0,0,P36) -> 0 | M36: =IF(P37>0,1,0) -> 0 | N36: =IF(M36=1,-1/COUNTA(Q36:Q39),0) -> 0 | O36: =COUNTA(B36:B39) -> 0 | P36: =COUNTIF(R36:R39,R35) -> 0 | Q36: A | R36: =CONCATENATE(B36,Q36) -> A | S36: =IF(P36>0,P36+O36,O36*3) -> 0
C37: =+CONCATENATE(I37," ",G37) -> b) A la isla de Menorca le corresponde elegir un Diputado. | G37: =IF(J36="FIN","",LOOKUP(I35,DATOS!A:A,DATOS!K:K)) -> A la isla de Menorca le corresponde elegir un Diputado. | I37: b) | K37: =S36 -> 0 | P37: =O36-P36 -> 0 | Q37: B | R37: =CONCATENATE(B37,Q37) -> B
C38: =+CONCATENATE(I38," ",G38) -> c) En cada provincia se elegirán cuatro Senadores por sufragio universal, libre, igual, directo y secreto por los vo-tantes de cada una de ellas, en los términos que señale una ley ordinaria. | G38: =IF(J36="FIN","",LOOKUP(I35,DATOS!A:A,DATOS!L:L)) -> En cada provincia se elegirán cuatro Senadores por sufragio universal, libre, igual, directo y secreto por los vo-tantes de cada una de ellas, en los términos que señale una ley ordinaria. | I38: c) | Q38: C | R38: =CONCATENATE(B38,Q38) -> C
C39: =+CONCATENATE(I39," ",G39) -> d) Las Comunidades Autónomas designarán un Senador y otro más por cada millón de habitantes de su respectivo territorio. | G39: =IF(J36="FIN","",LOOKUP(I35,DATOS!A:A,DATOS!M:M)) -> Las Comunidades Autónomas designarán un Senador y otro más por cada millón de habitantes de su respectivo territorio. | I39: d) | Q39: D | R39: =CONCATENATE(B39,Q39) -> D
C41: =+CONCATENATE(K41,".- ",G41) -> 7.- CONSTITUCIÓN. Constitución. Las Cortes Generales. Las Cámaras podrán delegar en las Comisiones Legislativas Permanentes: | G41: =IF(J42="FIN","",LOOKUP(I41,DATOS!A:A,DATOS!G:G)) -> CONSTITUCIÓN. Constitución. Las Cortes Generales. Las Cámaras podrán delegar en las Comisiones Legislativas Permanentes: | H41: =IF(J42="FIN",0,LOOKUP(I41,DATOS!A:A,DATOS!N:N)) -> C | I41: =+I35+1 -> 7 | J41: =IF(LOOKUP(I41,DATOS!A:A,DATOS!C:C)=0,J35,(LOOKUP(I41,DATOS!A:A,DATOS!C:C))) -> 1 | K41: =+K35+1 -> 7 | L41: ACIERTOS | M41: ERROR | N41: Ptos negativos | O41: RESPUESTAS | P41: Control Respuesta | Q41: OPCIONES | R41: =CONCATENATE("X",H41) -> XC | S41: CONTROL SOLUCION
A42: =IF($E$2="X",0,IF(K43>2,H41,K43)) -> 0 | C42: =+CONCATENATE(I42," ",G42) -> a) La aprobación de la reforma constitucional. | G42: =IF(J42="FIN","",LOOKUP(I41,DATOS!A:A,DATOS!J:J)) -> La aprobación de la reforma constitucional. | I42: a) | J42: =IF(J36="FIN","FIN",IF(J41=J35,"","FIN")) ->  | K42: CONTROL | L42: =IF(M42>0,0,P42) -> 0 | M42: =IF(P43>0,1,0) -> 0 | N42: =IF(M42=1,-1/COUNTA(Q42:Q45),0) -> 0 | O42: =COUNTA(B42:B45) -> 0 | P42: =COUNTIF(R42:R45,R41) -> 0 | Q42: A | R42: =CONCATENATE(B42,Q42) -> A | S42: =IF(P42>0,P42+O42,O42*3) -> 0
C43: =+CONCATENATE(I43," ",G43) -> b) La aprobación de leyes orgánicas y de bases. | G43: =IF(J42="FIN","",LOOKUP(I41,DATOS!A:A,DATOS!K:K)) -> La aprobación de leyes orgánicas y de bases. | I43: b) | K43: =S42 -> 0 | P43: =O42-P42 -> 0 | Q43: B | R43: =CONCATENATE(B43,Q43) -> B
C44: =+CONCATENATE(I44," ",G44) -> c) La aprobación de proyectos y proposiciones de ley. | G44: =IF(J42="FIN","",LOOKUP(I41,DATOS!A:A,DATOS!L:L)) -> La aprobación de proyectos y proposiciones de ley. | I44: c) | Q44: C | R44: =CONCATENATE(B44,Q44) -> C
C45: =+CONCATENATE(I45," ",G45) -> d) La aprobación de los Presupuestos Generales del Estado. | G45: =IF(J42="FIN","",LOOKUP(I41,DATOS!A:A,DATOS!M:M)) -> La aprobación de los Presupuestos Generales del Estado. | I45: d) | Q45: D | R45: =CONCATENATE(B45,Q45) -> D
C47: =+CONCATENATE(K47,".- ",G47) -> 8.- CONSTITUCIÓN. Constitución. En relación a las Cortes Generales. Señale la proposición que considere INCORRECTA. | G47: =IF(J48="FIN","",LOOKUP(I47,DATOS!A:A,DATOS!G:G)) -> CONSTITUCIÓN. Constitución. En relación a las Cortes Generales. Señale la proposición que considere INCORRECTA. | H47: =IF(J48="FIN",0,LOOKUP(I47,DATOS!A:A,DATOS!N:N)) -> D | I47: =+I41+1 -> 8 | J47: =IF(LOOKUP(I47,DATOS!A:A,DATOS!C:C)=0,J41,(LOOKUP(I47,DATOS!A:A,DATOS!C:C))) -> 1 | K47: =+K41+1 -> 8 | L47: ACIERTOS | M47: ERROR | N47: Ptos negativos | O47: RESPUESTAS | P47: Control Respuesta | Q47: OPCIONES | R47: =CONCATENATE("X",H47) -> XD | S47: CONTROL SOLUCION
A48: =IF($E$2="X",0,IF(K49>2,H47,K49)) -> 0 | C48: =+CONCATENATE(I48," ",G48) -> a) Los Diputados y Senadores percibirán una asignación que será fijada por las respectivas Cámaras. | G48: =IF(J48="FIN","",LOOKUP(I47,DATOS!A:A,DATOS!J:J)) -> Los Diputados y Senadores percibirán una asignación que será fijada por las respectivas Cámaras. | I48: a) | J48: =IF(J42="FIN","FIN",IF(J47=J41,"","FIN")) ->  | K48: CONTROL | L48: =IF(M48>0,0,P48) -> 0 | M48: =IF(P49>0,1,0) -> 0 | N48: =IF(M48=1,-1/COUNTA(Q48:Q51),0) -> 0 | O48: =COUNTA(B48:B51) -> 0 | P48: =COUNTIF(R48:R51,R47) -> 0 | Q48: A | R48: =CONCATENATE(B48,Q48) -> A | S48: =IF(P48>0,P48+O48,O48*3) -> 0
C49: =+CONCATENATE(I49," ",G49) -> b) Los Diputados y Senadores gozarán de inviolabilidad por las opiniones manifestadas en el ejercicio de sus funciones. | G49: =IF(J48="FIN","",LOOKUP(I47,DATOS!A:A,DATOS!K:K)) -> Los Diputados y Senadores gozarán de inviolabilidad por las opiniones manifestadas en el ejercicio de sus funciones. | I49: b) | K49: =S48 -> 0 | P49: =O48-P48 -> 0 | Q49: B | R49: =CONCATENATE(B49,Q49) -> B
C50: =+CONCATENATE(I50," ",G50) -> c) Los Diputados y Senadores, durante el período de su mandato, no podrán ser inculpados ni procesados sin la previa autorización de la Cámara respectiva. | G50: =IF(J48="FIN","",LOOKUP(I47,DATOS!A:A,DATOS!L:L)) -> Los Diputados y Senadores, durante el período de su mandato, no podrán ser inculpados ni procesados sin la previa autorización de la Cámara respectiva. | I50: c) | Q50: C | R50: =CONCATENATE(B50,Q50) -> C
C51: =+CONCATENATE(I51," ",G51) -> d) En las causas contra Diputados y Senadores será competente el Tribunal Constitucional. | G51: =IF(J48="FIN","",LOOKUP(I47,DATOS!A:A,DATOS!M:M)) -> En las causas contra Diputados y Senadores será competente el Tribunal Constitucional. | I51: d) | Q51: D | R51: =CONCATENATE(B51,Q51) -> D
C53: =+CONCATENATE(K53,".- ",G53) -> 9.- CONSTITUCIÓN. Constitución. De las Cortes Generales. Indique la proposición INCORRECTA. Las Cortes Generales podrán delegar en el Gobierno la potestad de dictar normas con rango de ley sobre determinadas materias, está delegación legislativa deberá otorgarse mediante: | G53: =IF(J54="FIN","",LOOKUP(I53,DATOS!A:A,DATOS!G:G)) -> CONSTITUCIÓN. Constitución. De las Cortes Generales. Indique la proposición INCORRECTA. Las Cortes Generales podrán delegar en el Gobierno la potestad de dictar normas con rango de ley sobre determinadas materias, está delegación legislativa deberá otorgarse mediante: | H53: =IF(J54="FIN",0,LOOKUP(I53,DATOS!A:A,DATOS!N:N)) -> A | I53: =+I47+1 -> 9 | J53: =IF(LOOKUP(I53,DATOS!A:A,DATOS!C:C)=0,J47,(LOOKUP(I53,DATOS!A:A,DATOS!C:C))) -> 1 | K53: =+K47+1 -> 9 | L53: ACIERTOS | M53: ERROR | N53: Ptos negativos | O53: RESPUESTAS | P53: Control Respuesta | Q53: OPCIONES | R53: =CONCATENATE("X",H53) -> XA | S53: CONTROL SOLUCION
A54: =IF($E$2="X",0,IF(K55>2,H53,K55)) -> 0 | C54: =+CONCATENATE(I54," ",G54) -> a) Ley orgánica si su objeto es la regulación de derechos fundamentales. | G54: =IF(J54="FIN","",LOOKUP(I53,DATOS!A:A,DATOS!J:J)) -> Ley orgánica si su objeto es la regulación de derechos fundamentales. | I54: a) | J54: =IF(J48="FIN","FIN",IF(J53=J47,"","FIN")) ->  | K54: CONTROL | L54: =IF(M54>0,0,P54) -> 0 | M54: =IF(P55>0,1,0) -> 0 | N54: =IF(M54=1,-1/COUNTA(Q54:Q57),0) -> 0 | O54: =COUNTA(B54:B57) -> 0 | P54: =COUNTIF(R54:R57,R53) -> 0 | Q54: A | R54: =CONCATENATE(B54,Q54) -> A | S54: =IF(P54>0,P54+O54,O54*3) -> 0
C55: =+CONCATENATE(I55," ",G55) -> b) Una ley de bases cuando su objeto sea la formación de textos articulados. | G55: =IF(J54="FIN","",LOOKUP(I53,DATOS!A:A,DATOS!K:K)) -> Una ley de bases cuando su objeto sea la formación de textos articulados. | I55: b) | K55: =S54 -> 0 | P55: =O54-P54 -> 0 | Q55: B | R55: =CONCATENATE(B55,Q55) -> B
C56: =+CONCATENATE(I56," ",G56) -> c) Una ley ordinaria cuando se trate de refundir varios textos legales en uno solo. | G56: =IF(J54="FIN","",LOOKUP(I53,DATOS!A:A,DATOS!L:L)) -> Una ley ordinaria cuando se trate de refundir varios textos legales en uno solo. | I56: c) | Q56: C | R56: =CONCATENATE(B56,Q56) -> C
C57: =+CONCATENATE(I57," ",G57) -> d) Todas las proposiciones son correctas. | G57: =IF(J54="FIN","",LOOKUP(I53,DATOS!A:A,DATOS!M:M)) -> Todas las proposiciones son correctas. | I57: d) | Q57: D | R57: =CONCATENATE(B57,Q57) -> D
C59: =+CONCATENATE(K59,".- ",G59) -> 10.- CONSTITUCIÓN. Constitución. De las Cortes Generales. De la elaboración de las leyes. Las disposiciones del Gobierno que contengan legislación delegada recibirán el título de: | G59: =IF(J60="FIN","",LOOKUP(I59,DATOS!A:A,DATOS!G:G)) -> CONSTITUCIÓN. Constitución. De las Cortes Generales. De la elaboración de las leyes. Las disposiciones del Gobierno que contengan legislación delegada recibirán el título de: | H59: =IF(J60="FIN",0,LOOKUP(I59,DATOS!A:A,DATOS!N:N)) -> B | I59: =+I53+1 -> 10 | J59: =IF(LOOKUP(I59,DATOS!A:A,DATOS!C:C)=0,J53,(LOOKUP(I59,DATOS!A:A,DATOS!C:C))) -> 1 | K59: =+K53+1 -> 10 | L59: ACIERTOS | M59: ERROR | N59: Ptos negativos | O59: RESPUESTAS | P59: Control Respuesta | Q59: OPCIONES | R59: =CONCATENATE("X",H59) -> XB | S59: CONTROL SOLUCION
A60: =IF($E$2="X",0,IF(K61>2,H59,K61)) -> 0 | C60: =+CONCATENATE(I60," ",G60) -> a) Ley de bases. | G60: =IF(J60="FIN","",LOOKUP(I59,DATOS!A:A,DATOS!J:J)) -> Ley de bases. | I60: a) | J60: =IF(J54="FIN","FIN",IF(J59=J53,"","FIN")) ->  | K60: CONTROL | L60: =IF(M60>0,0,P60) -> 0 | M60: =IF(P61>0,1,0) -> 0 | N60: =IF(M60=1,-1/COUNTA(Q60:Q63),0) -> 0 | O60: =COUNTA(B60:B63) -> 0 | P60: =COUNTIF(R60:R63,R59) -> 0 | Q60: A | R60: =CONCATENATE(B60,Q60) -> A | S60: =IF(P60>0,P60+O60,O60*3) -> 0
C61: =+CONCATENATE(I61," ",G61) -> b) Decretos Legislativos. | G61: =IF(J60="FIN","",LOOKUP(I59,DATOS!A:A,DATOS!K:K)) -> Decretos Legislativos. | I61: b) | K61: =S60 -> 0 | P61: =O60-P60 -> 0 | Q61: B | R61: =CONCATENATE(B61,Q61) -> B
C62: =+CONCATENATE(I62," ",G62) -> c) Ley de delegación. | G62: =IF(J60="FIN","",LOOKUP(I59,DATOS!A:A,DATOS!L:L)) -> Ley de delegación. | I62: c) | Q62: C | R62: =CONCATENATE(B62,Q62) -> C
C63: =+CONCATENATE(I63," ",G63) -> d) Decreto-Ley. | G63: =IF(J60="FIN","",LOOKUP(I59,DATOS!A:A,DATOS!M:M)) -> Decreto-Ley. | I63: d) | Q63: D | R63: =CONCATENATE(B63,Q63) -> D
C65: =+CONCATENATE(K65,".- ",G65) -> 11.- CONSTITUCIÓN. Constitución. De las Cortes Generales. Con respecto a la elaboración de las leyes cuando una proposición de ley o una enmienda fuere contraria a una delegación legislativa en vigor, ¿quién está facultado para oponerse a su tramitación? | G65: =IF(J66="FIN","",LOOKUP(I65,DATOS!A:A,DATOS!G:G)) -> CONSTITUCIÓN. Constitución. De las Cortes Generales. Con respecto a la elaboración de las leyes cuando una proposición de ley o una enmienda fuere contraria a una delegación legislativa en vigor, ¿quién está facultado para oponerse a su tramitación? | H65: =IF(J66="FIN",0,LOOKUP(I65,DATOS!A:A,DATOS!N:N)) -> C | I65: =+I59+1 -> 11 | J65: =IF(LOOKUP(I65,DATOS!A:A,DATOS!C:C)=0,J59,(LOOKUP(I65,DATOS!A:A,DATOS!C:C))) -> 1 | K65: =+K59+1 -> 11 | L65: ACIERTOS | M65: ERROR | N65: Ptos negativos | O65: RESPUESTAS | P65: Control Respuesta | Q65: OPCIONES | R65: =CONCATENATE("X",H65) -> XC | S65: CONTROL SOLUCION
A66: =IF($E$2="X",0,IF(K67>2,H65,K67)) -> 0 | C66: =+CONCATENATE(I66," ",G66) -> a) El Congreso. | G66: =IF(J66="FIN","",LOOKUP(I65,DATOS!A:A,DATOS!J:J)) -> El Congreso. | I66: a) | J66: =IF(J60="FIN","FIN",IF(J65=J59,"","FIN")) ->  | K66: CONTROL | L66: =IF(M66>0,0,P66) -> 0 | M66: =IF(P67>0,1,0) -> 0 | N66: =IF(M66=1,-1/COUNTA(Q66:Q69),0) -> 0 | O66: =COUNTA(B66:B69) -> 0 | P66: =COUNTIF(R66:R69,R65) -> 0 | Q66: A | R66: =CONCATENATE(B66,Q66) -> A | S66: =IF(P66>0,P66+O66,O66*3) -> 0
C67: =+CONCATENATE(I67," ",G67) -> b) Las Cortes Generales. | G67: =IF(J66="FIN","",LOOKUP(I65,DATOS!A:A,DATOS!K:K)) -> Las Cortes Generales. | I67: b) | K67: =S66 -> 0 | P67: =O66-P66 -> 0 | Q67: B | R67: =CONCATENATE(B67,Q67) -> B
C68: =+CONCATENATE(I68," ",G68) -> c) El Gobierno. | G68: =IF(J66="FIN","",LOOKUP(I65,DATOS!A:A,DATOS!L:L)) -> El Gobierno. | I68: c) | Q68: C | R68: =CONCATENATE(B68,Q68) -> C
C69: =+CONCATENATE(I69," ",G69) -> d) El Senado. | G69: =IF(J66="FIN","",LOOKUP(I65,DATOS!A:A,DATOS!M:M)) -> El Senado. | I69: d) | Q69: D | R69: =CONCATENATE(B69,Q69) -> D
C71: =+CONCATENATE(K71,".- ",G71) -> 12.- CONSTITUCIÓN. ¿Cuál es el número máximo de Diputados del Congreso? (Exa PER ET -2019) | G71: =IF(J72="FIN","",LOOKUP(I71,DATOS!A:A,DATOS!G:G)) -> CONSTITUCIÓN. ¿Cuál es el número máximo de Diputados del Congreso? (Exa PER ET -2019) | H71: =IF(J72="FIN",0,LOOKUP(I71,DATOS!A:A,DATOS!N:N)) -> C | I71: =+I65+1 -> 12 | J71: =IF(LOOKUP(I71,DATOS!A:A,DATOS!C:C)=0,J65,(LOOKUP(I71,DATOS!A:A,DATOS!C:C))) -> 1 | K71: =+K65+1 -> 12 | L71: ACIERTOS | M71: ERROR | N71: Ptos negativos | O71: RESPUESTAS | P71: Control Respuesta | Q71: OPCIONES | R71: =CONCATENATE("X",H71) -> XC | S71: CONTROL SOLUCION
A72: =IF($E$2="X",0,IF(K73>2,H71,K73)) -> 0 | C72: =+CONCATENATE(I72," ",G72) -> a) 300 | G72: =IF(J72="FIN","",LOOKUP(I71,DATOS!A:A,DATOS!J:J)) -> 300 | I72: a) | J72: =IF(J66="FIN","FIN",IF(J71=J65,"","FIN")) ->  | K72: CONTROL | L72: =IF(M72>0,0,P72) -> 0 | M72: =IF(P73>0,1,0) -> 0 | N72: =IF(M72=1,-1/COUNTA(Q72:Q75),0) -> 0 | O72: =COUNTA(B72:B75) -> 0 | P72: =COUNTIF(R72:R75,R71) -> 0 | Q72: A | R72: =CONCATENATE(B72,Q72) -> A | S72: =IF(P72>0,P72+O72,O72*3) -> 0
C73: =+CONCATENATE(I73," ",G73) -> b) 350 | G73: =IF(J72="FIN","",LOOKUP(I71,DATOS!A:A,DATOS!K:K)) -> 350 | I73: b) | K73: =S72 -> 0 | P73: =O72-P72 -> 0 | Q73: B | R73: =CONCATENATE(B73,Q73) -> B
C74: =+CONCATENATE(I74," ",G74) -> c) 400 | G74: =IF(J72="FIN","",LOOKUP(I71,DATOS!A:A,DATOS!L:L)) -> 400 | I74: c) | Q74: C | R74: =CONCATENATE(B74,Q74) -> C
C75: =+CONCATENATE(I75," ",G75) -> d) 450 | G75: =IF(J72="FIN","",LOOKUP(I71,DATOS!A:A,DATOS!M:M)) -> 450 | I75: d) | Q75: D | R75: =CONCATENATE(B75,Q75) -> D
C77: =+CONCATENATE(K77,".- ",G77) -> 13.- CONSTITUCIÓN. ¿Qué sala del Tribunal Supremo es competente en las causas contra Diputados y Senadores? (Exa PER ET -2019) | G77: =IF(J78="FIN","",LOOKUP(I77,DATOS!A:A,DATOS!G:G)) -> CONSTITUCIÓN. ¿Qué sala del Tribunal Supremo es competente en las causas contra Diputados y Senadores? (Exa PER ET -2019) | H77: =IF(J78="FIN",0,LOOKUP(I77,DATOS!A:A,DATOS!N:N)) -> B | I77: =+I71+1 -> 13 | J77: =IF(LOOKUP(I77,DATOS!A:A,DATOS!C:C)=0,J71,(LOOKUP(I77,DATOS!A:A,DATOS!C:C))) -> 1 | K77: =+K71+1 -> 13 | L77: ACIERTOS | M77: ERROR | N77: Ptos negativos | O77: RESPUESTAS | P77: Control Respuesta | Q77: OPCIONES | R77: =CONCATENATE("X",H77) -> XB | S77: CONTROL SOLUCION
A78: =IF($E$2="X",0,IF(K79>2,H77,K79)) -> 0 | C78: =+CONCATENATE(I78," ",G78) -> a) De lo Civil | G78: =IF(J78="FIN","",LOOKUP(I77,DATOS!A:A,DATOS!J:J)) -> De lo Civil | I78: a) | J78: =IF(J72="FIN","FIN",IF(J77=J71,"","FIN")) ->  | K78: CONTROL | L78: =IF(M78>0,0,P78) -> 0 | M78: =IF(P79>0,1,0) -> 0 | N78: =IF(M78=1,-1/COUNTA(Q78:Q81),0) -> 0 | O78: =COUNTA(B78:B81) -> 0 | P78: =COUNTIF(R78:R81,R77) -> 0 | Q78: A | R78: =CONCATENATE(B78,Q78) -> A | S78: =IF(P78>0,P78+O78,O78*3) -> 0
C79: =+CONCATENATE(I79," ",G79) -> b) De lo Penal | G79: =IF(J78="FIN","",LOOKUP(I77,DATOS!A:A,DATOS!K:K)) -> De lo Penal | I79: b) | K79: =S78 -> 0 | P79: =O78-P78 -> 0 | Q79: B | R79: =CONCATENATE(B79,Q79) -> B
C80: =+CONCATENATE(I80," ",G80) -> c) De lo Social | G80: =IF(J78="FIN","",LOOKUP(I77,DATOS!A:A,DATOS!L:L)) -> De lo Social | I80: c) | Q80: C | R80: =CONCATENATE(B80,Q80) -> C
C81: =+CONCATENATE(I81," ",G81) -> d) De lo Militar | G81: =IF(J78="FIN","",LOOKUP(I77,DATOS!A:A,DATOS!M:M)) -> De lo Militar | I81: d) | Q81: D | R81: =CONCATENATE(B81,Q81) -> D
C83: =+CONCATENATE(K83,".- ",G83) -> 14.- CONSTITUCIÓN. ¿Cómo se denomina la forma de administración propia que tendrán las islas de nuestros archipiélagos? (Exa PER ET -2019) | G83: =IF(J84="FIN","",LOOKUP(I83,DATOS!A:A,DATOS!G:G)) -> CONSTITUCIÓN. ¿Cómo se denomina la forma de administración propia que tendrán las islas de nuestros archipiélagos? (Exa PER ET -2019) | H83: =IF(J84="FIN",0,LOOKUP(I83,DATOS!A:A,DATOS!N:N)) -> B | I83: =+I77+1 -> 14 | J83: =IF(LOOKUP(I83,DATOS!A:A,DATOS!C:C)=0,J77,(LOOKUP(I83,DATOS!A:A,DATOS!C:C))) -> 1 | K83: =+K77+1 -> 14 | L83: ACIERTOS | M83: ERROR | N83: Ptos negativos | O83: RESPUESTAS | P83: Control Respuesta | Q83: OPCIONES | R83: =CONCATENATE("X",H83) -> XB | S83: CONTROL SOLUCION
A84: =IF($E$2="X",0,IF(K85>2,H83,K85)) -> 0 | C84: =+CONCATENATE(I84," ",G84) -> a) Diputaciones | G84: =IF(J84="FIN","",LOOKUP(I83,DATOS!A:A,DATOS!J:J)) -> Diputaciones | I84: a) | J84: =IF(J78="FIN","FIN",IF(J83=J77,"","FIN")) ->  | K84: CONTROL | L84: =IF(M84>0,0,P84) -> 0 | M84: =IF(P85>0,1,0) -> 0 | N84: =IF(M84=1,-1/COUNTA(Q84:Q87),0) -> 0 | O84: =COUNTA(B84:B87) -> 0 | P84: =COUNTIF(R84:R87,R83) -> 0 | Q84: A | R84: =CONCATENATE(B84,Q84) -> A | S84: =IF(P84>0,P84+O84,O84*3) -> 0
C85: =+CONCATENATE(I85," ",G85) -> b) Cabildos y Consejos | G85: =IF(J84="FIN","",LOOKUP(I83,DATOS!A:A,DATOS!K:K)) -> Cabildos y Consejos | I85: b) | K85: =S84 -> 0 | P85: =O84-P84 -> 0 | Q85: B | R85: =CONCATENATE(B85,Q85) -> B
C86: =+CONCATENATE(I86," ",G86) -> c) Provincias | G86: =IF(J84="FIN","",LOOKUP(I83,DATOS!A:A,DATOS!L:L)) -> Provincias | I86: c) | Q86: C | R86: =CONCATENATE(B86,Q86) -> C
C87: =+CONCATENATE(I87," ",G87) -> d) Comarcas | G87: =IF(J84="FIN","",LOOKUP(I83,DATOS!A:A,DATOS!M:M)) -> Comarcas | I87: d) | Q87: D | R87: =CONCATENATE(B87,Q87) -> D
C89: =+CONCATENATE(K89,".- ",G89) -> 15.- CONSTITUCIÓN. ¿Quién dirige la Administración del Estado en el territorio de las Comunidades Autónomas? (Exa PER ET -2019) | G89: =IF(J90="FIN","",LOOKUP(I89,DATOS!A:A,DATOS!G:G)) -> CONSTITUCIÓN. ¿Quién dirige la Administración del Estado en el territorio de las Comunidades Autónomas? (Exa PER ET -2019) | H89: =IF(J90="FIN",0,LOOKUP(I89,DATOS!A:A,DATOS!N:N)) -> D | I89: =+I83+1 -> 15 | J89: =IF(LOOKUP(I89,DATOS!A:A,DATOS!C:C)=0,J83,(LOOKUP(I89,DATOS!A:A,DATOS!C:C))) -> 1 | K89: =+K83+1 -> 15 | L89: ACIERTOS | M89: ERROR | N89: Ptos negativos | O89: RESPUESTAS | P89: Control Respuesta | Q89: OPCIONES | R89: =CONCATENATE("X",H89) -> XD | S89: CONTROL SOLUCION
A90: =IF($E$2="X",0,IF(K91>2,H89,K91)) -> 0 | C90: =+CONCATENATE(I90," ",G90) -> a) El Ministro del Interior | G90: =IF(J90="FIN","",LOOKUP(I89,DATOS!A:A,DATOS!J:J)) -> El Ministro del Interior | I90: a) | J90: =IF(J84="FIN","FIN",IF(J89=J83,"","FIN")) ->  | K90: CONTROL | L90: =IF(M90>0,0,P90) -> 0 | M90: =IF(P91>0,1,0) -> 0 | N90: =IF(M90=1,-1/COUNTA(Q90:Q93),0) -> 0 | O90: =COUNTA(B90:B93) -> 0 | P90: =COUNTIF(R90:R93,R89) -> 0 | Q90: A | R90: =CONCATENATE(B90,Q90) -> A | S90: =IF(P90>0,P90+O90,O90*3) -> 0
C91: =+CONCATENATE(I91," ",G91) -> b) El Ministro de la Administración Territorial | G91: =IF(J90="FIN","",LOOKUP(I89,DATOS!A:A,DATOS!K:K)) -> El Ministro de la Administración Territorial | I91: b) | K91: =S90 -> 0 | P91: =O90-P90 -> 0 | Q91: B | R91: =CONCATENATE(B91,Q91) -> B
C92: =+CONCATENATE(I92," ",G92) -> c) El Presidente de la Comunidad Autónoma | G92: =IF(J90="FIN","",LOOKUP(I89,DATOS!A:A,DATOS!L:L)) -> El Presidente de la Comunidad Autónoma | I92: c) | Q92: C | R92: =CONCATENATE(B92,Q92) -> C
C93: =+CONCATENATE(I93," ",G93) -> d) El Delegado del Gobierno | G93: =IF(J90="FIN","",LOOKUP(I89,DATOS!A:A,DATOS!M:M)) -> El Delegado del Gobierno | I93: d) | Q93: D | R93: =CONCATENATE(B93,Q93) -> D
C95: =+CONCATENATE(K95,".- ",G95) -> 16.- CONSTITUCIÓN. Son funciones que la Constitución atribuye a las Cortes Generales: | G95: =IF(J96="FIN","",LOOKUP(I95,DATOS!A:A,DATOS!G:G)) -> CONSTITUCIÓN. Son funciones que la Constitución atribuye a las Cortes Generales: | H95: =IF(J96="FIN",0,LOOKUP(I95,DATOS!A:A,DATOS!N:N)) -> D | I95: =+I89+1 -> 16 | J95: =IF(LOOKUP(I95,DATOS!A:A,DATOS!C:C)=0,J89,(LOOKUP(I95,DATOS!A:A,DATOS!C:C))) -> 1 | K95: =+K89+1 -> 16 | L95: ACIERTOS | M95: ERROR | N95: Ptos negativos | O95: RESPUESTAS | P95: Control Respuesta | Q95: OPCIONES | R95: =CONCATENATE("X",H95) -> XD | S95: CONTROL SOLUCION
A96: =IF($E$2="X",0,IF(K97>2,H95,K97)) -> 0 | C96: =+CONCATENATE(I96," ",G96) -> a) Ejercer la potestad legislativa. | G96: =IF(J96="FIN","",LOOKUP(I95,DATOS!A:A,DATOS!J:J)) -> Ejercer la potestad legislativa. | I96: a) | J96: =IF(J90="FIN","FIN",IF(J95=J89,"","FIN")) ->  | K96: CONTROL | L96: =IF(M96>0,0,P96) -> 0 | M96: =IF(P97>0,1,0) -> 0 | N96: =IF(M96=1,-1/COUNTA(Q96:Q99),0) -> 0 | O96: =COUNTA(B96:B99) -> 0 | P96: =COUNTIF(R96:R99,R95) -> 0 | Q96: A | R96: =CONCATENATE(B96,Q96) -> A | S96: =IF(P96>0,P96+O96,O96*3) -> 0
C97: =+CONCATENATE(I97," ",G97) -> b) Aprobar los presupuestos | G97: =IF(J96="FIN","",LOOKUP(I95,DATOS!A:A,DATOS!K:K)) -> Aprobar los presupuestos | I97: b) | K97: =S96 -> 0 | P97: =O96-P96 -> 0 | Q97: B | R97: =CONCATENATE(B97,Q97) -> B
C98: =+CONCATENATE(I98," ",G98) -> c) Controlar la acción de Gobierno | G98: =IF(J96="FIN","",LOOKUP(I95,DATOS!A:A,DATOS!L:L)) -> Controlar la acción de Gobierno | I98: c) | Q98: C | R98: =CONCATENATE(B98,Q98) -> C
C99: =+CONCATENATE(I99," ",G99) -> d) Todas las anteriores | G99: =IF(J96="FIN","",LOOKUP(I95,DATOS!A:A,DATOS!M:M)) -> Todas las anteriores | I99: d) | Q99: D | R99: =CONCATENATE(B99,Q99) -> D
C101: =+CONCATENATE(K101,".- ",G101) -> 17.- CONSTITUCIÓN. La condición de Senador, es compatible con la de: | G101: =IF(J102="FIN","",LOOKUP(I101,DATOS!A:A,DATOS!G:G)) -> CONSTITUCIÓN. La condición de Senador, es compatible con la de: | H101: =IF(J102="FIN",0,LOOKUP(I101,DATOS!A:A,DATOS!N:N)) -> B | I101: =+I95+1 -> 17 | J101: =IF(LOOKUP(I101,DATOS!A:A,DATOS!C:C)=0,J95,(LOOKUP(I101,DATOS!A:A,DATOS!C:C))) -> 1 | K101: =+K95+1 -> 17 | L101: ACIERTOS | M101: ERROR | N101: Ptos negativos | O101: RESPUESTAS | P101: Control Respuesta | Q101: OPCIONES | R101: =CONCATENATE("X",H101) -> XB | S101: CONTROL SOLUCION
A102: =IF($E$2="X",0,IF(K103>2,H101,K103)) -> 0 | C102: =+CONCATENATE(I102," ",G102) -> a) Diputado del Congreso | G102: =IF(J102="FIN","",LOOKUP(I101,DATOS!A:A,DATOS!J:J)) -> Diputado del Congreso | I102: a) | J102: =IF(J96="FIN","FIN",IF(J101=J95,"","FIN")) ->  | K102: CONTROL | L102: =IF(M102>0,0,P102) -> 0 | M102: =IF(P103>0,1,0) -> 0 | N102: =IF(M102=1,-1/COUNTA(Q102:Q105),0) -> 0 | O102: =COUNTA(B102:B105) -> 0 | P102: =COUNTIF(R102:R105,R101) -> 0 | Q102: A | R102: =CONCATENATE(B102,Q102) -> A | S102: =IF(P102>0,P102+O102,O102*3) -> 0
C103: =+CONCATENATE(I103," ",G103) -> b) Miembro de Asamblea Legislativa de una Comunidad Autónoma. | G103: =IF(J102="FIN","",LOOKUP(I101,DATOS!A:A,DATOS!K:K)) -> Miembro de Asamblea Legislativa de una Comunidad Autónoma. | I103: b) | K103: =S102 -> 0 | P103: =O102-P102 -> 0 | Q103: B | R103: =CONCATENATE(B103,Q103) -> B
C104: =+CONCATENATE(I104," ",G104) -> c) Defensor del Pueblo. | G104: =IF(J102="FIN","",LOOKUP(I101,DATOS!A:A,DATOS!L:L)) -> Defensor del Pueblo. | I104: c) | Q104: C | R104: =CONCATENATE(B104,Q104) -> C
C105: =+CONCATENATE(I105," ",G105) -> d) Todas las anteriores | G105: =IF(J102="FIN","",LOOKUP(I101,DATOS!A:A,DATOS!M:M)) -> Todas las anteriores | I105: d) | Q105: D | R105: =CONCATENATE(B105,Q105) -> D
C107: =+CONCATENATE(K107,".- ",G107) -> 18.- CONSTITUCIÓN. Nuestra Constitución señala que estarán ligados por mandato imperativo: | G107: =IF(J108="FIN","",LOOKUP(I107,DATOS!A:A,DATOS!G:G)) -> CONSTITUCIÓN. Nuestra Constitución señala que estarán ligados por mandato imperativo: | H107: =IF(J108="FIN",0,LOOKUP(I107,DATOS!A:A,DATOS!N:N)) -> D | I107: =+I101+1 -> 18 | J107: =IF(LOOKUP(I107,DATOS!A:A,DATOS!C:C)=0,J101,(LOOKUP(I107,DATOS!A:A,DATOS!C:C))) -> 1 | K107: =+K101+1 -> 18 | L107: ACIERTOS | M107: ERROR | N107: Ptos negativos | O107: RESPUESTAS | P107: Control Respuesta | Q107: OPCIONES | R107: =CONCATENATE("X",H107) -> XD | S107: CONTROL SOLUCION
A108: =IF($E$2="X",0,IF(K109>2,H107,K109)) -> 0 | C108: =+CONCATENATE(I108," ",G108) -> a) Los Diputados | G108: =IF(J108="FIN","",LOOKUP(I107,DATOS!A:A,DATOS!J:J)) -> Los Diputados | I108: a) | J108: =IF(J102="FIN","FIN",IF(J107=J101,"","FIN")) ->  | K108: CONTROL | L108: =IF(M108>0,0,P108) -> 0 | M108: =IF(P109>0,1,0) -> 0 | N108: =IF(M108=1,-1/COUNTA(Q108:Q111),0) -> 0 | O108: =COUNTA(B108:B111) -> 0 | P108: =COUNTIF(R108:R111,R107) -> 0 | Q108: A | R108: =CONCATENATE(B108,Q108) -> A | S108: =IF(P108>0,P108+O108,O108*3) -> 0
C109: =+CONCATENATE(I109," ",G109) -> b) Los Senadores | G109: =IF(J108="FIN","",LOOKUP(I107,DATOS!A:A,DATOS!K:K)) -> Los Senadores | I109: b) | K109: =S108 -> 0 | P109: =O108-P108 -> 0 | Q109: B | R109: =CONCATENATE(B109,Q109) -> B
C110: =+CONCATENATE(I110," ",G110) -> c) Los Diputados y Senadores | G110: =IF(J108="FIN","",LOOKUP(I107,DATOS!A:A,DATOS!L:L)) -> Los Diputados y Senadores | I110: c) | Q110: C | R110: =CONCATENATE(B110,Q110) -> C
C111: =+CONCATENATE(I111," ",G111) -> d) Ninguno de ellos | G111: =IF(J108="FIN","",LOOKUP(I107,DATOS!A:A,DATOS!M:M)) -> Ninguno de ellos | I111: d) | Q111: D | R111: =CONCATENATE(B111,Q111) -> D
C113: =+CONCATENATE(K113,".- ",G113) -> 19.- CONSTITUCIÓN. La Constitución señala que el Congreso de los Diputados estará compuesto por: | G113: =IF(J114="FIN","",LOOKUP(I113,DATOS!A:A,DATOS!G:G)) -> CONSTITUCIÓN. La Constitución señala que el Congreso de los Diputados estará compuesto por: | H113: =IF(J114="FIN",0,LOOKUP(I113,DATOS!A:A,DATOS!N:N)) -> D | I113: =+I107+1 -> 19 | J113: =IF(LOOKUP(I113,DATOS!A:A,DATOS!C:C)=0,J107,(LOOKUP(I113,DATOS!A:A,DATOS!C:C))) -> 1 | K113: =+K107+1 -> 19 | L113: ACIERTOS | M113: ERROR | N113: Ptos negativos | O113: RESPUESTAS | P113: Control Respuesta | Q113: OPCIONES | R113: =CONCATENATE("X",H113) -> XD | S113: CONTROL SOLUCION
A114: =IF($E$2="X",0,IF(K115>2,H113,K115)) -> 0 | C114: =+CONCATENATE(I114," ",G114) -> a) 300 diputados | G114: =IF(J114="FIN","",LOOKUP(I113,DATOS!A:A,DATOS!J:J)) -> 300 diputados | I114: a) | J114: =IF(J108="FIN","FIN",IF(J113=J107,"","FIN")) ->  | K114: CONTROL | L114: =IF(M114>0,0,P114) -> 0 | M114: =IF(P115>0,1,0) -> 0 | N114: =IF(M114=1,-1/COUNTA(Q114:Q117),0) -> 0 | O114: =COUNTA(B114:B117) -> 0 | P114: =COUNTIF(R114:R117,R113) -> 0 | Q114: A | R114: =CONCATENATE(B114,Q114) -> A | S114: =IF(P114>0,P114+O114,O114*3) -> 0
C115: =+CONCATENATE(I115," ",G115) -> b) 350 diputados | G115: =IF(J114="FIN","",LOOKUP(I113,DATOS!A:A,DATOS!K:K)) -> 350 diputados | I115: b) | K115: =S114 -> 0 | P115: =O114-P114 -> 0 | Q115: B | R115: =CONCATENATE(B115,Q115) -> B
C116: =+CONCATENATE(I116," ",G116) -> c) 400 diputados | G116: =IF(J114="FIN","",LOOKUP(I113,DATOS!A:A,DATOS!L:L)) -> 400 diputados | I116: c) | Q116: C | R116: =CONCATENATE(B116,Q116) -> C
C117: =+CONCATENATE(I117," ",G117) -> d) Entre 300 y 400 diputados | G117: =IF(J114="FIN","",LOOKUP(I113,DATOS!A:A,DATOS!M:M)) -> Entre 300 y 400 diputados | I117: d) | Q117: D | R117: =CONCATENATE(B117,Q117) -> D
C119: =+CONCATENATE(K119,".- ",G119) -> 20.- CONSTITUCIÓN. La circunscripción electoral, para la elección de Diputados es: | G119: =IF(J120="FIN","",LOOKUP(I119,DATOS!A:A,DATOS!G:G)) -> CONSTITUCIÓN. La circunscripción electoral, para la elección de Diputados es: | H119: =IF(J120="FIN",0,LOOKUP(I119,DATOS!A:A,DATOS!N:N)) -> B | I119: =+I113+1 -> 20 | J119: =IF(LOOKUP(I119,DATOS!A:A,DATOS!C:C)=0,J113,(LOOKUP(I119,DATOS!A:A,DATOS!C:C))) -> 1 | K119: =+K113+1 -> 20 | L119: ACIERTOS | M119: ERROR | N119: Ptos negativos | O119: RESPUESTAS | P119: Control Respuesta | Q119: OPCIONES | R119: =CONCATENATE("X",H119) -> XB | S119: CONTROL SOLUCION
A120: =IF($E$2="X",0,IF(K121>2,H119,K121)) -> 0 | C120: =+CONCATENATE(I120," ",G120) -> a) El Municipio | G120: =IF(J120="FIN","",LOOKUP(I119,DATOS!A:A,DATOS!J:J)) -> El Municipio | I120: a) | J120: =IF(J114="FIN","FIN",IF(J119=J113,"","FIN")) ->  | K120: CONTROL | L120: =IF(M120>0,0,P120) -> 0 | M120: =IF(P121>0,1,0) -> 0 | N120: =IF(M120=1,-1/COUNTA(Q120:Q123),0) -> 0 | O120: =COUNTA(B120:B123) -> 0 | P120: =COUNTIF(R120:R123,R119) -> 0 | Q120: A | R120: =CONCATENATE(B120,Q120) -> A | S120: =IF(P120>0,P120+O120,O120*3) -> 0
C121: =+CONCATENATE(I121," ",G121) -> b) La Provincia | G121: =IF(J120="FIN","",LOOKUP(I119,DATOS!A:A,DATOS!K:K)) -> La Provincia | I121: b) | K121: =S120 -> 0 | P121: =O120-P120 -> 0 | Q121: B | R121: =CONCATENATE(B121,Q121) -> B
C122: =+CONCATENATE(I122," ",G122) -> c) La Comunidad Autónoma | G122: =IF(J120="FIN","",LOOKUP(I119,DATOS!A:A,DATOS!L:L)) -> La Comunidad Autónoma | I122: c) | Q122: C | R122: =CONCATENATE(B122,Q122) -> C
C123: =+CONCATENATE(I123," ",G123) -> d) La Nación | G123: =IF(J120="FIN","",LOOKUP(I119,DATOS!A:A,DATOS!M:M)) -> La Nación | I123: d) | Q123: D | R123: =CONCATENATE(B123,Q123) -> D
C125: =+CONCATENATE(K125,".- ",G125) -> 21.- CONSTITUCIÓN. | G125: =IF(J126="FIN","",LOOKUP(I125,DATOS!A:A,DATOS!G:G)) -> CONSTITUCIÓN. | H125: =IF(J126="FIN",0,LOOKUP(I125,DATOS!A:A,DATOS!N:N)) -> 0 | I125: =+I119+1 -> 21 | J125: =IF(LOOKUP(I125,DATOS!A:A,DATOS!C:C)=0,J119,(LOOKUP(I125,DATOS!A:A,DATOS!C:C))) -> 1 | K125: =+K119+1 -> 21 | L125: ACIERTOS | M125: ERROR | N125: Ptos negativos | O125: RESPUESTAS | P125: Control Respuesta | Q125: OPCIONES | R125: =CONCATENATE("X",H125) -> X0 | S125: CONTROL SOLUCION
A126: =IF($E$2="X",0,IF(K127>2,H125,K127)) -> 0 | C126: =+CONCATENATE(I126," ",G126) -> a) 0 | G126: =IF(J126="FIN","",LOOKUP(I125,DATOS!A:A,DATOS!J:J)) -> 0 | I126: a) | J126: =IF(J120="FIN","FIN",IF(J125=J119,"","FIN")) ->  | K126: CONTROL | L126: =IF(M126>0,0,P126) -> 0 | M126: =IF(P127>0,1,0) -> 0 | N126: =IF(M126=1,-1/COUNTA(Q126:Q129),0) -> 0 | O126: =COUNTA(B126:B129) -> 0 | P126: =COUNTIF(R126:R129,R125) -> 0 | Q126: A | R126: =CONCATENATE(B126,Q126) -> A | S126: =IF(P126>0,P126+O126,O126*3) -> 0
C127: =+CONCATENATE(I127," ",G127) -> b) 0 | G127: =IF(J126="FIN","",LOOKUP(I125,DATOS!A:A,DATOS!K:K)) -> 0 | I127: b) | K127: =S126 -> 0 | P127: =O126-P126 -> 0 | Q127: B | R127: =CONCATENATE(B127,Q127) -> B
C128: =+CONCATENATE(I128," ",G128) -> c) 0 | G128: =IF(J126="FIN","",LOOKUP(I125,DATOS!A:A,DATOS!L:L)) -> 0 | I128: c) | Q128: C | R128: =CONCATENATE(B128,Q128) -> C
C129: =+CONCATENATE(I129," ",G129) -> d) 0 | G129: =IF(J126="FIN","",LOOKUP(I125,DATOS!A:A,DATOS!M:M)) -> 0 | I129: d) | Q129: D | R129: =CONCATENATE(B129,Q129) -> D
C131: =+CONCATENATE(K131,".- ",G131) -> 22.- CONSTITUCIÓN. | G131: =IF(J132="FIN","",LOOKUP(I131,DATOS!A:A,DATOS!G:G)) -> CONSTITUCIÓN. | H131: =IF(J132="FIN",0,LOOKUP(I131,DATOS!A:A,DATOS!N:N)) -> 0 | I131: =+I125+1 -> 22 | J131: =IF(LOOKUP(I131,DATOS!A:A,DATOS!C:C)=0,J125,(LOOKUP(I131,DATOS!A:A,DATOS!C:C))) -> 1 | K131: =+K125+1 -> 22 | L131: ACIERTOS | M131: ERROR | N131: Ptos negativos | O131: RESPUESTAS | P131: Control Respuesta | Q131: OPCIONES | R131: =CONCATENATE("X",H131) -> X0 | S131: CONTROL SOLUCION
A132: =IF($E$2="X",0,IF(K133>2,H131,K133)) -> 0 | C132: =+CONCATENATE(I132," ",G132) -> a) 0 | G132: =IF(J132="FIN","",LOOKUP(I131,DATOS!A:A,DATOS!J:J)) -> 0 | I132: a) | J132: =IF(J126="FIN","FIN",IF(J131=J125,"","FIN")) ->  | K132: CONTROL | L132: =IF(M132>0,0,P132) -> 0 | M132: =IF(P133>0,1,0) -> 0 | N132: =IF(M132=1,-1/COUNTA(Q132:Q135),0) -> 0 | O132: =COUNTA(B132:B135) -> 0 | P132: =COUNTIF(R132:R135,R131) -> 0 | Q132: A | R132: =CONCATENATE(B132,Q132) -> A | S132: =IF(P132>0,P132+O132,O132*3) -> 0
C133: =+CONCATENATE(I133," ",G133) -> b) 0 | G133: =IF(J132="FIN","",LOOKUP(I131,DATOS!A:A,DATOS!K:K)) -> 0 | I133: b) | K133: =S132 -> 0 | P133: =O132-P132 -> 0 | Q133: B | R133: =CONCATENATE(B133,Q133) -> B
C134: =+CONCATENATE(I134," ",G134) -> c) 0 | G134: =IF(J132="FIN","",LOOKUP(I131,DATOS!A:A,DATOS!L:L)) -> 0 | I134: c) | Q134: C | R134: =CONCATENATE(B134,Q134) -> C
C135: =+CONCATENATE(I135," ",G135) -> d) 0 | G135: =IF(J132="FIN","",LOOKUP(I131,DATOS!A:A,DATOS!M:M)) -> 0 | I135: d) | Q135: D | R135: =CONCATENATE(B135,Q135) -> D
C137: =+CONCATENATE(K137,".- ",G137) -> 23.- CONSTITUCIÓN. | G137: =IF(J138="FIN","",LOOKUP(I137,DATOS!A:A,DATOS!G:G)) -> CONSTITUCIÓN. | H137: =IF(J138="FIN",0,LOOKUP(I137,DATOS!A:A,DATOS!N:N)) -> 0 | I137: =+I131+1 -> 23 | J137: =IF(LOOKUP(I137,DATOS!A:A,DATOS!C:C)=0,J131,(LOOKUP(I137,DATOS!A:A,DATOS!C:C))) -> 1 | K137: =+K131+1 -> 23 | L137: ACIERTOS | M137: ERROR | N137: Ptos negativos | O137: RESPUESTAS | P137: Control Respuesta | Q137: OPCIONES | R137: =CONCATENATE("X",H137) -> X0 | S137: CONTROL SOLUCION
A138: =IF($E$2="X",0,IF(K139>2,H137,K139)) -> 0 | C138: =+CONCATENATE(I138," ",G138) -> a) 0 | G138: =IF(J138="FIN","",LOOKUP(I137,DATOS!A:A,DATOS!J:J)) -> 0 | I138: a) | J138: =IF(J132="FIN","FIN",IF(J137=J131,"","FIN")) ->  | K138: CONTROL | L138: =IF(M138>0,0,P138) -> 0 | M138: =IF(P139>0,1,0) -> 0 | N138: =IF(M138=1,-1/COUNTA(Q138:Q141),0) -> 0 | O138: =COUNTA(B138:B141) -> 0 | P138: =COUNTIF(R138:R141,R137) -> 0 | Q138: A | R138: =CONCATENATE(B138,Q138) -> A | S138: =IF(P138>0,P138+O138,O138*3) -> 0
C139: =+CONCATENATE(I139," ",G139) -> b) 0 | G139: =IF(J138="FIN","",LOOKUP(I137,DATOS!A:A,DATOS!K:K)) -> 0 | I139: b) | K139: =S138 -> 0 | P139: =O138-P138 -> 0 | Q139: B | R139: =CONCATENATE(B139,Q139) -> B
C140: =+CONCATENATE(I140," ",G140) -> c) 0 | G140: =IF(J138="FIN","",LOOKUP(I137,DATOS!A:A,DATOS!L:L)) -> 0 | I140: c) | Q140: C | R140: =CONCATENATE(B140,Q140) -> C
C141: =+CONCATENATE(I141," ",G141) -> d) 0 | G141: =IF(J138="FIN","",LOOKUP(I137,DATOS!A:A,DATOS!M:M)) -> 0 | I141: d) | Q141: D | R141: =CONCATENATE(B141,Q141) -> D
C143: =+CONCATENATE(K143,".- ",G143) -> 24.- CONSTITUCIÓN. | G143: =IF(J144="FIN","",LOOKUP(I143,DATOS!A:A,DATOS!G:G)) -> CONSTITUCIÓN. | H143: =IF(J144="FIN",0,LOOKUP(I143,DATOS!A:A,DATOS!N:N)) -> 0 | I143: =+I137+1 -> 24 | J143: =IF(LOOKUP(I143,DATOS!A:A,DATOS!C:C)=0,J137,(LOOKUP(I143,DATOS!A:A,DATOS!C:C))) -> 1 | K143: =+K137+1 -> 24 | L143: ACIERTOS | M143: ERROR | N143: Ptos negativos | O143: RESPUESTAS | P143: Control Respuesta | Q143: OPCIONES | R143: =CONCATENATE("X",H143) -> X0 | S143: CONTROL SOLUCION
A144: =IF($E$2="X",0,IF(K145>2,H143,K145)) -> 0 | C144: =+CONCATENATE(I144," ",G144) -> a) 0 | G144: =IF(J144="FIN","",LOOKUP(I143,DATOS!A:A,DATOS!J:J)) -> 0 | I144: a) | J144: =IF(J138="FIN","FIN",IF(J143=J137,"","FIN")) ->  | K144: CONTROL | L144: =IF(M144>0,0,P144) -> 0 | M144: =IF(P145>0,1,0) -> 0 | N144: =IF(M144=1,-1/COUNTA(Q144:Q147),0) -> 0 | O144: =COUNTA(B144:B147) -> 0 | P144: =COUNTIF(R144:R147,R143) -> 0 | Q144: A | R144: =CONCATENATE(B144,Q144) -> A | S144: =IF(P144>0,P144+O144,O144*3) -> 0
C145: =+CONCATENATE(I145," ",G145) -> b) 0 | G145: =IF(J144="FIN","",LOOKUP(I143,DATOS!A:A,DATOS!K:K)) -> 0 | I145: b) | K145: =S144 -> 0 | P145: =O144-P144 -> 0 | Q145: B | R145: =CONCATENATE(B145,Q145) -> B
C146: =+CONCATENATE(I146," ",G146) -> c) 0 | G146: =IF(J144="FIN","",LOOKUP(I143,DATOS!A:A,DATOS!L:L)) -> 0 | I146: c) | Q146: C | R146: =CONCATENATE(B146,Q146) -> C
C147: =+CONCATENATE(I147," ",G147) -> d) 0 | G147: =IF(J144="FIN","",LOOKUP(I143,DATOS!A:A,DATOS!M:M)) -> 0 | I147: d) | Q147: D | R147: =CONCATENATE(B147,Q147) -> D
C149: =+CONCATENATE(K149,".- ",G149) -> 25.- CONSTITUCIÓN. | G149: =IF(J150="FIN","",LOOKUP(I149,DATOS!A:A,DATOS!G:G)) -> CONSTITUCIÓN. | H149: =IF(J150="FIN",0,LOOKUP(I149,DATOS!A:A,DATOS!N:N)) -> 0 | I149: =+I143+1 -> 25 | J149: =IF(LOOKUP(I149,DATOS!A:A,DATOS!C:C)=0,J143,(LOOKUP(I149,DATOS!A:A,DATOS!C:C))) -> 1 | K149: =+K143+1 -> 25 | L149: ACIERTOS | M149: ERROR | N149: Ptos negativos | O149: RESPUESTAS | P149: Control Respuesta | Q149: OPCIONES | R149: =CONCATENATE("X",H149) -> X0 | S149: CONTROL SOLUCION
A150: =IF($E$2="X",0,IF(K151>2,H149,K151)) -> 0 | C150: =+CONCATENATE(I150," ",G150) -> a) 0 | G150: =IF(J150="FIN","",LOOKUP(I149,DATOS!A:A,DATOS!J:J)) -> 0 | I150: a) | J150: =IF(J144="FIN","FIN",IF(J149=J143,"","FIN")) ->  | K150: CONTROL | L150: =IF(M150>0,0,P150) -> 0 | M150: =IF(P151>0,1,0) -> 0 | N150: =IF(M150=1,-1/COUNTA(Q150:Q153),0) -> 0 | O150: =COUNTA(B150:B153) -> 0 | P150: =COUNTIF(R150:R153,R149) -> 0 | Q150: A | R150: =CONCATENATE(B150,Q150) -> A | S150: =IF(P150>0,P150+O150,O150*3) -> 0
C151: =+CONCATENATE(I151," ",G151) -> b) 0 | G151: =IF(J150="FIN","",LOOKUP(I149,DATOS!A:A,DATOS!K:K)) -> 0 | I151: b) | K151: =S150 -> 0 | P151: =O150-P150 -> 0 | Q151: B | R151: =CONCATENATE(B151,Q151) -> B
C152: =+CONCATENATE(I152," ",G152) -> c) 0 | G152: =IF(J150="FIN","",LOOKUP(I149,DATOS!A:A,DATOS!L:L)) -> 0 | I152: c) | Q152: C | R152: =CONCATENATE(B152,Q152) -> C
C153: =+CONCATENATE(I153," ",G153) -> d) 0 | G153: =IF(J150="FIN","",LOOKUP(I149,DATOS!A:A,DATOS!M:M)) -> 0 | I153: d) | Q153: D | R153: =CONCATENATE(B153,Q153) -> D
C155: =+CONCATENATE(K155,".- ",G155) -> 26.- CONSTITUCIÓN. | G155: =IF(J156="FIN","",LOOKUP(I155,DATOS!A:A,DATOS!G:G)) -> CONSTITUCIÓN. | H155: =IF(J156="FIN",0,LOOKUP(I155,DATOS!A:A,DATOS!N:N)) -> 0 | I155: =+I149+1 -> 26 | J155: =IF(LOOKUP(I155,DATOS!A:A,DATOS!C:C)=0,J149,(LOOKUP(I155,DATOS!A:A,DATOS!C:C))) -> 1 | K155: =+K149+1 -> 26 | L155: ACIERTOS | M155: ERROR | N155: Ptos negativos | O155: RESPUESTAS | P155: Control Respuesta | Q155: OPCIONES | R155: =CONCATENATE("X",H155) -> X0 | S155: CONTROL SOLUCION
A156: =IF($E$2="X",0,IF(K157>2,H155,K157)) -> 0 | C156: =+CONCATENATE(I156," ",G156) -> a) 0 | G156: =IF(J156="FIN","",LOOKUP(I155,DATOS!A:A,DATOS!J:J)) -> 0 | I156: a) | J156: =IF(J150="FIN","FIN",IF(J155=J149,"","FIN")) ->  | K156: CONTROL | L156: =IF(M156>0,0,P156) -> 0 | M156: =IF(P157>0,1,0) -> 0 | N156: =IF(M156=1,-1/COUNTA(Q156:Q159),0) -> 0 | O156: =COUNTA(B156:B159) -> 0 | P156: =COUNTIF(R156:R159,R155) -> 0 | Q156: A | R156: =CONCATENATE(B156,Q156) -> A | S156: =IF(P156>0,P156+O156,O156*3) -> 0
C157: =+CONCATENATE(I157," ",G157) -> b) 0 | G157: =IF(J156="FIN","",LOOKUP(I155,DATOS!A:A,DATOS!K:K)) -> 0 | I157: b) | K157: =S156 -> 0 | P157: =O156-P156 -> 0 | Q157: B | R157: =CONCATENATE(B157,Q157) -> B
C158: =+CONCATENATE(I158," ",G158) -> c) 0 | G158: =IF(J156="FIN","",LOOKUP(I155,DATOS!A:A,DATOS!L:L)) -> 0 | I158: c) | Q158: C | R158: =CONCATENATE(B158,Q158) -> C
C159: =+CONCATENATE(I159," ",G159) -> d) 0 | G159: =IF(J156="FIN","",LOOKUP(I155,DATOS!A:A,DATOS!M:M)) -> 0 | I159: d) | Q159: D | R159: =CONCATENATE(B159,Q159) -> D
C161: =+CONCATENATE(K161,".- ",G161) -> 27.- CONSTITUCIÓN. | G161: =IF(J162="FIN","",LOOKUP(I161,DATOS!A:A,DATOS!G:G)) -> CONSTITUCIÓN. | H161: =IF(J162="FIN",0,LOOKUP(I161,DATOS!A:A,DATOS!N:N)) -> 0 | I161: =+I155+1 -> 27 | J161: =IF(LOOKUP(I161,DATOS!A:A,DATOS!C:C)=0,J155,(LOOKUP(I161,DATOS!A:A,DATOS!C:C))) -> 1 | K161: =+K155+1 -> 27 | L161: ACIERTOS | M161: ERROR | N161: Ptos negativos | O161: RESPUESTAS | P161: Control Respuesta | Q161: OPCIONES | R161: =CONCATENATE("X",H161) -> X0 | S161: CONTROL SOLUCION
A162: =IF($E$2="X",0,IF(K163>2,H161,K163)) -> 0 | C162: =+CONCATENATE(I162," ",G162) -> a) 0 | G162: =IF(J162="FIN","",LOOKUP(I161,DATOS!A:A,DATOS!J:J)) -> 0 | I162: a) | J162: =IF(J156="FIN","FIN",IF(J161=J155,"","FIN")) ->  | K162: CONTROL | L162: =IF(M162>0,0,P162) -> 0 | M162: =IF(P163>0,1,0) -> 0 | N162: =IF(M162=1,-1/COUNTA(Q162:Q165),0) -> 0 | O162: =COUNTA(B162:B165) -> 0 | P162: =COUNTIF(R162:R165,R161) -> 0 | Q162: A | R162: =CONCATENATE(B162,Q162) -> A | S162: =IF(P162>0,P162+O162,O162*3) -> 0
C163: =+CONCATENATE(I163," ",G163) -> b) 0 | G163: =IF(J162="FIN","",LOOKUP(I161,DATOS!A:A,DATOS!K:K)) -> 0 | I163: b) | K163: =S162 -> 0 | P163: =O162-P162 -> 0 | Q163: B | R163: =CONCATENATE(B163,Q163) -> B
C164: =+CONCATENATE(I164," ",G164) -> c) 0 | G164: =IF(J162="FIN","",LOOKUP(I161,DATOS!A:A,DATOS!L:L)) -> 0 | I164: c) | Q164: C | R164: =CONCATENATE(B164,Q164) -> C
C165: =+CONCATENATE(I165," ",G165) -> d) 0 | G165: =IF(J162="FIN","",LOOKUP(I161,DATOS!A:A,DATOS!M:M)) -> 0 | I165: d) | Q165: D | R165: =CONCATENATE(B165,Q165) -> D
C167: =+CONCATENATE(K167,".- ",G167) -> 28.- CONSTITUCIÓN. | G167: =IF(J168="FIN","",LOOKUP(I167,DATOS!A:A,DATOS!G:G)) -> CONSTITUCIÓN. | H167: =IF(J168="FIN",0,LOOKUP(I167,DATOS!A:A,DATOS!N:N)) -> 0 | I167: =+I161+1 -> 28 | J167: =IF(LOOKUP(I167,DATOS!A:A,DATOS!C:C)=0,J161,(LOOKUP(I167,DATOS!A:A,DATOS!C:C))) -> 1 | K167: =+K161+1 -> 28 | L167: ACIERTOS | M167: ERROR | N167: Ptos negativos | O167: RESPUESTAS | P167: Control Respuesta | Q167: OPCIONES | R167: =CONCATENATE("X",H167) -> X0 | S167: CONTROL SOLUCION
A168: =IF($E$2="X",0,IF(K169>2,H167,K169)) -> 0 | C168: =+CONCATENATE(I168," ",G168) -> a) 0 | G168: =IF(J168="FIN","",LOOKUP(I167,DATOS!A:A,DATOS!J:J)) -> 0 | I168: a) | J168: =IF(J162="FIN","FIN",IF(J167=J161,"","FIN")) ->  | K168: CONTROL | L168: =IF(M168>0,0,P168) -> 0 | M168: =IF(P169>0,1,0) -> 0 | N168: =IF(M168=1,-1/COUNTA(Q168:Q171),0) -> 0 | O168: =COUNTA(B168:B171) -> 0 | P168: =COUNTIF(R168:R171,R167) -> 0 | Q168: A | R168: =CONCATENATE(B168,Q168) -> A | S168: =IF(P168>0,P168+O168,O168*3) -> 0
C169: =+CONCATENATE(I169," ",G169) -> b) 0 | G169: =IF(J168="FIN","",LOOKUP(I167,DATOS!A:A,DATOS!K:K)) -> 0 | I169: b) | K169: =S168 -> 0 | P169: =O168-P168 -> 0 | Q169: B | R169: =CONCATENATE(B169,Q169) -> B
C170: =+CONCATENATE(I170," ",G170) -> c) 0 | G170: =IF(J168="FIN","",LOOKUP(I167,DATOS!A:A,DATOS!L:L)) -> 0 | I170: c) | Q170: C | R170: =CONCATENATE(B170,Q170) -> C
C171: =+CONCATENATE(I171," ",G171) -> d) 0 | G171: =IF(J168="FIN","",LOOKUP(I167,DATOS!A:A,DATOS!M:M)) -> 0 | I171: d) | Q171: D | R171: =CONCATENATE(B171,Q171) -> D
C173: =+CONCATENATE(K173,".- ",G173) -> 29.- CONSTITUCIÓN. | G173: =IF(J174="FIN","",LOOKUP(I173,DATOS!A:A,DATOS!G:G)) -> CONSTITUCIÓN. | H173: =IF(J174="FIN",0,LOOKUP(I173,DATOS!A:A,DATOS!N:N)) -> 0 | I173: =+I167+1 -> 29 | J173: =IF(LOOKUP(I173,DATOS!A:A,DATOS!C:C)=0,J167,(LOOKUP(I173,DATOS!A:A,DATOS!C:C))) -> 1 | K173: =+K167+1 -> 29 | L173: ACIERTOS | M173: ERROR | N173: Ptos negativos | O173: RESPUESTAS | P173: Control Respuesta | Q173: OPCIONES | R173: =CONCATENATE("X",H173) -> X0 | S173: CONTROL SOLUCION
A174: =IF($E$2="X",0,IF(K175>2,H173,K175)) -> 0 | C174: =+CONCATENATE(I174," ",G174) -> a) 0 | G174: =IF(J174="FIN","",LOOKUP(I173,DATOS!A:A,DATOS!J:J)) -> 0 | I174: a) | J174: =IF(J168="FIN","FIN",IF(J173=J167,"","FIN")) ->  | K174: CONTROL | L174: =IF(M174>0,0,P174) -> 0 | M174: =IF(P175>0,1,0) -> 0 | N174: =IF(M174=1,-1/COUNTA(Q174:Q177),0) -> 0 | O174: =COUNTA(B174:B177) -> 0 | P174: =COUNTIF(R174:R177,R173) -> 0 | Q174: A | R174: =CONCATENATE(B174,Q174) -> A | S174: =IF(P174>0,P174+O174,O174*3) -> 0
C175: =+CONCATENATE(I175," ",G175) -> b) 0 | G175: =IF(J174="FIN","",LOOKUP(I173,DATOS!A:A,DATOS!K:K)) -> 0 | I175: b) | K175: =S174 -> 0 | P175: =O174-P174 -> 0 | Q175: B | R175: =CONCATENATE(B175,Q175) -> B
C176: =+CONCATENATE(I176," ",G176) -> c) 0 | G176: =IF(J174="FIN","",LOOKUP(I173,DATOS!A:A,DATOS!L:L)) -> 0 | I176: c) | Q176: C | R176: =CONCATENATE(B176,Q176) -> C
C177: =+CONCATENATE(I177," ",G177) -> d) 0 | G177: =IF(J174="FIN","",LOOKUP(I173,DATOS!A:A,DATOS!M:M)) -> 0 | I177: d) | Q177: D | R177: =CONCATENATE(B177,Q177) -> D
C179: =+CONCATENATE(K179,".- ",G179) -> 30.- CONSTITUCIÓN. | G179: =IF(J180="FIN","",LOOKUP(I179,DATOS!A:A,DATOS!G:G)) -> CONSTITUCIÓN. | H179: =IF(J180="FIN",0,LOOKUP(I179,DATOS!A:A,DATOS!N:N)) -> 0 | I179: =+I173+1 -> 30 | J179: =IF(LOOKUP(I179,DATOS!A:A,DATOS!C:C)=0,J173,(LOOKUP(I179,DATOS!A:A,DATOS!C:C))) -> 1 | K179: =+K173+1 -> 30 | L179: ACIERTOS | M179: ERROR | N179: Ptos negativos | O179: RESPUESTAS | P179: Control Respuesta | Q179: OPCIONES | R179: =CONCATENATE("X",H179) -> X0 | S179: CONTROL SOLUCION
A180: =IF($E$2="X",0,IF(K181>2,H179,K181)) -> 0 | C180: =+CONCATENATE(I180," ",G180) -> a) 0 | G180: =IF(J180="FIN","",LOOKUP(I179,DATOS!A:A,DATOS!J:J)) -> 0 | I180: a) | J180: =IF(J174="FIN","FIN",IF(J179=J173,"","FIN")) ->  | K180: CONTROL | L180: =IF(M180>0,0,P180) -> 0 | M180: =IF(P181>0,1,0) -> 0 | N180: =IF(M180=1,-1/COUNTA(Q180:Q183),0) -> 0 | O180: =COUNTA(B180:B183) -> 0 | P180: =COUNTIF(R180:R183,R179) -> 0 | Q180: A | R180: =CONCATENATE(B180,Q180) -> A | S180: =IF(P180>0,P180+O180,O180*3) -> 0
C181: =+CONCATENATE(I181," ",G181) -> b) 0 | G181: =IF(J180="FIN","",LOOKUP(I179,DATOS!A:A,DATOS!K:K)) -> 0 | I181: b) | K181: =S180 -> 0 | P181: =O180-P180 -> 0 | Q181: B | R181: =CONCATENATE(B181,Q181) -> B
C182: =+CONCATENATE(I182," ",G182) -> c) 0 | G182: =IF(J180="FIN","",LOOKUP(I179,DATOS!A:A,DATOS!L:L)) -> 0 | I182: c) | Q182: C | R182: =CONCATENATE(B182,Q182) -> C
C183: =+CONCATENATE(I183," ",G183) -> d) 0 | G183: =IF(J180="FIN","",LOOKUP(I179,DATOS!A:A,DATOS!M:M)) -> 0 | I183: d) | Q183: D | R183: =CONCATENATE(B183,Q183) -> D
C185: =+CONCATENATE(K185,".- ",G185) -> 31.- CONSTITUCIÓN. | G185: =IF(J186="FIN","",LOOKUP(I185,DATOS!A:A,DATOS!G:G)) -> CONSTITUCIÓN. | H185: =IF(J186="FIN",0,LOOKUP(I185,DATOS!A:A,DATOS!N:N)) -> 0 | I185: =+I179+1 -> 31 | J185: =IF(LOOKUP(I185,DATOS!A:A,DATOS!C:C)=0,J179,(LOOKUP(I185,DATOS!A:A,DATOS!C:C))) -> 1 | K185: =+K179+1 -> 31 | L185: ACIERTOS | M185: ERROR | N185: Ptos negativos | O185: RESPUESTAS | P185: Control Respuesta | Q185: OPCIONES | R185: =CONCATENATE("X",H185) -> X0 | S185: CONTROL SOLUCION
A186: =IF($E$2="X",0,IF(K187>2,H185,K187)) -> 0 | C186: =+CONCATENATE(I186," ",G186) -> a) 0 | G186: =IF(J186="FIN","",LOOKUP(I185,DATOS!A:A,DATOS!J:J)) -> 0 | I186: a) | J186: =IF(J180="FIN","FIN",IF(J185=J179,"","FIN")) ->  | K186: CONTROL | L186: =IF(M186>0,0,P186) -> 0 | M186: =IF(P187>0,1,0) -> 0 | N186: =IF(M186=1,-1/COUNTA(Q186:Q189),0) -> 0 | O186: =COUNTA(B186:B189) -> 0 | P186: =COUNTIF(R186:R189,R185) -> 0 | Q186: A | R186: =CONCATENATE(B186,Q186) -> A | S186: =IF(P186>0,P186+O186,O186*3) -> 0
C187: =+CONCATENATE(I187," ",G187) -> b) 0 | G187: =IF(J186="FIN","",LOOKUP(I185,DATOS!A:A,DATOS!K:K)) -> 0 | I187: b) | K187: =S186 -> 0 | P187: =O186-P186 -> 0 | Q187: B | R187: =CONCATENATE(B187,Q187) -> B
C188: =+CONCATENATE(I188," ",G188) -> c) 0 | G188: =IF(J186="FIN","",LOOKUP(I185,DATOS!A:A,DATOS!L:L)) -> 0 | I188: c) | Q188: C | R188: =CONCATENATE(B188,Q188) -> C
C189: =+CONCATENATE(I189," ",G189) -> d) 0 | G189: =IF(J186="FIN","",LOOKUP(I185,DATOS!A:A,DATOS!M:M)) -> 0 | I189: d) | Q189: D | R189: =CONCATENATE(B189,Q189) -> D
C191: =+CONCATENATE(K191,".- ",G191) -> 32.- CONSTITUCIÓN. | G191: =IF(J192="FIN","",LOOKUP(I191,DATOS!A:A,DATOS!G:G)) -> CONSTITUCIÓN. | H191: =IF(J192="FIN",0,LOOKUP(I191,DATOS!A:A,DATOS!N:N)) -> 0 | I191: =+I185+1 -> 32 | J191: =IF(LOOKUP(I191,DATOS!A:A,DATOS!C:C)=0,J185,(LOOKUP(I191,DATOS!A:A,DATOS!C:C))) -> 1 | K191: =+K185+1 -> 32 | L191: ACIERTOS | M191: ERROR | N191: Ptos negativos | O191: RESPUESTAS | P191: Control Respuesta | Q191: OPCIONES | R191: =CONCATENATE("X",H191) -> X0 | S191: CONTROL SOLUCION
A192: =IF($E$2="X",0,IF(K193>2,H191,K193)) -> 0 | C192: =+CONCATENATE(I192," ",G192) -> a) 0 | G192: =IF(J192="FIN","",LOOKUP(I191,DATOS!A:A,DATOS!J:J)) -> 0 | I192: a) | J192: =IF(J186="FIN","FIN",IF(J191=J185,"","FIN")) ->  | K192: CONTROL | L192: =IF(M192>0,0,P192) -> 0 | M192: =IF(P193>0,1,0) -> 0 | N192: =IF(M192=1,-1/COUNTA(Q192:Q195),0) -> 0 | O192: =COUNTA(B192:B195) -> 0 | P192: =COUNTIF(R192:R195,R191) -> 0 | Q192: A | R192: =CONCATENATE(B192,Q192) -> A | S192: =IF(P192>0,P192+O192,O192*3) -> 0
C193: =+CONCATENATE(I193," ",G193) -> b) 0 | G193: =IF(J192="FIN","",LOOKUP(I191,DATOS!A:A,DATOS!K:K)) -> 0 | I193: b) | K193: =S192 -> 0 | P193: =O192-P192 -> 0 | Q193: B | R193: =CONCATENATE(B193,Q193) -> B
C194: =+CONCATENATE(I194," ",G194) -> c) 0 | G194: =IF(J192="FIN","",LOOKUP(I191,DATOS!A:A,DATOS!L:L)) -> 0 | I194: c) | Q194: C | R194: =CONCATENATE(B194,Q194) -> C
C195: =+CONCATENATE(I195," ",G195) -> d) 0 | G195: =IF(J192="FIN","",LOOKUP(I191,DATOS!A:A,DATOS!M:M)) -> 0 | I195: d) | Q195: D | R195: =CONCATENATE(B195,Q195) -> D
C197: =+CONCATENATE(K197,".- ",G197) -> 33.- CONSTITUCIÓN. | G197: =IF(J198="FIN","",LOOKUP(I197,DATOS!A:A,DATOS!G:G)) -> CONSTITUCIÓN. | H197: =IF(J198="FIN",0,LOOKUP(I197,DATOS!A:A,DATOS!N:N)) -> 0 | I197: =+I191+1 -> 33 | J197: =IF(LOOKUP(I197,DATOS!A:A,DATOS!C:C)=0,J191,(LOOKUP(I197,DATOS!A:A,DATOS!C:C))) -> 1 | K197: =+K191+1 -> 33 | L197: ACIERTOS | M197: ERROR | N197: Ptos negativos | O197: RESPUESTAS | P197: Control Respuesta | Q197: OPCIONES | R197: =CONCATENATE("X",H197) -> X0 | S197: CONTROL SOLUCION
A198: =IF($E$2="X",0,IF(K199>2,H197,K199)) -> 0 | C198: =+CONCATENATE(I198," ",G198) -> a) 0 | G198: =IF(J198="FIN","",LOOKUP(I197,DATOS!A:A,DATOS!J:J)) -> 0 | I198: a) | J198: =IF(J192="FIN","FIN",IF(J197=J191,"","FIN")) ->  | K198: CONTROL | L198: =IF(M198>0,0,P198) -> 0 | M198: =IF(P199>0,1,0) -> 0 | N198: =IF(M198=1,-1/COUNTA(Q198:Q201),0) -> 0 | O198: =COUNTA(B198:B201) -> 0 | P198: =COUNTIF(R198:R201,R197) -> 0 | Q198: A | R198: =CONCATENATE(B198,Q198) -> A | S198: =IF(P198>0,P198+O198,O198*3) -> 0
C199: =+CONCATENATE(I199," ",G199) -> b) 0 | G199: =IF(J198="FIN","",LOOKUP(I197,DATOS!A:A,DATOS!K:K)) -> 0 | I199: b) | K199: =S198 -> 0 | P199: =O198-P198 -> 0 | Q199: B | R199: =CONCATENATE(B199,Q199) -> B
C200: =+CONCATENATE(I200," ",G200) -> c) 0 | G200: =IF(J198="FIN","",LOOKUP(I197,DATOS!A:A,DATOS!L:L)) -> 0 | I200: c) | Q200: C | R200: =CONCATENATE(B200,Q200) -> C
C201: =+CONCATENATE(I201," ",G201) -> d) 0 | G201: =IF(J198="FIN","",LOOKUP(I197,DATOS!A:A,DATOS!M:M)) -> 0 | I201: d) | Q201: D | R201: =CONCATENATE(B201,Q201) -> D
C203: =+CONCATENATE(K203,".- ",G203) -> 34.- CONSTITUCIÓN. | G203: =IF(J204="FIN","",LOOKUP(I203,DATOS!A:A,DATOS!G:G)) -> CONSTITUCIÓN. | H203: =IF(J204="FIN",0,LOOKUP(I203,DATOS!A:A,DATOS!N:N)) -> 0 | I203: =+I197+1 -> 34 | J203: =IF(LOOKUP(I203,DATOS!A:A,DATOS!C:C)=0,J197,(LOOKUP(I203,DATOS!A:A,DATOS!C:C))) -> 1 | K203: =+K197+1 -> 34 | L203: ACIERTOS | M203: ERROR | N203: Ptos negativos | O203: RESPUESTAS | P203: Control Respuesta | Q203: OPCIONES | R203: =CONCATENATE("X",H203) -> X0 | S203: CONTROL SOLUCION
A204: =IF($E$2="X",0,IF(K205>2,H203,K205)) -> 0 | C204: =+CONCATENATE(I204," ",G204) -> a) 0 | G204: =IF(J204="FIN","",LOOKUP(I203,DATOS!A:A,DATOS!J:J)) -> 0 | I204: a) | J204: =IF(J198="FIN","FIN",IF(J203=J197,"","FIN")) ->  | K204: CONTROL | L204: =IF(M204>0,0,P204) -> 0 | M204: =IF(P205>0,1,0) -> 0 | N204: =IF(M204=1,-1/COUNTA(Q204:Q207),0) -> 0 | O204: =COUNTA(B204:B207) -> 0 | P204: =COUNTIF(R204:R207,R203) -> 0 | Q204: A | R204: =CONCATENATE(B204,Q204) -> A | S204: =IF(P204>0,P204+O204,O204*3) -> 0
C205: =+CONCATENATE(I205," ",G205) -> b) 0 | G205: =IF(J204="FIN","",LOOKUP(I203,DATOS!A:A,DATOS!K:K)) -> 0 | I205: b) | K205: =S204 -> 0 | P205: =O204-P204 -> 0 | Q205: B | R205: =CONCATENATE(B205,Q205) -> B
C206: =+CONCATENATE(I206," ",G206) -> c) 0 | G206: =IF(J204="FIN","",LOOKUP(I203,DATOS!A:A,DATOS!L:L)) -> 0 | I206: c) | Q206: C | R206: =CONCATENATE(B206,Q206) -> C
C207: =+CONCATENATE(I207," ",G207) -> d) 0 | G207: =IF(J204="FIN","",LOOKUP(I203,DATOS!A:A,DATOS!M:M)) -> 0 | I207: d) | Q207: D | R207: =CONCATENATE(B207,Q207) -> D
C209: =+CONCATENATE(K209,".- ",G209) -> 35.- CONSTITUCIÓN. | G209: =IF(J210="FIN","",LOOKUP(I209,DATOS!A:A,DATOS!G:G)) -> CONSTITUCIÓN. | H209: =IF(J210="FIN",0,LOOKUP(I209,DATOS!A:A,DATOS!N:N)) -> 0 | I209: =+I203+1 -> 35 | J209: =IF(LOOKUP(I209,DATOS!A:A,DATOS!C:C)=0,J203,(LOOKUP(I209,DATOS!A:A,DATOS!C:C))) -> 1 | K209: =+K203+1 -> 35 | L209: ACIERTOS | M209: ERROR | N209: Ptos negativos | O209: RESPUESTAS | P209: Control Respuesta | Q209: OPCIONES | R209: =CONCATENATE("X",H209) -> X0 | S209: CONTROL SOLUCION
A210: =IF($E$2="X",0,IF(K211>2,H209,K211)) -> 0 | C210: =+CONCATENATE(I210," ",G210) -> a) 0 | G210: =IF(J210="FIN","",LOOKUP(I209,DATOS!A:A,DATOS!J:J)) -> 0 | I210: a) | J210: =IF(J204="FIN","FIN",IF(J209=J203,"","FIN")) ->  | K210: CONTROL | L210: =IF(M210>0,0,P210) -> 0 | M210: =IF(P211>0,1,0) -> 0 | N210: =IF(M210=1,-1/COUNTA(Q210:Q213),0) -> 0 | O210: =COUNTA(B210:B213) -> 0 | P210: =COUNTIF(R210:R213,R209) -> 0 | Q210: A | R210: =CONCATENATE(B210,Q210) -> A | S210: =IF(P210>0,P210+O210,O210*3) -> 0
C211: =+CONCATENATE(I211," ",G211) -> b) 0 | G211: =IF(J210="FIN","",LOOKUP(I209,DATOS!A:A,DATOS!K:K)) -> 0 | I211: b) | K211: =S210 -> 0 | P211: =O210-P210 -> 0 | Q211: B | R211: =CONCATENATE(B211,Q211) -> B
C212: =+CONCATENATE(I212," ",G212) -> c) 0 | G212: =IF(J210="FIN","",LOOKUP(I209,DATOS!A:A,DATOS!L:L)) -> 0 | I212: c) | Q212: C | R212: =CONCATENATE(B212,Q212) -> C
C213: =+CONCATENATE(I213," ",G213) -> d) 0 | G213: =IF(J210="FIN","",LOOKUP(I209,DATOS!A:A,DATOS!M:M)) -> 0 | I213: d) | Q213: D | R213: =CONCATENATE(B213,Q213) -> D
C215: =+CONCATENATE(K215,".- ",G215) -> 36.- CONSTITUCIÓN. | G215: =IF(J216="FIN","",LOOKUP(I215,DATOS!A:A,DATOS!G:G)) -> CONSTITUCIÓN. | H215: =IF(J216="FIN",0,LOOKUP(I215,DATOS!A:A,DATOS!N:N)) -> 0 | I215: =+I209+1 -> 36 | J215: =IF(LOOKUP(I215,DATOS!A:A,DATOS!C:C)=0,J209,(LOOKUP(I215,DATOS!A:A,DATOS!C:C))) -> 1 | K215: =+K209+1 -> 36 | L215: ACIERTOS | M215: ERROR | N215: Ptos negativos | O215: RESPUESTAS | P215: Control Respuesta | Q215: OPCIONES | R215: =CONCATENATE("X",H215) -> X0 | S215: CONTROL SOLUCION
A216: =IF($E$2="X",0,IF(K217>2,H215,K217)) -> 0 | C216: =+CONCATENATE(I216," ",G216) -> a) 0 | G216: =IF(J216="FIN","",LOOKUP(I215,DATOS!A:A,DATOS!J:J)) -> 0 | I216: a) | J216: =IF(J210="FIN","FIN",IF(J215=J209,"","FIN")) ->  | K216: CONTROL | L216: =IF(M216>0,0,P216) -> 0 | M216: =IF(P217>0,1,0) -> 0 | N216: =IF(M216=1,-1/COUNTA(Q216:Q219),0) -> 0 | O216: =COUNTA(B216:B219) -> 0 | P216: =COUNTIF(R216:R219,R215) -> 0 | Q216: A | R216: =CONCATENATE(B216,Q216) -> A | S216: =IF(P216>0,P216+O216,O216*3) -> 0
C217: =+CONCATENATE(I217," ",G217) -> b) 0 | G217: =IF(J216="FIN","",LOOKUP(I215,DATOS!A:A,DATOS!K:K)) -> 0 | I217: b) | K217: =S216 -> 0 | P217: =O216-P216 -> 0 | Q217: B | R217: =CONCATENATE(B217,Q217) -> B
C218: =+CONCATENATE(I218," ",G218) -> c) 0 | G218: =IF(J216="FIN","",LOOKUP(I215,DATOS!A:A,DATOS!L:L)) -> 0 | I218: c) | Q218: C | R218: =CONCATENATE(B218,Q218) -> C
C219: =+CONCATENATE(I219," ",G219) -> d) 0 | G219: =IF(J216="FIN","",LOOKUP(I215,DATOS!A:A,DATOS!M:M)) -> 0 | I219: d) | Q219: D | R219: =CONCATENATE(B219,Q219) -> D
C221: =+CONCATENATE(K221,".- ",G221) -> 37.- CONSTITUCIÓN. | G221: =IF(J222="FIN","",LOOKUP(I221,DATOS!A:A,DATOS!G:G)) -> CONSTITUCIÓN. | H221: =IF(J222="FIN",0,LOOKUP(I221,DATOS!A:A,DATOS!N:N)) -> 0 | I221: =+I215+1 -> 37 | J221: =IF(LOOKUP(I221,DATOS!A:A,DATOS!C:C)=0,J215,(LOOKUP(I221,DATOS!A:A,DATOS!C:C))) -> 1 | K221: =+K215+1 -> 37 | L221: ACIERTOS | M221: ERROR | N221: Ptos negativos | O221: RESPUESTAS | P221: Control Respuesta | Q221: OPCIONES | R221: =CONCATENATE("X",H221) -> X0 | S221: CONTROL SOLUCION
A222: =IF($E$2="X",0,IF(K223>2,H221,K223)) -> 0 | C222: =+CONCATENATE(I222," ",G222) -> a) 0 | G222: =IF(J222="FIN","",LOOKUP(I221,DATOS!A:A,DATOS!J:J)) -> 0 | I222: a) | J222: =IF(J216="FIN","FIN",IF(J221=J215,"","FIN")) ->  | K222: CONTROL | L222: =IF(M222>0,0,P222) -> 0 | M222: =IF(P223>0,1,0) -> 0 | N222: =IF(M222=1,-1/COUNTA(Q222:Q225),0) -> 0 | O222: =COUNTA(B222:B225) -> 0 | P222: =COUNTIF(R222:R225,R221) -> 0 | Q222: A | R222: =CONCATENATE(B222,Q222) -> A | S222: =IF(P222>0,P222+O222,O222*3) -> 0
C223: =+CONCATENATE(I223," ",G223) -> b) 0 | G223: =IF(J222="FIN","",LOOKUP(I221,DATOS!A:A,DATOS!K:K)) -> 0 | I223: b) | K223: =S222 -> 0 | P223: =O222-P222 -> 0 | Q223: B | R223: =CONCATENATE(B223,Q223) -> B
C224: =+CONCATENATE(I224," ",G224) -> c) 0 | G224: =IF(J222="FIN","",LOOKUP(I221,DATOS!A:A,DATOS!L:L)) -> 0 | I224: c) | Q224: C | R224: =CONCATENATE(B224,Q224) -> C
C225: =+CONCATENATE(I225," ",G225) -> d) 0 | G225: =IF(J222="FIN","",LOOKUP(I221,DATOS!A:A,DATOS!M:M)) -> 0 | I225: d) | Q225: D | R225: =CONCATENATE(B225,Q225) -> D
C227: =+CONCATENATE(K227,".- ",G227) -> 38.- CONSTITUCIÓN. | G227: =IF(J228="FIN","",LOOKUP(I227,DATOS!A:A,DATOS!G:G)) -> CONSTITUCIÓN. | H227: =IF(J228="FIN",0,LOOKUP(I227,DATOS!A:A,DATOS!N:N)) -> 0 | I227: =+I221+1 -> 38 | J227: =IF(LOOKUP(I227,DATOS!A:A,DATOS!C:C)=0,J221,(LOOKUP(I227,DATOS!A:A,DATOS!C:C))) -> 1 | K227: =+K221+1 -> 38 | L227: ACIERTOS | M227: ERROR | N227: Ptos negativos | O227: RESPUESTAS | P227: Control Respuesta | Q227: OPCIONES | R227: =CONCATENATE("X",H227) -> X0 | S227: CONTROL SOLUCION
A228: =IF($E$2="X",0,IF(K229>2,H227,K229)) -> 0 | C228: =+CONCATENATE(I228," ",G228) -> a) 0 | G228: =IF(J228="FIN","",LOOKUP(I227,DATOS!A:A,DATOS!J:J)) -> 0 | I228: a) | J228: =IF(J222="FIN","FIN",IF(J227=J221,"","FIN")) ->  | K228: CONTROL | L228: =IF(M228>0,0,P228) -> 0 | M228: =IF(P229>0,1,0) -> 0 | N228: =IF(M228=1,-1/COUNTA(Q228:Q231),0) -> 0 | O228: =COUNTA(B228:B231) -> 0 | P228: =COUNTIF(R228:R231,R227) -> 0 | Q228: A | R228: =CONCATENATE(B228,Q228) -> A | S228: =IF(P228>0,P228+O228,O228*3) -> 0
C229: =+CONCATENATE(I229," ",G229) -> b) 0 | G229: =IF(J228="FIN","",LOOKUP(I227,DATOS!A:A,DATOS!K:K)) -> 0 | I229: b) | K229: =S228 -> 0 | P229: =O228-P228 -> 0 | Q229: B | R229: =CONCATENATE(B229,Q229) -> B
C230: =+CONCATENATE(I230," ",G230) -> c) 0 | G230: =IF(J228="FIN","",LOOKUP(I227,DATOS!A:A,DATOS!L:L)) -> 0 | I230: c) | Q230: C | R230: =CONCATENATE(B230,Q230) -> C
C231: =+CONCATENATE(I231," ",G231) -> d) 0 | G231: =IF(J228="FIN","",LOOKUP(I227,DATOS!A:A,DATOS!M:M)) -> 0 | I231: d) | Q231: D | R231: =CONCATENATE(B231,Q231) -> D
C233: =+CONCATENATE(K233,".- ",G233) -> 39.- CONSTITUCIÓN. | G233: =IF(J234="FIN","",LOOKUP(I233,DATOS!A:A,DATOS!G:G)) -> CONSTITUCIÓN. | H233: =IF(J234="FIN",0,LOOKUP(I233,DATOS!A:A,DATOS!N:N)) -> 0 | I233: =+I227+1 -> 39 | J233: =IF(LOOKUP(I233,DATOS!A:A,DATOS!C:C)=0,J227,(LOOKUP(I233,DATOS!A:A,DATOS!C:C))) -> 1 | K233: =+K227+1 -> 39 | L233: ACIERTOS | M233: ERROR | N233: Ptos negativos | O233: RESPUESTAS | P233: Control Respuesta | Q233: OPCIONES | R233: =CONCATENATE("X",H233) -> X0 | S233: CONTROL SOLUCION
A234: =IF($E$2="X",0,IF(K235>2,H233,K235)) -> 0 | C234: =+CONCATENATE(I234," ",G234) -> a) 0 | G234: =IF(J234="FIN","",LOOKUP(I233,DATOS!A:A,DATOS!J:J)) -> 0 | I234: a) | J234: =IF(J228="FIN","FIN",IF(J233=J227,"","FIN")) ->  | K234: CONTROL | L234: =IF(M234>0,0,P234) -> 0 | M234: =IF(P235>0,1,0) -> 0 | N234: =IF(M234=1,-1/COUNTA(Q234:Q237),0) -> 0 | O234: =COUNTA(B234:B237) -> 0 | P234: =COUNTIF(R234:R237,R233) -> 0 | Q234: A | R234: =CONCATENATE(B234,Q234) -> A | S234: =IF(P234>0,P234+O234,O234*3) -> 0
C235: =+CONCATENATE(I235," ",G235) -> b) 0 | G235: =IF(J234="FIN","",LOOKUP(I233,DATOS!A:A,DATOS!K:K)) -> 0 | I235: b) | K235: =S234 -> 0 | P235: =O234-P234 -> 0 | Q235: B | R235: =CONCATENATE(B235,Q235) -> B
C236: =+CONCATENATE(I236," ",G236) -> c) 0 | G236: =IF(J234="FIN","",LOOKUP(I233,DATOS!A:A,DATOS!L:L)) -> 0 | I236: c) | Q236: C | R236: =CONCATENATE(B236,Q236) -> C
C237: =+CONCATENATE(I237," ",G237) -> d) 0 | G237: =IF(J234="FIN","",LOOKUP(I233,DATOS!A:A,DATOS!M:M)) -> 0 | I237: d) | Q237: D | R237: =CONCATENATE(B237,Q237) -> D
C239: =+CONCATENATE(K239,".- ",G239) -> 40.- CONSTITUCIÓN. | G239: =IF(J240="FIN","",LOOKUP(I239,DATOS!A:A,DATOS!G:G)) -> CONSTITUCIÓN. | H239: =IF(J240="FIN",0,LOOKUP(I239,DATOS!A:A,DATOS!N:N)) -> 0 | I239: =+I233+1 -> 40 | J239: =IF(LOOKUP(I239,DATOS!A:A,DATOS!C:C)=0,J233,(LOOKUP(I239,DATOS!A:A,DATOS!C:C))) -> 1 | K239: =+K233+1 -> 40 | L239: ACIERTOS | M239: ERROR | N239: Ptos negativos | O239: RESPUESTAS | P239: Control Respuesta | Q239: OPCIONES | R239: =CONCATENATE("X",H239) -> X0 | S239: CONTROL SOLUCION
A240: =IF($E$2="X",0,IF(K241>2,H239,K241)) -> 0 | C240: =+CONCATENATE(I240," ",G240) -> a) 0 | G240: =IF(J240="FIN","",LOOKUP(I239,DATOS!A:A,DATOS!J:J)) -> 0 | I240: a) | J240: =IF(J234="FIN","FIN",IF(J239=J233,"","FIN")) ->  | K240: CONTROL | L240: =IF(M240>0,0,P240) -> 0 | M240: =IF(P241>0,1,0) -> 0 | N240: =IF(M240=1,-1/COUNTA(Q240:Q243),0) -> 0 | O240: =COUNTA(B240:B243) -> 0 | P240: =COUNTIF(R240:R243,R239) -> 0 | Q240: A | R240: =CONCATENATE(B240,Q240) -> A | S240: =IF(P240>0,P240+O240,O240*3) -> 0
C241: =+CONCATENATE(I241," ",G241) -> b) 0 | G241: =IF(J240="FIN","",LOOKUP(I239,DATOS!A:A,DATOS!K:K)) -> 0 | I241: b) | K241: =S240 -> 0 | P241: =O240-P240 -> 0 | Q241: B | R241: =CONCATENATE(B241,Q241) -> B
... 302 more rows

Sheet 2
A1: ◄ | C1: =AO1 -> Tema 1 - ORGANIZACIÓN POLÍTICA Y TERRITORIAL II | E1: =ROUND(Q2/K2*10,2) ->  | I1: 2 | J1: COLUMNA | K1: preguntas | L1: aciertos | M1: Fallos | N1: Ptos Negativos | O1: Contestadas | P1: % evolución | Q1: Puntuación | R1: Nota Puntual | S1: Nota Final | T1: Texto Notas | U1: Texto completo | V1: Testo simple | W1: Control Respuestas | X1: Control caducidad | AD1: preguntas | AE1: aciertos | AF1: Fallos | AG1: Ptos Negativos | AH1: Contestadas | AI1: % evolución | AJ1: Puntuación | AK1: Nota Puntual | AL1: Tests | AN1: Test | AO1: =LOOKUP(I5,DATOS!A:A,DATOS!F:F) -> Tema 1 - ORGANIZACIÓN POLÍTICA Y TERRITORIAL II
C2: =IF(CONTROL!I4="A",X2,"") -> Test, compuesto por 0 preguntas | K2: =COUNTA(H:H)-COUNT(H:H) -> 0 | L2: =SUM(L3:L1048576) -> 0 | M2: =SUM(M3:M1048576) -> 0 | N2: =SUM(N3:N52) -> 0 | O2: =L2+M2 -> 0 | P2: =+O2/K2 ->  | Q2: =+L2+N2 -> 0 | R2: =ROUND(Q2/(L2+M2)*10,2) ->  | S2: =ROUND(Q2/K2*10,2) ->  | T2: =CONCATENATE("puntual: ", R2," Nota final: ", S2) ->  | U2: =CONCATENATE("Evolución: ", K2," preguntas, ",L2," aciertos, ",M2," errores, ",Q2," puntos. Nota ",T2) ->  | V2: =CONCATENATE("Test, compuesto por ",K2," preguntas") -> Test, compuesto por 0 preguntas | W2: =IF(E2="X",V2,IF(O2>0,U2,V2)) -> Test, compuesto por 0 preguntas | X2: =IF(CONTROL!I4="A",W2,V2) -> Test, compuesto por 0 preguntas | AD2: =IF(CONTROL!$I$4="A",K2,0) -> 0 | AE2: =IF(CONTROL!$I$4="A",L2,0) -> 0 | AF2: =IF(CONTROL!$I$4="A",M2,0) -> 0 | AG2: =IF(CONTROL!$I$4="A",N2,0) -> 0 | AH2: =IF(CONTROL!$I$4="A",O2,0) -> 0 | AI2: =IF(CONTROL!$I$4="A",P2,0) ->  | AJ2: =IF(CONTROL!$I$4="A",Q2,0) -> 0 | AK2: =IF(CONTROL!$I$4="A",R2,0) ->  | AL2: =+AO1 -> Tema 1 - ORGANIZACIÓN POLÍTICA Y TERRITORIAL II | AN2: Portada | AO2: =LOOKUP(I5,DATOS!A:A,DATOS!E:E) -> ORGANIZACIÓN POLÍTICA Y TERRITORIAL (II).
C5: =+CONCATENATE(K5,".- ",G5) -> 1.- CONSTITUCIÓN. | G5: =LOOKUP(I5,DATOS!A:A,DATOS!G:G) -> CONSTITUCIÓN. | H5: =LOOKUP(I5,DATOS!A:A,DATOS!N:N) -> 0 | I5: =LOOKUP(I1,DATOS!C:C,DATOS!A:A) -> 92 | J5: =LOOKUP(I5,DATOS!A:A,DATOS!C:C) -> 2 | K5: 1 | L5: ACIERTOS | M5: ERROR | N5: Ptos negativos | O5: RESPUESTAS | P5: Control Respuesta | Q5: OPCIONES | R5: =CONCATENATE("X",H5) -> X0 | S5: CONTROL SOLUCION
A6: =IF($E$2="X",0,IF(K7>2,H5,K7)) -> 0 | C6: =+CONCATENATE(I6," ",G6) -> a) 0 | G6: =LOOKUP(I5,DATOS!A:A,DATOS!J:J) -> 0 | I6: a) | K6: CONTROL | L6: =IF(M6>0,0,P6) -> 0 | M6: =IF(P7>0,1,0) -> 0 | N6: =IF(M6=1,-1/COUNTA(Q6:Q9),0) -> 0 | O6: =COUNTA(B6:B9) -> 0 | P6: =COUNTIF(R6:R9,R5) -> 0 | Q6: A | R6: =CONCATENATE(B6,Q6) -> A | S6: =IF(P6>0,P6+O6,O6*3) -> 0
C7: =+CONCATENATE(I7," ",G7) -> b) 0 | G7: =LOOKUP(I5,DATOS!A:A,DATOS!K:K) -> 0 | I7: b) | K7: =S6 -> 0 | P7: =O6-P6 -> 0 | Q7: B | R7: =CONCATENATE(B7,Q7) -> B
C8: =+CONCATENATE(I8," ",G8) -> c) 0 | G8: =LOOKUP(I5,DATOS!A:A,DATOS!L:L) -> 0 | I8: c) | Q8: C | R8: =CONCATENATE(B8,Q8) -> C
C9: =+CONCATENATE(I9," ",G9) -> d) 0 | G9: =LOOKUP(I5,DATOS!A:A,DATOS!M:M) -> 0 | I9: d) | Q9: D | R9: =CONCATENATE(B9,Q9) -> D
C11: =+CONCATENATE(K11,".- ",G11) -> 2.- CONSTITUCIÓN. | G11: =IF(J12="FIN","",LOOKUP(I11,DATOS!A:A,DATOS!G:G)) -> CONSTITUCIÓN. | H11: =IF(J12="FIN",0,LOOKUP(I11,DATOS!A:A,DATOS!N:N)) -> 0 | I11: =+I5+1 -> 93 | J11: =IF(LOOKUP(I11,DATOS!A:A,DATOS!C:C)=0,J5,(LOOKUP(I11,DATOS!A:A,DATOS!C:C))) -> 2 | K11: =+K5+1 -> 2 | L11: ACIERTOS | M11: ERROR | N11: Ptos negativos | O11: RESPUESTAS | P11: Control Respuesta | Q11: OPCIONES | R11: =CONCATENATE("X",H11) -> X0 | S11: CONTROL SOLUCION
A12: =IF($E$2="X",0,IF(K13>2,H11,K13)) -> 0 | C12: =+CONCATENATE(I12," ",G12) -> a) 0 | G12: =IF(J12="FIN","",LOOKUP(I11,DATOS!A:A,DATOS!J:J)) -> 0 | I12: a) | J12: =IF(J6="FIN","FIN",IF(J11=J5,"","FIN")) ->  | K12: CONTROL | L12: =IF(M12>0,0,P12) -> 0 | M12: =IF(P13>0,1,0) -> 0 | N12: =IF(M12=1,-1/COUNTA(Q12:Q15),0) -> 0 | O12: =COUNTA(B12:B15) -> 0 | P12: =COUNTIF(R12:R15,R11) -> 0 | Q12: A | R12: =CONCATENATE(B12,Q12) -> A | S12: =IF(P12>0,P12+O12,O12*3) -> 0
C13: =+CONCATENATE(I13," ",G13) -> b) 0 | G13: =IF(J12="FIN","",LOOKUP(I11,DATOS!A:A,DATOS!K:K)) -> 0 | I13: b) | K13: =S12 -> 0 | P13: =O12-P12 -> 0 | Q13: B | R13: =CONCATENATE(B13,Q13) -> B
C14: =+CONCATENATE(I14," ",G14) -> c) 0 | G14: =IF(J12="FIN","",LOOKUP(I11,DATOS!A:A,DATOS!L:L)) -> 0 | I14: c) | Q14: C | R14: =CONCATENATE(B14,Q14) -> C
C15: =+CONCATENATE(I15," ",G15) -> d) 0 | G15: =IF(J12="FIN","",LOOKUP(I11,DATOS!A:A,DATOS!M:M)) -> 0 | I15: d) | Q15: D | R15: =CONCATENATE(B15,Q15) -> D
C17: =+CONCATENATE(K17,".- ",G17) -> 3.- CONSTITUCIÓN. | G17: =IF(J18="FIN","",LOOKUP(I17,DATOS!A:A,DATOS!G:G)) -> CONSTITUCIÓN. | H17: =IF(J18="FIN",0,LOOKUP(I17,DATOS!A:A,DATOS!N:N)) -> 0 | I17: =+I11+1 -> 94 | J17: =IF(LOOKUP(I17,DATOS!A:A,DATOS!C:C)=0,J11,(LOOKUP(I17,DATOS!A:A,DATOS!C:C))) -> 2 | K17: =+K11+1 -> 3 | L17: ACIERTOS | M17: ERROR | N17: Ptos negativos | O17: RESPUESTAS | P17: Control Respuesta | Q17: OPCIONES | R17: =CONCATENATE("X",H17) -> X0 | S17: CONTROL SOLUCION
A18: =IF($E$2="X",0,IF(K19>2,H17,K19)) -> 0 | C18: =+CONCATENATE(I18," ",G18) -> a) 0 | G18: =IF(J18="FIN","",LOOKUP(I17,DATOS!A:A,DATOS!J:J)) -> 0 | I18: a) | J18: =IF(J12="FIN","FIN",IF(J17=J11,"","FIN")) ->  | K18: CONTROL | L18: =IF(M18>0,0,P18) -> 0 | M18: =IF(P19>0,1,0) -> 0 | N18: =IF(M18=1,-1/COUNTA(Q18:Q21),0) -> 0 | O18: =COUNTA(B18:B21) -> 0 | P18: =COUNTIF(R18:R21,R17) -> 0 | Q18: A | R18: =CONCATENATE(B18,Q18) -> A | S18: =IF(P18>0,P18+O18,O18*3) -> 0
C19: =+CONCATENATE(I19," ",G19) -> b) 0 | G19: =IF(J18="FIN","",LOOKUP(I17,DATOS!A:A,DATOS!K:K)) -> 0 | I19: b) | K19: =S18 -> 0 | P19: =O18-P18 -> 0 | Q19: B | R19: =CONCATENATE(B19,Q19) -> B
C20: =+CONCATENATE(I20," ",G20) -> c) 0 | G20: =IF(J18="FIN","",LOOKUP(I17,DATOS!A:A,DATOS!L:L)) -> 0 | I20: c) | Q20: C | R20: =CONCATENATE(B20,Q20) -> C
C21: =+CONCATENATE(I21," ",G21) -> d) 0 | G21: =IF(J18="FIN","",LOOKUP(I17,DATOS!A:A,DATOS!M:M)) -> 0 | I21: d) | Q21: D | R21: =CONCATENATE(B21,Q21) -> D
C23: =+CONCATENATE(K23,".- ",G23) -> 4.- CONSTITUCIÓN. | G23: =IF(J24="FIN","",LOOKUP(I23,DATOS!A:A,DATOS!G:G)) -> CONSTITUCIÓN. | H23: =IF(J24="FIN",0,LOOKUP(I23,DATOS!A:A,DATOS!N:N)) -> 0 | I23: =+I17+1 -> 95 | J23: =IF(LOOKUP(I23,DATOS!A:A,DATOS!C:C)=0,J17,(LOOKUP(I23,DATOS!A:A,DATOS!C:C))) -> 2 | K23: =+K17+1 -> 4 | L23: ACIERTOS | M23: ERROR | N23: Ptos negativos | O23: RESPUESTAS | P23: Control Respuesta | Q23: OPCIONES | R23: =CONCATENATE("X",H23) -> X0 | S23: CONTROL SOLUCION
A24: =IF($E$2="X",0,IF(K25>2,H23,K25)) -> 0 | C24: =+CONCATENATE(I24," ",G24) -> a) 0 | G24: =IF(J24="FIN","",LOOKUP(I23,DATOS!A:A,DATOS!J:J)) -> 0 | I24: a) | J24: =IF(J18="FIN","FIN",IF(J23=J17,"","FIN")) ->  | K24: CONTROL | L24: =IF(M24>0,0,P24) -> 0 | M24: =IF(P25>0,1,0) -> 0 | N24: =IF(M24=1,-1/COUNTA(Q24:Q27),0) -> 0 | O24: =COUNTA(B24:B27) -> 0 | P24: =COUNTIF(R24:R27,R23) -> 0 | Q24: A | R24: =CONCATENATE(B24,Q24) -> A | S24: =IF(P24>0,P24+O24,O24*3) -> 0
C25: =+CONCATENATE(I25," ",G25) -> b) 0 | G25: =IF(J24="FIN","",LOOKUP(I23,DATOS!A:A,DATOS!K:K)) -> 0 | I25: b) | K25: =S24 -> 0 | P25: =O24-P24 -> 0 | Q25: B | R25: =CONCATENATE(B25,Q25) -> B
C26: =+CONCATENATE(I26," ",G26) -> c) 0 | G26: =IF(J24="FIN","",LOOKUP(I23,DATOS!A:A,DATOS!L:L)) -> 0 | I26: c) | Q26: C | R26: =CONCATENATE(B26,Q26) -> C
C27: =+CONCATENATE(I27," ",G27) -> d) 0 | G27: =IF(J24="FIN","",LOOKUP(I23,DATOS!A:A,DATOS!M:M)) -> 0 | I27: d) | Q27: D | R27: =CONCATENATE(B27,Q27) -> D
C29: =+CONCATENATE(K29,".- ",G29) -> 5.- CONSTITUCIÓN. | G29: =IF(J30="FIN","",LOOKUP(I29,DATOS!A:A,DATOS!G:G)) -> CONSTITUCIÓN. | H29: =IF(J30="FIN",0,LOOKUP(I29,DATOS!A:A,DATOS!N:N)) -> 0 | I29: =+I23+1 -> 96 | J29: =IF(LOOKUP(I29,DATOS!A:A,DATOS!C:C)=0,J23,(LOOKUP(I29,DATOS!A:A,DATOS!C:C))) -> 2 | K29: =+K23+1 -> 5 | L29: ACIERTOS | M29: ERROR | N29: Ptos negativos | O29: RESPUESTAS | P29: Control Respuesta | Q29: OPCIONES | R29: =CONCATENATE("X",H29) -> X0 | S29: CONTROL SOLUCION
A30: =IF($E$2="X",0,IF(K31>2,H29,K31)) -> 0 | C30: =+CONCATENATE(I30," ",G30) -> a) 0 | G30: =IF(J30="FIN","",LOOKUP(I29,DATOS!A:A,DATOS!J:J)) -> 0 | I30: a) | J30: =IF(J24="FIN","FIN",IF(J29=J23,"","FIN")) ->  | K30: CONTROL | L30: =IF(M30>0,0,P30) -> 0 | M30: =IF(P31>0,1,0) -> 0 | N30: =IF(M30=1,-1/COUNTA(Q30:Q33),0) -> 0 | O30: =COUNTA(B30:B33) -> 0 | P30: =COUNTIF(R30:R33,R29) -> 0 | Q30: A | R30: =CONCATENATE(B30,Q30) -> A | S30: =IF(P30>0,P30+O30,O30*3) -> 0
C31: =+CONCATENATE(I31," ",G31) -> b) 0 | G31: =IF(J30="FIN","",LOOKUP(I29,DATOS!A:A,DATOS!K:K)) -> 0 | I31: b) | K31: =S30 -> 0 | P31: =O30-P30 -> 0 | Q31: B | R31: =CONCATENATE(B31,Q31) -> B
C32: =+CONCATENATE(I32," ",G32) -> c) 0 | G32: =IF(J30="FIN","",LOOKUP(I29,DATOS!A:A,DATOS!L:L)) -> 0 | I32: c) | Q32: C | R32: =CONCATENATE(B32,Q32) -> C
C33: =+CONCATENATE(I33," ",G33) -> d) 0 | G33: =IF(J30="FIN","",LOOKUP(I29,DATOS!A:A,DATOS!M:M)) -> 0 | I33: d) | Q33: D | R33: =CONCATENATE(B33,Q33) -> D
C35: =+CONCATENATE(K35,".- ",G35) -> 6.- CONSTITUCIÓN. | G35: =IF(J36="FIN","",LOOKUP(I35,DATOS!A:A,DATOS!G:G)) -> CONSTITUCIÓN. | H35: =IF(J36="FIN",0,LOOKUP(I35,DATOS!A:A,DATOS!N:N)) -> 0 | I35: =+I29+1 -> 97 | J35: =IF(LOOKUP(I35,DATOS!A:A,DATOS!C:C)=0,J29,(LOOKUP(I35,DATOS!A:A,DATOS!C:C))) -> 2 | K35: =+K29+1 -> 6 | L35: ACIERTOS | M35: ERROR | N35: Ptos negativos | O35: RESPUESTAS | P35: Control Respuesta | Q35: OPCIONES | R35: =CONCATENATE("X",H35) -> X0 | S35: CONTROL SOLUCION
A36: =IF($E$2="X",0,IF(K37>2,H35,K37)) -> 0 | C36: =+CONCATENATE(I36," ",G36) -> a) 0 | G36: =IF(J36="FIN","",LOOKUP(I35,DATOS!A:A,DATOS!J:J)) -> 0 | I36: a) | J36: =IF(J30="FIN","FIN",IF(J35=J29,"","FIN")) ->  | K36: CONTROL | L36: =IF(M36>0,0,P36) -> 0 | M36: =IF(P37>0,1,0) -> 0 | N36: =IF(M36=1,-1/COUNTA(Q36:Q39),0) -> 0 | O36: =COUNTA(B36:B39) -> 0 | P36: =COUNTIF(R36:R39,R35) -> 0 | Q36: A | R36: =CONCATENATE(B36,Q36) -> A | S36: =IF(P36>0,P36+O36,O36*3) -> 0
C37: =+CONCATENATE(I37," ",G37) -> b) 0 | G37: =IF(J36="FIN","",LOOKUP(I35,DATOS!A:A,DATOS!K:K)) -> 0 | I37: b) | K37: =S36 -> 0 | P37: =O36-P36 -> 0 | Q37: B | R37: =CONCATENATE(B37,Q37) -> B
C38: =+CONCATENATE(I38," ",G38) -> c) 0 | G38: =IF(J36="FIN","",LOOKUP(I35,DATOS!A:A,DATOS!L:L)) -> 0 | I38: c) | Q38: C | R38: =CONCATENATE(B38,Q38) -> C
C39: =+CONCATENATE(I39," ",G39) -> d) 0 | G39: =IF(J36="FIN","",LOOKUP(I35,DATOS!A:A,DATOS!M:M)) -> 0 | I39: d) | Q39: D | R39: =CONCATENATE(B39,Q39) -> D
C41: =+CONCATENATE(K41,".- ",G41) -> 7.- CONSTITUCIÓN. | G41: =IF(J42="FIN","",LOOKUP(I41,DATOS!A:A,DATOS!G:G)) -> CONSTITUCIÓN. | H41: =IF(J42="FIN",0,LOOKUP(I41,DATOS!A:A,DATOS!N:N)) -> 0 | I41: =+I35+1 -> 98 | J41: =IF(LOOKUP(I41,DATOS!A:A,DATOS!C:C)=0,J35,(LOOKUP(I41,DATOS!A:A,DATOS!C:C))) -> 2 | K41: =+K35+1 -> 7 | L41: ACIERTOS | M41: ERROR | N41: Ptos negativos | O41: RESPUESTAS | P41: Control Respuesta | Q41: OPCIONES | R41: =CONCATENATE("X",H41) -> X0 | S41: CONTROL SOLUCION
A42: =IF($E$2="X",0,IF(K43>2,H41,K43)) -> 0 | C42: =+CONCATENATE(I42," ",G42) -> a) 0 | G42: =IF(J42="FIN","",LOOKUP(I41,DATOS!A:A,DATOS!J:J)) -> 0 | I42: a) | J42: =IF(J36="FIN","FIN",IF(J41=J35,"","FIN")) ->  | K42: CONTROL | L42: =IF(M42>0,0,P42) -> 0 | M42: =IF(P43>0,1,0) -> 0 | N42: =IF(M42=1,-1/COUNTA(Q42:Q45),0) -> 0 | O42: =COUNTA(B42:B45) -> 0 | P42: =COUNTIF(R42:R45,R41) -> 0 | Q42: A | R42: =CONCATENATE(B42,Q42) -> A | S42: =IF(P42>0,P42+O42,O42*3) -> 0
C43: =+CONCATENATE(I43," ",G43) -> b) 0 | G43: =IF(J42="FIN","",LOOKUP(I41,DATOS!A:A,DATOS!K:K)) -> 0 | I43: b) | K43: =S42 -> 0 | P43: =O42-P42 -> 0 | Q43: B | R43: =CONCATENATE(B43,Q43) -> B
C44: =+CONCATENATE(I44," ",G44) -> c) 0 | G44: =IF(J42="FIN","",LOOKUP(I41,DATOS!A:A,DATOS!L:L)) -> 0 | I44: c) | Q44: C | R44: =CONCATENATE(B44,Q44) -> C
C45: =+CONCATENATE(I45," ",G45) -> d) 0 | G45: =IF(J42="FIN","",LOOKUP(I41,DATOS!A:A,DATOS!M:M)) -> 0 | I45: d) | Q45: D | R45: =CONCATENATE(B45,Q45) -> D
C47: =+CONCATENATE(K47,".- ",G47) -> 8.- CONSTITUCIÓN. | G47: =IF(J48="FIN","",LOOKUP(I47,DATOS!A:A,DATOS!G:G)) -> CONSTITUCIÓN. | H47: =IF(J48="FIN",0,LOOKUP(I47,DATOS!A:A,DATOS!N:N)) -> 0 | I47: =+I41+1 -> 99 | J47: =IF(LOOKUP(I47,DATOS!A:A,DATOS!C:C)=0,J41,(LOOKUP(I47,DATOS!A:A,DATOS!C:C))) -> 2 | K47: =+K41+1 -> 8 | L47: ACIERTOS | M47: ERROR | N47: Ptos negativos | O47: RESPUESTAS | P47: Control Respuesta | Q47: OPCIONES | R47: =CONCATENATE("X",H47) -> X0 | S47: CONTROL SOLUCION
A48: =IF($E$2="X",0,IF(K49>2,H47,K49)) -> 0 | C48: =+CONCATENATE(I48," ",G48) -> a) 0 | G48: =IF(J48="FIN","",LOOKUP(I47,DATOS!A:A,DATOS!J:J)) -> 0 | I48: a) | J48: =IF(J42="FIN","FIN",IF(J47=J41,"","FIN")) ->  | K48: CONTROL | L48: =IF(M48>0,0,P48) -> 0 | M48: =IF(P49>0,1,0) -> 0 | N48: =IF(M48=1,-1/COUNTA(Q48:Q51),0) -> 0 | O48: =COUNTA(B48:B51) -> 0 | P48: =COUNTIF(R48:R51,R47) -> 0 | Q48: A | R48: =CONCATENATE(B48,Q48) -> A | S48: =IF(P48>0,P48+O48,O48*3) -> 0
C49: =+CONCATENATE(I49," ",G49) -> b) 0 | G49: =IF(J48="FIN","",LOOKUP(I47,DATOS!A:A,DATOS!K:K)) -> 0 | I49: b) | K49: =S48 -> 0 | P49: =O48-P48 -> 0 | Q49: B | R49: =CONCATENATE(B49,Q49) -> B
C50: =+CONCATENATE(I50," ",G50) -> c) 0 | G50: =IF(J48="FIN","",LOOKUP(I47,DATOS!A:A,DATOS!L:L)) -> 0 | I50: c) | Q50: C | R50: =CONCATENATE(B50,Q50) -> C
C51: =+CONCATENATE(I51," ",G51) -> d) 0 | G51: =IF(J48="FIN","",LOOKUP(I47,DATOS!A:A,DATOS!M:M)) -> 0 | I51: d) | Q51: D | R51: =CONCATENATE(B51,Q51) -> D
C53: =+CONCATENATE(K53,".- ",G53) -> 9.- CONSTITUCIÓN. | G53: =IF(J54="FIN","",LOOKUP(I53,DATOS!A:A,DATOS!G:G)) -> CONSTITUCIÓN. | H53: =IF(J54="FIN",0,LOOKUP(I53,DATOS!A:A,DATOS!N:N)) -> 0 | I53: =+I47+1 -> 100 | J53: =IF(LOOKUP(I53,DATOS!A:A,DATOS!C:C)=0,J47,(LOOKUP(I53,DATOS!A:A,DATOS!C:C))) -> 2 | K53: =+K47+1 -> 9 | L53: ACIERTOS | M53: ERROR | N53: Ptos negativos | O53: RESPUESTAS | P53: Control Respuesta | Q53: OPCIONES | R53: =CONCATENATE("X",H53) -> X0 | S53: CONTROL SOLUCION
A54: =IF($E$2="X",0,IF(K55>2,H53,K55)) -> 0 | C54: =+CONCATENATE(I54," ",G54) -> a) 0 | G54: =IF(J54="FIN","",LOOKUP(I53,DATOS!A:A,DATOS!J:J)) -> 0 | I54: a) | J54: =IF(J48="FIN","FIN",IF(J53=J47,"","FIN")) ->  | K54: CONTROL | L54: =IF(M54>0,0,P54) -> 0 | M54: =IF(P55>0,1,0) -> 0 | N54: =IF(M54=1,-1/COUNTA(Q54:Q57),0) -> 0 | O54: =COUNTA(B54:B57) -> 0 | P54: =COUNTIF(R54:R57,R53) -> 0 | Q54: A | R54: =CONCATENATE(B54,Q54) -> A | S54: =IF(P54>0,P54+O54,O54*3) -> 0
C55: =+CONCATENATE(I55," ",G55) -> b) 0 | G55: =IF(J54="FIN","",LOOKUP(I53,DATOS!A:A,DATOS!K:K)) -> 0 | I55: b) | K55: =S54 -> 0 | P55: =O54-P54 -> 0 | Q55: B | R55: =CONCATENATE(B55,Q55) -> B
C56: =+CONCATENATE(I56," ",G56) -> c) 0 | G56: =IF(J54="FIN","",LOOKUP(I53,DATOS!A:A,DATOS!L:L)) -> 0 | I56: c) | Q56: C | R56: =CONCATENATE(B56,Q56) -> C
C57: =+CONCATENATE(I57," ",G57) -> d) 0 | G57: =IF(J54="FIN","",LOOKUP(I53,DATOS!A:A,DATOS!M:M)) -> 0 | I57: d) | Q57: D | R57: =CONCATENATE(B57,Q57) -> D
C59: =+CONCATENATE(K59,".- ",G59) -> 10.- CONSTITUCIÓN. | G59: =IF(J60="FIN","",LOOKUP(I59,DATOS!A:A,DATOS!G:G)) -> CONSTITUCIÓN. | H59: =IF(J60="FIN",0,LOOKUP(I59,DATOS!A:A,DATOS!N:N)) -> 0 | I59: =+I53+1 -> 101 | J59: =IF(LOOKUP(I59,DATOS!A:A,DATOS!C:C)=0,J53,(LOOKUP(I59,DATOS!A:A,DATOS!C:C))) -> 2 | K59: =+K53+1 -> 10 | L59: ACIERTOS | M59: ERROR | N59: Ptos negativos | O59: RESPUESTAS | P59: Control Respuesta | Q59: OPCIONES | R59: =CONCATENATE("X",H59) -> X0 | S59: CONTROL SOLUCION
A60: =IF($E$2="X",0,IF(K61>2,H59,K61)) -> 0 | C60: =+CONCATENATE(I60," ",G60) -> a) 0 | G60: =IF(J60="FIN","",LOOKUP(I59,DATOS!A:A,DATOS!J:J)) -> 0 | I60: a) | J60: =IF(J54="FIN","FIN",IF(J59=J53,"","FIN")) ->  | K60: CONTROL | L60: =IF(M60>0,0,P60) -> 0 | M60: =IF(P61>0,1,0) -> 0 | N60: =IF(M60=1,-1/COUNTA(Q60:Q63),0) -> 0 | O60: =COUNTA(B60:B63) -> 0 | P60: =COUNTIF(R60:R63,R59) -> 0 | Q60: A | R60: =CONCATENATE(B60,Q60) -> A | S60: =IF(P60>0,P60+O60,O60*3) -> 0
C61: =+CONCATENATE(I61," ",G61) -> b) 0 | G61: =IF(J60="FIN","",LOOKUP(I59,DATOS!A:A,DATOS!K:K)) -> 0 | I61: b) | K61: =S60 -> 0 | P61: =O60-P60 -> 0 | Q61: B | R61: =CONCATENATE(B61,Q61) -> B
C62: =+CONCATENATE(I62," ",G62) -> c) 0 | G62: =IF(J60="FIN","",LOOKUP(I59,DATOS!A:A,DATOS!L:L)) -> 0 | I62: c) | Q62: C | R62: =CONCATENATE(B62,Q62) -> C
C63: =+CONCATENATE(I63," ",G63) -> d) 0 | G63: =IF(J60="FIN","",LOOKUP(I59,DATOS!A:A,DATOS!M:M)) -> 0 | I63: d) | Q63: D | R63: =CONCATENATE(B63,Q63) -> D
C65: =+CONCATENATE(K65,".- ",G65) -> 11.- CONSTITUCIÓN. | G65: =IF(J66="FIN","",LOOKUP(I65,DATOS!A:A,DATOS!G:G)) -> CONSTITUCIÓN. | H65: =IF(J66="FIN",0,LOOKUP(I65,DATOS!A:A,DATOS!N:N)) -> 0 | I65: =+I59+1 -> 102 | J65: =IF(LOOKUP(I65,DATOS!A:A,DATOS!C:C)=0,J59,(LOOKUP(I65,DATOS!A:A,DATOS!C:C))) -> 2 | K65: =+K59+1 -> 11 | L65: ACIERTOS | M65: ERROR | N65: Ptos negativos | O65: RESPUESTAS | P65: Control Respuesta | Q65: OPCIONES | R65: =CONCATENATE("X",H65) -> X0 | S65: CONTROL SOLUCION
A66: =IF($E$2="X",0,IF(K67>2,H65,K67)) -> 0 | C66: =+CONCATENATE(I66," ",G66) -> a) 0 | G66: =IF(J66="FIN","",LOOKUP(I65,DATOS!A:A,DATOS!J:J)) -> 0 | I66: a) | J66: =IF(J60="FIN","FIN",IF(J65=J59,"","FIN")) ->  | K66: CONTROL | L66: =IF(M66>0,0,P66) -> 0 | M66: =IF(P67>0,1,0) -> 0 | N66: =IF(M66=1,-1/COUNTA(Q66:Q69),0) -> 0 | O66: =COUNTA(B66:B69) -> 0 | P66: =COUNTIF(R66:R69,R65) -> 0 | Q66: A | R66: =CONCATENATE(B66,Q66) -> A | S66: =IF(P66>0,P66+O66,O66*3) -> 0
C67: =+CONCATENATE(I67," ",G67) -> b) 0 | G67: =IF(J66="FIN","",LOOKUP(I65,DATOS!A:A,DATOS!K:K)) -> 0 | I67: b) | K67: =S66 -> 0 | P67: =O66-P66 -> 0 | Q67: B | R67: =CONCATENATE(B67,Q67) -> B
C68: =+CONCATENATE(I68," ",G68) -> c) 0 | G68: =IF(J66="FIN","",LOOKUP(I65,DATOS!A:A,DATOS!L:L)) -> 0 | I68: c) | Q68: C | R68: =CONCATENATE(B68,Q68) -> C
C69: =+CONCATENATE(I69," ",G69) -> d) 0 | G69: =IF(J66="FIN","",LOOKUP(I65,DATOS!A:A,DATOS!M:M)) -> 0 | I69: d) | Q69: D | R69: =CONCATENATE(B69,Q69) -> D
C71: =+CONCATENATE(K71,".- ",G71) -> 12.- CONSTITUCIÓN. | G71: =IF(J72="FIN","",LOOKUP(I71,DATOS!A:A,DATOS!G:G)) -> CONSTITUCIÓN. | H71: =IF(J72="FIN",0,LOOKUP(I71,DATOS!A:A,DATOS!N:N)) -> 0 | I71: =+I65+1 -> 103 | J71: =IF(LOOKUP(I71,DATOS!A:A,DATOS!C:C)=0,J65,(LOOKUP(I71,DATOS!A:A,DATOS!C:C))) -> 2 | K71: =+K65+1 -> 12 | L71: ACIERTOS | M71: ERROR | N71: Ptos negativos | O71: RESPUESTAS | P71: Control Respuesta | Q71: OPCIONES | R71: =CONCATENATE("X",H71) -> X0 | S71: CONTROL SOLUCION
A72: =IF($E$2="X",0,IF(K73>2,H71,K73)) -> 0 | C72: =+CONCATENATE(I72," ",G72) -> a) 0 | G72: =IF(J72="FIN","",LOOKUP(I71,DATOS!A:A,DATOS!J:J)) -> 0 | I72: a) | J72: =IF(J66="FIN","FIN",IF(J71=J65,"","FIN")) ->  | K72: CONTROL | L72: =IF(M72>0,0,P72) -> 0 | M72: =IF(P73>0,1,0) -> 0 | N72: =IF(M72=1,-1/COUNTA(Q72:Q75),0) -> 0 | O72: =COUNTA(B72:B75) -> 0 | P72: =COUNTIF(R72:R75,R71) -> 0 | Q72: A | R72: =CONCATENATE(B72,Q72) -> A | S72: =IF(P72>0,P72+O72,O72*3) -> 0
C73: =+CONCATENATE(I73," ",G73) -> b) 0 | G73: =IF(J72="FIN","",LOOKUP(I71,DATOS!A:A,DATOS!K:K)) -> 0 | I73: b) | K73: =S72 -> 0 | P73: =O72-P72 -> 0 | Q73: B | R73: =CONCATENATE(B73,Q73) -> B
C74: =+CONCATENATE(I74," ",G74) -> c) 0 | G74: =IF(J72="FIN","",LOOKUP(I71,DATOS!A:A,DATOS!L:L)) -> 0 | I74: c) | Q74: C | R74: =CONCATENATE(B74,Q74) -> C
C75: =+CONCATENATE(I75," ",G75) -> d) 0 | G75: =IF(J72="FIN","",LOOKUP(I71,DATOS!A:A,DATOS!M:M)) -> 0 | I75: d) | Q75: D | R75: =CONCATENATE(B75,Q75) -> D
C77: =+CONCATENATE(K77,".- ",G77) -> 13.- CONSTITUCIÓN. | G77: =IF(J78="FIN","",LOOKUP(I77,DATOS!A:A,DATOS!G:G)) -> CONSTITUCIÓN. | H77: =IF(J78="FIN",0,LOOKUP(I77,DATOS!A:A,DATOS!N:N)) -> 0 | I77: =+I71+1 -> 104 | J77: =IF(LOOKUP(I77,DATOS!A:A,DATOS!C:C)=0,J71,(LOOKUP(I77,DATOS!A:A,DATOS!C:C))) -> 2 | K77: =+K71+1 -> 13 | L77: ACIERTOS | M77: ERROR | N77: Ptos negativos | O77: RESPUESTAS | P77: Control Respuesta | Q77: OPCIONES | R77: =CONCATENATE("X",H77) -> X0 | S77: CONTROL SOLUCION
A78: =IF($E$2="X",0,IF(K79>2,H77,K79)) -> 0 | C78: =+CONCATENATE(I78," ",G78) -> a) 0 | G78: =IF(J78="FIN","",LOOKUP(I77,DATOS!A:A,DATOS!J:J)) -> 0 | I78: a) | J78: =IF(J72="FIN","FIN",IF(J77=J71,"","FIN")) ->  | K78: CONTROL | L78: =IF(M78>0,0,P78) -> 0 | M78: =IF(P79>0,1,0) -> 0 | N78: =IF(M78=1,-1/COUNTA(Q78:Q81),0) -> 0 | O78: =COUNTA(B78:B81) -> 0 | P78: =COUNTIF(R78:R81,R77) -> 0 | Q78: A | R78: =CONCATENATE(B78,Q78) -> A | S78: =IF(P78>0,P78+O78,O78*3) -> 0
C79: =+CONCATENATE(I79," ",G79) -> b) 0 | G79: =IF(J78="FIN","",LOOKUP(I77,DATOS!A:A,DATOS!K:K)) -> 0 | I79: b) | K79: =S78 -> 0 | P79: =O78-P78 -> 0 | Q79: B | R79: =CONCATENATE(B79,Q79) -> B
C80: =+CONCATENATE(I80," ",G80) -> c) 0 | G80: =IF(J78="FIN","",LOOKUP(I77,DATOS!A:A,DATOS!L:L)) -> 0 | I80: c) | Q80: C | R80: =CONCATENATE(B80,Q80) -> C
C81: =+CONCATENATE(I81," ",G81) -> d) 0 | G81: =IF(J78="FIN","",LOOKUP(I77,DATOS!A:A,DATOS!M:M)) -> 0 | I81: d) | Q81: D | R81: =CONCATENATE(B81,Q81) -> D
C83: =+CONCATENATE(K83,".- ",G83) -> 14.- CONSTITUCIÓN. | G83: =IF(J84="FIN","",LOOKUP(I83,DATOS!A:A,DATOS!G:G)) -> CONSTITUCIÓN. | H83: =IF(J84="FIN",0,LOOKUP(I83,DATOS!A:A,DATOS!N:N)) -> 0 | I83: =+I77+1 -> 105 | J83: =IF(LOOKUP(I83,DATOS!A:A,DATOS!C:C)=0,J77,(LOOKUP(I83,DATOS!A:A,DATOS!C:C))) -> 2 | K83: =+K77+1 -> 14 | L83: ACIERTOS | M83: ERROR | N83: Ptos negativos | O83: RESPUESTAS | P83: Control Respuesta | Q83: OPCIONES | R83: =CONCATENATE("X",H83) -> X0 | S83: CONTROL SOLUCION
A84: =IF($E$2="X",0,IF(K85>2,H83,K85)) -> 0 | C84: =+CONCATENATE(I84," ",G84) -> a) 0 | G84: =IF(J84="FIN","",LOOKUP(I83,DATOS!A:A,DATOS!J:J)) -> 0 | I84: a) | J84: =IF(J78="FIN","FIN",IF(J83=J77,"","FIN")) ->  | K84: CONTROL | L84: =IF(M84>0,0,P84) -> 0 | M84: =IF(P85>0,1,0) -> 0 | N84: =IF(M84=1,-1/COUNTA(Q84:Q87),0) -> 0 | O84: =COUNTA(B84:B87) -> 0 | P84: =COUNTIF(R84:R87,R83) -> 0 | Q84: A | R84: =CONCATENATE(B84,Q84) -> A | S84: =IF(P84>0,P84+O84,O84*3) -> 0
C85: =+CONCATENATE(I85," ",G85) -> b) 0 | G85: =IF(J84="FIN","",LOOKUP(I83,DATOS!A:A,DATOS!K:K)) -> 0 | I85: b) | K85: =S84 -> 0 | P85: =O84-P84 -> 0 | Q85: B | R85: =CONCATENATE(B85,Q85) -> B
C86: =+CONCATENATE(I86," ",G86) -> c) 0 | G86: =IF(J84="FIN","",LOOKUP(I83,DATOS!A:A,DATOS!L:L)) -> 0 | I86: c) | Q86: C | R86: =CONCATENATE(B86,Q86) -> C
C87: =+CONCATENATE(I87," ",G87) -> d) 0 | G87: =IF(J84="FIN","",LOOKUP(I83,DATOS!A:A,DATOS!M:M)) -> 0 | I87: d) | Q87: D | R87: =CONCATENATE(B87,Q87) -> D
C89: =+CONCATENATE(K89,".- ",G89) -> 15.- CONSTITUCIÓN. | G89: =IF(J90="FIN","",LOOKUP(I89,DATOS!A:A,DATOS!G:G)) -> CONSTITUCIÓN. | H89: =IF(J90="FIN",0,LOOKUP(I89,DATOS!A:A,DATOS!N:N)) -> 0 | I89: =+I83+1 -> 106 | J89: =IF(LOOKUP(I89,DATOS!A:A,DATOS!C:C)=0,J83,(LOOKUP(I89,DATOS!A:A,DATOS!C:C))) -> 2 | K89: =+K83+1 -> 15 | L89: ACIERTOS | M89: ERROR | N89: Ptos negativos | O89: RESPUESTAS | P89: Control Respuesta | Q89: OPCIONES | R89: =CONCATENATE("X",H89) -> X0 | S89: CONTROL SOLUCION
A90: =IF($E$2="X",0,IF(K91>2,H89,K91)) -> 0 | C90: =+CONCATENATE(I90," ",G90) -> a) 0 | G90: =IF(J90="FIN","",LOOKUP(I89,DATOS!A:A,DATOS!J:J)) -> 0 | I90: a) | J90: =IF(J84="FIN","FIN",IF(J89=J83,"","FIN")) ->  | K90: CONTROL | L90: =IF(M90>0,0,P90) -> 0 | M90: =IF(P91>0,1,0) -> 0 | N90: =IF(M90=1,-1/COUNTA(Q90:Q93),0) -> 0 | O90: =COUNTA(B90:B93) -> 0 | P90: =COUNTIF(R90:R93,R89) -> 0 | Q90: A | R90: =CONCATENATE(B90,Q90) -> A | S90: =IF(P90>0,P90+O90,O90*3) -> 0
C91: =+CONCATENATE(I91," ",G91) -> b) 0 | G91: =IF(J90="FIN","",LOOKUP(I89,DATOS!A:A,DATOS!K:K)) -> 0 | I91: b) | K91: =S90 -> 0 | P91: =O90-P90 -> 0 | Q91: B | R91: =CONCATENATE(B91,Q91) -> B
C92: =+CONCATENATE(I92," ",G92) -> c) 0 | G92: =IF(J90="FIN","",LOOKUP(I89,DATOS!A:A,DATOS!L:L)) -> 0 | I92: c) | Q92: C | R92: =CONCATENATE(B92,Q92) -> C
C93: =+CONCATENATE(I93," ",G93) -> d) 0 | G93: =IF(J90="FIN","",LOOKUP(I89,DATOS!A:A,DATOS!M:M)) -> 0 | I93: d) | Q93: D | R93: =CONCATENATE(B93,Q93) -> D
C95: =+CONCATENATE(K95,".- ",G95) -> 16.- CONSTITUCIÓN. | G95: =IF(J96="FIN","",LOOKUP(I95,DATOS!A:A,DATOS!G:G)) -> CONSTITUCIÓN. | H95: =IF(J96="FIN",0,LOOKUP(I95,DATOS!A:A,DATOS!N:N)) -> 0 | I95: =+I89+1 -> 107 | J95: =IF(LOOKUP(I95,DATOS!A:A,DATOS!C:C)=0,J89,(LOOKUP(I95,DATOS!A:A,DATOS!C:C))) -> 2 | K95: =+K89+1 -> 16 | L95: ACIERTOS | M95: ERROR | N95: Ptos negativos | O95: RESPUESTAS | P95: Control Respuesta | Q95: OPCIONES | R95: =CONCATENATE("X",H95) -> X0 | S95: CONTROL SOLUCION
A96: =IF($E$2="X",0,IF(K97>2,H95,K97)) -> 0 | C96: =+CONCATENATE(I96," ",G96) -> a) 0 | G96: =IF(J96="FIN","",LOOKUP(I95,DATOS!A:A,DATOS!J:J)) -> 0 | I96: a) | J96: =IF(J90="FIN","FIN",IF(J95=J89,"","FIN")) ->  | K96: CONTROL | L96: =IF(M96>0,0,P96) -> 0 | M96: =IF(P97>0,1,0) -> 0 | N96: =IF(M96=1,-1/COUNTA(Q96:Q99),0) -> 0 | O96: =COUNTA(B96:B99) -> 0 | P96: =COUNTIF(R96:R99,R95) -> 0 | Q96: A | R96: =CONCATENATE(B96,Q96) -> A | S96: =IF(P96>0,P96+O96,O96*3) -> 0
C97: =+CONCATENATE(I97," ",G97) -> b) 0 | G97: =IF(J96="FIN","",LOOKUP(I95,DATOS!A:A,DATOS!K:K)) -> 0 | I97: b) | K97: =S96 -> 0 | P97: =O96-P96 -> 0 | Q97: B | R97: =CONCATENATE(B97,Q97) -> B
C98: =+CONCATENATE(I98," ",G98) -> c) 0 | G98: =IF(J96="FIN","",LOOKUP(I95,DATOS!A:A,DATOS!L:L)) -> 0 | I98: c) | Q98: C | R98: =CONCATENATE(B98,Q98) -> C
C99: =+CONCATENATE(I99," ",G99) -> d) 0 | G99: =IF(J96="FIN","",LOOKUP(I95,DATOS!A:A,DATOS!M:M)) -> 0 | I99: d) | Q99: D | R99: =CONCATENATE(B99,Q99) -> D
C101: =+CONCATENATE(K101,".- ",G101) -> 17.- CONSTITUCIÓN. | G101: =IF(J102="FIN","",LOOKUP(I101,DATOS!A:A,DATOS!G:G)) -> CONSTITUCIÓN. | H101: =IF(J102="FIN",0,LOOKUP(I101,DATOS!A:A,DATOS!N:N)) -> 0 | I101: =+I95+1 -> 108 | J101: =IF(LOOKUP(I101,DATOS!A:A,DATOS!C:C)=0,J95,(LOOKUP(I101,DATOS!A:A,DATOS!C:C))) -> 2 | K101: =+K95+1 -> 17 | L101: ACIERTOS | M101: ERROR | N101: Ptos negativos | O101: RESPUESTAS | P101: Control Respuesta | Q101: OPCIONES | R101: =CONCATENATE("X",H101) -> X0 | S101: CONTROL SOLUCION
A102: =IF($E$2="X",0,IF(K103>2,H101,K103)) -> 0 | C102: =+CONCATENATE(I102," ",G102) -> a) 0 | G102: =IF(J102="FIN","",LOOKUP(I101,DATOS!A:A,DATOS!J:J)) -> 0 | I102: a) | J102: =IF(J96="FIN","FIN",IF(J101=J95,"","FIN")) ->  | K102: CONTROL | L102: =IF(M102>0,0,P102) -> 0 | M102: =IF(P103>0,1,0) -> 0 | N102: =IF(M102=1,-1/COUNTA(Q102:Q105),0) -> 0 | O102: =COUNTA(B102:B105) -> 0 | P102: =COUNTIF(R102:R105,R101) -> 0 | Q102: A | R102: =CONCATENATE(B102,Q102) -> A | S102: =IF(P102>0,P102+O102,O102*3) -> 0
C103: =+CONCATENATE(I103," ",G103) -> b) 0 | G103: =IF(J102="FIN","",LOOKUP(I101,DATOS!A:A,DATOS!K:K)) -> 0 | I103: b) | K103: =S102 -> 0 | P103: =O102-P102 -> 0 | Q103: B | R103: =CONCATENATE(B103,Q103) -> B
C104: =+CONCATENATE(I104," ",G104) -> c) 0 | G104: =IF(J102="FIN","",LOOKUP(I101,DATOS!A:A,DATOS!L:L)) -> 0 | I104: c) | Q104: C | R104: =CONCATENATE(B104,Q104) -> C
C105: =+CONCATENATE(I105," ",G105) -> d) 0 | G105: =IF(J102="FIN","",LOOKUP(I101,DATOS!A:A,DATOS!M:M)) -> 0 | I105: d) | Q105: D | R105: =CONCATENATE(B105,Q105) -> D
C107: =+CONCATENATE(K107,".- ",G107) -> 18.- CONSTITUCIÓN. | G107: =IF(J108="FIN","",LOOKUP(I107,DATOS!A:A,DATOS!G:G)) -> CONSTITUCIÓN. | H107: =IF(J108="FIN",0,LOOKUP(I107,DATOS!A:A,DATOS!N:N)) -> 0 | I107: =+I101+1 -> 109 | J107: =IF(LOOKUP(I107,DATOS!A:A,DATOS!C:C)=0,J101,(LOOKUP(I107,DATOS!A:A,DATOS!C:C))) -> 2 | K107: =+K101+1 -> 18 | L107: ACIERTOS | M107: ERROR | N107: Ptos negativos | O107: RESPUESTAS | P107: Control Respuesta | Q107: OPCIONES | R107: =CONCATENATE("X",H107) -> X0 | S107: CONTROL SOLUCION
A108: =IF($E$2="X",0,IF(K109>2,H107,K109)) -> 0 | C108: =+CONCATENATE(I108," ",G108) -> a) 0 | G108: =IF(J108="FIN","",LOOKUP(I107,DATOS!A:A,DATOS!J:J)) -> 0 | I108: a) | J108: =IF(J102="FIN","FIN",IF(J107=J101,"","FIN")) ->  | K108: CONTROL | L108: =IF(M108>0,0,P108) -> 0 | M108: =IF(P109>0,1,0) -> 0 | N108: =IF(M108=1,-1/COUNTA(Q108:Q111),0) -> 0 | O108: =COUNTA(B108:B111) -> 0 | P108: =COUNTIF(R108:R111,R107) -> 0 | Q108: A | R108: =CONCATENATE(B108,Q108) -> A | S108: =IF(P108>0,P108+O108,O108*3) -> 0
C109: =+CONCATENATE(I109," ",G109) -> b) 0 | G109: =IF(J108="FIN","",LOOKUP(I107,DATOS!A:A,DATOS!K:K)) -> 0 | I109: b) | K109: =S108 -> 0 | P109: =O108-P108 -> 0 | Q109: B | R109: =CONCATENATE(B109,Q109) -> B
C110: =+CONCATENATE(I110," ",G110) -> c) 0 | G110: =IF(J108="FIN","",LOOKUP(I107,DATOS!A:A,DATOS!L:L)) -> 0 | I110: c) | Q110: C | R110: =CONCATENATE(B110,Q110) -> C
C111: =+CONCATENATE(I111," ",G111) -> d) 0 | G111: =IF(J108="FIN","",LOOKUP(I107,DATOS!A:A,DATOS!M:M)) -> 0 | I111: d) | Q111: D | R111: =CONCATENATE(B111,Q111) -> D
C113: =+CONCATENATE(K113,".- ",G113) -> 19.- CONSTITUCIÓN. | G113: =IF(J114="FIN","",LOOKUP(I113,DATOS!A:A,DATOS!G:G)) -> CONSTITUCIÓN. | H113: =IF(J114="FIN",0,LOOKUP(I113,DATOS!A:A,DATOS!N:N)) -> 0 | I113: =+I107+1 -> 110 | J113: =IF(LOOKUP(I113,DATOS!A:A,DATOS!C:C)=0,J107,(LOOKUP(I113,DATOS!A:A,DATOS!C:C))) -> 2 | K113: =+K107+1 -> 19 | L113: ACIERTOS | M113: ERROR | N113: Ptos negativos | O113: RESPUESTAS | P113: Control Respuesta | Q113: OPCIONES | R113: =CONCATENATE("X",H113) -> X0 | S113: CONTROL SOLUCION
A114: =IF($E$2="X",0,IF(K115>2,H113,K115)) -> 0 | C114: =+CONCATENATE(I114," ",G114) -> a) 0 | G114: =IF(J114="FIN","",LOOKUP(I113,DATOS!A:A,DATOS!J:J)) -> 0 | I114: a) | J114: =IF(J108="FIN","FIN",IF(J113=J107,"","FIN")) ->  | K114: CONTROL | L114: =IF(M114>0,0,P114) -> 0 | M114: =IF(P115>0,1,0) -> 0 | N114: =IF(M114=1,-1/COUNTA(Q114:Q117),0) -> 0 | O114: =COUNTA(B114:B117) -> 0 | P114: =COUNTIF(R114:R117,R113) -> 0 | Q114: A | R114: =CONCATENATE(B114,Q114) -> A | S114: =IF(P114>0,P114+O114,O114*3) -> 0
C115: =+CONCATENATE(I115," ",G115) -> b) 0 | G115: =IF(J114="FIN","",LOOKUP(I113,DATOS!A:A,DATOS!K:K)) -> 0 | I115: b) | K115: =S114 -> 0 | P115: =O114-P114 -> 0 | Q115: B | R115: =CONCATENATE(B115,Q115) -> B
C116: =+CONCATENATE(I116," ",G116) -> c) 0 | G116: =IF(J114="FIN","",LOOKUP(I113,DATOS!A:A,DATOS!L:L)) -> 0 | I116: c) | Q116: C | R116: =CONCATENATE(B116,Q116) -> C
C117: =+CONCATENATE(I117," ",G117) -> d) 0 | G117: =IF(J114="FIN","",LOOKUP(I113,DATOS!A:A,DATOS!M:M)) -> 0 | I117: d) | Q117: D | R117: =CONCATENATE(B117,Q117) -> D
C119: =+CONCATENATE(K119,".- ",G119) -> 20.- CONSTITUCIÓN. | G119: =IF(J120="FIN","",LOOKUP(I119,DATOS!A:A,DATOS!G:G)) -> CONSTITUCIÓN. | H119: =IF(J120="FIN",0,LOOKUP(I119,DATOS!A:A,DATOS!N:N)) -> 0 | I119: =+I113+1 -> 111 | J119: =IF(LOOKUP(I119,DATOS!A:A,DATOS!C:C)=0,J113,(LOOKUP(I119,DATOS!A:A,DATOS!C:C))) -> 2 | K119: =+K113+1 -> 20 | L119: ACIERTOS | M119: ERROR | N119: Ptos negativos | O119: RESPUESTAS | P119: Control Respuesta | Q119: OPCIONES | R119: =CONCATENATE("X",H119) -> X0 | S119: CONTROL SOLUCION
A120: =IF($E$2="X",0,IF(K121>2,H119,K121)) -> 0 | C120: =+CONCATENATE(I120," ",G120) -> a) 0 | G120: =IF(J120="FIN","",LOOKUP(I119,DATOS!A:A,DATOS!J:J)) -> 0 | I120: a) | J120: =IF(J114="FIN","FIN",IF(J119=J113,"","FIN")) ->  | K120: CONTROL | L120: =IF(M120>0,0,P120) -> 0 | M120: =IF(P121>0,1,0) -> 0 | N120: =IF(M120=1,-1/COUNTA(Q120:Q123),0) -> 0 | O120: =COUNTA(B120:B123) -> 0 | P120: =COUNTIF(R120:R123,R119) -> 0 | Q120: A | R120: =CONCATENATE(B120,Q120) -> A | S120: =IF(P120>0,P120+O120,O120*3) -> 0
C121: =+CONCATENATE(I121," ",G121) -> b) 0 | G121: =IF(J120="FIN","",LOOKUP(I119,DATOS!A:A,DATOS!K:K)) -> 0 | I121: b) | K121: =S120 -> 0 | P121: =O120-P120 -> 0 | Q121: B | R121: =CONCATENATE(B121,Q121) -> B
C122: =+CONCATENATE(I122," ",G122) -> c) 0 | G122: =IF(J120="FIN","",LOOKUP(I119,DATOS!A:A,DATOS!L:L)) -> 0 | I122: c) | Q122: C | R122: =CONCATENATE(B122,Q122) -> C
C123: =+CONCATENATE(I123," ",G123) -> d) 0 | G123: =IF(J120="FIN","",LOOKUP(I119,DATOS!A:A,DATOS!M:M)) -> 0 | I123: d) | Q123: D | R123: =CONCATENATE(B123,Q123) -> D
C125: =+CONCATENATE(K125,".- ",G125) -> 21.- CONSTITUCIÓN. | G125: =IF(J126="FIN","",LOOKUP(I125,DATOS!A:A,DATOS!G:G)) -> CONSTITUCIÓN. | H125: =IF(J126="FIN",0,LOOKUP(I125,DATOS!A:A,DATOS!N:N)) -> 0 | I125: =+I119+1 -> 112 | J125: =IF(LOOKUP(I125,DATOS!A:A,DATOS!C:C)=0,J119,(LOOKUP(I125,DATOS!A:A,DATOS!C:C))) -> 2 | K125: =+K119+1 -> 21 | L125: ACIERTOS | M125: ERROR | N125: Ptos negativos | O125: RESPUESTAS | P125: Control Respuesta | Q125: OPCIONES | R125: =CONCATENATE("X",H125) -> X0 | S125: CONTROL SOLUCION
A126: =IF($E$2="X",0,IF(K127>2,H125,K127)) -> 0 | C126: =+CONCATENATE(I126," ",G126) -> a) 0 | G126: =IF(J126="FIN","",LOOKUP(I125,DATOS!A:A,DATOS!J:J)) -> 0 | I126: a) | J126: =IF(J120="FIN","FIN",IF(J125=J119,"","FIN")) ->  | K126: CONTROL | L126: =IF(M126>0,0,P126) -> 0 | M126: =IF(P127>0,1,0) -> 0 | N126: =IF(M126=1,-1/COUNTA(Q126:Q129),0) -> 0 | O126: =COUNTA(B126:B129) -> 0 | P126: =COUNTIF(R126:R129,R125) -> 0 | Q126: A | R126: =CONCATENATE(B126,Q126) -> A | S126: =IF(P126>0,P126+O126,O126*3) -> 0
C127: =+CONCATENATE(I127," ",G127) -> b) 0 | G127: =IF(J126="FIN","",LOOKUP(I125,DATOS!A:A,DATOS!K:K)) -> 0 | I127: b) | K127: =S126 -> 0 | P127: =O126-P126 -> 0 | Q127: B | R127: =CONCATENATE(B127,Q127) -> B
C128: =+CONCATENATE(I128," ",G128) -> c) 0 | G128: =IF(J126="FIN","",LOOKUP(I125,DATOS!A:A,DATOS!L:L)) -> 0 | I128: c) | Q128: C | R128: =CONCATENATE(B128,Q128) -> C
C129: =+CONCATENATE(I129," ",G129) -> d) 0 | G129: =IF(J126="FIN","",LOOKUP(I125,DATOS!A:A,DATOS!M:M)) -> 0 | I129: d) | Q129: D | R129: =CONCATENATE(B129,Q129) -> D
C131: =+CONCATENATE(K131,".- ",G131) -> 22.- CONSTITUCIÓN. | G131: =IF(J132="FIN","",LOOKUP(I131,DATOS!A:A,DATOS!G:G)) -> CONSTITUCIÓN. | H131: =IF(J132="FIN",0,LOOKUP(I131,DATOS!A:A,DATOS!N:N)) -> 0 | I131: =+I125+1 -> 113 | J131: =IF(LOOKUP(I131,DATOS!A:A,DATOS!C:C)=0,J125,(LOOKUP(I131,DATOS!A:A,DATOS!C:C))) -> 2 | K131: =+K125+1 -> 22 | L131: ACIERTOS | M131: ERROR | N131: Ptos negativos | O131: RESPUESTAS | P131: Control Respuesta | Q131: OPCIONES | R131: =CONCATENATE("X",H131) -> X0 | S131: CONTROL SOLUCION
A132: =IF($E$2="X",0,IF(K133>2,H131,K133)) -> 0 | C132: =+CONCATENATE(I132," ",G132) -> a) 0 | G132: =IF(J132="FIN","",LOOKUP(I131,DATOS!A:A,DATOS!J:J)) -> 0 | I132: a) | J132: =IF(J126="FIN","FIN",IF(J131=J125,"","FIN")) ->  | K132: CONTROL | L132: =IF(M132>0,0,P132) -> 0 | M132: =IF(P133>0,1,0) -> 0 | N132: =IF(M132=1,-1/COUNTA(Q132:Q135),0) -> 0 | O132: =COUNTA(B132:B135) -> 0 | P132: =COUNTIF(R132:R135,R131) -> 0 | Q132: A | R132: =CONCATENATE(B132,Q132) -> A | S132: =IF(P132>0,P132+O132,O132*3) -> 0
C133: =+CONCATENATE(I133," ",G133) -> b) 0 | G133: =IF(J132="FIN","",LOOKUP(I131,DATOS!A:A,DATOS!K:K)) -> 0 | I133: b) | K133: =S132 -> 0 | P133: =O132-P132 -> 0 | Q133: B | R133: =CONCATENATE(B133,Q133) -> B
C134: =+CONCATENATE(I134," ",G134) -> c) 0 | G134: =IF(J132="FIN","",LOOKUP(I131,DATOS!A:A,DATOS!L:L)) -> 0 | I134: c) | Q134: C | R134: =CONCATENATE(B134,Q134) -> C
C135: =+CONCATENATE(I135," ",G135) -> d) 0 | G135: =IF(J132="FIN","",LOOKUP(I131,DATOS!A:A,DATOS!M:M)) -> 0 | I135: d) | Q135: D | R135: =CONCATENATE(B135,Q135) -> D
C137: =+CONCATENATE(K137,".- ",G137) -> 23.- CONSTITUCIÓN. | G137: =IF(J138="FIN","",LOOKUP(I137,DATOS!A:A,DATOS!G:G)) -> CONSTITUCIÓN. | H137: =IF(J138="FIN",0,LOOKUP(I137,DATOS!A:A,DATOS!N:N)) -> 0 | I137: =+I131+1 -> 114 | J137: =IF(LOOKUP(I137,DATOS!A:A,DATOS!C:C)=0,J131,(LOOKUP(I137,DATOS!A:A,DATOS!C:C))) -> 2 | K137: =+K131+1 -> 23 | L137: ACIERTOS | M137: ERROR | N137: Ptos negativos | O137: RESPUESTAS | P137: Control Respuesta | Q137: OPCIONES | R137: =CONCATENATE("X",H137) -> X0 | S137: CONTROL SOLUCION
A138: =IF($E$2="X",0,IF(K139>2,H137,K139)) -> 0 | C138: =+CONCATENATE(I138," ",G138) -> a) 0 | G138: =IF(J138="FIN","",LOOKUP(I137,DATOS!A:A,DATOS!J:J)) -> 0 | I138: a) | J138: =IF(J132="FIN","FIN",IF(J137=J131,"","FIN")) ->  | K138: CONTROL | L138: =IF(M138>0,0,P138) -> 0 | M138: =IF(P139>0,1,0) -> 0 | N138: =IF(M138=1,-1/COUNTA(Q138:Q141),0) -> 0 | O138: =COUNTA(B138:B141) -> 0 | P138: =COUNTIF(R138:R141,R137) -> 0 | Q138: A | R138: =CONCATENATE(B138,Q138) -> A | S138: =IF(P138>0,P138+O138,O138*3) -> 0
C139: =+CONCATENATE(I139," ",G139) -> b) 0 | G139: =IF(J138="FIN","",LOOKUP(I137,DATOS!A:A,DATOS!K:K)) -> 0 | I139: b) | K139: =S138 -> 0 | P139: =O138-P138 -> 0 | Q139: B | R139: =CONCATENATE(B139,Q139) -> B
C140: =+CONCATENATE(I140," ",G140) -> c) 0 | G140: =IF(J138="FIN","",LOOKUP(I137,DATOS!A:A,DATOS!L:L)) -> 0 | I140: c) | Q140: C | R140: =CONCATENATE(B140,Q140) -> C
C141: =+CONCATENATE(I141," ",G141) -> d) 0 | G141: =IF(J138="FIN","",LOOKUP(I137,DATOS!A:A,DATOS!M:M)) -> 0 | I141: d) | Q141: D | R141: =CONCATENATE(B141,Q141) -> D
C143: =+CONCATENATE(K143,".- ",G143) -> 24.- CONSTITUCIÓN. | G143: =IF(J144="FIN","",LOOKUP(I143,DATOS!A:A,DATOS!G:G)) -> CONSTITUCIÓN. | H143: =IF(J144="FIN",0,LOOKUP(I143,DATOS!A:A,DATOS!N:N)) -> 0 | I143: =+I137+1 -> 115 | J143: =IF(LOOKUP(I143,DATOS!A:A,DATOS!C:C)=0,J137,(LOOKUP(I143,DATOS!A:A,DATOS!C:C))) -> 2 | K143: =+K137+1 -> 24 | L143: ACIERTOS | M143: ERROR | N143: Ptos negativos | O143: RESPUESTAS | P143: Control Respuesta | Q143: OPCIONES | R143: =CONCATENATE("X",H143) -> X0 | S143: CONTROL SOLUCION
A144: =IF($E$2="X",0,IF(K145>2,H143,K145)) -> 0 | C144: =+CONCATENATE(I144," ",G144) -> a) 0 | G144: =IF(J144="FIN","",LOOKUP(I143,DATOS!A:A,DATOS!J:J)) -> 0 | I144: a) | J144: =IF(J138="FIN","FIN",IF(J143=J137,"","FIN")) ->  | K144: CONTROL | L144: =IF(M144>0,0,P144) -> 0 | M144: =IF(P145>0,1,0) -> 0 | N144: =IF(M144=1,-1/COUNTA(Q144:Q147),0) -> 0 | O144: =COUNTA(B144:B147) -> 0 | P144: =COUNTIF(R144:R147,R143) -> 0 | Q144: A | R144: =CONCATENATE(B144,Q144) -> A | S144: =IF(P144>0,P144+O144,O144*3) -> 0
C145: =+CONCATENATE(I145," ",G145) -> b) 0 | G145: =IF(J144="FIN","",LOOKUP(I143,DATOS!A:A,DATOS!K:K)) -> 0 | I145: b) | K145: =S144 -> 0 | P145: =O144-P144 -> 0 | Q145: B | R145: =CONCATENATE(B145,Q145) -> B
C146: =+CONCATENATE(I146," ",G146) -> c) 0 | G146: =IF(J144="FIN","",LOOKUP(I143,DATOS!A:A,DATOS!L:L)) -> 0 | I146: c) | Q146: C | R146: =CONCATENATE(B146,Q146) -> C
C147: =+CONCATENATE(I147," ",G147) -> d) 0 | G147: =IF(J144="FIN","",LOOKUP(I143,DATOS!A:A,DATOS!M:M)) -> 0 | I147: d) | Q147: D | R147: =CONCATENATE(B147,Q147) -> D
C149: =+CONCATENATE(K149,".- ",G149) -> 25.- CONSTITUCIÓN. | G149: =IF(J150="FIN","",LOOKUP(I149,DATOS!A:A,DATOS!G:G)) -> CONSTITUCIÓN. | H149: =IF(J150="FIN",0,LOOKUP(I149,DATOS!A:A,DATOS!N:N)) -> 0 | I149: =+I143+1 -> 116 | J149: =IF(LOOKUP(I149,DATOS!A:A,DATOS!C:C)=0,J143,(LOOKUP(I149,DATOS!A:A,DATOS!C:C))) -> 2 | K149: =+K143+1 -> 25 | L149: ACIERTOS | M149: ERROR | N149: Ptos negativos | O149: RESPUESTAS | P149: Control Respuesta | Q149: OPCIONES | R149: =CONCATENATE("X",H149) -> X0 | S149: CONTROL SOLUCION
A150: =IF($E$2="X",0,IF(K151>2,H149,K151)) -> 0 | C150: =+CONCATENATE(I150," ",G150) -> a) 0 | G150: =IF(J150="FIN","",LOOKUP(I149,DATOS!A:A,DATOS!J:J)) -> 0 | I150: a) | J150: =IF(J144="FIN","FIN",IF(J149=J143,"","FIN")) ->  | K150: CONTROL | L150: =IF(M150>0,0,P150) -> 0 | M150: =IF(P151>0,1,0) -> 0 | N150: =IF(M150=1,-1/COUNTA(Q150:Q153),0) -> 0 | O150: =COUNTA(B150:B153) -> 0 | P150: =COUNTIF(R150:R153,R149) -> 0 | Q150: A | R150: =CONCATENATE(B150,Q150) -> A | S150: =IF(P150>0,P150+O150,O150*3) -> 0
C151: =+CONCATENATE(I151," ",G151) -> b) 0 | G151: =IF(J150="FIN","",LOOKUP(I149,DATOS!A:A,DATOS!K:K)) -> 0 | I151: b) | K151: =S150 -> 0 | P151: =O150-P150 -> 0 | Q151: B | R151: =CONCATENATE(B151,Q151) -> B
C152: =+CONCATENATE(I152," ",G152) -> c) 0 | G152: =IF(J150="FIN","",LOOKUP(I149,DATOS!A:A,DATOS!L:L)) -> 0 | I152: c) | Q152: C | R152: =CONCATENATE(B152,Q152) -> C
C153: =+CONCATENATE(I153," ",G153) -> d) 0 | G153: =IF(J150="FIN","",LOOKUP(I149,DATOS!A:A,DATOS!M:M)) -> 0 | I153: d) | Q153: D | R153: =CONCATENATE(B153,Q153) -> D
C155: =+CONCATENATE(K155,".- ",G155) -> 26.- CONSTITUCIÓN. | G155: =IF(J156="FIN","",LOOKUP(I155,DATOS!A:A,DATOS!G:G)) -> CONSTITUCIÓN. | H155: =IF(J156="FIN",0,LOOKUP(I155,DATOS!A:A,DATOS!N:N)) -> 0 | I155: =+I149+1 -> 117 | J155: =IF(LOOKUP(I155,DATOS!A:A,DATOS!C:C)=0,J149,(LOOKUP(I155,DATOS!A:A,DATOS!C:C))) -> 2 | K155: =+K149+1 -> 26 | L155: ACIERTOS | M155: ERROR | N155: Ptos negativos | O155: RESPUESTAS | P155: Control Respuesta | Q155: OPCIONES | R155: =CONCATENATE("X",H155) -> X0 | S155: CONTROL SOLUCION
A156: =IF($E$2="X",0,IF(K157>2,H155,K157)) -> 0 | C156: =+CONCATENATE(I156," ",G156) -> a) 0 | G156: =IF(J156="FIN","",LOOKUP(I155,DATOS!A:A,DATOS!J:J)) -> 0 | I156: a) | J156: =IF(J150="FIN","FIN",IF(J155=J149,"","FIN")) ->  | K156: CONTROL | L156: =IF(M156>0,0,P156) -> 0 | M156: =IF(P157>0,1,0) -> 0 | N156: =IF(M156=1,-1/COUNTA(Q156:Q159),0) -> 0 | O156: =COUNTA(B156:B159) -> 0 | P156: =COUNTIF(R156:R159,R155) -> 0 | Q156: A | R156: =CONCATENATE(B156,Q156) -> A | S156: =IF(P156>0,P156+O156,O156*3) -> 0
C157: =+CONCATENATE(I157," ",G157) -> b) 0 | G157: =IF(J156="FIN","",LOOKUP(I155,DATOS!A:A,DATOS!K:K)) -> 0 | I157: b) | K157: =S156 -> 0 | P157: =O156-P156 -> 0 | Q157: B | R157: =CONCATENATE(B157,Q157) -> B
C158: =+CONCATENATE(I158," ",G158) -> c) 0 | G158: =IF(J156="FIN","",LOOKUP(I155,DATOS!A:A,DATOS!L:L)) -> 0 | I158: c) | Q158: C | R158: =CONCATENATE(B158,Q158) -> C
C159: =+CONCATENATE(I159," ",G159) -> d) 0 | G159: =IF(J156="FIN","",LOOKUP(I155,DATOS!A:A,DATOS!M:M)) -> 0 | I159: d) | Q159: D | R159: =CONCATENATE(B159,Q159) -> D
C161: =+CONCATENATE(K161,".- ",G161) -> 27.- CONSTITUCIÓN. | G161: =IF(J162="FIN","",LOOKUP(I161,DATOS!A:A,DATOS!G:G)) -> CONSTITUCIÓN. | H161: =IF(J162="FIN",0,LOOKUP(I161,DATOS!A:A,DATOS!N:N)) -> 0 | I161: =+I155+1 -> 118 | J161: =IF(LOOKUP(I161,DATOS!A:A,DATOS!C:C)=0,J155,(LOOKUP(I161,DATOS!A:A,DATOS!C:C))) -> 2 | K161: =+K155+1 -> 27 | L161: ACIERTOS | M161: ERROR | N161: Ptos negativos | O161: RESPUESTAS | P161: Control Respuesta | Q161: OPCIONES | R161: =CONCATENATE("X",H161) -> X0 | S161: CONTROL SOLUCION
A162: =IF($E$2="X",0,IF(K163>2,H161,K163)) -> 0 | C162: =+CONCATENATE(I162," ",G162) -> a) 0 | G162: =IF(J162="FIN","",LOOKUP(I161,DATOS!A:A,DATOS!J:J)) -> 0 | I162: a) | J162: =IF(J156="FIN","FIN",IF(J161=J155,"","FIN")) ->  | K162: CONTROL | L162: =IF(M162>0,0,P162) -> 0 | M162: =IF(P163>0,1,0) -> 0 | N162: =IF(M162=1,-1/COUNTA(Q162:Q165),0) -> 0 | O162: =COUNTA(B162:B165) -> 0 | P162: =COUNTIF(R162:R165,R161) -> 0 | Q162: A | R162: =CONCATENATE(B162,Q162) -> A | S162: =IF(P162>0,P162+O162,O162*3) -> 0
C163: =+CONCATENATE(I163," ",G163) -> b) 0 | G163: =IF(J162="FIN","",LOOKUP(I161,DATOS!A:A,DATOS!K:K)) -> 0 | I163: b) | K163: =S162 -> 0 | P163: =O162-P162 -> 0 | Q163: B | R163: =CONCATENATE(B163,Q163) -> B
C164: =+CONCATENATE(I164," ",G164) -> c) 0 | G164: =IF(J162="FIN","",LOOKUP(I161,DATOS!A:A,DATOS!L:L)) -> 0 | I164: c) | Q164: C | R164: =CONCATENATE(B164,Q164) -> C
C165: =+CONCATENATE(I165," ",G165) -> d) 0 | G165: =IF(J162="FIN","",LOOKUP(I161,DATOS!A:A,DATOS!M:M)) -> 0 | I165: d) | Q165: D | R165: =CONCATENATE(B165,Q165) -> D
C167: =+CONCATENATE(K167,".- ",G167) -> 28.- CONSTITUCIÓN. | G167: =IF(J168="FIN","",LOOKUP(I167,DATOS!A:A,DATOS!G:G)) -> CONSTITUCIÓN. | H167: =IF(J168="FIN",0,LOOKUP(I167,DATOS!A:A,DATOS!N:N)) -> 0 | I167: =+I161+1 -> 119 | J167: =IF(LOOKUP(I167,DATOS!A:A,DATOS!C:C)=0,J161,(LOOKUP(I167,DATOS!A:A,DATOS!C:C))) -> 2 | K167: =+K161+1 -> 28 | L167: ACIERTOS | M167: ERROR | N167: Ptos negativos | O167: RESPUESTAS | P167: Control Respuesta | Q167: OPCIONES | R167: =CONCATENATE("X",H167) -> X0 | S167: CONTROL SOLUCION
A168: =IF($E$2="X",0,IF(K169>2,H167,K169)) -> 0 | C168: =+CONCATENATE(I168," ",G168) -> a) 0 | G168: =IF(J168="FIN","",LOOKUP(I167,DATOS!A:A,DATOS!J:J)) -> 0 | I168: a) | J168: =IF(J162="FIN","FIN",IF(J167=J161,"","FIN")) ->  | K168: CONTROL | L168: =IF(M168>0,0,P168) -> 0 | M168: =IF(P169>0,1,0) -> 0 | N168: =IF(M168=1,-1/COUNTA(Q168:Q171),0) -> 0 | O168: =COUNTA(B168:B171) -> 0 | P168: =COUNTIF(R168:R171,R167) -> 0 | Q168: A | R168: =CONCATENATE(B168,Q168) -> A | S168: =IF(P168>0,P168+O168,O168*3) -> 0
C169: =+CONCATENATE(I169," ",G169) -> b) 0 | G169: =IF(J168="FIN","",LOOKUP(I167,DATOS!A:A,DATOS!K:K)) -> 0 | I169: b) | K169: =S168 -> 0 | P169: =O168-P168 -> 0 | Q169: B | R169: =CONCATENATE(B169,Q169) -> B
C170: =+CONCATENATE(I170," ",G170) -> c) 0 | G170: =IF(J168="FIN","",LOOKUP(I167,DATOS!A:A,DATOS!L:L)) -> 0 | I170: c) | Q170: C | R170: =CONCATENATE(B170,Q170) -> C
C171: =+CONCATENATE(I171," ",G171) -> d) 0 | G171: =IF(J168="FIN","",LOOKUP(I167,DATOS!A:A,DATOS!M:M)) -> 0 | I171: d) | Q171: D | R171: =CONCATENATE(B171,Q171) -> D
C173: =+CONCATENATE(K173,".- ",G173) -> 29.- CONSTITUCIÓN. | G173: =IF(J174="FIN","",LOOKUP(I173,DATOS!A:A,DATOS!G:G)) -> CONSTITUCIÓN. | H173: =IF(J174="FIN",0,LOOKUP(I173,DATOS!A:A,DATOS!N:N)) -> 0 | I173: =+I167+1 -> 120 | J173: =IF(LOOKUP(I173,DATOS!A:A,DATOS!C:C)=0,J167,(LOOKUP(I173,DATOS!A:A,DATOS!C:C))) -> 2 | K173: =+K167+1 -> 29 | L173: ACIERTOS | M173: ERROR | N173: Ptos negativos | O173: RESPUESTAS | P173: Control Respuesta | Q173: OPCIONES | R173: =CONCATENATE("X",H173) -> X0 | S173: CONTROL SOLUCION
A174: =IF($E$2="X",0,IF(K175>2,H173,K175)) -> 0 | C174: =+CONCATENATE(I174," ",G174) -> a) 0 | G174: =IF(J174="FIN","",LOOKUP(I173,DATOS!A:A,DATOS!J:J)) -> 0 | I174: a) | J174: =IF(J168="FIN","FIN",IF(J173=J167,"","FIN")) ->  | K174: CONTROL | L174: =IF(M174>0,0,P174) -> 0 | M174: =IF(P175>0,1,0) -> 0 | N174: =IF(M174=1,-1/COUNTA(Q174:Q177),0) -> 0 | O174: =COUNTA(B174:B177) -> 0 | P174: =COUNTIF(R174:R177,R173) -> 0 | Q174: A | R174: =CONCATENATE(B174,Q174) -> A | S174: =IF(P174>0,P174+O174,O174*3) -> 0
C175: =+CONCATENATE(I175," ",G175) -> b) 0 | G175: =IF(J174="FIN","",LOOKUP(I173,DATOS!A:A,DATOS!K:K)) -> 0 | I175: b) | K175: =S174 -> 0 | P175: =O174-P174 -> 0 | Q175: B | R175: =CONCATENATE(B175,Q175) -> B
C176: =+CONCATENATE(I176," ",G176) -> c) 0 | G176: =IF(J174="FIN","",LOOKUP(I173,DATOS!A:A,DATOS!L:L)) -> 0 | I176: c) | Q176: C | R176: =CONCATENATE(B176,Q176) -> C
C177: =+CONCATENATE(I177," ",G177) -> d) 0 | G177: =IF(J174="FIN","",LOOKUP(I173,DATOS!A:A,DATOS!M:M)) -> 0 | I177: d) | Q177: D | R177: =CONCATENATE(B177,Q177) -> D
C179: =+CONCATENATE(K179,".- ",G179) -> 30.- CONSTITUCIÓN. | G179: =IF(J180="FIN","",LOOKUP(I179,DATOS!A:A,DATOS!G:G)) -> CONSTITUCIÓN. | H179: =IF(J180="FIN",0,LOOKUP(I179,DATOS!A:A,DATOS!N:N)) -> 0 | I179: =+I173+1 -> 121 | J179: =IF(LOOKUP(I179,DATOS!A:A,DATOS!C:C)=0,J173,(LOOKUP(I179,DATOS!A:A,DATOS!C:C))) -> 2 | K179: =+K173+1 -> 30 | L179: ACIERTOS | M179: ERROR | N179: Ptos negativos | O179: RESPUESTAS | P179: Control Respuesta | Q179: OPCIONES | R179: =CONCATENATE("X",H179) -> X0 | S179: CONTROL SOLUCION
A180: =IF($E$2="X",0,IF(K181>2,H179,K181)) -> 0 | C180: =+CONCATENATE(I180," ",G180) -> a) 0 | G180: =IF(J180="FIN","",LOOKUP(I179,DATOS!A:A,DATOS!J:J)) -> 0 | I180: a) | J180: =IF(J174="FIN","FIN",IF(J179=J173,"","FIN")) ->  | K180: CONTROL | L180: =IF(M180>0,0,P180) -> 0 | M180: =IF(P181>0,1,0) -> 0 | N180: =IF(M180=1,-1/COUNTA(Q180:Q183),0) -> 0 | O180: =COUNTA(B180:B183) -> 0 | P180: =COUNTIF(R180:R183,R179) -> 0 | Q180: A | R180: =CONCATENATE(B180,Q180) -> A | S180: =IF(P180>0,P180+O180,O180*3) -> 0
C181: =+CONCATENATE(I181," ",G181) -> b) 0 | G181: =IF(J180="FIN","",LOOKUP(I179,DATOS!A:A,DATOS!K:K)) -> 0 | I181: b) | K181: =S180 -> 0 | P181: =O180-P180 -> 0 | Q181: B | R181: =CONCATENATE(B181,Q181) -> B
C182: =+CONCATENATE(I182," ",G182) -> c) 0 | G182: =IF(J180="FIN","",LOOKUP(I179,DATOS!A:A,DATOS!L:L)) -> 0 | I182: c) | Q182: C | R182: =CONCATENATE(B182,Q182) -> C
C183: =+CONCATENATE(I183," ",G183) -> d) 0 | G183: =IF(J180="FIN","",LOOKUP(I179,DATOS!A:A,DATOS!M:M)) -> 0 | I183: d) | Q183: D | R183: =CONCATENATE(B183,Q183) -> D
C185: =+CONCATENATE(K185,".- ",G185) -> 31.- CONSTITUCIÓN. | G185: =IF(J186="FIN","",LOOKUP(I185,DATOS!A:A,DATOS!G:G)) -> CONSTITUCIÓN. | H185: =IF(J186="FIN",0,LOOKUP(I185,DATOS!A:A,DATOS!N:N)) -> 0 | I185: =+I179+1 -> 122 | J185: =IF(LOOKUP(I185,DATOS!A:A,DATOS!C:C)=0,J179,(LOOKUP(I185,DATOS!A:A,DATOS!C:C))) -> 2 | K185: =+K179+1 -> 31 | L185: ACIERTOS | M185: ERROR | N185: Ptos negativos | O185: RESPUESTAS | P185: Control Respuesta | Q185: OPCIONES | R185: =CONCATENATE("X",H185) -> X0 | S185: CONTROL SOLUCION
A186: =IF($E$2="X",0,IF(K187>2,H185,K187)) -> 0 | C186: =+CONCATENATE(I186," ",G186) -> a) 0 | G186: =IF(J186="FIN","",LOOKUP(I185,DATOS!A:A,DATOS!J:J)) -> 0 | I186: a) | J186: =IF(J180="FIN","FIN",IF(J185=J179,"","FIN")) ->  | K186: CONTROL | L186: =IF(M186>0,0,P186) -> 0 | M186: =IF(P187>0,1,0) -> 0 | N186: =IF(M186=1,-1/COUNTA(Q186:Q189),0) -> 0 | O186: =COUNTA(B186:B189) -> 0 | P186: =COUNTIF(R186:R189,R185) -> 0 | Q186: A | R186: =CONCATENATE(B186,Q186) -> A | S186: =IF(P186>0,P186+O186,O186*3) -> 0
C187: =+CONCATENATE(I187," ",G187) -> b) 0 | G187: =IF(J186="FIN","",LOOKUP(I185,DATOS!A:A,DATOS!K:K)) -> 0 | I187: b) | K187: =S186 -> 0 | P187: =O186-P186 -> 0 | Q187: B | R187: =CONCATENATE(B187,Q187) -> B
C188: =+CONCATENATE(I188," ",G188) -> c) 0 | G188: =IF(J186="FIN","",LOOKUP(I185,DATOS!A:A,DATOS!L:L)) -> 0 | I188: c) | Q188: C | R188: =CONCATENATE(B188,Q188) -> C
C189: =+CONCATENATE(I189," ",G189) -> d) 0 | G189: =IF(J186="FIN","",LOOKUP(I185,DATOS!A:A,DATOS!M:M)) -> 0 | I189: d) | Q189: D | R189: =CONCATENATE(B189,Q189) -> D
C191: =+CONCATENATE(K191,".- ",G191) -> 32.- CONSTITUCIÓN. | G191: =IF(J192="FIN","",LOOKUP(I191,DATOS!A:A,DATOS!G:G)) -> CONSTITUCIÓN. | H191: =IF(J192="FIN",0,LOOKUP(I191,DATOS!A:A,DATOS!N:N)) -> 0 | I191: =+I185+1 -> 123 | J191: =IF(LOOKUP(I191,DATOS!A:A,DATOS!C:C)=0,J185,(LOOKUP(I191,DATOS!A:A,DATOS!C:C))) -> 2 | K191: =+K185+1 -> 32 | L191: ACIERTOS | M191: ERROR | N191: Ptos negativos | O191: RESPUESTAS | P191: Control Respuesta | Q191: OPCIONES | R191: =CONCATENATE("X",H191) -> X0 | S191: CONTROL SOLUCION
A192: =IF($E$2="X",0,IF(K193>2,H191,K193)) -> 0 | C192: =+CONCATENATE(I192," ",G192) -> a) 0 | G192: =IF(J192="FIN","",LOOKUP(I191,DATOS!A:A,DATOS!J:J)) -> 0 | I192: a) | J192: =IF(J186="FIN","FIN",IF(J191=J185,"","FIN")) ->  | K192: CONTROL | L192: =IF(M192>0,0,P192) -> 0 | M192: =IF(P193>0,1,0) -> 0 | N192: =IF(M192=1,-1/COUNTA(Q192:Q195),0) -> 0 | O192: =COUNTA(B192:B195) -> 0 | P192: =COUNTIF(R192:R195,R191) -> 0 | Q192: A | R192: =CONCATENATE(B192,Q192) -> A | S192: =IF(P192>0,P192+O192,O192*3) -> 0
C193: =+CONCATENATE(I193," ",G193) -> b) 0 | G193: =IF(J192="FIN","",LOOKUP(I191,DATOS!A:A,DATOS!K:K)) -> 0 | I193: b) | K193: =S192 -> 0 | P193: =O192-P192 -> 0 | Q193: B | R193: =CONCATENATE(B193,Q193) -> B
C194: =+CONCATENATE(I194," ",G194) -> c) 0 | G194: =IF(J192="FIN","",LOOKUP(I191,DATOS!A:A,DATOS!L:L)) -> 0 | I194: c) | Q194: C | R194: =CONCATENATE(B194,Q194) -> C
C195: =+CONCATENATE(I195," ",G195) -> d) 0 | G195: =IF(J192="FIN","",LOOKUP(I191,DATOS!A:A,DATOS!M:M)) -> 0 | I195: d) | Q195: D | R195: =CONCATENATE(B195,Q195) -> D
C197: =+CONCATENATE(K197,".- ",G197) -> 33.- CONSTITUCIÓN. | G197: =IF(J198="FIN","",LOOKUP(I197,DATOS!A:A,DATOS!G:G)) -> CONSTITUCIÓN. | H197: =IF(J198="FIN",0,LOOKUP(I197,DATOS!A:A,DATOS!N:N)) -> 0 | I197: =+I191+1 -> 124 | J197: =IF(LOOKUP(I197,DATOS!A:A,DATOS!C:C)=0,J191,(LOOKUP(I197,DATOS!A:A,DATOS!C:C))) -> 2 | K197: =+K191+1 -> 33 | L197: ACIERTOS | M197: ERROR | N197: Ptos negativos | O197: RESPUESTAS | P197: Control Respuesta | Q197: OPCIONES | R197: =CONCATENATE("X",H197) -> X0 | S197: CONTROL SOLUCION
A198: =IF($E$2="X",0,IF(K199>2,H197,K199)) -> 0 | C198: =+CONCATENATE(I198," ",G198) -> a) 0 | G198: =IF(J198="FIN","",LOOKUP(I197,DATOS!A:A,DATOS!J:J)) -> 0 | I198: a) | J198: =IF(J192="FIN","FIN",IF(J197=J191,"","FIN")) ->  | K198: CONTROL | L198: =IF(M198>0,0,P198) -> 0 | M198: =IF(P199>0,1,0) -> 0 | N198: =IF(M198=1,-1/COUNTA(Q198:Q201),0) -> 0 | O198: =COUNTA(B198:B201) -> 0 | P198: =COUNTIF(R198:R201,R197) -> 0 | Q198: A | R198: =CONCATENATE(B198,Q198) -> A | S198: =IF(P198>0,P198+O198,O198*3) -> 0
C199: =+CONCATENATE(I199," ",G199) -> b) 0 | G199: =IF(J198="FIN","",LOOKUP(I197,DATOS!A:A,DATOS!K:K)) -> 0 | I199: b) | K199: =S198 -> 0 | P199: =O198-P198 -> 0 | Q199: B | R199: =CONCATENATE(B199,Q199) -> B
C200: =+CONCATENATE(I200," ",G200) -> c) 0 | G200: =IF(J198="FIN","",LOOKUP(I197,DATOS!A:A,DATOS!L:L)) -> 0 | I200: c) | Q200: C | R200: =CONCATENATE(B200,Q200) -> C
C201: =+CONCATENATE(I201," ",G201) -> d) 0 | G201: =IF(J198="FIN","",LOOKUP(I197,DATOS!A:A,DATOS!M:M)) -> 0 | I201: d) | Q201: D | R201: =CONCATENATE(B201,Q201) -> D
C203: =+CONCATENATE(K203,".- ",G203) -> 34.- CONSTITUCIÓN. | G203: =IF(J204="FIN","",LOOKUP(I203,DATOS!A:A,DATOS!G:G)) -> CONSTITUCIÓN. | H203: =IF(J204="FIN",0,LOOKUP(I203,DATOS!A:A,DATOS!N:N)) -> 0 | I203: =+I197+1 -> 125 | J203: =IF(LOOKUP(I203,DATOS!A:A,DATOS!C:C)=0,J197,(LOOKUP(I203,DATOS!A:A,DATOS!C:C))) -> 2 | K203: =+K197+1 -> 34 | L203: ACIERTOS | M203: ERROR | N203: Ptos negativos | O203: RESPUESTAS | P203: Control Respuesta | Q203: OPCIONES | R203: =CONCATENATE("X",H203) -> X0 | S203: CONTROL SOLUCION
A204: =IF($E$2="X",0,IF(K205>2,H203,K205)) -> 0 | C204: =+CONCATENATE(I204," ",G204) -> a) 0 | G204: =IF(J204="FIN","",LOOKUP(I203,DATOS!A:A,DATOS!J:J)) -> 0 | I204: a) | J204: =IF(J198="FIN","FIN",IF(J203=J197,"","FIN")) ->  | K204: CONTROL | L204: =IF(M204>0,0,P204) -> 0 | M204: =IF(P205>0,1,0) -> 0 | N204: =IF(M204=1,-1/COUNTA(Q204:Q207),0) -> 0 | O204: =COUNTA(B204:B207) -> 0 | P204: =COUNTIF(R204:R207,R203) -> 0 | Q204: A | R204: =CONCATENATE(B204,Q204) -> A | S204: =IF(P204>0,P204+O204,O204*3) -> 0
C205: =+CONCATENATE(I205," ",G205) -> b) 0 | G205: =IF(J204="FIN","",LOOKUP(I203,DATOS!A:A,DATOS!K:K)) -> 0 | I205: b) | K205: =S204 -> 0 | P205: =O204-P204 -> 0 | Q205: B | R205: =CONCATENATE(B205,Q205) -> B
C206: =+CONCATENATE(I206," ",G206) -> c) 0 | G206: =IF(J204="FIN","",LOOKUP(I203,DATOS!A:A,DATOS!L:L)) -> 0 | I206: c) | Q206: C | R206: =CONCATENATE(B206,Q206) -> C
C207: =+CONCATENATE(I207," ",G207) -> d) 0 | G207: =IF(J204="FIN","",LOOKUP(I203,DATOS!A:A,DATOS!M:M)) -> 0 | I207: d) | Q207: D | R207: =CONCATENATE(B207,Q207) -> D
C209: =+CONCATENATE(K209,".- ",G209) -> 35.- CONSTITUCIÓN. | G209: =IF(J210="FIN","",LOOKUP(I209,DATOS!A:A,DATOS!G:G)) -> CONSTITUCIÓN. | H209: =IF(J210="FIN",0,LOOKUP(I209,DATOS!A:A,DATOS!N:N)) -> 0 | I209: =+I203+1 -> 126 | J209: =IF(LOOKUP(I209,DATOS!A:A,DATOS!C:C)=0,J203,(LOOKUP(I209,DATOS!A:A,DATOS!C:C))) -> 2 | K209: =+K203+1 -> 35 | L209: ACIERTOS | M209: ERROR | N209: Ptos negativos | O209: RESPUESTAS | P209: Control Respuesta | Q209: OPCIONES | R209: =CONCATENATE("X",H209) -> X0 | S209: CONTROL SOLUCION
A210: =IF($E$2="X",0,IF(K211>2,H209,K211)) -> 0 | C210: =+CONCATENATE(I210," ",G210) -> a) 0 | G210: =IF(J210="FIN","",LOOKUP(I209,DATOS!A:A,DATOS!J:J)) -> 0 | I210: a) | J210: =IF(J204="FIN","FIN",IF(J209=J203,"","FIN")) ->  | K210: CONTROL | L210: =IF(M210>0,0,P210) -> 0 | M210: =IF(P211>0,1,0) -> 0 | N210: =IF(M210=1,-1/COUNTA(Q210:Q213),0) -> 0 | O210: =COUNTA(B210:B213) -> 0 | P210: =COUNTIF(R210:R213,R209) -> 0 | Q210: A | R210: =CONCATENATE(B210,Q210) -> A | S210: =IF(P210>0,P210+O210,O210*3) -> 0
C211: =+CONCATENATE(I211," ",G211) -> b) 0 | G211: =IF(J210="FIN","",LOOKUP(I209,DATOS!A:A,DATOS!K:K)) -> 0 | I211: b) | K211: =S210 -> 0 | P211: =O210-P210 -> 0 | Q211: B | R211: =CONCATENATE(B211,Q211) -> B
C212: =+CONCATENATE(I212," ",G212) -> c) 0 | G212: =IF(J210="FIN","",LOOKUP(I209,DATOS!A:A,DATOS!L:L)) -> 0 | I212: c) | Q212: C | R212: =CONCATENATE(B212,Q212) -> C
C213: =+CONCATENATE(I213," ",G213) -> d) 0 | G213: =IF(J210="FIN","",LOOKUP(I209,DATOS!A:A,DATOS!M:M)) -> 0 | I213: d) | Q213: D | R213: =CONCATENATE(B213,Q213) -> D
C215: =+CONCATENATE(K215,".- ",G215) -> 36.- CONSTITUCIÓN. | G215: =IF(J216="FIN","",LOOKUP(I215,DATOS!A:A,DATOS!G:G)) -> CONSTITUCIÓN. | H215: =IF(J216="FIN",0,LOOKUP(I215,DATOS!A:A,DATOS!N:N)) -> 0 | I215: =+I209+1 -> 127 | J215: =IF(LOOKUP(I215,DATOS!A:A,DATOS!C:C)=0,J209,(LOOKUP(I215,DATOS!A:A,DATOS!C:C))) -> 2 | K215: =+K209+1 -> 36 | L215: ACIERTOS | M215: ERROR | N215: Ptos negativos | O215: RESPUESTAS | P215: Control Respuesta | Q215: OPCIONES | R215: =CONCATENATE("X",H215) -> X0 | S215: CONTROL SOLUCION
A216: =IF($E$2="X",0,IF(K217>2,H215,K217)) -> 0 | C216: =+CONCATENATE(I216," ",G216) -> a) 0 | G216: =IF(J216="FIN","",LOOKUP(I215,DATOS!A:A,DATOS!J:J)) -> 0 | I216: a) | J216: =IF(J210="FIN","FIN",IF(J215=J209,"","FIN")) ->  | K216: CONTROL | L216: =IF(M216>0,0,P216) -> 0 | M216: =IF(P217>0,1,0) -> 0 | N216: =IF(M216=1,-1/COUNTA(Q216:Q219),0) -> 0 | O216: =COUNTA(B216:B219) -> 0 | P216: =COUNTIF(R216:R219,R215) -> 0 | Q216: A | R216: =CONCATENATE(B216,Q216) -> A | S216: =IF(P216>0,P216+O216,O216*3) -> 0
C217: =+CONCATENATE(I217," ",G217) -> b) 0 | G217: =IF(J216="FIN","",LOOKUP(I215,DATOS!A:A,DATOS!K:K)) -> 0 | I217: b) | K217: =S216 -> 0 | P217: =O216-P216 -> 0 | Q217: B | R217: =CONCATENATE(B217,Q217) -> B
C218: =+CONCATENATE(I218," ",G218) -> c) 0 | G218: =IF(J216="FIN","",LOOKUP(I215,DATOS!A:A,DATOS!L:L)) -> 0 | I218: c) | Q218: C | R218: =CONCATENATE(B218,Q218) -> C
C219: =+CONCATENATE(I219," ",G219) -> d) 0 | G219: =IF(J216="FIN","",LOOKUP(I215,DATOS!A:A,DATOS!M:M)) -> 0 | I219: d) | Q219: D | R219: =CONCATENATE(B219,Q219) -> D
C221: =+CONCATENATE(K221,".- ",G221) -> 37.- CONSTITUCIÓN. | G221: =IF(J222="FIN","",LOOKUP(I221,DATOS!A:A,DATOS!G:G)) -> CONSTITUCIÓN. | H221: =IF(J222="FIN",0,LOOKUP(I221,DATOS!A:A,DATOS!N:N)) -> 0 | I221: =+I215+1 -> 128 | J221: =IF(LOOKUP(I221,DATOS!A:A,DATOS!C:C)=0,J215,(LOOKUP(I221,DATOS!A:A,DATOS!C:C))) -> 2 | K221: =+K215+1 -> 37 | L221: ACIERTOS | M221: ERROR | N221: Ptos negativos | O221: RESPUESTAS | P221: Control Respuesta | Q221: OPCIONES | R221: =CONCATENATE("X",H221) -> X0 | S221: CONTROL SOLUCION
A222: =IF($E$2="X",0,IF(K223>2,H221,K223)) -> 0 | C222: =+CONCATENATE(I222," ",G222) -> a) 0 | G222: =IF(J222="FIN","",LOOKUP(I221,DATOS!A:A,DATOS!J:J)) -> 0 | I222: a) | J222: =IF(J216="FIN","FIN",IF(J221=J215,"","FIN")) ->  | K222: CONTROL | L222: =IF(M222>0,0,P222) -> 0 | M222: =IF(P223>0,1,0) -> 0 | N222: =IF(M222=1,-1/COUNTA(Q222:Q225),0) -> 0 | O222: =COUNTA(B222:B225) -> 0 | P222: =COUNTIF(R222:R225,R221) -> 0 | Q222: A | R222: =CONCATENATE(B222,Q222) -> A | S222: =IF(P222>0,P222+O222,O222*3) -> 0
C223: =+CONCATENATE(I223," ",G223) -> b) 0 | G223: =IF(J222="FIN","",LOOKUP(I221,DATOS!A:A,DATOS!K:K)) -> 0 | I223: b) | K223: =S222 -> 0 | P223: =O222-P222 -> 0 | Q223: B | R223: =CONCATENATE(B223,Q223) -> B
C224: =+CONCATENATE(I224," ",G224) -> c) 0 | G224: =IF(J222="FIN","",LOOKUP(I221,DATOS!A:A,DATOS!L:L)) -> 0 | I224: c) | Q224: C | R224: =CONCATENATE(B224,Q224) -> C
C225: =+CONCATENATE(I225," ",G225) -> d) 0 | G225: =IF(J222="FIN","",LOOKUP(I221,DATOS!A:A,DATOS!M:M)) -> 0 | I225: d) | Q225: D | R225: =CONCATENATE(B225,Q225) -> D
C227: =+CONCATENATE(K227,".- ",G227) -> 38.- CONSTITUCIÓN. | G227: =IF(J228="FIN","",LOOKUP(I227,DATOS!A:A,DATOS!G:G)) -> CONSTITUCIÓN. | H227: =IF(J228="FIN",0,LOOKUP(I227,DATOS!A:A,DATOS!N:N)) -> 0 | I227: =+I221+1 -> 129 | J227: =IF(LOOKUP(I227,DATOS!A:A,DATOS!C:C)=0,J221,(LOOKUP(I227,DATOS!A:A,DATOS!C:C))) -> 2 | K227: =+K221+1 -> 38 | L227: ACIERTOS | M227: ERROR | N227: Ptos negativos | O227: RESPUESTAS | P227: Control Respuesta | Q227: OPCIONES | R227: =CONCATENATE("X",H227) -> X0 | S227: CONTROL SOLUCION
A228: =IF($E$2="X",0,IF(K229>2,H227,K229)) -> 0 | C228: =+CONCATENATE(I228," ",G228) -> a) 0 | G228: =IF(J228="FIN","",LOOKUP(I227,DATOS!A:A,DATOS!J:J)) -> 0 | I228: a) | J228: =IF(J222="FIN","FIN",IF(J227=J221,"","FIN")) ->  | K228: CONTROL | L228: =IF(M228>0,0,P228) -> 0 | M228: =IF(P229>0,1,0) -> 0 | N228: =IF(M228=1,-1/COUNTA(Q228:Q231),0) -> 0 | O228: =COUNTA(B228:B231) -> 0 | P228: =COUNTIF(R228:R231,R227) -> 0 | Q228: A | R228: =CONCATENATE(B228,Q228) -> A | S228: =IF(P228>0,P228+O228,O228*3) -> 0
C229: =+CONCATENATE(I229," ",G229) -> b) 0 | G229: =IF(J228="FIN","",LOOKUP(I227,DATOS!A:A,DATOS!K:K)) -> 0 | I229: b) | K229: =S228 -> 0 | P229: =O228-P228 -> 0 | Q229: B | R229: =CONCATENATE(B229,Q229) -> B
C230: =+CONCATENATE(I230," ",G230) -> c) 0 | G230: =IF(J228="FIN","",LOOKUP(I227,DATOS!A:A,DATOS!L:L)) -> 0 | I230: c) | Q230: C | R230: =CONCATENATE(B230,Q230) -> C
C231: =+CONCATENATE(I231," ",G231) -> d) 0 | G231: =IF(J228="FIN","",LOOKUP(I227,DATOS!A:A,DATOS!M:M)) -> 0 | I231: d) | Q231: D | R231: =CONCATENATE(B231,Q231) -> D
C233: =+CONCATENATE(K233,".- ",G233) -> 39.- CONSTITUCIÓN. | G233: =IF(J234="FIN","",LOOKUP(I233,DATOS!A:A,DATOS!G:G)) -> CONSTITUCIÓN. | H233: =IF(J234="FIN",0,LOOKUP(I233,DATOS!A:A,DATOS!N:N)) -> 0 | I233: =+I227+1 -> 130 | J233: =IF(LOOKUP(I233,DATOS!A:A,DATOS!C:C)=0,J227,(LOOKUP(I233,DATOS!A:A,DATOS!C:C))) -> 2 | K233: =+K227+1 -> 39 | L233: ACIERTOS | M233: ERROR | N233: Ptos negativos | O233: RESPUESTAS | P233: Control Respuesta | Q233: OPCIONES | R233: =CONCATENATE("X",H233) -> X0 | S233: CONTROL SOLUCION
A234: =IF($E$2="X",0,IF(K235>2,H233,K235)) -> 0 | C234: =+CONCATENATE(I234," ",G234) -> a) 0 | G234: =IF(J234="FIN","",LOOKUP(I233,DATOS!A:A,DATOS!J:J)) -> 0 | I234: a) | J234: =IF(J228="FIN","FIN",IF(J233=J227,"","FIN")) ->  | K234: CONTROL | L234: =IF(M234>0,0,P234) -> 0 | M234: =IF(P235>0,1,0) -> 0 | N234: =IF(M234=1,-1/COUNTA(Q234:Q237),0) -> 0 | O234: =COUNTA(B234:B237) -> 0 | P234: =COUNTIF(R234:R237,R233) -> 0 | Q234: A | R234: =CONCATENATE(B234,Q234) -> A | S234: =IF(P234>0,P234+O234,O234*3) -> 0
C235: =+CONCATENATE(I235," ",G235) -> b) 0 | G235: =IF(J234="FIN","",LOOKUP(I233,DATOS!A:A,DATOS!K:K)) -> 0 | I235: b) | K235: =S234 -> 0 | P235: =O234-P234 -> 0 | Q235: B | R235: =CONCATENATE(B235,Q235) -> B
C236: =+CONCATENATE(I236," ",G236) -> c) 0 | G236: =IF(J234="FIN","",LOOKUP(I233,DATOS!A:A,DATOS!L:L)) -> 0 | I236: c) | Q236: C | R236: =CONCATENATE(B236,Q236) -> C
C237: =+CONCATENATE(I237," ",G237) -> d) 0 | G237: =IF(J234="FIN","",LOOKUP(I233,DATOS!A:A,DATOS!M:M)) -> 0 | I237: d) | Q237: D | R237: =CONCATENATE(B237,Q237) -> D
C239: =+CONCATENATE(K239,".- ",G239) -> 40.- CONSTITUCIÓN. | G239: =IF(J240="FIN","",LOOKUP(I239,DATOS!A:A,DATOS!G:G)) -> CONSTITUCIÓN. | H239: =IF(J240="FIN",0,LOOKUP(I239,DATOS!A:A,DATOS!N:N)) -> 0 | I239: =+I233+1 -> 131 | J239: =IF(LOOKUP(I239,DATOS!A:A,DATOS!C:C)=0,J233,(LOOKUP(I239,DATOS!A:A,DATOS!C:C))) -> 2 | K239: =+K233+1 -> 40 | L239: ACIERTOS | M239: ERROR | N239: Ptos negativos | O239: RESPUESTAS | P239: Control Respuesta | Q239: OPCIONES | R239: =CONCATENATE("X",H239) -> X0 | S239: CONTROL SOLUCION
A240: =IF($E$2="X",0,IF(K241>2,H239,K241)) -> 0 | C240: =+CONCATENATE(I240," ",G240) -> a) 0 | G240: =IF(J240="FIN","",LOOKUP(I239,DATOS!A:A,DATOS!J:J)) -> 0 | I240: a) | J240: =IF(J234="FIN","FIN",IF(J239=J233,"","FIN")) ->  | K240: CONTROL | L240: =IF(M240>0,0,P240) -> 0 | M240: =IF(P241>0,1,0) -> 0 | N240: =IF(M240=1,-1/COUNTA(Q240:Q243),0) -> 0 | O240: =COUNTA(B240:B243) -> 0 | P240: =COUNTIF(R240:R243,R239) -> 0 | Q240: A | R240: =CONCATENATE(B240,Q240) -> A | S240: =IF(P240>0,P240+O240,O240*3) -> 0
C241: =+CONCATENATE(I241," ",G241) -> b) 0 | G241: =IF(J240="FIN","",LOOKUP(I239,DATOS!A:A,DATOS!K:K)) -> 0 | I241: b) | K241: =S240 -> 0 | P241: =O240-P240 -> 0 | Q241: B | R241: =CONCATENATE(B241,Q241) -> B
... 302 more rows

Sheet 3
A1: 3 | C1: =AO1 -> Tema 1 - ORGANIZACIÓN POLÍTICA Y TERRITORIAL III | E1: =ROUND(Q2/K2*10,2) ->  | I1: 3 | J1: COLUMNA | K1: preguntas | L1: aciertos | M1: Fallos | N1: Ptos Negativos | O1: Contestadas | P1: % evolución | Q1: Puntuación | R1: Nota Puntual | S1: Nota Final | T1: Texto Notas | U1: Texto completo | V1: Testo simple | W1: Control Respuestas | X1: Control caducidad | AD1: preguntas | AE1: aciertos | AF1: Fallos | AG1: Ptos Negativos | AH1: Contestadas | AI1: % evolución | AJ1: Puntuación | AK1: Nota Puntual | AL1: Tests | AN1: Test | AO1: =LOOKUP(I5,DATOS!A:A,DATOS!F:F) -> Tema 1 - ORGANIZACIÓN POLÍTICA Y TERRITORIAL III
C2: =IF(CONTROL!I4="A",X2,"") ->  | K2: =COUNTA(H:H)-COUNT(H:H) -> 0 | L2: =SUM(L3:L1048576) -> 0 | M2: =SUM(M3:M1048576) -> 1 | N2: =SUM(N3:N52) -> -0.25 | O2: =L2+M2 -> 1 | P2: =+O2/K2 ->  | Q2: =+L2+N2 -> -0.25 | R2: =ROUND(Q2/(L2+M2)*10,2) -> -2.5 | S2: =ROUND(Q2/K2*10,2) ->  | T2: =CONCATENATE("puntual: ", R2," Nota final: ", S2) ->  | U2: =CONCATENATE("Evolución: ", K2," preguntas, ",L2," aciertos, ",M2," errores, ",Q2," puntos. Nota ",T2) ->  | V2: =CONCATENATE("Test, compuesto por ",K2," preguntas") -> Test, compuesto por 0 preguntas | W2: =IF(E2="X",V2,IF(O2>0,U2,V2)) ->  | X2: =IF(CONTROL!I4="A",W2,V2) ->  | AD2: =IF(CONTROL!$I$4="A",K2,0) -> 0 | AE2: =IF(CONTROL!$I$4="A",L2,0) -> 0 | AF2: =IF(CONTROL!$I$4="A",M2,0) -> 1 | AG2: =IF(CONTROL!$I$4="A",N2,0) -> -0.25 | AH2: =IF(CONTROL!$I$4="A",O2,0) -> 1 | AI2: =IF(CONTROL!$I$4="A",P2,0) ->  | AJ2: =IF(CONTROL!$I$4="A",Q2,0) -> -0.25 | AK2: =IF(CONTROL!$I$4="A",R2,0) -> -2.5 | AL2: =+AO1 -> Tema 1 - ORGANIZACIÓN POLÍTICA Y TERRITORIAL III | AN2: Portada | AO2: =LOOKUP(I5,DATOS!A:A,DATOS!E:E) -> ORGANIZACIÓN POLÍTICA Y TERRITORIAL (III).
C5: =+CONCATENATE(K5,".- ",G5) -> 1.- CONSTITUCIÓN. | G5: =LOOKUP(I5,DATOS!A:A,DATOS!G:G) -> CONSTITUCIÓN. | H5: =LOOKUP(I5,DATOS!A:A,DATOS!N:N) -> 0 | I5: =LOOKUP(I1,DATOS!C:C,DATOS!A:A) -> 176 | J5: =LOOKUP(I5,DATOS!A:A,DATOS!C:C) -> 3 | K5: 1 | L5: ACIERTOS | M5: ERROR | N5: Ptos negativos | O5: RESPUESTAS | P5: Control Respuesta | Q5: OPCIONES | R5: =CONCATENATE("X",H5) -> X0 | S5: CONTROL SOLUCION
A6: =IF($E$2="X",0,IF(K7>2,H5,K7)) -> 0 | C6: =+CONCATENATE(I6," ",G6) -> a) 0 | G6: =LOOKUP(I5,DATOS!A:A,DATOS!J:J) -> 0 | I6: a) | K6: CONTROL | L6: =IF(M6>0,0,P6) -> 0 | M6: =IF(P7>0,1,0) -> 0 | N6: =IF(M6=1,-1/COUNTA(Q6:Q9),0) -> 0 | O6: =COUNTA(B6:B9) -> 0 | P6: =COUNTIF(R6:R9,R5) -> 0 | Q6: A | R6: =CONCATENATE(B6,Q6) -> A | S6: =IF(P6>0,P6+O6,O6*3) -> 0
C7: =+CONCATENATE(I7," ",G7) -> b) 0 | G7: =LOOKUP(I5,DATOS!A:A,DATOS!K:K) -> 0 | I7: b) | K7: =S6 -> 0 | P7: =O6-P6 -> 0 | Q7: B | R7: =CONCATENATE(B7,Q7) -> B
C8: =+CONCATENATE(I8," ",G8) -> c) 0 | G8: =LOOKUP(I5,DATOS!A:A,DATOS!L:L) -> 0 | I8: c) | Q8: C | R8: =CONCATENATE(B8,Q8) -> C
C9: =+CONCATENATE(I9," ",G9) -> d) 0 | G9: =LOOKUP(I5,DATOS!A:A,DATOS!M:M) -> 0 | I9: d) | Q9: D | R9: =CONCATENATE(B9,Q9) -> D
C11: =+CONCATENATE(K11,".- ",G11) -> 2.- CONSTITUCIÓN. | G11: =IF(J12="FIN","",LOOKUP(I11,DATOS!A:A,DATOS!G:G)) -> CONSTITUCIÓN. | H11: =IF(J12="FIN",0,LOOKUP(I11,DATOS!A:A,DATOS!N:N)) -> 0 | I11: =+I5+1 -> 177 | J11: =IF(LOOKUP(I11,DATOS!A:A,DATOS!C:C)=0,J5,(LOOKUP(I11,DATOS!A:A,DATOS!C:C))) -> 3 | K11: =+K5+1 -> 2 | L11: ACIERTOS | M11: ERROR | N11: Ptos negativos | O11: RESPUESTAS | P11: Control Respuesta | Q11: OPCIONES | R11: =CONCATENATE("X",H11) -> X0 | S11: CONTROL SOLUCION
A12: =IF($E$2="X",0,IF(K13>2,H11,K13)) -> 0 | C12: =+CONCATENATE(I12," ",G12) -> a) 0 | G12: =IF(J12="FIN","",LOOKUP(I11,DATOS!A:A,DATOS!J:J)) -> 0 | I12: a) | J12: =IF(J6="FIN","FIN",IF(J11=J5,"","FIN")) ->  | K12: CONTROL | L12: =IF(M12>0,0,P12) -> 0 | M12: =IF(P13>0,1,0) -> 0 | N12: =IF(M12=1,-1/COUNTA(Q12:Q15),0) -> 0 | O12: =COUNTA(B12:B15) -> 0 | P12: =COUNTIF(R12:R15,R11) -> 0 | Q12: A | R12: =CONCATENATE(B12,Q12) -> A | S12: =IF(P12>0,P12+O12,O12*3) -> 0
C13: =+CONCATENATE(I13," ",G13) -> b) 0 | G13: =IF(J12="FIN","",LOOKUP(I11,DATOS!A:A,DATOS!K:K)) -> 0 | I13: b) | K13: =S12 -> 0 | P13: =O12-P12 -> 0 | Q13: B | R13: =CONCATENATE(B13,Q13) -> B
C14: =+CONCATENATE(I14," ",G14) -> c) 0 | G14: =IF(J12="FIN","",LOOKUP(I11,DATOS!A:A,DATOS!L:L)) -> 0 | I14: c) | Q14: C | R14: =CONCATENATE(B14,Q14) -> C
C15: =+CONCATENATE(I15," ",G15) -> d) 0 | G15: =IF(J12="FIN","",LOOKUP(I11,DATOS!A:A,DATOS!M:M)) -> 0 | I15: d) | Q15: D | R15: =CONCATENATE(B15,Q15) -> D
C17: =+CONCATENATE(K17,".- ",G17) -> 3.- CONSTITUCIÓN. | G17: =IF(J18="FIN","",LOOKUP(I17,DATOS!A:A,DATOS!G:G)) -> CONSTITUCIÓN. | H17: =IF(J18="FIN",0,LOOKUP(I17,DATOS!A:A,DATOS!N:N)) -> 0 | I17: =+I11+1 -> 178 | J17: =IF(LOOKUP(I17,DATOS!A:A,DATOS!C:C)=0,J11,(LOOKUP(I17,DATOS!A:A,DATOS!C:C))) -> 3 | K17: =+K11+1 -> 3 | L17: ACIERTOS | M17: ERROR | N17: Ptos negativos | O17: RESPUESTAS | P17: Control Respuesta | Q17: OPCIONES | R17: =CONCATENATE("X",H17) -> X0 | S17: CONTROL SOLUCION
A18: =IF($E$2="X",0,IF(K19>2,H17,K19)) -> 0 | C18: =+CONCATENATE(I18," ",G18) -> a) 0 | G18: =IF(J18="FIN","",LOOKUP(I17,DATOS!A:A,DATOS!J:J)) -> 0 | I18: a) | J18: =IF(J12="FIN","FIN",IF(J17=J11,"","FIN")) ->  | K18: CONTROL | L18: =IF(M18>0,0,P18) -> 0 | M18: =IF(P19>0,1,0) -> 0 | N18: =IF(M18=1,-1/COUNTA(Q18:Q21),0) -> 0 | O18: =COUNTA(B18:B21) -> 0 | P18: =COUNTIF(R18:R21,R17) -> 0 | Q18: A | R18: =CONCATENATE(B18,Q18) -> A | S18: =IF(P18>0,P18+O18,O18*3) -> 0
C19: =+CONCATENATE(I19," ",G19) -> b) 0 | G19: =IF(J18="FIN","",LOOKUP(I17,DATOS!A:A,DATOS!K:K)) -> 0 | I19: b) | K19: =S18 -> 0 | P19: =O18-P18 -> 0 | Q19: B | R19: =CONCATENATE(B19,Q19) -> B
C20: =+CONCATENATE(I20," ",G20) -> c) 0 | G20: =IF(J18="FIN","",LOOKUP(I17,DATOS!A:A,DATOS!L:L)) -> 0 | I20: c) | Q20: C | R20: =CONCATENATE(B20,Q20) -> C
C21: =+CONCATENATE(I21," ",G21) -> d) 0 | G21: =IF(J18="FIN","",LOOKUP(I17,DATOS!A:A,DATOS!M:M)) -> 0 | I21: d) | Q21: D | R21: =CONCATENATE(B21,Q21) -> D
C23: =+CONCATENATE(K23,".- ",G23) -> 4.- CONSTITUCIÓN. | G23: =IF(J24="FIN","",LOOKUP(I23,DATOS!A:A,DATOS!G:G)) -> CONSTITUCIÓN. | H23: =IF(J24="FIN",0,LOOKUP(I23,DATOS!A:A,DATOS!N:N)) -> 0 | I23: =+I17+1 -> 179 | J23: =IF(LOOKUP(I23,DATOS!A:A,DATOS!C:C)=0,J17,(LOOKUP(I23,DATOS!A:A,DATOS!C:C))) -> 3 | K23: =+K17+1 -> 4 | L23: ACIERTOS | M23: ERROR | N23: Ptos negativos | O23: RESPUESTAS | P23: Control Respuesta | Q23: OPCIONES | R23: =CONCATENATE("X",H23) -> X0 | S23: CONTROL SOLUCION
A24: =IF($E$2="X",0,IF(K25>2,H23,K25)) -> 0 | C24: =+CONCATENATE(I24," ",G24) -> a) 0 | G24: =IF(J24="FIN","",LOOKUP(I23,DATOS!A:A,DATOS!J:J)) -> 0 | I24: a) | J24: =IF(J18="FIN","FIN",IF(J23=J17,"","FIN")) ->  | K24: CONTROL | L24: =IF(M24>0,0,P24) -> 0 | M24: =IF(P25>0,1,0) -> 0 | N24: =IF(M24=1,-1/COUNTA(Q24:Q27),0) -> 0 | O24: =COUNTA(B24:B27) -> 0 | P24: =COUNTIF(R24:R27,R23) -> 0 | Q24: A | R24: =CONCATENATE(B24,Q24) -> A | S24: =IF(P24>0,P24+O24,O24*3) -> 0
C25: =+CONCATENATE(I25," ",G25) -> b) 0 | G25: =IF(J24="FIN","",LOOKUP(I23,DATOS!A:A,DATOS!K:K)) -> 0 | I25: b) | K25: =S24 -> 0 | P25: =O24-P24 -> 0 | Q25: B | R25: =CONCATENATE(B25,Q25) -> B
C26: =+CONCATENATE(I26," ",G26) -> c) 0 | G26: =IF(J24="FIN","",LOOKUP(I23,DATOS!A:A,DATOS!L:L)) -> 0 | I26: c) | Q26: C | R26: =CONCATENATE(B26,Q26) -> C
C27: =+CONCATENATE(I27," ",G27) -> d) 0 | G27: =IF(J24="FIN","",LOOKUP(I23,DATOS!A:A,DATOS!M:M)) -> 0 | I27: d) | Q27: D | R27: =CONCATENATE(B27,Q27) -> D
C29: =+CONCATENATE(K29,".- ",G29) -> 5.- CONSTITUCIÓN. | G29: =IF(J30="FIN","",LOOKUP(I29,DATOS!A:A,DATOS!G:G)) -> CONSTITUCIÓN. | H29: =IF(J30="FIN",0,LOOKUP(I29,DATOS!A:A,DATOS!N:N)) -> 0 | I29: =+I23+1 -> 180 | J29: =IF(LOOKUP(I29,DATOS!A:A,DATOS!C:C)=0,J23,(LOOKUP(I29,DATOS!A:A,DATOS!C:C))) -> 3 | K29: =+K23+1 -> 5 | L29: ACIERTOS | M29: ERROR | N29: Ptos negativos | O29: RESPUESTAS | P29: Control Respuesta | Q29: OPCIONES | R29: =CONCATENATE("X",H29) -> X0 | S29: CONTROL SOLUCION
A30: =IF($E$2="X",0,IF(K31>2,H29,K31)) -> 0 | C30: =+CONCATENATE(I30," ",G30) -> a) 0 | G30: =IF(J30="FIN","",LOOKUP(I29,DATOS!A:A,DATOS!J:J)) -> 0 | I30: a) | J30: =IF(J24="FIN","FIN",IF(J29=J23,"","FIN")) ->  | K30: CONTROL | L30: =IF(M30>0,0,P30) -> 0 | M30: =IF(P31>0,1,0) -> 0 | N30: =IF(M30=1,-1/COUNTA(Q30:Q33),0) -> 0 | O30: =COUNTA(B30:B33) -> 0 | P30: =COUNTIF(R30:R33,R29) -> 0 | Q30: A | R30: =CONCATENATE(B30,Q30) -> A | S30: =IF(P30>0,P30+O30,O30*3) -> 0
C31: =+CONCATENATE(I31," ",G31) -> b) 0 | G31: =IF(J30="FIN","",LOOKUP(I29,DATOS!A:A,DATOS!K:K)) -> 0 | I31: b) | K31: =S30 -> 0 | P31: =O30-P30 -> 0 | Q31: B | R31: =CONCATENATE(B31,Q31) -> B
C32: =+CONCATENATE(I32," ",G32) -> c) 0 | G32: =IF(J30="FIN","",LOOKUP(I29,DATOS!A:A,DATOS!L:L)) -> 0 | I32: c) | Q32: C | R32: =CONCATENATE(B32,Q32) -> C
C33: =+CONCATENATE(I33," ",G33) -> d) 0 | G33: =IF(J30="FIN","",LOOKUP(I29,DATOS!A:A,DATOS!M:M)) -> 0 | I33: d) | Q33: D | R33: =CONCATENATE(B33,Q33) -> D
C35: =+CONCATENATE(K35,".- ",G35) -> 6.- CONSTITUCIÓN. | G35: =IF(J36="FIN","",LOOKUP(I35,DATOS!A:A,DATOS!G:G)) -> CONSTITUCIÓN. | H35: =IF(J36="FIN",0,LOOKUP(I35,DATOS!A:A,DATOS!N:N)) -> 0 | I35: =+I29+1 -> 181 | J35: =IF(LOOKUP(I35,DATOS!A:A,DATOS!C:C)=0,J29,(LOOKUP(I35,DATOS!A:A,DATOS!C:C))) -> 3 | K35: =+K29+1 -> 6 | L35: ACIERTOS | M35: ERROR | N35: Ptos negativos | O35: RESPUESTAS | P35: Control Respuesta | Q35: OPCIONES | R35: =CONCATENATE("X",H35) -> X0 | S35: CONTROL SOLUCION
A36: =IF($E$2="X",0,IF(K37>2,H35,K37)) -> 0 | B36: x | C36: =+CONCATENATE(I36," ",G36) -> a) 0 | G36: =IF(J36="FIN","",LOOKUP(I35,DATOS!A:A,DATOS!J:J)) -> 0 | I36: a) | J36: =IF(J30="FIN","FIN",IF(J35=J29,"","FIN")) ->  | K36: CONTROL | L36: =IF(M36>0,0,P36) -> 0 | M36: =IF(P37>0,1,0) -> 1 | N36: =IF(M36=1,-1/COUNTA(Q36:Q39),0) -> -0.25 | O36: =COUNTA(B36:B39) -> 1 | P36: =COUNTIF(R36:R39,R35) -> 0 | Q36: A | R36: =CONCATENATE(B36,Q36) -> xA | S36: =IF(P36>0,P36+O36,O36*3) -> 3
C37: =+CONCATENATE(I37," ",G37) -> b) 0 | G37: =IF(J36="FIN","",LOOKUP(I35,DATOS!A:A,DATOS!K:K)) -> 0 | I37: b) | K37: =S36 -> 3 | P37: =O36-P36 -> 1 | Q37: B | R37: =CONCATENATE(B37,Q37) -> B
C38: =+CONCATENATE(I38," ",G38) -> c) 0 | G38: =IF(J36="FIN","",LOOKUP(I35,DATOS!A:A,DATOS!L:L)) -> 0 | I38: c) | Q38: C | R38: =CONCATENATE(B38,Q38) -> C
C39: =+CONCATENATE(I39," ",G39) -> d) 0 | G39: =IF(J36="FIN","",LOOKUP(I35,DATOS!A:A,DATOS!M:M)) -> 0 | I39: d) | Q39: D | R39: =CONCATENATE(B39,Q39) -> D
C41: =+CONCATENATE(K41,".- ",G41) -> 7.- CONSTITUCIÓN. | G41: =IF(J42="FIN","",LOOKUP(I41,DATOS!A:A,DATOS!G:G)) -> CONSTITUCIÓN. | H41: =IF(J42="FIN",0,LOOKUP(I41,DATOS!A:A,DATOS!N:N)) -> 0 | I41: =+I35+1 -> 182 | J41: =IF(LOOKUP(I41,DATOS!A:A,DATOS!C:C)=0,J35,(LOOKUP(I41,DATOS!A:A,DATOS!C:C))) -> 3 | K41: =+K35+1 -> 7 | L41: ACIERTOS | M41: ERROR | N41: Ptos negativos | O41: RESPUESTAS | P41: Control Respuesta | Q41: OPCIONES | R41: =CONCATENATE("X",H41) -> X0 | S41: CONTROL SOLUCION
A42: =IF($E$2="X",0,IF(K43>2,H41,K43)) -> 0 | C42: =+CONCATENATE(I42," ",G42) -> a) 0 | G42: =IF(J42="FIN","",LOOKUP(I41,DATOS!A:A,DATOS!J:J)) -> 0 | I42: a) | J42: =IF(J36="FIN","FIN",IF(J41=J35,"","FIN")) ->  | K42: CONTROL | L42: =IF(M42>0,0,P42) -> 0 | M42: =IF(P43>0,1,0) -> 0 | N42: =IF(M42=1,-1/COUNTA(Q42:Q45),0) -> 0 | O42: =COUNTA(B42:B45) -> 0 | P42: =COUNTIF(R42:R45,R41) -> 0 | Q42: A | R42: =CONCATENATE(B42,Q42) -> A | S42: =IF(P42>0,P42+O42,O42*3) -> 0
C43: =+CONCATENATE(I43," ",G43) -> b) 0 | G43: =IF(J42="FIN","",LOOKUP(I41,DATOS!A:A,DATOS!K:K)) -> 0 | I43: b) | K43: =S42 -> 0 | P43: =O42-P42 -> 0 | Q43: B | R43: =CONCATENATE(B43,Q43) -> B
C44: =+CONCATENATE(I44," ",G44) -> c) 0 | G44: =IF(J42="FIN","",LOOKUP(I41,DATOS!A:A,DATOS!L:L)) -> 0 | I44: c) | Q44: C | R44: =CONCATENATE(B44,Q44) -> C
C45: =+CONCATENATE(I45," ",G45) -> d) 0 | G45: =IF(J42="FIN","",LOOKUP(I41,DATOS!A:A,DATOS!M:M)) -> 0 | I45: d) | Q45: D | R45: =CONCATENATE(B45,Q45) -> D
C47: =+CONCATENATE(K47,".- ",G47) -> 8.- CONSTITUCIÓN. | G47: =IF(J48="FIN","",LOOKUP(I47,DATOS!A:A,DATOS!G:G)) -> CONSTITUCIÓN. | H47: =IF(J48="FIN",0,LOOKUP(I47,DATOS!A:A,DATOS!N:N)) -> 0 | I47: =+I41+1 -> 183 | J47: =IF(LOOKUP(I47,DATOS!A:A,DATOS!C:C)=0,J41,(LOOKUP(I47,DATOS!A:A,DATOS!C:C))) -> 3 | K47: =+K41+1 -> 8 | L47: ACIERTOS | M47: ERROR | N47: Ptos negativos | O47: RESPUESTAS | P47: Control Respuesta | Q47: OPCIONES | R47: =CONCATENATE("X",H47) -> X0 | S47: CONTROL SOLUCION
A48: =IF($E$2="X",0,IF(K49>2,H47,K49)) -> 0 | C48: =+CONCATENATE(I48," ",G48) -> a) 0 | G48: =IF(J48="FIN","",LOOKUP(I47,DATOS!A:A,DATOS!J:J)) -> 0 | I48: a) | J48: =IF(J42="FIN","FIN",IF(J47=J41,"","FIN")) ->  | K48: CONTROL | L48: =IF(M48>0,0,P48) -> 0 | M48: =IF(P49>0,1,0) -> 0 | N48: =IF(M48=1,-1/COUNTA(Q48:Q51),0) -> 0 | O48: =COUNTA(B48:B51) -> 0 | P48: =COUNTIF(R48:R51,R47) -> 0 | Q48: A | R48: =CONCATENATE(B48,Q48) -> A | S48: =IF(P48>0,P48+O48,O48*3) -> 0
C49: =+CONCATENATE(I49," ",G49) -> b) 0 | G49: =IF(J48="FIN","",LOOKUP(I47,DATOS!A:A,DATOS!K:K)) -> 0 | I49: b) | K49: =S48 -> 0 | P49: =O48-P48 -> 0 | Q49: B | R49: =CONCATENATE(B49,Q49) -> B
C50: =+CONCATENATE(I50," ",G50) -> c) 0 | G50: =IF(J48="FIN","",LOOKUP(I47,DATOS!A:A,DATOS!L:L)) -> 0 | I50: c) | Q50: C | R50: =CONCATENATE(B50,Q50) -> C
C51: =+CONCATENATE(I51," ",G51) -> d) 0 | G51: =IF(J48="FIN","",LOOKUP(I47,DATOS!A:A,DATOS!M:M)) -> 0 | I51: d) | Q51: D | R51: =CONCATENATE(B51,Q51) -> D
C53: =+CONCATENATE(K53,".- ",G53) -> 9.- CONSTITUCIÓN. | G53: =IF(J54="FIN","",LOOKUP(I53,DATOS!A:A,DATOS!G:G)) -> CONSTITUCIÓN. | H53: =IF(J54="FIN",0,LOOKUP(I53,DATOS!A:A,DATOS!N:N)) -> 0 | I53: =+I47+1 -> 184 | J53: =IF(LOOKUP(I53,DATOS!A:A,DATOS!C:C)=0,J47,(LOOKUP(I53,DATOS!A:A,DATOS!C:C))) -> 3 | K53: =+K47+1 -> 9 | L53: ACIERTOS | M53: ERROR | N53: Ptos negativos | O53: RESPUESTAS | P53: Control Respuesta | Q53: OPCIONES | R53: =CONCATENATE("X",H53) -> X0 | S53: CONTROL SOLUCION
A54: =IF($E$2="X",0,IF(K55>2,H53,K55)) -> 0 | C54: =+CONCATENATE(I54," ",G54) -> a) 0 | G54: =IF(J54="FIN","",LOOKUP(I53,DATOS!A:A,DATOS!J:J)) -> 0 | I54: a) | J54: =IF(J48="FIN","FIN",IF(J53=J47,"","FIN")) ->  | K54: CONTROL | L54: =IF(M54>0,0,P54) -> 0 | M54: =IF(P55>0,1,0) -> 0 | N54: =IF(M54=1,-1/COUNTA(Q54:Q57),0) -> 0 | O54: =COUNTA(B54:B57) -> 0 | P54: =COUNTIF(R54:R57,R53) -> 0 | Q54: A | R54: =CONCATENATE(B54,Q54) -> A | S54: =IF(P54>0,P54+O54,O54*3) -> 0
C55: =+CONCATENATE(I55," ",G55) -> b) 0 | G55: =IF(J54="FIN","",LOOKUP(I53,DATOS!A:A,DATOS!K:K)) -> 0 | I55: b) | K55: =S54 -> 0 | P55: =O54-P54 -> 0 | Q55: B | R55: =CONCATENATE(B55,Q55) -> B
C56: =+CONCATENATE(I56," ",G56) -> c) 0 | G56: =IF(J54="FIN","",LOOKUP(I53,DATOS!A:A,DATOS!L:L)) -> 0 | I56: c) | Q56: C | R56: =CONCATENATE(B56,Q56) -> C
C57: =+CONCATENATE(I57," ",G57) -> d) 0 | G57: =IF(J54="FIN","",LOOKUP(I53,DATOS!A:A,DATOS!M:M)) -> 0 | I57: d) | Q57: D | R57: =CONCATENATE(B57,Q57) -> D
C59: =+CONCATENATE(K59,".- ",G59) -> 10.- CONSTITUCIÓN. | G59: =IF(J60="FIN","",LOOKUP(I59,DATOS!A:A,DATOS!G:G)) -> CONSTITUCIÓN. | H59: =IF(J60="FIN",0,LOOKUP(I59,DATOS!A:A,DATOS!N:N)) -> 0 | I59: =+I53+1 -> 185 | J59: =IF(LOOKUP(I59,DATOS!A:A,DATOS!C:C)=0,J53,(LOOKUP(I59,DATOS!A:A,DATOS!C:C))) -> 3 | K59: =+K53+1 -> 10 | L59: ACIERTOS | M59: ERROR | N59: Ptos negativos | O59: RESPUESTAS | P59: Control Respuesta | Q59: OPCIONES | R59: =CONCATENATE("X",H59) -> X0 | S59: CONTROL SOLUCION
A60: =IF($E$2="X",0,IF(K61>2,H59,K61)) -> 0 | C60: =+CONCATENATE(I60," ",G60) -> a) 0 | G60: =IF(J60="FIN","",LOOKUP(I59,DATOS!A:A,DATOS!J:J)) -> 0 | I60: a) | J60: =IF(J54="FIN","FIN",IF(J59=J53,"","FIN")) ->  | K60: CONTROL | L60: =IF(M60>0,0,P60) -> 0 | M60: =IF(P61>0,1,0) -> 0 | N60: =IF(M60=1,-1/COUNTA(Q60:Q63),0) -> 0 | O60: =COUNTA(B60:B63) -> 0 | P60: =COUNTIF(R60:R63,R59) -> 0 | Q60: A | R60: =CONCATENATE(B60,Q60) -> A | S60: =IF(P60>0,P60+O60,O60*3) -> 0
C61: =+CONCATENATE(I61," ",G61) -> b) 0 | G61: =IF(J60="FIN","",LOOKUP(I59,DATOS!A:A,DATOS!K:K)) -> 0 | I61: b) | K61: =S60 -> 0 | P61: =O60-P60 -> 0 | Q61: B | R61: =CONCATENATE(B61,Q61) -> B
C62: =+CONCATENATE(I62," ",G62) -> c) 0 | G62: =IF(J60="FIN","",LOOKUP(I59,DATOS!A:A,DATOS!L:L)) -> 0 | I62: c) | Q62: C | R62: =CONCATENATE(B62,Q62) -> C
C63: =+CONCATENATE(I63," ",G63) -> d) 0 | G63: =IF(J60="FIN","",LOOKUP(I59,DATOS!A:A,DATOS!M:M)) -> 0 | I63: d) | Q63: D | R63: =CONCATENATE(B63,Q63) -> D
C65: =+CONCATENATE(K65,".- ",G65) -> 11.- CONSTITUCIÓN. | G65: =IF(J66="FIN","",LOOKUP(I65,DATOS!A:A,DATOS!G:G)) -> CONSTITUCIÓN. | H65: =IF(J66="FIN",0,LOOKUP(I65,DATOS!A:A,DATOS!N:N)) -> 0 | I65: =+I59+1 -> 186 | J65: =IF(LOOKUP(I65,DATOS!A:A,DATOS!C:C)=0,J59,(LOOKUP(I65,DATOS!A:A,DATOS!C:C))) -> 3 | K65: =+K59+1 -> 11 | L65: ACIERTOS | M65: ERROR | N65: Ptos negativos | O65: RESPUESTAS | P65: Control Respuesta | Q65: OPCIONES | R65: =CONCATENATE("X",H65) -> X0 | S65: CONTROL SOLUCION
A66: =IF($E$2="X",0,IF(K67>2,H65,K67)) -> 0 | C66: =+CONCATENATE(I66," ",G66) -> a) 0 | G66: =IF(J66="FIN","",LOOKUP(I65,DATOS!A:A,DATOS!J:J)) -> 0 | I66: a) | J66: =IF(J60="FIN","FIN",IF(J65=J59,"","FIN")) ->  | K66: CONTROL | L66: =IF(M66>0,0,P66) -> 0 | M66: =IF(P67>0,1,0) -> 0 | N66: =IF(M66=1,-1/COUNTA(Q66:Q69),0) -> 0 | O66: =COUNTA(B66:B69) -> 0 | P66: =COUNTIF(R66:R69,R65) -> 0 | Q66: A | R66: =CONCATENATE(B66,Q66) -> A | S66: =IF(P66>0,P66+O66,O66*3) -> 0
C67: =+CONCATENATE(I67," ",G67) -> b) 0 | G67: =IF(J66="FIN","",LOOKUP(I65,DATOS!A:A,DATOS!K:K)) -> 0 | I67: b) | K67: =S66 -> 0 | P67: =O66-P66 -> 0 | Q67: B | R67: =CONCATENATE(B67,Q67) -> B
C68: =+CONCATENATE(I68," ",G68) -> c) 0 | G68: =IF(J66="FIN","",LOOKUP(I65,DATOS!A:A,DATOS!L:L)) -> 0 | I68: c) | Q68: C | R68: =CONCATENATE(B68,Q68) -> C
C69: =+CONCATENATE(I69," ",G69) -> d) 0 | G69: =IF(J66="FIN","",LOOKUP(I65,DATOS!A:A,DATOS!M:M)) -> 0 | I69: d) | Q69: D | R69: =CONCATENATE(B69,Q69) -> D
C71: =+CONCATENATE(K71,".- ",G71) -> 12.- CONSTITUCIÓN. | G71: =IF(J72="FIN","",LOOKUP(I71,DATOS!A:A,DATOS!G:G)) -> CONSTITUCIÓN. | H71: =IF(J72="FIN",0,LOOKUP(I71,DATOS!A:A,DATOS!N:N)) -> 0 | I71: =+I65+1 -> 187 | J71: =IF(LOOKUP(I71,DATOS!A:A,DATOS!C:C)=0,J65,(LOOKUP(I71,DATOS!A:A,DATOS!C:C))) -> 3 | K71: =+K65+1 -> 12 | L71: ACIERTOS | M71: ERROR | N71: Ptos negativos | O71: RESPUESTAS | P71: Control Respuesta | Q71: OPCIONES | R71: =CONCATENATE("X",H71) -> X0 | S71: CONTROL SOLUCION
A72: =IF($E$2="X",0,IF(K73>2,H71,K73)) -> 0 | C72: =+CONCATENATE(I72," ",G72) -> a) 0 | G72: =IF(J72="FIN","",LOOKUP(I71,DATOS!A:A,DATOS!J:J)) -> 0 | I72: a) | J72: =IF(J66="FIN","FIN",IF(J71=J65,"","FIN")) ->  | K72: CONTROL | L72: =IF(M72>0,0,P72) -> 0 | M72: =IF(P73>0,1,0) -> 0 | N72: =IF(M72=1,-1/COUNTA(Q72:Q75),0) -> 0 | O72: =COUNTA(B72:B75) -> 0 | P72: =COUNTIF(R72:R75,R71) -> 0 | Q72: A | R72: =CONCATENATE(B72,Q72) -> A | S72: =IF(P72>0,P72+O72,O72*3) -> 0
C73: =+CONCATENATE(I73," ",G73) -> b) 0 | G73: =IF(J72="FIN","",LOOKUP(I71,DATOS!A:A,DATOS!K:K)) -> 0 | I73: b) | K73: =S72 -> 0 | P73: =O72-P72 -> 0 | Q73: B | R73: =CONCATENATE(B73,Q73) -> B
C74: =+CONCATENATE(I74," ",G74) -> c) 0 | G74: =IF(J72="FIN","",LOOKUP(I71,DATOS!A:A,DATOS!L:L)) -> 0 | I74: c) | Q74: C | R74: =CONCATENATE(B74,Q74) -> C
C75: =+CONCATENATE(I75," ",G75) -> d) 0 | G75: =IF(J72="FIN","",LOOKUP(I71,DATOS!A:A,DATOS!M:M)) -> 0 | I75: d) | Q75: D | R75: =CONCATENATE(B75,Q75) -> D
C77: =+CONCATENATE(K77,".- ",G77) -> 13.- CONSTITUCIÓN. | G77: =IF(J78="FIN","",LOOKUP(I77,DATOS!A:A,DATOS!G:G)) -> CONSTITUCIÓN. | H77: =IF(J78="FIN",0,LOOKUP(I77,DATOS!A:A,DATOS!N:N)) -> 0 | I77: =+I71+1 -> 188 | J77: =IF(LOOKUP(I77,DATOS!A:A,DATOS!C:C)=0,J71,(LOOKUP(I77,DATOS!A:A,DATOS!C:C))) -> 3 | K77: =+K71+1 -> 13 | L77: ACIERTOS | M77: ERROR | N77: Ptos negativos | O77: RESPUESTAS | P77: Control Respuesta | Q77: OPCIONES | R77: =CONCATENATE("X",H77) -> X0 | S77: CONTROL SOLUCION
A78: =IF($E$2="X",0,IF(K79>2,H77,K79)) -> 0 | C78: =+CONCATENATE(I78," ",G78) -> a) 0 | G78: =IF(J78="FIN","",LOOKUP(I77,DATOS!A:A,DATOS!J:J)) -> 0 | I78: a) | J78: =IF(J72="FIN","FIN",IF(J77=J71,"","FIN")) ->  | K78: CONTROL | L78: =IF(M78>0,0,P78) -> 0 | M78: =IF(P79>0,1,0) -> 0 | N78: =IF(M78=1,-1/COUNTA(Q78:Q81),0) -> 0 | O78: =COUNTA(B78:B81) -> 0 | P78: =COUNTIF(R78:R81,R77) -> 0 | Q78: A | R78: =CONCATENATE(B78,Q78) -> A | S78: =IF(P78>0,P78+O78,O78*3) -> 0
C79: =+CONCATENATE(I79," ",G79) -> b) 0 | G79: =IF(J78="FIN","",LOOKUP(I77,DATOS!A:A,DATOS!K:K)) -> 0 | I79: b) | K79: =S78 -> 0 | P79: =O78-P78 -> 0 | Q79: B | R79: =CONCATENATE(B79,Q79) -> B
C80: =+CONCATENATE(I80," ",G80) -> c) 0 | G80: =IF(J78="FIN","",LOOKUP(I77,DATOS!A:A,DATOS!L:L)) -> 0 | I80: c) | Q80: C | R80: =CONCATENATE(B80,Q80) -> C
C81: =+CONCATENATE(I81," ",G81) -> d) 0 | G81: =IF(J78="FIN","",LOOKUP(I77,DATOS!A:A,DATOS!M:M)) -> 0 | I81: d) | Q81: D | R81: =CONCATENATE(B81,Q81) -> D
C83: =+CONCATENATE(K83,".- ",G83) -> 14.- CONSTITUCIÓN. | G83: =IF(J84="FIN","",LOOKUP(I83,DATOS!A:A,DATOS!G:G)) -> CONSTITUCIÓN. | H83: =IF(J84="FIN",0,LOOKUP(I83,DATOS!A:A,DATOS!N:N)) -> 0 | I83: =+I77+1 -> 189 | J83: =IF(LOOKUP(I83,DATOS!A:A,DATOS!C:C)=0,J77,(LOOKUP(I83,DATOS!A:A,DATOS!C:C))) -> 3 | K83: =+K77+1 -> 14 | L83: ACIERTOS | M83: ERROR | N83: Ptos negativos | O83: RESPUESTAS | P83: Control Respuesta | Q83: OPCIONES | R83: =CONCATENATE("X",H83) -> X0 | S83: CONTROL SOLUCION
A84: =IF($E$2="X",0,IF(K85>2,H83,K85)) -> 0 | C84: =+CONCATENATE(I84," ",G84) -> a) 0 | G84: =IF(J84="FIN","",LOOKUP(I83,DATOS!A:A,DATOS!J:J)) -> 0 | I84: a) | J84: =IF(J78="FIN","FIN",IF(J83=J77,"","FIN")) ->  | K84: CONTROL | L84: =IF(M84>0,0,P84) -> 0 | M84: =IF(P85>0,1,0) -> 0 | N84: =IF(M84=1,-1/COUNTA(Q84:Q87),0) -> 0 | O84: =COUNTA(B84:B87) -> 0 | P84: =COUNTIF(R84:R87,R83) -> 0 | Q84: A | R84: =CONCATENATE(B84,Q84) -> A | S84: =IF(P84>0,P84+O84,O84*3) -> 0
C85: =+CONCATENATE(I85," ",G85) -> b) 0 | G85: =IF(J84="FIN","",LOOKUP(I83,DATOS!A:A,DATOS!K:K)) -> 0 | I85: b) | K85: =S84 -> 0 | P85: =O84-P84 -> 0 | Q85: B | R85: =CONCATENATE(B85,Q85) -> B
C86: =+CONCATENATE(I86," ",G86) -> c) 0 | G86: =IF(J84="FIN","",LOOKUP(I83,DATOS!A:A,DATOS!L:L)) -> 0 | I86: c) | Q86: C | R86: =CONCATENATE(B86,Q86) -> C
C87: =+CONCATENATE(I87," ",G87) -> d) 0 | G87: =IF(J84="FIN","",LOOKUP(I83,DATOS!A:A,DATOS!M:M)) -> 0 | I87: d) | Q87: D | R87: =CONCATENATE(B87,Q87) -> D
C89: =+CONCATENATE(K89,".- ",G89) -> 15.- CONSTITUCIÓN. | G89: =IF(J90="FIN","",LOOKUP(I89,DATOS!A:A,DATOS!G:G)) -> CONSTITUCIÓN. | H89: =IF(J90="FIN",0,LOOKUP(I89,DATOS!A:A,DATOS!N:N)) -> 0 | I89: =+I83+1 -> 190 | J89: =IF(LOOKUP(I89,DATOS!A:A,DATOS!C:C)=0,J83,(LOOKUP(I89,DATOS!A:A,DATOS!C:C))) -> 3 | K89: =+K83+1 -> 15 | L89: ACIERTOS | M89: ERROR | N89: Ptos negativos | O89: RESPUESTAS | P89: Control Respuesta | Q89: OPCIONES | R89: =CONCATENATE("X",H89) -> X0 | S89: CONTROL SOLUCION
A90: =IF($E$2="X",0,IF(K91>2,H89,K91)) -> 0 | C90: =+CONCATENATE(I90," ",G90) -> a) 0 | G90: =IF(J90="FIN","",LOOKUP(I89,DATOS!A:A,DATOS!J:J)) -> 0 | I90: a) | J90: =IF(J84="FIN","FIN",IF(J89=J83,"","FIN")) ->  | K90: CONTROL | L90: =IF(M90>0,0,P90) -> 0 | M90: =IF(P91>0,1,0) -> 0 | N90: =IF(M90=1,-1/COUNTA(Q90:Q93),0) -> 0 | O90: =COUNTA(B90:B93) -> 0 | P90: =COUNTIF(R90:R93,R89) -> 0 | Q90: A | R90: =CONCATENATE(B90,Q90) -> A | S90: =IF(P90>0,P90+O90,O90*3) -> 0
C91: =+CONCATENATE(I91," ",G91) -> b) 0 | G91: =IF(J90="FIN","",LOOKUP(I89,DATOS!A:A,DATOS!K:K)) -> 0 | I91: b) | K91: =S90 -> 0 | P91: =O90-P90 -> 0 | Q91: B | R91: =CONCATENATE(B91,Q91) -> B
C92: =+CONCATENATE(I92," ",G92) -> c) 0 | G92: =IF(J90="FIN","",LOOKUP(I89,DATOS!A:A,DATOS!L:L)) -> 0 | I92: c) | Q92: C | R92: =CONCATENATE(B92,Q92) -> C
C93: =+CONCATENATE(I93," ",G93) -> d) 0 | G93: =IF(J90="FIN","",LOOKUP(I89,DATOS!A:A,DATOS!M:M)) -> 0 | I93: d) | Q93: D | R93: =CONCATENATE(B93,Q93) -> D
C95: =+CONCATENATE(K95,".- ",G95) -> 16.- CONSTITUCIÓN. | G95: =IF(J96="FIN","",LOOKUP(I95,DATOS!A:A,DATOS!G:G)) -> CONSTITUCIÓN. | H95: =IF(J96="FIN",0,LOOKUP(I95,DATOS!A:A,DATOS!N:N)) -> 0 | I95: =+I89+1 -> 191 | J95: =IF(LOOKUP(I95,DATOS!A:A,DATOS!C:C)=0,J89,(LOOKUP(I95,DATOS!A:A,DATOS!C:C))) -> 3 | K95: =+K89+1 -> 16 | L95: ACIERTOS | M95: ERROR | N95: Ptos negativos | O95: RESPUESTAS | P95: Control Respuesta | Q95: OPCIONES | R95: =CONCATENATE("X",H95) -> X0 | S95: CONTROL SOLUCION
A96: =IF($E$2="X",0,IF(K97>2,H95,K97)) -> 0 | C96: =+CONCATENATE(I96," ",G96) -> a) 0 | G96: =IF(J96="FIN","",LOOKUP(I95,DATOS!A:A,DATOS!J:J)) -> 0 | I96: a) | J96: =IF(J90="FIN","FIN",IF(J95=J89,"","FIN")) ->  | K96: CONTROL | L96: =IF(M96>0,0,P96) -> 0 | M96: =IF(P97>0,1,0) -> 0 | N96: =IF(M96=1,-1/COUNTA(Q96:Q99),0) -> 0 | O96: =COUNTA(B96:B99) -> 0 | P96: =COUNTIF(R96:R99,R95) -> 0 | Q96: A | R96: =CONCATENATE(B96,Q96) -> A | S96: =IF(P96>0,P96+O96,O96*3) -> 0
C97: =+CONCATENATE(I97," ",G97) -> b) 0 | G97: =IF(J96="FIN","",LOOKUP(I95,DATOS!A:A,DATOS!K:K)) -> 0 | I97: b) | K97: =S96 -> 0 | P97: =O96-P96 -> 0 | Q97: B | R97: =CONCATENATE(B97,Q97) -> B
C98: =+CONCATENATE(I98," ",G98) -> c) 0 | G98: =IF(J96="FIN","",LOOKUP(I95,DATOS!A:A,DATOS!L:L)) -> 0 | I98: c) | Q98: C | R98: =CONCATENATE(B98,Q98) -> C
C99: =+CONCATENATE(I99," ",G99) -> d) 0 | G99: =IF(J96="FIN","",LOOKUP(I95,DATOS!A:A,DATOS!M:M)) -> 0 | I99: d) | Q99: D | R99: =CONCATENATE(B99,Q99) -> D
C101: =+CONCATENATE(K101,".- ",G101) -> 17.- CONSTITUCIÓN. | G101: =IF(J102="FIN","",LOOKUP(I101,DATOS!A:A,DATOS!G:G)) -> CONSTITUCIÓN. | H101: =IF(J102="FIN",0,LOOKUP(I101,DATOS!A:A,DATOS!N:N)) -> 0 | I101: =+I95+1 -> 192 | J101: =IF(LOOKUP(I101,DATOS!A:A,DATOS!C:C)=0,J95,(LOOKUP(I101,DATOS!A:A,DATOS!C:C))) -> 3 | K101: =+K95+1 -> 17 | L101: ACIERTOS | M101: ERROR | N101: Ptos negativos | O101: RESPUESTAS | P101: Control Respuesta | Q101: OPCIONES | R101: =CONCATENATE("X",H101) -> X0 | S101: CONTROL SOLUCION
A102: =IF($E$2="X",0,IF(K103>2,H101,K103)) -> 0 | C102: =+CONCATENATE(I102," ",G102) -> a) 0 | G102: =IF(J102="FIN","",LOOKUP(I101,DATOS!A:A,DATOS!J:J)) -> 0 | I102: a) | J102: =IF(J96="FIN","FIN",IF(J101=J95,"","FIN")) ->  | K102: CONTROL | L102: =IF(M102>0,0,P102) -> 0 | M102: =IF(P103>0,1,0) -> 0 | N102: =IF(M102=1,-1/COUNTA(Q102:Q105),0) -> 0 | O102: =COUNTA(B102:B105) -> 0 | P102: =COUNTIF(R102:R105,R101) -> 0 | Q102: A | R102: =CONCATENATE(B102,Q102) -> A | S102: =IF(P102>0,P102+O102,O102*3) -> 0
C103: =+CONCATENATE(I103," ",G103) -> b) 0 | G103: =IF(J102="FIN","",LOOKUP(I101,DATOS!A:A,DATOS!K:K)) -> 0 | I103: b) | K103: =S102 -> 0 | P103: =O102-P102 -> 0 | Q103: B | R103: =CONCATENATE(B103,Q103) -> B
C104: =+CONCATENATE(I104," ",G104) -> c) 0 | G104: =IF(J102="FIN","",LOOKUP(I101,DATOS!A:A,DATOS!L:L)) -> 0 | I104: c) | Q104: C | R104: =CONCATENATE(B104,Q104) -> C
C105: =+CONCATENATE(I105," ",G105) -> d) 0 | G105: =IF(J102="FIN","",LOOKUP(I101,DATOS!A:A,DATOS!M:M)) -> 0 | I105: d) | Q105: D | R105: =CONCATENATE(B105,Q105) -> D
C107: =+CONCATENATE(K107,".- ",G107) -> 18.- CONSTITUCIÓN. | G107: =IF(J108="FIN","",LOOKUP(I107,DATOS!A:A,DATOS!G:G)) -> CONSTITUCIÓN. | H107: =IF(J108="FIN",0,LOOKUP(I107,DATOS!A:A,DATOS!N:N)) -> 0 | I107: =+I101+1 -> 193 | J107: =IF(LOOKUP(I107,DATOS!A:A,DATOS!C:C)=0,J101,(LOOKUP(I107,DATOS!A:A,DATOS!C:C))) -> 3 | K107: =+K101+1 -> 18 | L107: ACIERTOS | M107: ERROR | N107: Ptos negativos | O107: RESPUESTAS | P107: Control Respuesta | Q107: OPCIONES | R107: =CONCATENATE("X",H107) -> X0 | S107: CONTROL SOLUCION
A108: =IF($E$2="X",0,IF(K109>2,H107,K109)) -> 0 | C108: =+CONCATENATE(I108," ",G108) -> a) 0 | G108: =IF(J108="FIN","",LOOKUP(I107,DATOS!A:A,DATOS!J:J)) -> 0 | I108: a) | J108: =IF(J102="FIN","FIN",IF(J107=J101,"","FIN")) ->  | K108: CONTROL | L108: =IF(M108>0,0,P108) -> 0 | M108: =IF(P109>0,1,0) -> 0 | N108: =IF(M108=1,-1/COUNTA(Q108:Q111),0) -> 0 | O108: =COUNTA(B108:B111) -> 0 | P108: =COUNTIF(R108:R111,R107) -> 0 | Q108: A | R108: =CONCATENATE(B108,Q108) -> A | S108: =IF(P108>0,P108+O108,O108*3) -> 0
C109: =+CONCATENATE(I109," ",G109) -> b) 0 | G109: =IF(J108="FIN","",LOOKUP(I107,DATOS!A:A,DATOS!K:K)) -> 0 | I109: b) | K109: =S108 -> 0 | P109: =O108-P108 -> 0 | Q109: B | R109: =CONCATENATE(B109,Q109) -> B
C110: =+CONCATENATE(I110," ",G110) -> c) 0 | G110: =IF(J108="FIN","",LOOKUP(I107,DATOS!A:A,DATOS!L:L)) -> 0 | I110: c) | Q110: C | R110: =CONCATENATE(B110,Q110) -> C
C111: =+CONCATENATE(I111," ",G111) -> d) 0 | G111: =IF(J108="FIN","",LOOKUP(I107,DATOS!A:A,DATOS!M:M)) -> 0 | I111: d) | Q111: D | R111: =CONCATENATE(B111,Q111) -> D
C113: =+CONCATENATE(K113,".- ",G113) -> 19.- CONSTITUCIÓN. | G113: =IF(J114="FIN","",LOOKUP(I113,DATOS!A:A,DATOS!G:G)) -> CONSTITUCIÓN. | H113: =IF(J114="FIN",0,LOOKUP(I113,DATOS!A:A,DATOS!N:N)) -> 0 | I113: =+I107+1 -> 194 | J113: =IF(LOOKUP(I113,DATOS!A:A,DATOS!C:C)=0,J107,(LOOKUP(I113,DATOS!A:A,DATOS!C:C))) -> 3 | K113: =+K107+1 -> 19 | L113: ACIERTOS | M113: ERROR | N113: Ptos negativos | O113: RESPUESTAS | P113: Control Respuesta | Q113: OPCIONES | R113: =CONCATENATE("X",H113) -> X0 | S113: CONTROL SOLUCION
A114: =IF($E$2="X",0,IF(K115>2,H113,K115)) -> 0 | C114: =+CONCATENATE(I114," ",G114) -> a) 0 | G114: =IF(J114="FIN","",LOOKUP(I113,DATOS!A:A,DATOS!J:J)) -> 0 | I114: a) | J114: =IF(J108="FIN","FIN",IF(J113=J107,"","FIN")) ->  | K114: CONTROL | L114: =IF(M114>0,0,P114) -> 0 | M114: =IF(P115>0,1,0) -> 0 | N114: =IF(M114=1,-1/COUNTA(Q114:Q117),0) -> 0 | O114: =COUNTA(B114:B117) -> 0 | P114: =COUNTIF(R114:R117,R113) -> 0 | Q114: A | R114: =CONCATENATE(B114,Q114) -> A | S114: =IF(P114>0,P114+O114,O114*3) -> 0
C115: =+CONCATENATE(I115," ",G115) -> b) 0 | G115: =IF(J114="FIN","",LOOKUP(I113,DATOS!A:A,DATOS!K:K)) -> 0 | I115: b) | K115: =S114 -> 0 | P115: =O114-P114 -> 0 | Q115: B | R115: =CONCATENATE(B115,Q115) -> B
C116: =+CONCATENATE(I116," ",G116) -> c) 0 | G116: =IF(J114="FIN","",LOOKUP(I113,DATOS!A:A,DATOS!L:L)) -> 0 | I116: c) | Q116: C | R116: =CONCATENATE(B116,Q116) -> C
C117: =+CONCATENATE(I117," ",G117) -> d) 0 | G117: =IF(J114="FIN","",LOOKUP(I113,DATOS!A:A,DATOS!M:M)) -> 0 | I117: d) | Q117: D | R117: =CONCATENATE(B117,Q117) -> D
C119: =+CONCATENATE(K119,".- ",G119) -> 20.- CONSTITUCIÓN. | G119: =IF(J120="FIN","",LOOKUP(I119,DATOS!A:A,DATOS!G:G)) -> CONSTITUCIÓN. | H119: =IF(J120="FIN",0,LOOKUP(I119,DATOS!A:A,DATOS!N:N)) -> 0 | I119: =+I113+1 -> 195 | J119: =IF(LOOKUP(I119,DATOS!A:A,DATOS!C:C)=0,J113,(LOOKUP(I119,DATOS!A:A,DATOS!C:C))) -> 3 | K119: =+K113+1 -> 20 | L119: ACIERTOS | M119: ERROR | N119: Ptos negativos | O119: RESPUESTAS | P119: Control Respuesta | Q119: OPCIONES | R119: =CONCATENATE("X",H119) -> X0 | S119: CONTROL SOLUCION
A120: =IF($E$2="X",0,IF(K121>2,H119,K121)) -> 0 | C120: =+CONCATENATE(I120," ",G120) -> a) 0 | G120: =IF(J120="FIN","",LOOKUP(I119,DATOS!A:A,DATOS!J:J)) -> 0 | I120: a) | J120: =IF(J114="FIN","FIN",IF(J119=J113,"","FIN")) ->  | K120: CONTROL | L120: =IF(M120>0,0,P120) -> 0 | M120: =IF(P121>0,1,0) -> 0 | N120: =IF(M120=1,-1/COUNTA(Q120:Q123),0) -> 0 | O120: =COUNTA(B120:B123) -> 0 | P120: =COUNTIF(R120:R123,R119) -> 0 | Q120: A | R120: =CONCATENATE(B120,Q120) -> A | S120: =IF(P120>0,P120+O120,O120*3) -> 0
C121: =+CONCATENATE(I121," ",G121) -> b) 0 | G121: =IF(J120="FIN","",LOOKUP(I119,DATOS!A:A,DATOS!K:K)) -> 0 | I121: b) | K121: =S120 -> 0 | P121: =O120-P120 -> 0 | Q121: B | R121: =CONCATENATE(B121,Q121) -> B
C122: =+CONCATENATE(I122," ",G122) -> c) 0 | G122: =IF(J120="FIN","",LOOKUP(I119,DATOS!A:A,DATOS!L:L)) -> 0 | I122: c) | Q122: C | R122: =CONCATENATE(B122,Q122) -> C
C123: =+CONCATENATE(I123," ",G123) -> d) 0 | G123: =IF(J120="FIN","",LOOKUP(I119,DATOS!A:A,DATOS!M:M)) -> 0 | I123: d) | Q123: D | R123: =CONCATENATE(B123,Q123) -> D
C125: =+CONCATENATE(K125,".- ",G125) -> 21.- CONSTITUCIÓN. | G125: =IF(J126="FIN","",LOOKUP(I125,DATOS!A:A,DATOS!G:G)) -> CONSTITUCIÓN. | H125: =IF(J126="FIN",0,LOOKUP(I125,DATOS!A:A,DATOS!N:N)) -> 0 | I125: =+I119+1 -> 196 | J125: =IF(LOOKUP(I125,DATOS!A:A,DATOS!C:C)=0,J119,(LOOKUP(I125,DATOS!A:A,DATOS!C:C))) -> 3 | K125: =+K119+1 -> 21 | L125: ACIERTOS | M125: ERROR | N125: Ptos negativos | O125: RESPUESTAS | P125: Control Respuesta | Q125: OPCIONES | R125: =CONCATENATE("X",H125) -> X0 | S125: CONTROL SOLUCION
A126: =IF($E$2="X",0,IF(K127>2,H125,K127)) -> 0 | C126: =+CONCATENATE(I126," ",G126) -> a) 0 | G126: =IF(J126="FIN","",LOOKUP(I125,DATOS!A:A,DATOS!J:J)) -> 0 | I126: a) | J126: =IF(J120="FIN","FIN",IF(J125=J119,"","FIN")) ->  | K126: CONTROL | L126: =IF(M126>0,0,P126) -> 0 | M126: =IF(P127>0,1,0) -> 0 | N126: =IF(M126=1,-1/COUNTA(Q126:Q129),0) -> 0 | O126: =COUNTA(B126:B129) -> 0 | P126: =COUNTIF(R126:R129,R125) -> 0 | Q126: A | R126: =CONCATENATE(B126,Q126) -> A | S126: =IF(P126>0,P126+O126,O126*3) -> 0
C127: =+CONCATENATE(I127," ",G127) -> b) 0 | G127: =IF(J126="FIN","",LOOKUP(I125,DATOS!A:A,DATOS!K:K)) -> 0 | I127: b) | K127: =S126 -> 0 | P127: =O126-P126 -> 0 | Q127: B | R127: =CONCATENATE(B127,Q127) -> B
C128: =+CONCATENATE(I128," ",G128) -> c) 0 | G128: =IF(J126="FIN","",LOOKUP(I125,DATOS!A:A,DATOS!L:L)) -> 0 | I128: c) | Q128: C | R128: =CONCATENATE(B128,Q128) -> C
C129: =+CONCATENATE(I129," ",G129) -> d) 0 | G129: =IF(J126="FIN","",LOOKUP(I125,DATOS!A:A,DATOS!M:M)) -> 0 | I129: d) | Q129: D | R129: =CONCATENATE(B129,Q129) -> D
C131: =+CONCATENATE(K131,".- ",G131) -> 22.- CONSTITUCIÓN. | G131: =IF(J132="FIN","",LOOKUP(I131,DATOS!A:A,DATOS!G:G)) -> CONSTITUCIÓN. | H131: =IF(J132="FIN",0,LOOKUP(I131,DATOS!A:A,DATOS!N:N)) -> 0 | I131: =+I125+1 -> 197 | J131: =IF(LOOKUP(I131,DATOS!A:A,DATOS!C:C)=0,J125,(LOOKUP(I131,DATOS!A:A,DATOS!C:C))) -> 3 | K131: =+K125+1 -> 22 | L131: ACIERTOS | M131: ERROR | N131: Ptos negativos | O131: RESPUESTAS | P131: Control Respuesta | Q131: OPCIONES | R131: =CONCATENATE("X",H131) -> X0 | S131: CONTROL SOLUCION
A132: =IF($E$2="X",0,IF(K133>2,H131,K133)) -> 0 | C132: =+CONCATENATE(I132," ",G132) -> a) 0 | G132: =IF(J132="FIN","",LOOKUP(I131,DATOS!A:A,DATOS!J:J)) -> 0 | I132: a) | J132: =IF(J126="FIN","FIN",IF(J131=J125,"","FIN")) ->  | K132: CONTROL | L132: =IF(M132>0,0,P132) -> 0 | M132: =IF(P133>0,1,0) -> 0 | N132: =IF(M132=1,-1/COUNTA(Q132:Q135),0) -> 0 | O132: =COUNTA(B132:B135) -> 0 | P132: =COUNTIF(R132:R135,R131) -> 0 | Q132: A | R132: =CONCATENATE(B132,Q132) -> A | S132: =IF(P132>0,P132+O132,O132*3) -> 0
C133: =+CONCATENATE(I133," ",G133) -> b) 0 | G133: =IF(J132="FIN","",LOOKUP(I131,DATOS!A:A,DATOS!K:K)) -> 0 | I133: b) | K133: =S132 -> 0 | P133: =O132-P132 -> 0 | Q133: B | R133: =CONCATENATE(B133,Q133) -> B
C134: =+CONCATENATE(I134," ",G134) -> c) 0 | G134: =IF(J132="FIN","",LOOKUP(I131,DATOS!A:A,DATOS!L:L)) -> 0 | I134: c) | Q134: C | R134: =CONCATENATE(B134,Q134) -> C
C135: =+CONCATENATE(I135," ",G135) -> d) 0 | G135: =IF(J132="FIN","",LOOKUP(I131,DATOS!A:A,DATOS!M:M)) -> 0 | I135: d) | Q135: D | R135: =CONCATENATE(B135,Q135) -> D
C137: =+CONCATENATE(K137,".- ",G137) -> 23.- CONSTITUCIÓN. | G137: =IF(J138="FIN","",LOOKUP(I137,DATOS!A:A,DATOS!G:G)) -> CONSTITUCIÓN. | H137: =IF(J138="FIN",0,LOOKUP(I137,DATOS!A:A,DATOS!N:N)) -> 0 | I137: =+I131+1 -> 198 | J137: =IF(LOOKUP(I137,DATOS!A:A,DATOS!C:C)=0,J131,(LOOKUP(I137,DATOS!A:A,DATOS!C:C))) -> 3 | K137: =+K131+1 -> 23 | L137: ACIERTOS | M137: ERROR | N137: Ptos negativos | O137: RESPUESTAS | P137: Control Respuesta | Q137: OPCIONES | R137: =CONCATENATE("X",H137) -> X0 | S137: CONTROL SOLUCION
A138: =IF($E$2="X",0,IF(K139>2,H137,K139)) -> 0 | C138: =+CONCATENATE(I138," ",G138) -> a) 0 | G138: =IF(J138="FIN","",LOOKUP(I137,DATOS!A:A,DATOS!J:J)) -> 0 | I138: a) | J138: =IF(J132="FIN","FIN",IF(J137=J131,"","FIN")) ->  | K138: CONTROL | L138: =IF(M138>0,0,P138) -> 0 | M138: =IF(P139>0,1,0) -> 0 | N138: =IF(M138=1,-1/COUNTA(Q138:Q141),0) -> 0 | O138: =COUNTA(B138:B141) -> 0 | P138: =COUNTIF(R138:R141,R137) -> 0 | Q138: A | R138: =CONCATENATE(B138,Q138) -> A | S138: =IF(P138>0,P138+O138,O138*3) -> 0
C139: =+CONCATENATE(I139," ",G139) -> b) 0 | G139: =IF(J138="FIN","",LOOKUP(I137,DATOS!A:A,DATOS!K:K)) -> 0 | I139: b) | K139: =S138 -> 0 | P139: =O138-P138 -> 0 | Q139: B | R139: =CONCATENATE(B139,Q139) -> B
C140: =+CONCATENATE(I140," ",G140) -> c) 0 | G140: =IF(J138="FIN","",LOOKUP(I137,DATOS!A:A,DATOS!L:L)) -> 0 | I140: c) | Q140: C | R140: =CONCATENATE(B140,Q140) -> C
C141: =+CONCATENATE(I141," ",G141) -> d) 0 | G141: =IF(J138="FIN","",LOOKUP(I137,DATOS!A:A,DATOS!M:M)) -> 0 | I141: d) | Q141: D | R141: =CONCATENATE(B141,Q141) -> D
C143: =+CONCATENATE(K143,".- ",G143) -> 24.- CONSTITUCIÓN. | G143: =IF(J144="FIN","",LOOKUP(I143,DATOS!A:A,DATOS!G:G)) -> CONSTITUCIÓN. | H143: =IF(J144="FIN",0,LOOKUP(I143,DATOS!A:A,DATOS!N:N)) -> 0 | I143: =+I137+1 -> 199 | J143: =IF(LOOKUP(I143,DATOS!A:A,DATOS!C:C)=0,J137,(LOOKUP(I143,DATOS!A:A,DATOS!C:C))) -> 3 | K143: =+K137+1 -> 24 | L143: ACIERTOS | M143: ERROR | N143: Ptos negativos | O143: RESPUESTAS | P143: Control Respuesta | Q143: OPCIONES | R143: =CONCATENATE("X",H143) -> X0 | S143: CONTROL SOLUCION
A144: =IF($E$2="X",0,IF(K145>2,H143,K145)) -> 0 | C144: =+CONCATENATE(I144," ",G144) -> a) 0 | G144: =IF(J144="FIN","",LOOKUP(I143,DATOS!A:A,DATOS!J:J)) -> 0 | I144: a) | J144: =IF(J138="FIN","FIN",IF(J143=J137,"","FIN")) ->  | K144: CONTROL | L144: =IF(M144>0,0,P144) -> 0 | M144: =IF(P145>0,1,0) -> 0 | N144: =IF(M144=1,-1/COUNTA(Q144:Q147),0) -> 0 | O144: =COUNTA(B144:B147) -> 0 | P144: =COUNTIF(R144:R147,R143) -> 0 | Q144: A | R144: =CONCATENATE(B144,Q144) -> A | S144: =IF(P144>0,P144+O144,O144*3) -> 0
C145: =+CONCATENATE(I145," ",G145) -> b) 0 | G145: =IF(J144="FIN","",LOOKUP(I143,DATOS!A:A,DATOS!K:K)) -> 0 | I145: b) | K145: =S144 -> 0 | P145: =O144-P144 -> 0 | Q145: B | R145: =CONCATENATE(B145,Q145) -> B
C146: =+CONCATENATE(I146," ",G146) -> c) 0 | G146: =IF(J144="FIN","",LOOKUP(I143,DATOS!A:A,DATOS!L:L)) -> 0 | I146: c) | Q146: C | R146: =CONCATENATE(B146,Q146) -> C
C147: =+CONCATENATE(I147," ",G147) -> d) 0 | G147: =IF(J144="FIN","",LOOKUP(I143,DATOS!A:A,DATOS!M:M)) -> 0 | I147: d) | Q147: D | R147: =CONCATENATE(B147,Q147) -> D
C149: =+CONCATENATE(K149,".- ",G149) -> 25.- CONSTITUCIÓN. | G149: =IF(J150="FIN","",LOOKUP(I149,DATOS!A:A,DATOS!G:G)) -> CONSTITUCIÓN. | H149: =IF(J150="FIN",0,LOOKUP(I149,DATOS!A:A,DATOS!N:N)) -> 0 | I149: =+I143+1 -> 200 | J149: =IF(LOOKUP(I149,DATOS!A:A,DATOS!C:C)=0,J143,(LOOKUP(I149,DATOS!A:A,DATOS!C:C))) -> 3 | K149: =+K143+1 -> 25 | L149: ACIERTOS | M149: ERROR | N149: Ptos negativos | O149: RESPUESTAS | P149: Control Respuesta | Q149: OPCIONES | R149: =CONCATENATE("X",H149) -> X0 | S149: CONTROL SOLUCION
A150: =IF($E$2="X",0,IF(K151>2,H149,K151)) -> 0 | C150: =+CONCATENATE(I150," ",G150) -> a) 0 | G150: =IF(J150="FIN","",LOOKUP(I149,DATOS!A:A,DATOS!J:J)) -> 0 | I150: a) | J150: =IF(J144="FIN","FIN",IF(J149=J143,"","FIN")) ->  | K150: CONTROL | L150: =IF(M150>0,0,P150) -> 0 | M150: =IF(P151>0,1,0) -> 0 | N150: =IF(M150=1,-1/COUNTA(Q150:Q153),0) -> 0 | O150: =COUNTA(B150:B153) -> 0 | P150: =COUNTIF(R150:R153,R149) -> 0 | Q150: A | R150: =CONCATENATE(B150,Q150) -> A | S150: =IF(P150>0,P150+O150,O150*3) -> 0
C151: =+CONCATENATE(I151," ",G151) -> b) 0 | G151: =IF(J150="FIN","",LOOKUP(I149,DATOS!A:A,DATOS!K:K)) -> 0 | I151: b) | K151: =S150 -> 0 | P151: =O150-P150 -> 0 | Q151: B | R151: =CONCATENATE(B151,Q151) -> B
C152: =+CONCATENATE(I152," ",G152) -> c) 0 | G152: =IF(J150="FIN","",LOOKUP(I149,DATOS!A:A,DATOS!L:L)) -> 0 | I152: c) | Q152: C | R152: =CONCATENATE(B152,Q152) -> C
C153: =+CONCATENATE(I153," ",G153) -> d) 0 | G153: =IF(J150="FIN","",LOOKUP(I149,DATOS!A:A,DATOS!M:M)) -> 0 | I153: d) | Q153: D | R153: =CONCATENATE(B153,Q153) -> D
C155: =+CONCATENATE(K155,".- ",G155) -> 26.- CONSTITUCIÓN. | G155: =IF(J156="FIN","",LOOKUP(I155,DATOS!A:A,DATOS!G:G)) -> CONSTITUCIÓN. | H155: =IF(J156="FIN",0,LOOKUP(I155,DATOS!A:A,DATOS!N:N)) -> 0 | I155: =+I149+1 -> 201 | J155: =IF(LOOKUP(I155,DATOS!A:A,DATOS!C:C)=0,J149,(LOOKUP(I155,DATOS!A:A,DATOS!C:C))) -> 3 | K155: =+K149+1 -> 26 | L155: ACIERTOS | M155: ERROR | N155: Ptos negativos | O155: RESPUESTAS | P155: Control Respuesta | Q155: OPCIONES | R155: =CONCATENATE("X",H155) -> X0 | S155: CONTROL SOLUCION
A156: =IF($E$2="X",0,IF(K157>2,H155,K157)) -> 0 | C156: =+CONCATENATE(I156," ",G156) -> a) 0 | G156: =IF(J156="FIN","",LOOKUP(I155,DATOS!A:A,DATOS!J:J)) -> 0 | I156: a) | J156: =IF(J150="FIN","FIN",IF(J155=J149,"","FIN")) ->  | K156: CONTROL | L156: =IF(M156>0,0,P156) -> 0 | M156: =IF(P157>0,1,0) -> 0 | N156: =IF(M156=1,-1/COUNTA(Q156:Q159),0) -> 0 | O156: =COUNTA(B156:B159) -> 0 | P156: =COUNTIF(R156:R159,R155) -> 0 | Q156: A | R156: =CONCATENATE(B156,Q156) -> A | S156: =IF(P156>0,P156+O156,O156*3) -> 0
C157: =+CONCATENATE(I157," ",G157) -> b) 0 | G157: =IF(J156="FIN","",LOOKUP(I155,DATOS!A:A,DATOS!K:K)) -> 0 | I157: b) | K157: =S156 -> 0 | P157: =O156-P156 -> 0 | Q157: B | R157: =CONCATENATE(B157,Q157) -> B
C158: =+CONCATENATE(I158," ",G158) -> c) 0 | G158: =IF(J156="FIN","",LOOKUP(I155,DATOS!A:A,DATOS!L:L)) -> 0 | I158: c) | Q158: C | R158: =CONCATENATE(B158,Q158) -> C
C159: =+CONCATENATE(I159," ",G159) -> d) 0 | G159: =IF(J156="FIN","",LOOKUP(I155,DATOS!A:A,DATOS!M:M)) -> 0 | I159: d) | Q159: D | R159: =CONCATENATE(B159,Q159) -> D
C161: =+CONCATENATE(K161,".- ",G161) -> 27.- CONSTITUCIÓN. | G161: =IF(J162="FIN","",LOOKUP(I161,DATOS!A:A,DATOS!G:G)) -> CONSTITUCIÓN. | H161: =IF(J162="FIN",0,LOOKUP(I161,DATOS!A:A,DATOS!N:N)) -> 0 | I161: =+I155+1 -> 202 | J161: =IF(LOOKUP(I161,DATOS!A:A,DATOS!C:C)=0,J155,(LOOKUP(I161,DATOS!A:A,DATOS!C:C))) -> 3 | K161: =+K155+1 -> 27 | L161: ACIERTOS | M161: ERROR | N161: Ptos negativos | O161: RESPUESTAS | P161: Control Respuesta | Q161: OPCIONES | R161: =CONCATENATE("X",H161) -> X0 | S161: CONTROL SOLUCION
A162: =IF($E$2="X",0,IF(K163>2,H161,K163)) -> 0 | C162: =+CONCATENATE(I162," ",G162) -> a) 0 | G162: =IF(J162="FIN","",LOOKUP(I161,DATOS!A:A,DATOS!J:J)) -> 0 | I162: a) | J162: =IF(J156="FIN","FIN",IF(J161=J155,"","FIN")) ->  | K162: CONTROL | L162: =IF(M162>0,0,P162) -> 0 | M162: =IF(P163>0,1,0) -> 0 | N162: =IF(M162=1,-1/COUNTA(Q162:Q165),0) -> 0 | O162: =COUNTA(B162:B165) -> 0 | P162: =COUNTIF(R162:R165,R161) -> 0 | Q162: A | R162: =CONCATENATE(B162,Q162) -> A | S162: =IF(P162>0,P162+O162,O162*3) -> 0
C163: =+CONCATENATE(I163," ",G163) -> b) 0 | G163: =IF(J162="FIN","",LOOKUP(I161,DATOS!A:A,DATOS!K:K)) -> 0 | I163: b) | K163: =S162 -> 0 | P163: =O162-P162 -> 0 | Q163: B | R163: =CONCATENATE(B163,Q163) -> B
C164: =+CONCATENATE(I164," ",G164) -> c) 0 | G164: =IF(J162="FIN","",LOOKUP(I161,DATOS!A:A,DATOS!L:L)) -> 0 | I164: c) | Q164: C | R164: =CONCATENATE(B164,Q164) -> C
C165: =+CONCATENATE(I165," ",G165) -> d) 0 | G165: =IF(J162="FIN","",LOOKUP(I161,DATOS!A:A,DATOS!M:M)) -> 0 | I165: d) | Q165: D | R165: =CONCATENATE(B165,Q165) -> D
C167: =+CONCATENATE(K167,".- ",G167) -> 28.- CONSTITUCIÓN. | G167: =IF(J168="FIN","",LOOKUP(I167,DATOS!A:A,DATOS!G:G)) -> CONSTITUCIÓN. | H167: =IF(J168="FIN",0,LOOKUP(I167,DATOS!A:A,DATOS!N:N)) -> 0 | I167: =+I161+1 -> 203 | J167: =IF(LOOKUP(I167,DATOS!A:A,DATOS!C:C)=0,J161,(LOOKUP(I167,DATOS!A:A,DATOS!C:C))) -> 3 | K167: =+K161+1 -> 28 | L167: ACIERTOS | M167: ERROR | N167: Ptos negativos | O167: RESPUESTAS | P167: Control Respuesta | Q167: OPCIONES | R167: =CONCATENATE("X",H167) -> X0 | S167: CONTROL SOLUCION
A168: =IF($E$2="X",0,IF(K169>2,H167,K169)) -> 0 | C168: =+CONCATENATE(I168," ",G168) -> a) 0 | G168: =IF(J168="FIN","",LOOKUP(I167,DATOS!A:A,DATOS!J:J)) -> 0 | I168: a) | J168: =IF(J162="FIN","FIN",IF(J167=J161,"","FIN")) ->  | K168: CONTROL | L168: =IF(M168>0,0,P168) -> 0 | M168: =IF(P169>0,1,0) -> 0 | N168: =IF(M168=1,-1/COUNTA(Q168:Q171),0) -> 0 | O168: =COUNTA(B168:B171) -> 0 | P168: =COUNTIF(R168:R171,R167) -> 0 | Q168: A | R168: =CONCATENATE(B168,Q168) -> A | S168: =IF(P168>0,P168+O168,O168*3) -> 0
C169: =+CONCATENATE(I169," ",G169) -> b) 0 | G169: =IF(J168="FIN","",LOOKUP(I167,DATOS!A:A,DATOS!K:K)) -> 0 | I169: b) | K169: =S168 -> 0 | P169: =O168-P168 -> 0 | Q169: B | R169: =CONCATENATE(B169,Q169) -> B
C170: =+CONCATENATE(I170," ",G170) -> c) 0 | G170: =IF(J168="FIN","",LOOKUP(I167,DATOS!A:A,DATOS!L:L)) -> 0 | I170: c) | Q170: C | R170: =CONCATENATE(B170,Q170) -> C
C171: =+CONCATENATE(I171," ",G171) -> d) 0 | G171: =IF(J168="FIN","",LOOKUP(I167,DATOS!A:A,DATOS!M:M)) -> 0 | I171: d) | Q171: D | R171: =CONCATENATE(B171,Q171) -> D
C173: =+CONCATENATE(K173,".- ",G173) -> 29.- CONSTITUCIÓN. | G173: =IF(J174="FIN","",LOOKUP(I173,DATOS!A:A,DATOS!G:G)) -> CONSTITUCIÓN. | H173: =IF(J174="FIN",0,LOOKUP(I173,DATOS!A:A,DATOS!N:N)) -> 0 | I173: =+I167+1 -> 204 | J173: =IF(LOOKUP(I173,DATOS!A:A,DATOS!C:C)=0,J167,(LOOKUP(I173,DATOS!A:A,DATOS!C:C))) -> 3 | K173: =+K167+1 -> 29 | L173: ACIERTOS | M173: ERROR | N173: Ptos negativos | O173: RESPUESTAS | P173: Control Respuesta | Q173: OPCIONES | R173: =CONCATENATE("X",H173) -> X0 | S173: CONTROL SOLUCION
A174: =IF($E$2="X",0,IF(K175>2,H173,K175)) -> 0 | C174: =+CONCATENATE(I174," ",G174) -> a) 0 | G174: =IF(J174="FIN","",LOOKUP(I173,DATOS!A:A,DATOS!J:J)) -> 0 | I174: a) | J174: =IF(J168="FIN","FIN",IF(J173=J167,"","FIN")) ->  | K174: CONTROL | L174: =IF(M174>0,0,P174) -> 0 | M174: =IF(P175>0,1,0) -> 0 | N174: =IF(M174=1,-1/COUNTA(Q174:Q177),0) -> 0 | O174: =COUNTA(B174:B177) -> 0 | P174: =COUNTIF(R174:R177,R173) -> 0 | Q174: A | R174: =CONCATENATE(B174,Q174) -> A | S174: =IF(P174>0,P174+O174,O174*3) -> 0
C175: =+CONCATENATE(I175," ",G175) -> b) 0 | G175: =IF(J174="FIN","",LOOKUP(I173,DATOS!A:A,DATOS!K:K)) -> 0 | I175: b) | K175: =S174 -> 0 | P175: =O174-P174 -> 0 | Q175: B | R175: =CONCATENATE(B175,Q175) -> B
C176: =+CONCATENATE(I176," ",G176) -> c) 0 | G176: =IF(J174="FIN","",LOOKUP(I173,DATOS!A:A,DATOS!L:L)) -> 0 | I176: c) | Q176: C | R176: =CONCATENATE(B176,Q176) -> C
C177: =+CONCATENATE(I177," ",G177) -> d) 0 | G177: =IF(J174="FIN","",LOOKUP(I173,DATOS!A:A,DATOS!M:M)) -> 0 | I177: d) | Q177: D | R177: =CONCATENATE(B177,Q177) -> D
C179: =+CONCATENATE(K179,".- ",G179) -> 30.- CONSTITUCIÓN. | G179: =IF(J180="FIN","",LOOKUP(I179,DATOS!A:A,DATOS!G:G)) -> CONSTITUCIÓN. | H179: =IF(J180="FIN",0,LOOKUP(I179,DATOS!A:A,DATOS!N:N)) -> 0 | I179: =+I173+1 -> 205 | J179: =IF(LOOKUP(I179,DATOS!A:A,DATOS!C:C)=0,J173,(LOOKUP(I179,DATOS!A:A,DATOS!C:C))) -> 3 | K179: =+K173+1 -> 30 | L179: ACIERTOS | M179: ERROR | N179: Ptos negativos | O179: RESPUESTAS | P179: Control Respuesta | Q179: OPCIONES | R179: =CONCATENATE("X",H179) -> X0 | S179: CONTROL SOLUCION
A180: =IF($E$2="X",0,IF(K181>2,H179,K181)) -> 0 | C180: =+CONCATENATE(I180," ",G180) -> a) 0 | G180: =IF(J180="FIN","",LOOKUP(I179,DATOS!A:A,DATOS!J:J)) -> 0 | I180: a) | J180: =IF(J174="FIN","FIN",IF(J179=J173,"","FIN")) ->  | K180: CONTROL | L180: =IF(M180>0,0,P180) -> 0 | M180: =IF(P181>0,1,0) -> 0 | N180: =IF(M180=1,-1/COUNTA(Q180:Q183),0) -> 0 | O180: =COUNTA(B180:B183) -> 0 | P180: =COUNTIF(R180:R183,R179) -> 0 | Q180: A | R180: =CONCATENATE(B180,Q180) -> A | S180: =IF(P180>0,P180+O180,O180*3) -> 0
C181: =+CONCATENATE(I181," ",G181) -> b) 0 | G181: =IF(J180="FIN","",LOOKUP(I179,DATOS!A:A,DATOS!K:K)) -> 0 | I181: b) | K181: =S180 -> 0 | P181: =O180-P180 -> 0 | Q181: B | R181: =CONCATENATE(B181,Q181) -> B
C182: =+CONCATENATE(I182," ",G182) -> c) 0 | G182: =IF(J180="FIN","",LOOKUP(I179,DATOS!A:A,DATOS!L:L)) -> 0 | I182: c) | Q182: C | R182: =CONCATENATE(B182,Q182) -> C
C183: =+CONCATENATE(I183," ",G183) -> d) 0 | G183: =IF(J180="FIN","",LOOKUP(I179,DATOS!A:A,DATOS!M:M)) -> 0 | I183: d) | Q183: D | R183: =CONCATENATE(B183,Q183) -> D
C185: =+CONCATENATE(K185,".- ",G185) -> 31.- CONSTITUCIÓN. | G185: =IF(J186="FIN","",LOOKUP(I185,DATOS!A:A,DATOS!G:G)) -> CONSTITUCIÓN. | H185: =IF(J186="FIN",0,LOOKUP(I185,DATOS!A:A,DATOS!N:N)) -> 0 | I185: =+I179+1 -> 206 | J185: =IF(LOOKUP(I185,DATOS!A:A,DATOS!C:C)=0,J179,(LOOKUP(I185,DATOS!A:A,DATOS!C:C))) -> 3 | K185: =+K179+1 -> 31 | L185: ACIERTOS | M185: ERROR | N185: Ptos negativos | O185: RESPUESTAS | P185: Control Respuesta | Q185: OPCIONES | R185: =CONCATENATE("X",H185) -> X0 | S185: CONTROL SOLUCION
A186: =IF($E$2="X",0,IF(K187>2,H185,K187)) -> 0 | C186: =+CONCATENATE(I186," ",G186) -> a) 0 | G186: =IF(J186="FIN","",LOOKUP(I185,DATOS!A:A,DATOS!J:J)) -> 0 | I186: a) | J186: =IF(J180="FIN","FIN",IF(J185=J179,"","FIN")) ->  | K186: CONTROL | L186: =IF(M186>0,0,P186) -> 0 | M186: =IF(P187>0,1,0) -> 0 | N186: =IF(M186=1,-1/COUNTA(Q186:Q189),0) -> 0 | O186: =COUNTA(B186:B189) -> 0 | P186: =COUNTIF(R186:R189,R185) -> 0 | Q186: A | R186: =CONCATENATE(B186,Q186) -> A | S186: =IF(P186>0,P186+O186,O186*3) -> 0
C187: =+CONCATENATE(I187," ",G187) -> b) 0 | G187: =IF(J186="FIN","",LOOKUP(I185,DATOS!A:A,DATOS!K:K)) -> 0 | I187: b) | K187: =S186 -> 0 | P187: =O186-P186 -> 0 | Q187: B | R187: =CONCATENATE(B187,Q187) -> B
C188: =+CONCATENATE(I188," ",G188) -> c) 0 | G188: =IF(J186="FIN","",LOOKUP(I185,DATOS!A:A,DATOS!L:L)) -> 0 | I188: c) | Q188: C | R188: =CONCATENATE(B188,Q188) -> C
C189: =+CONCATENATE(I189," ",G189) -> d) 0 | G189: =IF(J186="FIN","",LOOKUP(I185,DATOS!A:A,DATOS!M:M)) -> 0 | I189: d) | Q189: D | R189: =CONCATENATE(B189,Q189) -> D
C191: =+CONCATENATE(K191,".- ",G191) -> 32.- CONSTITUCIÓN. | G191: =IF(J192="FIN","",LOOKUP(I191,DATOS!A:A,DATOS!G:G)) -> CONSTITUCIÓN. | H191: =IF(J192="FIN",0,LOOKUP(I191,DATOS!A:A,DATOS!N:N)) -> 0 | I191: =+I185+1 -> 207 | J191: =IF(LOOKUP(I191,DATOS!A:A,DATOS!C:C)=0,J185,(LOOKUP(I191,DATOS!A:A,DATOS!C:C))) -> 3 | K191: =+K185+1 -> 32 | L191: ACIERTOS | M191: ERROR | N191: Ptos negativos | O191: RESPUESTAS | P191: Control Respuesta | Q191: OPCIONES | R191: =CONCATENATE("X",H191) -> X0 | S191: CONTROL SOLUCION
A192: =IF($E$2="X",0,IF(K193>2,H191,K193)) -> 0 | C192: =+CONCATENATE(I192," ",G192) -> a) 0 | G192: =IF(J192="FIN","",LOOKUP(I191,DATOS!A:A,DATOS!J:J)) -> 0 | I192: a) | J192: =IF(J186="FIN","FIN",IF(J191=J185,"","FIN")) ->  | K192: CONTROL | L192: =IF(M192>0,0,P192) -> 0 | M192: =IF(P193>0,1,0) -> 0 | N192: =IF(M192=1,-1/COUNTA(Q192:Q195),0) -> 0 | O192: =COUNTA(B192:B195) -> 0 | P192: =COUNTIF(R192:R195,R191) -> 0 | Q192: A | R192: =CONCATENATE(B192,Q192) -> A | S192: =IF(P192>0,P192+O192,O192*3) -> 0
C193: =+CONCATENATE(I193," ",G193) -> b) 0 | G193: =IF(J192="FIN","",LOOKUP(I191,DATOS!A:A,DATOS!K:K)) -> 0 | I193: b) | K193: =S192 -> 0 | P193: =O192-P192 -> 0 | Q193: B | R193: =CONCATENATE(B193,Q193) -> B
C194: =+CONCATENATE(I194," ",G194) -> c) 0 | G194: =IF(J192="FIN","",LOOKUP(I191,DATOS!A:A,DATOS!L:L)) -> 0 | I194: c) | Q194: C | R194: =CONCATENATE(B194,Q194) -> C
C195: =+CONCATENATE(I195," ",G195) -> d) 0 | G195: =IF(J192="FIN","",LOOKUP(I191,DATOS!A:A,DATOS!M:M)) -> 0 | I195: d) | Q195: D | R195: =CONCATENATE(B195,Q195) -> D
C197: =+CONCATENATE(K197,".- ",G197) -> 33.- CONSTITUCIÓN. | G197: =IF(J198="FIN","",LOOKUP(I197,DATOS!A:A,DATOS!G:G)) -> CONSTITUCIÓN. | H197: =IF(J198="FIN",0,LOOKUP(I197,DATOS!A:A,DATOS!N:N)) -> 0 | I197: =+I191+1 -> 208 | J197: =IF(LOOKUP(I197,DATOS!A:A,DATOS!C:C)=0,J191,(LOOKUP(I197,DATOS!A:A,DATOS!C:C))) -> 3 | K197: =+K191+1 -> 33 | L197: ACIERTOS | M197: ERROR | N197: Ptos negativos | O197: RESPUESTAS | P197: Control Respuesta | Q197: OPCIONES | R197: =CONCATENATE("X",H197) -> X0 | S197: CONTROL SOLUCION
A198: =IF($E$2="X",0,IF(K199>2,H197,K199)) -> 0 | C198: =+CONCATENATE(I198," ",G198) -> a) 0 | G198: =IF(J198="FIN","",LOOKUP(I197,DATOS!A:A,DATOS!J:J)) -> 0 | I198: a) | J198: =IF(J192="FIN","FIN",IF(J197=J191,"","FIN")) ->  | K198: CONTROL | L198: =IF(M198>0,0,P198) -> 0 | M198: =IF(P199>0,1,0) -> 0 | N198: =IF(M198=1,-1/COUNTA(Q198:Q201),0) -> 0 | O198: =COUNTA(B198:B201) -> 0 | P198: =COUNTIF(R198:R201,R197) -> 0 | Q198: A | R198: =CONCATENATE(B198,Q198) -> A | S198: =IF(P198>0,P198+O198,O198*3) -> 0
C199: =+CONCATENATE(I199," ",G199) -> b) 0 | G199: =IF(J198="FIN","",LOOKUP(I197,DATOS!A:A,DATOS!K:K)) -> 0 | I199: b) | K199: =S198 -> 0 | P199: =O198-P198 -> 0 | Q199: B | R199: =CONCATENATE(B199,Q199) -> B
C200: =+CONCATENATE(I200," ",G200) -> c) 0 | G200: =IF(J198="FIN","",LOOKUP(I197,DATOS!A:A,DATOS!L:L)) -> 0 | I200: c) | Q200: C | R200: =CONCATENATE(B200,Q200) -> C
C201: =+CONCATENATE(I201," ",G201) -> d) 0 | G201: =IF(J198="FIN","",LOOKUP(I197,DATOS!A:A,DATOS!M:M)) -> 0 | I201: d) | Q201: D | R201: =CONCATENATE(B201,Q201) -> D
C203: =+CONCATENATE(K203,".- ",G203) -> 34.- CONSTITUCIÓN. | G203: =IF(J204="FIN","",LOOKUP(I203,DATOS!A:A,DATOS!G:G)) -> CONSTITUCIÓN. | H203: =IF(J204="FIN",0,LOOKUP(I203,DATOS!A:A,DATOS!N:N)) -> 0 | I203: =+I197+1 -> 209 | J203: =IF(LOOKUP(I203,DATOS!A:A,DATOS!C:C)=0,J197,(LOOKUP(I203,DATOS!A:A,DATOS!C:C))) -> 3 | K203: =+K197+1 -> 34 | L203: ACIERTOS | M203: ERROR | N203: Ptos negativos | O203: RESPUESTAS | P203: Control Respuesta | Q203: OPCIONES | R203: =CONCATENATE("X",H203) -> X0 | S203: CONTROL SOLUCION
A204: =IF($E$2="X",0,IF(K205>2,H203,K205)) -> 0 | C204: =+CONCATENATE(I204," ",G204) -> a) 0 | G204: =IF(J204="FIN","",LOOKUP(I203,DATOS!A:A,DATOS!J:J)) -> 0 | I204: a) | J204: =IF(J198="FIN","FIN",IF(J203=J197,"","FIN")) ->  | K204: CONTROL | L204: =IF(M204>0,0,P204) -> 0 | M204: =IF(P205>0,1,0) -> 0 | N204: =IF(M204=1,-1/COUNTA(Q204:Q207),0) -> 0 | O204: =COUNTA(B204:B207) -> 0 | P204: =COUNTIF(R204:R207,R203) -> 0 | Q204: A | R204: =CONCATENATE(B204,Q204) -> A | S204: =IF(P204>0,P204+O204,O204*3) -> 0
C205: =+CONCATENATE(I205," ",G205) -> b) 0 | G205: =IF(J204="FIN","",LOOKUP(I203,DATOS!A:A,DATOS!K:K)) -> 0 | I205: b) | K205: =S204 -> 0 | P205: =O204-P204 -> 0 | Q205: B | R205: =CONCATENATE(B205,Q205) -> B
C206: =+CONCATENATE(I206," ",G206) -> c) 0 | G206: =IF(J204="FIN","",LOOKUP(I203,DATOS!A:A,DATOS!L:L)) -> 0 | I206: c) | Q206: C | R206: =CONCATENATE(B206,Q206) -> C
C207: =+CONCATENATE(I207," ",G207) -> d) 0 | G207: =IF(J204="FIN","",LOOKUP(I203,DATOS!A:A,DATOS!M:M)) -> 0 | I207: d) | Q207: D | R207: =CONCATENATE(B207,Q207) -> D
C209: =+CONCATENATE(K209,".- ",G209) -> 35.- CONSTITUCIÓN. | G209: =IF(J210="FIN","",LOOKUP(I209,DATOS!A:A,DATOS!G:G)) -> CONSTITUCIÓN. | H209: =IF(J210="FIN",0,LOOKUP(I209,DATOS!A:A,DATOS!N:N)) -> 0 | I209: =+I203+1 -> 210 | J209: =IF(LOOKUP(I209,DATOS!A:A,DATOS!C:C)=0,J203,(LOOKUP(I209,DATOS!A:A,DATOS!C:C))) -> 3 | K209: =+K203+1 -> 35 | L209: ACIERTOS | M209: ERROR | N209: Ptos negativos | O209: RESPUESTAS | P209: Control Respuesta | Q209: OPCIONES | R209: =CONCATENATE("X",H209) -> X0 | S209: CONTROL SOLUCION
A210: =IF($E$2="X",0,IF(K211>2,H209,K211)) -> 0 | C210: =+CONCATENATE(I210," ",G210) -> a) 0 | G210: =IF(J210="FIN","",LOOKUP(I209,DATOS!A:A,DATOS!J:J)) -> 0 | I210: a) | J210: =IF(J204="FIN","FIN",IF(J209=J203,"","FIN")) ->  | K210: CONTROL | L210: =IF(M210>0,0,P210) -> 0 | M210: =IF(P211>0,1,0) -> 0 | N210: =IF(M210=1,-1/COUNTA(Q210:Q213),0) -> 0 | O210: =COUNTA(B210:B213) -> 0 | P210: =COUNTIF(R210:R213,R209) -> 0 | Q210: A | R210: =CONCATENATE(B210,Q210) -> A | S210: =IF(P210>0,P210+O210,O210*3) -> 0
C211: =+CONCATENATE(I211," ",G211) -> b) 0 | G211: =IF(J210="FIN","",LOOKUP(I209,DATOS!A:A,DATOS!K:K)) -> 0 | I211: b) | K211: =S210 -> 0 | P211: =O210-P210 -> 0 | Q211: B | R211: =CONCATENATE(B211,Q211) -> B
C212: =+CONCATENATE(I212," ",G212) -> c) 0 | G212: =IF(J210="FIN","",LOOKUP(I209,DATOS!A:A,DATOS!L:L)) -> 0 | I212: c) | Q212: C | R212: =CONCATENATE(B212,Q212) -> C
C213: =+CONCATENATE(I213," ",G213) -> d) 0 | G213: =IF(J210="FIN","",LOOKUP(I209,DATOS!A:A,DATOS!M:M)) -> 0 | I213: d) | Q213: D | R213: =CONCATENATE(B213,Q213) -> D
C215: =+CONCATENATE(K215,".- ",G215) -> 36.- CONSTITUCIÓN. | G215: =IF(J216="FIN","",LOOKUP(I215,DATOS!A:A,DATOS!G:G)) -> CONSTITUCIÓN. | H215: =IF(J216="FIN",0,LOOKUP(I215,DATOS!A:A,DATOS!N:N)) -> 0 | I215: =+I209+1 -> 211 | J215: =IF(LOOKUP(I215,DATOS!A:A,DATOS!C:C)=0,J209,(LOOKUP(I215,DATOS!A:A,DATOS!C:C))) -> 3 | K215: =+K209+1 -> 36 | L215: ACIERTOS | M215: ERROR | N215: Ptos negativos | O215: RESPUESTAS | P215: Control Respuesta | Q215: OPCIONES | R215: =CONCATENATE("X",H215) -> X0 | S215: CONTROL SOLUCION
A216: =IF($E$2="X",0,IF(K217>2,H215,K217)) -> 0 | C216: =+CONCATENATE(I216," ",G216) -> a) 0 | G216: =IF(J216="FIN","",LOOKUP(I215,DATOS!A:A,DATOS!J:J)) -> 0 | I216: a) | J216: =IF(J210="FIN","FIN",IF(J215=J209,"","FIN")) ->  | K216: CONTROL | L216: =IF(M216>0,0,P216) -> 0 | M216: =IF(P217>0,1,0) -> 0 | N216: =IF(M216=1,-1/COUNTA(Q216:Q219),0) -> 0 | O216: =COUNTA(B216:B219) -> 0 | P216: =COUNTIF(R216:R219,R215) -> 0 | Q216: A | R216: =CONCATENATE(B216,Q216) -> A | S216: =IF(P216>0,P216+O216,O216*3) -> 0
C217: =+CONCATENATE(I217," ",G217) -> b) 0 | G217: =IF(J216="FIN","",LOOKUP(I215,DATOS!A:A,DATOS!K:K)) -> 0 | I217: b) | K217: =S216 -> 0 | P217: =O216-P216 -> 0 | Q217: B | R217: =CONCATENATE(B217,Q217) -> B
C218: =+CONCATENATE(I218," ",G218) -> c) 0 | G218: =IF(J216="FIN","",LOOKUP(I215,DATOS!A:A,DATOS!L:L)) -> 0 | I218: c) | Q218: C | R218: =CONCATENATE(B218,Q218) -> C
C219: =+CONCATENATE(I219," ",G219) -> d) 0 | G219: =IF(J216="FIN","",LOOKUP(I215,DATOS!A:A,DATOS!M:M)) -> 0 | I219: d) | Q219: D | R219: =CONCATENATE(B219,Q219) -> D
C221: =+CONCATENATE(K221,".- ",G221) -> 37.- CONSTITUCIÓN. | G221: =IF(J222="FIN","",LOOKUP(I221,DATOS!A:A,DATOS!G:G)) -> CONSTITUCIÓN. | H221: =IF(J222="FIN",0,LOOKUP(I221,DATOS!A:A,DATOS!N:N)) -> 0 | I221: =+I215+1 -> 212 | J221: =IF(LOOKUP(I221,DATOS!A:A,DATOS!C:C)=0,J215,(LOOKUP(I221,DATOS!A:A,DATOS!C:C))) -> 3 | K221: =+K215+1 -> 37 | L221: ACIERTOS | M221: ERROR | N221: Ptos negativos | O221: RESPUESTAS | P221: Control Respuesta | Q221: OPCIONES | R221: =CONCATENATE("X",H221) -> X0 | S221: CONTROL SOLUCION
A222: =IF($E$2="X",0,IF(K223>2,H221,K223)) -> 0 | C222: =+CONCATENATE(I222," ",G222) -> a) 0 | G222: =IF(J222="FIN","",LOOKUP(I221,DATOS!A:A,DATOS!J:J)) -> 0 | I222: a) | J222: =IF(J216="FIN","FIN",IF(J221=J215,"","FIN")) ->  | K222: CONTROL | L222: =IF(M222>0,0,P222) -> 0 | M222: =IF(P223>0,1,0) -> 0 | N222: =IF(M222=1,-1/COUNTA(Q222:Q225),0) -> 0 | O222: =COUNTA(B222:B225) -> 0 | P222: =COUNTIF(R222:R225,R221) -> 0 | Q222: A | R222: =CONCATENATE(B222,Q222) -> A | S222: =IF(P222>0,P222+O222,O222*3) -> 0
C223: =+CONCATENATE(I223," ",G223) -> b) 0 | G223: =IF(J222="FIN","",LOOKUP(I221,DATOS!A:A,DATOS!K:K)) -> 0 | I223: b) | K223: =S222 -> 0 | P223: =O222-P222 -> 0 | Q223: B | R223: =CONCATENATE(B223,Q223) -> B
C224: =+CONCATENATE(I224," ",G224) -> c) 0 | G224: =IF(J222="FIN","",LOOKUP(I221,DATOS!A:A,DATOS!L:L)) -> 0 | I224: c) | Q224: C | R224: =CONCATENATE(B224,Q224) -> C
C225: =+CONCATENATE(I225," ",G225) -> d) 0 | G225: =IF(J222="FIN","",LOOKUP(I221,DATOS!A:A,DATOS!M:M)) -> 0 | I225: d) | Q225: D | R225: =CONCATENATE(B225,Q225) -> D
C227: =+CONCATENATE(K227,".- ",G227) -> 38.- CONSTITUCIÓN. | G227: =IF(J228="FIN","",LOOKUP(I227,DATOS!A:A,DATOS!G:G)) -> CONSTITUCIÓN. | H227: =IF(J228="FIN",0,LOOKUP(I227,DATOS!A:A,DATOS!N:N)) -> 0 | I227: =+I221+1 -> 213 | J227: =IF(LOOKUP(I227,DATOS!A:A,DATOS!C:C)=0,J221,(LOOKUP(I227,DATOS!A:A,DATOS!C:C))) -> 3 | K227: =+K221+1 -> 38 | L227: ACIERTOS | M227: ERROR | N227: Ptos negativos | O227: RESPUESTAS | P227: Control Respuesta | Q227: OPCIONES | R227: =CONCATENATE("X",H227) -> X0 | S227: CONTROL SOLUCION
A228: =IF($E$2="X",0,IF(K229>2,H227,K229)) -> 0 | C228: =+CONCATENATE(I228," ",G228) -> a) 0 | G228: =IF(J228="FIN","",LOOKUP(I227,DATOS!A:A,DATOS!J:J)) -> 0 | I228: a) | J228: =IF(J222="FIN","FIN",IF(J227=J221,"","FIN")) ->  | K228: CONTROL | L228: =IF(M228>0,0,P228) -> 0 | M228: =IF(P229>0,1,0) -> 0 | N228: =IF(M228=1,-1/COUNTA(Q228:Q231),0) -> 0 | O228: =COUNTA(B228:B231) -> 0 | P228: =COUNTIF(R228:R231,R227) -> 0 | Q228: A | R228: =CONCATENATE(B228,Q228) -> A | S228: =IF(P228>0,P228+O228,O228*3) -> 0
C229: =+CONCATENATE(I229," ",G229) -> b) 0 | G229: =IF(J228="FIN","",LOOKUP(I227,DATOS!A:A,DATOS!K:K)) -> 0 | I229: b) | K229: =S228 -> 0 | P229: =O228-P228 -> 0 | Q229: B | R229: =CONCATENATE(B229,Q229) -> B
C230: =+CONCATENATE(I230," ",G230) -> c) 0 | G230: =IF(J228="FIN","",LOOKUP(I227,DATOS!A:A,DATOS!L:L)) -> 0 | I230: c) | Q230: C | R230: =CONCATENATE(B230,Q230) -> C
C231: =+CONCATENATE(I231," ",G231) -> d) 0 | G231: =IF(J228="FIN","",LOOKUP(I227,DATOS!A:A,DATOS!M:M)) -> 0 | I231: d) | Q231: D | R231: =CONCATENATE(B231,Q231) -> D
C233: =+CONCATENATE(K233,".- ",G233) -> 39.- CONSTITUCIÓN. | G233: =IF(J234="FIN","",LOOKUP(I233,DATOS!A:A,DATOS!G:G)) -> CONSTITUCIÓN. | H233: =IF(J234="FIN",0,LOOKUP(I233,DATOS!A:A,DATOS!N:N)) -> 0 | I233: =+I227+1 -> 214 | J233: =IF(LOOKUP(I233,DATOS!A:A,DATOS!C:C)=0,J227,(LOOKUP(I233,DATOS!A:A,DATOS!C:C))) -> 3 | K233: =+K227+1 -> 39 | L233: ACIERTOS | M233: ERROR | N233: Ptos negativos | O233: RESPUESTAS | P233: Control Respuesta | Q233: OPCIONES | R233: =CONCATENATE("X",H233) -> X0 | S233: CONTROL SOLUCION
A234: =IF($E$2="X",0,IF(K235>2,H233,K235)) -> 0 | C234: =+CONCATENATE(I234," ",G234) -> a) 0 | G234: =IF(J234="FIN","",LOOKUP(I233,DATOS!A:A,DATOS!J:J)) -> 0 | I234: a) | J234: =IF(J228="FIN","FIN",IF(J233=J227,"","FIN")) ->  | K234: CONTROL | L234: =IF(M234>0,0,P234) -> 0 | M234: =IF(P235>0,1,0) -> 0 | N234: =IF(M234=1,-1/COUNTA(Q234:Q237),0) -> 0 | O234: =COUNTA(B234:B237) -> 0 | P234: =COUNTIF(R234:R237,R233) -> 0 | Q234: A | R234: =CONCATENATE(B234,Q234) -> A | S234: =IF(P234>0,P234+O234,O234*3) -> 0
C235: =+CONCATENATE(I235," ",G235) -> b) 0 | G235: =IF(J234="FIN","",LOOKUP(I233,DATOS!A:A,DATOS!K:K)) -> 0 | I235: b) | K235: =S234 -> 0 | P235: =O234-P234 -> 0 | Q235: B | R235: =CONCATENATE(B235,Q235) -> B
C236: =+CONCATENATE(I236," ",G236) -> c) 0 | G236: =IF(J234="FIN","",LOOKUP(I233,DATOS!A:A,DATOS!L:L)) -> 0 | I236: c) | Q236: C | R236: =CONCATENATE(B236,Q236) -> C
C237: =+CONCATENATE(I237," ",G237) -> d) 0 | G237: =IF(J234="FIN","",LOOKUP(I233,DATOS!A:A,DATOS!M:M)) -> 0 | I237: d) | Q237: D | R237: =CONCATENATE(B237,Q237) -> D
C239: =+CONCATENATE(K239,".- ",G239) -> 40.- CONSTITUCIÓN. | G239: =IF(J240="FIN","",LOOKUP(I239,DATOS!A:A,DATOS!G:G)) -> CONSTITUCIÓN. | H239: =IF(J240="FIN",0,LOOKUP(I239,DATOS!A:A,DATOS!N:N)) -> 0 | I239: =+I233+1 -> 215 | J239: =IF(LOOKUP(I239,DATOS!A:A,DATOS!C:C)=0,J233,(LOOKUP(I239,DATOS!A:A,DATOS!C:C))) -> 3 | K239: =+K233+1 -> 40 | L239: ACIERTOS | M239: ERROR | N239: Ptos negativos | O239: RESPUESTAS | P239: Control Respuesta | Q239: OPCIONES | R239: =CONCATENATE("X",H239) -> X0 | S239: CONTROL SOLUCION
A240: =IF($E$2="X",0,IF(K241>2,H239,K241)) -> 0 | C240: =+CONCATENATE(I240," ",G240) -> a) 0 | G240: =IF(J240="FIN","",LOOKUP(I239,DATOS!A:A,DATOS!J:J)) -> 0 | I240: a) | J240: =IF(J234="FIN","FIN",IF(J239=J233,"","FIN")) ->  | K240: CONTROL | L240: =IF(M240>0,0,P240) -> 0 | M240: =IF(P241>0,1,0) -> 0 | N240: =IF(M240=1,-1/COUNTA(Q240:Q243),0) -> 0 | O240: =COUNTA(B240:B243) -> 0 | P240: =COUNTIF(R240:R243,R239) -> 0 | Q240: A | R240: =CONCATENATE(B240,Q240) -> A | S240: =IF(P240>0,P240+O240,O240*3) -> 0
C241: =+CONCATENATE(I241," ",G241) -> b) 0 | G241: =IF(J240="FIN","",LOOKUP(I239,DATOS!A:A,DATOS!K:K)) -> 0 | I241: b) | K241: =S240 -> 0 | P241: =O240-P240 -> 0 | Q241: B | R241: =CONCATENATE(B241,Q241) -> B
... 302 more rows

Sheet 4
A1: ◄ | C1: =AO1 -> Tema 2 - LA REGULACIÓN DE LA DEFENSA NACIONAL | E1: =ROUND(Q2/K2*10,2) ->  | I1: 4 | J1: COLUMNA | K1: preguntas | L1: aciertos | M1: Fallos | N1: Ptos Negativos | O1: Contestadas | P1: % evolución | Q1: Puntuación | R1: Nota Puntual | S1: Nota Final | T1: Texto Notas | U1: Texto completo | V1: Testo simple | W1: Control Respuestas | X1: Control caducidad | AD1: preguntas | AE1: aciertos | AF1: Fallos | AG1: Ptos Negativos | AH1: Contestadas | AI1: % evolución | AJ1: Puntuación | AK1: Nota Puntual | AL1: Tests | AN1: Test | AO1: =LOOKUP(I5,DATOS!A:A,DATOS!F:F) -> Tema 2 - LA REGULACIÓN DE LA DEFENSA NACIONAL
C2: =IF(CONTROL!I4="A",X2,"") -> Test, compuesto por 0 preguntas | K2: =COUNTA(H:H)-COUNT(H:H) -> 0 | L2: =SUM(L3:L1048576) -> 0 | M2: =SUM(M3:M1048576) -> 0 | N2: =SUM(N3:N52) -> 0 | O2: =L2+M2 -> 0 | P2: =+O2/K2 ->  | Q2: =+L2+N2 -> 0 | R2: =ROUND(Q2/(L2+M2)*10,2) ->  | S2: =ROUND(Q2/K2*10,2) ->  | T2: =CONCATENATE("puntual: ", R2," Nota final: ", S2) ->  | U2: =CONCATENATE("Evolución: ", K2," preguntas, ",L2," aciertos, ",M2," errores, ",Q2," puntos. Nota ",T2) ->  | V2: =CONCATENATE("Test, compuesto por ",K2," preguntas") -> Test, compuesto por 0 preguntas | W2: =IF(E2="X",V2,IF(O2>0,U2,V2)) -> Test, compuesto por 0 preguntas | X2: =IF(CONTROL!I4="A",W2,V2) -> Test, compuesto por 0 preguntas | AD2: =IF(CONTROL!$I$4="A",K2,0) -> 0 | AE2: =IF(CONTROL!$I$4="A",L2,0) -> 0 | AF2: =IF(CONTROL!$I$4="A",M2,0) -> 0 | AG2: =IF(CONTROL!$I$4="A",N2,0) -> 0 | AH2: =IF(CONTROL!$I$4="A",O2,0) -> 0 | AI2: =IF(CONTROL!$I$4="A",P2,0) ->  | AJ2: =IF(CONTROL!$I$4="A",Q2,0) -> 0 | AK2: =IF(CONTROL!$I$4="A",R2,0) ->  | AL2: =+AO1 -> Tema 2 - LA REGULACIÓN DE LA DEFENSA NACIONAL | AN2: Portada | AO2: =LOOKUP(I5,DATOS!A:A,DATOS!E:E) -> Tema 2 - LA REGULACIÓN DE LA DEFENSA NACIONAL
C5: =+CONCATENATE(K5,".- ",G5) -> 1.- | G5: =LOOKUP(I5,DATOS!A:A,DATOS!G:G) ->  | H5: =LOOKUP(I5,DATOS!A:A,DATOS!N:N) -> 0 | I5: =LOOKUP(I1,DATOS!C:C,DATOS!A:A) -> 261 | J5: =LOOKUP(I5,DATOS!A:A,DATOS!C:C) -> 4 | K5: 1 | L5: ACIERTOS | M5: ERROR | N5: Ptos negativos | O5: RESPUESTAS | P5: Control Respuesta | Q5: OPCIONES | R5: =CONCATENATE("X",H5) -> X0 | S5: CONTROL SOLUCION
A6: =IF($E$2="X",0,IF(K7>2,H5,K7)) -> 0 | C6: =+CONCATENATE(I6," ",G6) -> a) 0 | G6: =LOOKUP(I5,DATOS!A:A,DATOS!J:J) -> 0 | I6: a) | K6: CONTROL | L6: =IF(M6>0,0,P6) -> 0 | M6: =IF(P7>0,1,0) -> 0 | N6: =IF(M6=1,-1/COUNTA(Q6:Q9),0) -> 0 | O6: =COUNTA(B6:B9) -> 0 | P6: =COUNTIF(R6:R9,R5) -> 0 | Q6: A | R6: =CONCATENATE(B6,Q6) -> A | S6: =IF(P6>0,P6+O6,O6*3) -> 0
C7: =+CONCATENATE(I7," ",G7) -> b) 0 | G7: =LOOKUP(I5,DATOS!A:A,DATOS!K:K) -> 0 | I7: b) | K7: =S6 -> 0 | P7: =O6-P6 -> 0 | Q7: B | R7: =CONCATENATE(B7,Q7) -> B
C8: =+CONCATENATE(I8," ",G8) -> c) 0 | G8: =LOOKUP(I5,DATOS!A:A,DATOS!L:L) -> 0 | I8: c) | Q8: C | R8: =CONCATENATE(B8,Q8) -> C
C9: =+CONCATENATE(I9," ",G9) -> d) 0 | G9: =LOOKUP(I5,DATOS!A:A,DATOS!M:M) -> 0 | I9: d) | Q9: D | R9: =CONCATENATE(B9,Q9) -> D
C11: =+CONCATENATE(K11,".- ",G11) -> 2.- | G11: =IF(J12="FIN","",LOOKUP(I11,DATOS!A:A,DATOS!G:G)) ->  | H11: =IF(J12="FIN",0,LOOKUP(I11,DATOS!A:A,DATOS!N:N)) -> 0 | I11: =+I5+1 -> 262 | J11: =IF(LOOKUP(I11,DATOS!A:A,DATOS!C:C)=0,J5,(LOOKUP(I11,DATOS!A:A,DATOS!C:C))) -> 4 | K11: =+K5+1 -> 2 | L11: ACIERTOS | M11: ERROR | N11: Ptos negativos | O11: RESPUESTAS | P11: Control Respuesta | Q11: OPCIONES | R11: =CONCATENATE("X",H11) -> X0 | S11: CONTROL SOLUCION
A12: =IF($E$2="X",0,IF(K13>2,H11,K13)) -> 0 | C12: =+CONCATENATE(I12," ",G12) -> a) 0 | G12: =IF(J12="FIN","",LOOKUP(I11,DATOS!A:A,DATOS!J:J)) -> 0 | I12: a) | J12: =IF(J6="FIN","FIN",IF(J11=J5,"","FIN")) ->  | K12: CONTROL | L12: =IF(M12>0,0,P12) -> 0 | M12: =IF(P13>0,1,0) -> 0 | N12: =IF(M12=1,-1/COUNTA(Q12:Q15),0) -> 0 | O12: =COUNTA(B12:B15) -> 0 | P12: =COUNTIF(R12:R15,R11) -> 0 | Q12: A | R12: =CONCATENATE(B12,Q12) -> A | S12: =IF(P12>0,P12+O12,O12*3) -> 0
C13: =+CONCATENATE(I13," ",G13) -> b) 0 | G13: =IF(J12="FIN","",LOOKUP(I11,DATOS!A:A,DATOS!K:K)) -> 0 | I13: b) | K13: =S12 -> 0 | P13: =O12-P12 -> 0 | Q13: B | R13: =CONCATENATE(B13,Q13) -> B
C14: =+CONCATENATE(I14," ",G14) -> c) 0 | G14: =IF(J12="FIN","",LOOKUP(I11,DATOS!A:A,DATOS!L:L)) -> 0 | I14: c) | Q14: C | R14: =CONCATENATE(B14,Q14) -> C
C15: =+CONCATENATE(I15," ",G15) -> d) 0 | G15: =IF(J12="FIN","",LOOKUP(I11,DATOS!A:A,DATOS!M:M)) -> 0 | I15: d) | Q15: D | R15: =CONCATENATE(B15,Q15) -> D
C17: =+CONCATENATE(K17,".- ",G17) -> 3.- (Exa PER ET -2019) | G17: =IF(J18="FIN","",LOOKUP(I17,DATOS!A:A,DATOS!G:G)) -> (Exa PER ET -2019) | H17: =IF(J18="FIN",0,LOOKUP(I17,DATOS!A:A,DATOS!N:N)) -> 0 | I17: =+I11+1 -> 263 | J17: =IF(LOOKUP(I17,DATOS!A:A,DATOS!C:C)=0,J11,(LOOKUP(I17,DATOS!A:A,DATOS!C:C))) -> 4 | K17: =+K11+1 -> 3 | L17: ACIERTOS | M17: ERROR | N17: Ptos negativos | O17: RESPUESTAS | P17: Control Respuesta | Q17: OPCIONES | R17: =CONCATENATE("X",H17) -> X0 | S17: CONTROL SOLUCION
A18: =IF($E$2="X",0,IF(K19>2,H17,K19)) -> 0 | C18: =+CONCATENATE(I18," ",G18) -> a) 0 | G18: =IF(J18="FIN","",LOOKUP(I17,DATOS!A:A,DATOS!J:J)) -> 0 | I18: a) | J18: =IF(J12="FIN","FIN",IF(J17=J11,"","FIN")) ->  | K18: CONTROL | L18: =IF(M18>0,0,P18) -> 0 | M18: =IF(P19>0,1,0) -> 0 | N18: =IF(M18=1,-1/COUNTA(Q18:Q21),0) -> 0 | O18: =COUNTA(B18:B21) -> 0 | P18: =COUNTIF(R18:R21,R17) -> 0 | Q18: A | R18: =CONCATENATE(B18,Q18) -> A | S18: =IF(P18>0,P18+O18,O18*3) -> 0
C19: =+CONCATENATE(I19," ",G19) -> b) 0 | G19: =IF(J18="FIN","",LOOKUP(I17,DATOS!A:A,DATOS!K:K)) -> 0 | I19: b) | K19: =S18 -> 0 | P19: =O18-P18 -> 0 | Q19: B | R19: =CONCATENATE(B19,Q19) -> B
C20: =+CONCATENATE(I20," ",G20) -> c) 0 | G20: =IF(J18="FIN","",LOOKUP(I17,DATOS!A:A,DATOS!L:L)) -> 0 | I20: c) | Q20: C | R20: =CONCATENATE(B20,Q20) -> C
C21: =+CONCATENATE(I21," ",G21) -> d) 0 | G21: =IF(J18="FIN","",LOOKUP(I17,DATOS!A:A,DATOS!M:M)) -> 0 | I21: d) | Q21: D | R21: =CONCATENATE(B21,Q21) -> D
C23: =+CONCATENATE(K23,".- ",G23) -> 4.- (Exa PER ET -2019) | G23: =IF(J24="FIN","",LOOKUP(I23,DATOS!A:A,DATOS!G:G)) -> (Exa PER ET -2019) | H23: =IF(J24="FIN",0,LOOKUP(I23,DATOS!A:A,DATOS!N:N)) -> 0 | I23: =+I17+1 -> 264 | J23: =IF(LOOKUP(I23,DATOS!A:A,DATOS!C:C)=0,J17,(LOOKUP(I23,DATOS!A:A,DATOS!C:C))) -> 4 | K23: =+K17+1 -> 4 | L23: ACIERTOS | M23: ERROR | N23: Ptos negativos | O23: RESPUESTAS | P23: Control Respuesta | Q23: OPCIONES | R23: =CONCATENATE("X",H23) -> X0 | S23: CONTROL SOLUCION
A24: =IF($E$2="X",0,IF(K25>2,H23,K25)) -> 0 | C24: =+CONCATENATE(I24," ",G24) -> a) 0 | G24: =IF(J24="FIN","",LOOKUP(I23,DATOS!A:A,DATOS!J:J)) -> 0 | I24: a) | J24: =IF(J18="FIN","FIN",IF(J23=J17,"","FIN")) ->  | K24: CONTROL | L24: =IF(M24>0,0,P24) -> 0 | M24: =IF(P25>0,1,0) -> 0 | N24: =IF(M24=1,-1/COUNTA(Q24:Q27),0) -> 0 | O24: =COUNTA(B24:B27) -> 0 | P24: =COUNTIF(R24:R27,R23) -> 0 | Q24: A | R24: =CONCATENATE(B24,Q24) -> A | S24: =IF(P24>0,P24+O24,O24*3) -> 0
C25: =+CONCATENATE(I25," ",G25) -> b) 0 | G25: =IF(J24="FIN","",LOOKUP(I23,DATOS!A:A,DATOS!K:K)) -> 0 | I25: b) | K25: =S24 -> 0 | P25: =O24-P24 -> 0 | Q25: B | R25: =CONCATENATE(B25,Q25) -> B
C26: =+CONCATENATE(I26," ",G26) -> c) 0 | G26: =IF(J24="FIN","",LOOKUP(I23,DATOS!A:A,DATOS!L:L)) -> 0 | I26: c) | Q26: C | R26: =CONCATENATE(B26,Q26) -> C
C27: =+CONCATENATE(I27," ",G27) -> d) 0 | G27: =IF(J24="FIN","",LOOKUP(I23,DATOS!A:A,DATOS!M:M)) -> 0 | I27: d) | Q27: D | R27: =CONCATENATE(B27,Q27) -> D
C29: =+CONCATENATE(K29,".- ",G29) -> 5.- | G29: =IF(J30="FIN","",LOOKUP(I29,DATOS!A:A,DATOS!G:G)) ->  | H29: =IF(J30="FIN",0,LOOKUP(I29,DATOS!A:A,DATOS!N:N)) -> 0 | I29: =+I23+1 -> 265 | J29: =IF(LOOKUP(I29,DATOS!A:A,DATOS!C:C)=0,J23,(LOOKUP(I29,DATOS!A:A,DATOS!C:C))) -> 4 | K29: =+K23+1 -> 5 | L29: ACIERTOS | M29: ERROR | N29: Ptos negativos | O29: RESPUESTAS | P29: Control Respuesta | Q29: OPCIONES | R29: =CONCATENATE("X",H29) -> X0 | S29: CONTROL SOLUCION
A30: =IF($E$2="X",0,IF(K31>2,H29,K31)) -> 0 | C30: =+CONCATENATE(I30," ",G30) -> a) 0 | G30: =IF(J30="FIN","",LOOKUP(I29,DATOS!A:A,DATOS!J:J)) -> 0 | I30: a) | J30: =IF(J24="FIN","FIN",IF(J29=J23,"","FIN")) ->  | K30: CONTROL | L30: =IF(M30>0,0,P30) -> 0 | M30: =IF(P31>0,1,0) -> 0 | N30: =IF(M30=1,-1/COUNTA(Q30:Q33),0) -> 0 | O30: =COUNTA(B30:B33) -> 0 | P30: =COUNTIF(R30:R33,R29) -> 0 | Q30: A | R30: =CONCATENATE(B30,Q30) -> A | S30: =IF(P30>0,P30+O30,O30*3) -> 0
C31: =+CONCATENATE(I31," ",G31) -> b) 0 | G31: =IF(J30="FIN","",LOOKUP(I29,DATOS!A:A,DATOS!K:K)) -> 0 | I31: b) | K31: =S30 -> 0 | P31: =O30-P30 -> 0 | Q31: B | R31: =CONCATENATE(B31,Q31) -> B
C32: =+CONCATENATE(I32," ",G32) -> c) 0 | G32: =IF(J30="FIN","",LOOKUP(I29,DATOS!A:A,DATOS!L:L)) -> 0 | I32: c) | Q32: C | R32: =CONCATENATE(B32,Q32) -> C
C33: =+CONCATENATE(I33," ",G33) -> d) 0 | G33: =IF(J30="FIN","",LOOKUP(I29,DATOS!A:A,DATOS!M:M)) -> 0 | I33: d) | Q33: D | R33: =CONCATENATE(B33,Q33) -> D
C35: =+CONCATENATE(K35,".- ",G35) -> 6.- | G35: =IF(J36="FIN","",LOOKUP(I35,DATOS!A:A,DATOS!G:G)) ->  | H35: =IF(J36="FIN",0,LOOKUP(I35,DATOS!A:A,DATOS!N:N)) -> 0 | I35: =+I29+1 -> 266 | J35: =IF(LOOKUP(I35,DATOS!A:A,DATOS!C:C)=0,J29,(LOOKUP(I35,DATOS!A:A,DATOS!C:C))) -> 4 | K35: =+K29+1 -> 6 | L35: ACIERTOS | M35: ERROR | N35: Ptos negativos | O35: RESPUESTAS | P35: Control Respuesta | Q35: OPCIONES | R35: =CONCATENATE("X",H35) -> X0 | S35: CONTROL SOLUCION
A36: =IF($E$2="X",0,IF(K37>2,H35,K37)) -> 0 | C36: =+CONCATENATE(I36," ",G36) -> a) 0 | G36: =IF(J36="FIN","",LOOKUP(I35,DATOS!A:A,DATOS!J:J)) -> 0 | I36: a) | J36: =IF(J30="FIN","FIN",IF(J35=J29,"","FIN")) ->  | K36: CONTROL | L36: =IF(M36>0,0,P36) -> 0 | M36: =IF(P37>0,1,0) -> 0 | N36: =IF(M36=1,-1/COUNTA(Q36:Q39),0) -> 0 | O36: =COUNTA(B36:B39) -> 0 | P36: =COUNTIF(R36:R39,R35) -> 0 | Q36: A | R36: =CONCATENATE(B36,Q36) -> A | S36: =IF(P36>0,P36+O36,O36*3) -> 0
C37: =+CONCATENATE(I37," ",G37) -> b) 0 | G37: =IF(J36="FIN","",LOOKUP(I35,DATOS!A:A,DATOS!K:K)) -> 0 | I37: b) | K37: =S36 -> 0 | P37: =O36-P36 -> 0 | Q37: B | R37: =CONCATENATE(B37,Q37) -> B
C38: =+CONCATENATE(I38," ",G38) -> c) 0 | G38: =IF(J36="FIN","",LOOKUP(I35,DATOS!A:A,DATOS!L:L)) -> 0 | I38: c) | Q38: C | R38: =CONCATENATE(B38,Q38) -> C
C39: =+CONCATENATE(I39," ",G39) -> d) 0 | G39: =IF(J36="FIN","",LOOKUP(I35,DATOS!A:A,DATOS!M:M)) -> 0 | I39: d) | Q39: D | R39: =CONCATENATE(B39,Q39) -> D
C41: =+CONCATENATE(K41,".- ",G41) -> 7.- (Exa PER AI - 2019) | G41: =IF(J42="FIN","",LOOKUP(I41,DATOS!A:A,DATOS!G:G)) -> (Exa PER AI - 2019) | H41: =IF(J42="FIN",0,LOOKUP(I41,DATOS!A:A,DATOS!N:N)) -> 0 | I41: =+I35+1 -> 267 | J41: =IF(LOOKUP(I41,DATOS!A:A,DATOS!C:C)=0,J35,(LOOKUP(I41,DATOS!A:A,DATOS!C:C))) -> 4 | K41: =+K35+1 -> 7 | L41: ACIERTOS | M41: ERROR | N41: Ptos negativos | O41: RESPUESTAS | P41: Control Respuesta | Q41: OPCIONES | R41: =CONCATENATE("X",H41) -> X0 | S41: CONTROL SOLUCION
A42: =IF($E$2="X",0,IF(K43>2,H41,K43)) -> 0 | C42: =+CONCATENATE(I42," ",G42) -> a) 0 | G42: =IF(J42="FIN","",LOOKUP(I41,DATOS!A:A,DATOS!J:J)) -> 0 | I42: a) | J42: =IF(J36="FIN","FIN",IF(J41=J35,"","FIN")) ->  | K42: CONTROL | L42: =IF(M42>0,0,P42) -> 0 | M42: =IF(P43>0,1,0) -> 0 | N42: =IF(M42=1,-1/COUNTA(Q42:Q45),0) -> 0 | O42: =COUNTA(B42:B45) -> 0 | P42: =COUNTIF(R42:R45,R41) -> 0 | Q42: A | R42: =CONCATENATE(B42,Q42) -> A | S42: =IF(P42>0,P42+O42,O42*3) -> 0
C43: =+CONCATENATE(I43," ",G43) -> b) 0 | G43: =IF(J42="FIN","",LOOKUP(I41,DATOS!A:A,DATOS!K:K)) -> 0 | I43: b) | K43: =S42 -> 0 | P43: =O42-P42 -> 0 | Q43: B | R43: =CONCATENATE(B43,Q43) -> B
C44: =+CONCATENATE(I44," ",G44) -> c) 0 | G44: =IF(J42="FIN","",LOOKUP(I41,DATOS!A:A,DATOS!L:L)) -> 0 | I44: c) | Q44: C | R44: =CONCATENATE(B44,Q44) -> C
C45: =+CONCATENATE(I45," ",G45) -> d) 0 | G45: =IF(J42="FIN","",LOOKUP(I41,DATOS!A:A,DATOS!M:M)) -> 0 | I45: d) | Q45: D | R45: =CONCATENATE(B45,Q45) -> D
C47: =+CONCATENATE(K47,".- ",G47) -> 8.- (Exa PER AI - 2019) | G47: =IF(J48="FIN","",LOOKUP(I47,DATOS!A:A,DATOS!G:G)) -> (Exa PER AI - 2019) | H47: =IF(J48="FIN",0,LOOKUP(I47,DATOS!A:A,DATOS!N:N)) -> 0 | I47: =+I41+1 -> 268 | J47: =IF(LOOKUP(I47,DATOS!A:A,DATOS!C:C)=0,J41,(LOOKUP(I47,DATOS!A:A,DATOS!C:C))) -> 4 | K47: =+K41+1 -> 8 | L47: ACIERTOS | M47: ERROR | N47: Ptos negativos | O47: RESPUESTAS | P47: Control Respuesta | Q47: OPCIONES | R47: =CONCATENATE("X",H47) -> X0 | S47: CONTROL SOLUCION
A48: =IF($E$2="X",0,IF(K49>2,H47,K49)) -> 0 | C48: =+CONCATENATE(I48," ",G48) -> a) 0 | G48: =IF(J48="FIN","",LOOKUP(I47,DATOS!A:A,DATOS!J:J)) -> 0 | I48: a) | J48: =IF(J42="FIN","FIN",IF(J47=J41,"","FIN")) ->  | K48: CONTROL | L48: =IF(M48>0,0,P48) -> 0 | M48: =IF(P49>0,1,0) -> 0 | N48: =IF(M48=1,-1/COUNTA(Q48:Q51),0) -> 0 | O48: =COUNTA(B48:B51) -> 0 | P48: =COUNTIF(R48:R51,R47) -> 0 | Q48: A | R48: =CONCATENATE(B48,Q48) -> A | S48: =IF(P48>0,P48+O48,O48*3) -> 0
C49: =+CONCATENATE(I49," ",G49) -> b) 0 | G49: =IF(J48="FIN","",LOOKUP(I47,DATOS!A:A,DATOS!K:K)) -> 0 | I49: b) | K49: =S48 -> 0 | P49: =O48-P48 -> 0 | Q49: B | R49: =CONCATENATE(B49,Q49) -> B
C50: =+CONCATENATE(I50," ",G50) -> c) 0 | G50: =IF(J48="FIN","",LOOKUP(I47,DATOS!A:A,DATOS!L:L)) -> 0 | I50: c) | Q50: C | R50: =CONCATENATE(B50,Q50) -> C
C51: =+CONCATENATE(I51," ",G51) -> d) 0 | G51: =IF(J48="FIN","",LOOKUP(I47,DATOS!A:A,DATOS!M:M)) -> 0 | I51: d) | Q51: D | R51: =CONCATENATE(B51,Q51) -> D
C53: =+CONCATENATE(K53,".- ",G53) -> 9.- (Exa PER AI - 2019) | G53: =IF(J54="FIN","",LOOKUP(I53,DATOS!A:A,DATOS!G:G)) -> (Exa PER AI - 2019) | H53: =IF(J54="FIN",0,LOOKUP(I53,DATOS!A:A,DATOS!N:N)) -> 0 | I53: =+I47+1 -> 269 | J53: =IF(LOOKUP(I53,DATOS!A:A,DATOS!C:C)=0,J47,(LOOKUP(I53,DATOS!A:A,DATOS!C:C))) -> 4 | K53: =+K47+1 -> 9 | L53: ACIERTOS | M53: ERROR | N53: Ptos negativos | O53: RESPUESTAS | P53: Control Respuesta | Q53: OPCIONES | R53: =CONCATENATE("X",H53) -> X0 | S53: CONTROL SOLUCION
A54: =IF($E$2="X",0,IF(K55>2,H53,K55)) -> 0 | C54: =+CONCATENATE(I54," ",G54) -> a) 0 | G54: =IF(J54="FIN","",LOOKUP(I53,DATOS!A:A,DATOS!J:J)) -> 0 | I54: a) | J54: =IF(J48="FIN","FIN",IF(J53=J47,"","FIN")) ->  | K54: CONTROL | L54: =IF(M54>0,0,P54) -> 0 | M54: =IF(P55>0,1,0) -> 0 | N54: =IF(M54=1,-1/COUNTA(Q54:Q57),0) -> 0 | O54: =COUNTA(B54:B57) -> 0 | P54: =COUNTIF(R54:R57,R53) -> 0 | Q54: A | R54: =CONCATENATE(B54,Q54) -> A | S54: =IF(P54>0,P54+O54,O54*3) -> 0
C55: =+CONCATENATE(I55," ",G55) -> b) 0 | G55: =IF(J54="FIN","",LOOKUP(I53,DATOS!A:A,DATOS!K:K)) -> 0 | I55: b) | K55: =S54 -> 0 | P55: =O54-P54 -> 0 | Q55: B | R55: =CONCATENATE(B55,Q55) -> B
C56: =+CONCATENATE(I56," ",G56) -> c) 0 | G56: =IF(J54="FIN","",LOOKUP(I53,DATOS!A:A,DATOS!L:L)) -> 0 | I56: c) | Q56: C | R56: =CONCATENATE(B56,Q56) -> C
C57: =+CONCATENATE(I57," ",G57) -> d) 0 | G57: =IF(J54="FIN","",LOOKUP(I53,DATOS!A:A,DATOS!M:M)) -> 0 | I57: d) | Q57: D | R57: =CONCATENATE(B57,Q57) -> D
C59: =+CONCATENATE(K59,".- ",G59) -> 10.- (Exa PER AI - 2019) | G59: =IF(J60="FIN","",LOOKUP(I59,DATOS!A:A,DATOS!G:G)) -> (Exa PER AI - 2019) | H59: =IF(J60="FIN",0,LOOKUP(I59,DATOS!A:A,DATOS!N:N)) -> 0 | I59: =+I53+1 -> 270 | J59: =IF(LOOKUP(I59,DATOS!A:A,DATOS!C:C)=0,J53,(LOOKUP(I59,DATOS!A:A,DATOS!C:C))) -> 4 | K59: =+K53+1 -> 10 | L59: ACIERTOS | M59: ERROR | N59: Ptos negativos | O59: RESPUESTAS | P59: Control Respuesta | Q59: OPCIONES | R59: =CONCATENATE("X",H59) -> X0 | S59: CONTROL SOLUCION
A60: =IF($E$2="X",0,IF(K61>2,H59,K61)) -> 0 | C60: =+CONCATENATE(I60," ",G60) -> a) 0 | G60: =IF(J60="FIN","",LOOKUP(I59,DATOS!A:A,DATOS!J:J)) -> 0 | I60: a) | J60: =IF(J54="FIN","FIN",IF(J59=J53,"","FIN")) ->  | K60: CONTROL | L60: =IF(M60>0,0,P60) -> 0 | M60: =IF(P61>0,1,0) -> 0 | N60: =IF(M60=1,-1/COUNTA(Q60:Q63),0) -> 0 | O60: =COUNTA(B60:B63) -> 0 | P60: =COUNTIF(R60:R63,R59) -> 0 | Q60: A | R60: =CONCATENATE(B60,Q60) -> A | S60: =IF(P60>0,P60+O60,O60*3) -> 0
C61: =+CONCATENATE(I61," ",G61) -> b) 0 | G61: =IF(J60="FIN","",LOOKUP(I59,DATOS!A:A,DATOS!K:K)) -> 0 | I61: b) | K61: =S60 -> 0 | P61: =O60-P60 -> 0 | Q61: B | R61: =CONCATENATE(B61,Q61) -> B
C62: =+CONCATENATE(I62," ",G62) -> c) 0 | G62: =IF(J60="FIN","",LOOKUP(I59,DATOS!A:A,DATOS!L:L)) -> 0 | I62: c) | Q62: C | R62: =CONCATENATE(B62,Q62) -> C
C63: =+CONCATENATE(I63," ",G63) -> d) 0 | G63: =IF(J60="FIN","",LOOKUP(I59,DATOS!A:A,DATOS!M:M)) -> 0 | I63: d) | Q63: D | R63: =CONCATENATE(B63,Q63) -> D
C65: =+CONCATENATE(K65,".- ",G65) -> 11.- | G65: =IF(J66="FIN","",LOOKUP(I65,DATOS!A:A,DATOS!G:G)) ->  | H65: =IF(J66="FIN",0,LOOKUP(I65,DATOS!A:A,DATOS!N:N)) -> 0 | I65: =+I59+1 -> 271 | J65: =IF(LOOKUP(I65,DATOS!A:A,DATOS!C:C)=0,J59,(LOOKUP(I65,DATOS!A:A,DATOS!C:C))) -> 4 | K65: =+K59+1 -> 11 | L65: ACIERTOS | M65: ERROR | N65: Ptos negativos | O65: RESPUESTAS | P65: Control Respuesta | Q65: OPCIONES | R65: =CONCATENATE("X",H65) -> X0 | S65: CONTROL SOLUCION
A66: =IF($E$2="X",0,IF(K67>2,H65,K67)) -> 0 | C66: =+CONCATENATE(I66," ",G66) -> a) 0 | G66: =IF(J66="FIN","",LOOKUP(I65,DATOS!A:A,DATOS!J:J)) -> 0 | I66: a) | J66: =IF(J60="FIN","FIN",IF(J65=J59,"","FIN")) ->  | K66: CONTROL | L66: =IF(M66>0,0,P66) -> 0 | M66: =IF(P67>0,1,0) -> 0 | N66: =IF(M66=1,-1/COUNTA(Q66:Q69),0) -> 0 | O66: =COUNTA(B66:B69) -> 0 | P66: =COUNTIF(R66:R69,R65) -> 0 | Q66: A | R66: =CONCATENATE(B66,Q66) -> A | S66: =IF(P66>0,P66+O66,O66*3) -> 0
C67: =+CONCATENATE(I67," ",G67) -> b) 0 | G67: =IF(J66="FIN","",LOOKUP(I65,DATOS!A:A,DATOS!K:K)) -> 0 | I67: b) | K67: =S66 -> 0 | P67: =O66-P66 -> 0 | Q67: B | R67: =CONCATENATE(B67,Q67) -> B
C68: =+CONCATENATE(I68," ",G68) -> c) 0 | G68: =IF(J66="FIN","",LOOKUP(I65,DATOS!A:A,DATOS!L:L)) -> 0 | I68: c) | Q68: C | R68: =CONCATENATE(B68,Q68) -> C
C69: =+CONCATENATE(I69," ",G69) -> d) 0 | G69: =IF(J66="FIN","",LOOKUP(I65,DATOS!A:A,DATOS!M:M)) -> 0 | I69: d) | Q69: D | R69: =CONCATENATE(B69,Q69) -> D
C71: =+CONCATENATE(K71,".- ",G71) -> 12.- | G71: =IF(J72="FIN","",LOOKUP(I71,DATOS!A:A,DATOS!G:G)) ->  | H71: =IF(J72="FIN",0,LOOKUP(I71,DATOS!A:A,DATOS!N:N)) -> 0 | I71: =+I65+1 -> 272 | J71: =IF(LOOKUP(I71,DATOS!A:A,DATOS!C:C)=0,J65,(LOOKUP(I71,DATOS!A:A,DATOS!C:C))) -> 4 | K71: =+K65+1 -> 12 | L71: ACIERTOS | M71: ERROR | N71: Ptos negativos | O71: RESPUESTAS | P71: Control Respuesta | Q71: OPCIONES | R71: =CONCATENATE("X",H71) -> X0 | S71: CONTROL SOLUCION
A72: =IF($E$2="X",0,IF(K73>2,H71,K73)) -> 0 | C72: =+CONCATENATE(I72," ",G72) -> a) 0 | G72: =IF(J72="FIN","",LOOKUP(I71,DATOS!A:A,DATOS!J:J)) -> 0 | I72: a) | J72: =IF(J66="FIN","FIN",IF(J71=J65,"","FIN")) ->  | K72: CONTROL | L72: =IF(M72>0,0,P72) -> 0 | M72: =IF(P73>0,1,0) -> 0 | N72: =IF(M72=1,-1/COUNTA(Q72:Q75),0) -> 0 | O72: =COUNTA(B72:B75) -> 0 | P72: =COUNTIF(R72:R75,R71) -> 0 | Q72: A | R72: =CONCATENATE(B72,Q72) -> A | S72: =IF(P72>0,P72+O72,O72*3) -> 0
C73: =+CONCATENATE(I73," ",G73) -> b) 0 | G73: =IF(J72="FIN","",LOOKUP(I71,DATOS!A:A,DATOS!K:K)) -> 0 | I73: b) | K73: =S72 -> 0 | P73: =O72-P72 -> 0 | Q73: B | R73: =CONCATENATE(B73,Q73) -> B
C74: =+CONCATENATE(I74," ",G74) -> c) 0 | G74: =IF(J72="FIN","",LOOKUP(I71,DATOS!A:A,DATOS!L:L)) -> 0 | I74: c) | Q74: C | R74: =CONCATENATE(B74,Q74) -> C
C75: =+CONCATENATE(I75," ",G75) -> d) 0 | G75: =IF(J72="FIN","",LOOKUP(I71,DATOS!A:A,DATOS!M:M)) -> 0 | I75: d) | Q75: D | R75: =CONCATENATE(B75,Q75) -> D
C77: =+CONCATENATE(K77,".- ",G77) -> 13.- | G77: =IF(J78="FIN","",LOOKUP(I77,DATOS!A:A,DATOS!G:G)) ->  | H77: =IF(J78="FIN",0,LOOKUP(I77,DATOS!A:A,DATOS!N:N)) -> 0 | I77: =+I71+1 -> 273 | J77: =IF(LOOKUP(I77,DATOS!A:A,DATOS!C:C)=0,J71,(LOOKUP(I77,DATOS!A:A,DATOS!C:C))) -> 4 | K77: =+K71+1 -> 13 | L77: ACIERTOS | M77: ERROR | N77: Ptos negativos | O77: RESPUESTAS | P77: Control Respuesta | Q77: OPCIONES | R77: =CONCATENATE("X",H77) -> X0 | S77: CONTROL SOLUCION
A78: =IF($E$2="X",0,IF(K79>2,H77,K79)) -> 0 | C78: =+CONCATENATE(I78," ",G78) -> a) 0 | G78: =IF(J78="FIN","",LOOKUP(I77,DATOS!A:A,DATOS!J:J)) -> 0 | I78: a) | J78: =IF(J72="FIN","FIN",IF(J77=J71,"","FIN")) ->  | K78: CONTROL | L78: =IF(M78>0,0,P78) -> 0 | M78: =IF(P79>0,1,0) -> 0 | N78: =IF(M78=1,-1/COUNTA(Q78:Q81),0) -> 0 | O78: =COUNTA(B78:B81) -> 0 | P78: =COUNTIF(R78:R81,R77) -> 0 | Q78: A | R78: =CONCATENATE(B78,Q78) -> A | S78: =IF(P78>0,P78+O78,O78*3) -> 0
C79: =+CONCATENATE(I79," ",G79) -> b) 0 | G79: =IF(J78="FIN","",LOOKUP(I77,DATOS!A:A,DATOS!K:K)) -> 0 | I79: b) | K79: =S78 -> 0 | P79: =O78-P78 -> 0 | Q79: B | R79: =CONCATENATE(B79,Q79) -> B
C80: =+CONCATENATE(I80," ",G80) -> c) 0 | G80: =IF(J78="FIN","",LOOKUP(I77,DATOS!A:A,DATOS!L:L)) -> 0 | I80: c) | Q80: C | R80: =CONCATENATE(B80,Q80) -> C
C81: =+CONCATENATE(I81," ",G81) -> d) 0 | G81: =IF(J78="FIN","",LOOKUP(I77,DATOS!A:A,DATOS!M:M)) -> 0 | I81: d) | Q81: D | R81: =CONCATENATE(B81,Q81) -> D
C83: =+CONCATENATE(K83,".- ",G83) -> 14.- | G83: =IF(J84="FIN","",LOOKUP(I83,DATOS!A:A,DATOS!G:G)) ->  | H83: =IF(J84="FIN",0,LOOKUP(I83,DATOS!A:A,DATOS!N:N)) -> 0 | I83: =+I77+1 -> 274 | J83: =IF(LOOKUP(I83,DATOS!A:A,DATOS!C:C)=0,J77,(LOOKUP(I83,DATOS!A:A,DATOS!C:C))) -> 4 | K83: =+K77+1 -> 14 | L83: ACIERTOS | M83: ERROR | N83: Ptos negativos | O83: RESPUESTAS | P83: Control Respuesta | Q83: OPCIONES | R83: =CONCATENATE("X",H83) -> X0 | S83: CONTROL SOLUCION
A84: =IF($E$2="X",0,IF(K85>2,H83,K85)) -> 0 | C84: =+CONCATENATE(I84," ",G84) -> a) 0 | G84: =IF(J84="FIN","",LOOKUP(I83,DATOS!A:A,DATOS!J:J)) -> 0 | I84: a) | J84: =IF(J78="FIN","FIN",IF(J83=J77,"","FIN")) ->  | K84: CONTROL | L84: =IF(M84>0,0,P84) -> 0 | M84: =IF(P85>0,1,0) -> 0 | N84: =IF(M84=1,-1/COUNTA(Q84:Q87),0) -> 0 | O84: =COUNTA(B84:B87) -> 0 | P84: =COUNTIF(R84:R87,R83) -> 0 | Q84: A | R84: =CONCATENATE(B84,Q84) -> A | S84: =IF(P84>0,P84+O84,O84*3) -> 0
C85: =+CONCATENATE(I85," ",G85) -> b) 0 | G85: =IF(J84="FIN","",LOOKUP(I83,DATOS!A:A,DATOS!K:K)) -> 0 | I85: b) | K85: =S84 -> 0 | P85: =O84-P84 -> 0 | Q85: B | R85: =CONCATENATE(B85,Q85) -> B
C86: =+CONCATENATE(I86," ",G86) -> c) 0 | G86: =IF(J84="FIN","",LOOKUP(I83,DATOS!A:A,DATOS!L:L)) -> 0 | I86: c) | Q86: C | R86: =CONCATENATE(B86,Q86) -> C
C87: =+CONCATENATE(I87," ",G87) -> d) 0 | G87: =IF(J84="FIN","",LOOKUP(I83,DATOS!A:A,DATOS!M:M)) -> 0 | I87: d) | Q87: D | R87: =CONCATENATE(B87,Q87) -> D
C89: =+CONCATENATE(K89,".- ",G89) -> 15.- | G89: =IF(J90="FIN","",LOOKUP(I89,DATOS!A:A,DATOS!G:G)) ->  | H89: =IF(J90="FIN",0,LOOKUP(I89,DATOS!A:A,DATOS!N:N)) -> 0 | I89: =+I83+1 -> 275 | J89: =IF(LOOKUP(I89,DATOS!A:A,DATOS!C:C)=0,J83,(LOOKUP(I89,DATOS!A:A,DATOS!C:C))) -> 4 | K89: =+K83+1 -> 15 | L89: ACIERTOS | M89: ERROR | N89: Ptos negativos | O89: RESPUESTAS | P89: Control Respuesta | Q89: OPCIONES | R89: =CONCATENATE("X",H89) -> X0 | S89: CONTROL SOLUCION
A90: =IF($E$2="X",0,IF(K91>2,H89,K91)) -> 0 | C90: =+CONCATENATE(I90," ",G90) -> a) 0 | G90: =IF(J90="FIN","",LOOKUP(I89,DATOS!A:A,DATOS!J:J)) -> 0 | I90: a) | J90: =IF(J84="FIN","FIN",IF(J89=J83,"","FIN")) ->  | K90: CONTROL | L90: =IF(M90>0,0,P90) -> 0 | M90: =IF(P91>0,1,0) -> 0 | N90: =IF(M90=1,-1/COUNTA(Q90:Q93),0) -> 0 | O90: =COUNTA(B90:B93) -> 0 | P90: =COUNTIF(R90:R93,R89) -> 0 | Q90: A | R90: =CONCATENATE(B90,Q90) -> A | S90: =IF(P90>0,P90+O90,O90*3) -> 0
C91: =+CONCATENATE(I91," ",G91) -> b) 0 | G91: =IF(J90="FIN","",LOOKUP(I89,DATOS!A:A,DATOS!K:K)) -> 0 | I91: b) | K91: =S90 -> 0 | P91: =O90-P90 -> 0 | Q91: B | R91: =CONCATENATE(B91,Q91) -> B
C92: =+CONCATENATE(I92," ",G92) -> c) 0 | G92: =IF(J90="FIN","",LOOKUP(I89,DATOS!A:A,DATOS!L:L)) -> 0 | I92: c) | Q92: C | R92: =CONCATENATE(B92,Q92) -> C
C93: =+CONCATENATE(I93," ",G93) -> d) 0 | G93: =IF(J90="FIN","",LOOKUP(I89,DATOS!A:A,DATOS!M:M)) -> 0 | I93: d) | Q93: D | R93: =CONCATENATE(B93,Q93) -> D
C95: =+CONCATENATE(K95,".- ",G95) -> 16.- | G95: =IF(J96="FIN","",LOOKUP(I95,DATOS!A:A,DATOS!G:G)) ->  | H95: =IF(J96="FIN",0,LOOKUP(I95,DATOS!A:A,DATOS!N:N)) -> 0 | I95: =+I89+1 -> 276 | J95: =IF(LOOKUP(I95,DATOS!A:A,DATOS!C:C)=0,J89,(LOOKUP(I95,DATOS!A:A,DATOS!C:C))) -> 4 | K95: =+K89+1 -> 16 | L95: ACIERTOS | M95: ERROR | N95: Ptos negativos | O95: RESPUESTAS | P95: Control Respuesta | Q95: OPCIONES | R95: =CONCATENATE("X",H95) -> X0 | S95: CONTROL SOLUCION
A96: =IF($E$2="X",0,IF(K97>2,H95,K97)) -> 0 | C96: =+CONCATENATE(I96," ",G96) -> a) 0 | G96: =IF(J96="FIN","",LOOKUP(I95,DATOS!A:A,DATOS!J:J)) -> 0 | I96: a) | J96: =IF(J90="FIN","FIN",IF(J95=J89,"","FIN")) ->  | K96: CONTROL | L96: =IF(M96>0,0,P96) -> 0 | M96: =IF(P97>0,1,0) -> 0 | N96: =IF(M96=1,-1/COUNTA(Q96:Q99),0) -> 0 | O96: =COUNTA(B96:B99) -> 0 | P96: =COUNTIF(R96:R99,R95) -> 0 | Q96: A | R96: =CONCATENATE(B96,Q96) -> A | S96: =IF(P96>0,P96+O96,O96*3) -> 0
C97: =+CONCATENATE(I97," ",G97) -> b) 0 | G97: =IF(J96="FIN","",LOOKUP(I95,DATOS!A:A,DATOS!K:K)) -> 0 | I97: b) | K97: =S96 -> 0 | P97: =O96-P96 -> 0 | Q97: B | R97: =CONCATENATE(B97,Q97) -> B
C98: =+CONCATENATE(I98," ",G98) -> c) 0 | G98: =IF(J96="FIN","",LOOKUP(I95,DATOS!A:A,DATOS!L:L)) -> 0 | I98: c) | Q98: C | R98: =CONCATENATE(B98,Q98) -> C
C99: =+CONCATENATE(I99," ",G99) -> d) 0 | G99: =IF(J96="FIN","",LOOKUP(I95,DATOS!A:A,DATOS!M:M)) -> 0 | I99: d) | Q99: D | R99: =CONCATENATE(B99,Q99) -> D
C101: =+CONCATENATE(K101,".- ",G101) -> 17.- | G101: =IF(J102="FIN","",LOOKUP(I101,DATOS!A:A,DATOS!G:G)) ->  | H101: =IF(J102="FIN",0,LOOKUP(I101,DATOS!A:A,DATOS!N:N)) -> 0 | I101: =+I95+1 -> 277 | J101: =IF(LOOKUP(I101,DATOS!A:A,DATOS!C:C)=0,J95,(LOOKUP(I101,DATOS!A:A,DATOS!C:C))) -> 4 | K101: =+K95+1 -> 17 | L101: ACIERTOS | M101: ERROR | N101: Ptos negativos | O101: RESPUESTAS | P101: Control Respuesta | Q101: OPCIONES | R101: =CONCATENATE("X",H101) -> X0 | S101: CONTROL SOLUCION
A102: =IF($E$2="X",0,IF(K103>2,H101,K103)) -> 0 | C102: =+CONCATENATE(I102," ",G102) -> a) 0 | G102: =IF(J102="FIN","",LOOKUP(I101,DATOS!A:A,DATOS!J:J)) -> 0 | I102: a) | J102: =IF(J96="FIN","FIN",IF(J101=J95,"","FIN")) ->  | K102: CONTROL | L102: =IF(M102>0,0,P102) -> 0 | M102: =IF(P103>0,1,0) -> 0 | N102: =IF(M102=1,-1/COUNTA(Q102:Q105),0) -> 0 | O102: =COUNTA(B102:B105) -> 0 | P102: =COUNTIF(R102:R105,R101) -> 0 | Q102: A | R102: =CONCATENATE(B102,Q102) -> A | S102: =IF(P102>0,P102+O102,O102*3) -> 0
C103: =+CONCATENATE(I103," ",G103) -> b) 0 | G103: =IF(J102="FIN","",LOOKUP(I101,DATOS!A:A,DATOS!K:K)) -> 0 | I103: b) | K103: =S102 -> 0 | P103: =O102-P102 -> 0 | Q103: B | R103: =CONCATENATE(B103,Q103) -> B
C104: =+CONCATENATE(I104," ",G104) -> c) 0 | G104: =IF(J102="FIN","",LOOKUP(I101,DATOS!A:A,DATOS!L:L)) -> 0 | I104: c) | Q104: C | R104: =CONCATENATE(B104,Q104) -> C
C105: =+CONCATENATE(I105," ",G105) -> d) 0 | G105: =IF(J102="FIN","",LOOKUP(I101,DATOS!A:A,DATOS!M:M)) -> 0 | I105: d) | Q105: D | R105: =CONCATENATE(B105,Q105) -> D
C107: =+CONCATENATE(K107,".- ",G107) -> 18.- | G107: =IF(J108="FIN","",LOOKUP(I107,DATOS!A:A,DATOS!G:G)) ->  | H107: =IF(J108="FIN",0,LOOKUP(I107,DATOS!A:A,DATOS!N:N)) -> 0 | I107: =+I101+1 -> 278 | J107: =IF(LOOKUP(I107,DATOS!A:A,DATOS!C:C)=0,J101,(LOOKUP(I107,DATOS!A:A,DATOS!C:C))) -> 4 | K107: =+K101+1 -> 18 | L107: ACIERTOS | M107: ERROR | N107: Ptos negativos | O107: RESPUESTAS | P107: Control Respuesta | Q107: OPCIONES | R107: =CONCATENATE("X",H107) -> X0 | S107: CONTROL SOLUCION
A108: =IF($E$2="X",0,IF(K109>2,H107,K109)) -> 0 | C108: =+CONCATENATE(I108," ",G108) -> a) 0 | G108: =IF(J108="FIN","",LOOKUP(I107,DATOS!A:A,DATOS!J:J)) -> 0 | I108: a) | J108: =IF(J102="FIN","FIN",IF(J107=J101,"","FIN")) ->  | K108: CONTROL | L108: =IF(M108>0,0,P108) -> 0 | M108: =IF(P109>0,1,0) -> 0 | N108: =IF(M108=1,-1/COUNTA(Q108:Q111),0) -> 0 | O108: =COUNTA(B108:B111) -> 0 | P108: =COUNTIF(R108:R111,R107) -> 0 | Q108: A | R108: =CONCATENATE(B108,Q108) -> A | S108: =IF(P108>0,P108+O108,O108*3) -> 0
C109: =+CONCATENATE(I109," ",G109) -> b) 0 | G109: =IF(J108="FIN","",LOOKUP(I107,DATOS!A:A,DATOS!K:K)) -> 0 | I109: b) | K109: =S108 -> 0 | P109: =O108-P108 -> 0 | Q109: B | R109: =CONCATENATE(B109,Q109) -> B
C110: =+CONCATENATE(I110," ",G110) -> c) 0 | G110: =IF(J108="FIN","",LOOKUP(I107,DATOS!A:A,DATOS!L:L)) -> 0 | I110: c) | Q110: C | R110: =CONCATENATE(B110,Q110) -> C
C111: =+CONCATENATE(I111," ",G111) -> d) 0 | G111: =IF(J108="FIN","",LOOKUP(I107,DATOS!A:A,DATOS!M:M)) -> 0 | I111: d) | Q111: D | R111: =CONCATENATE(B111,Q111) -> D
C113: =+CONCATENATE(K113,".- ",G113) -> 19.- | G113: =IF(J114="FIN","",LOOKUP(I113,DATOS!A:A,DATOS!G:G)) ->  | H113: =IF(J114="FIN",0,LOOKUP(I113,DATOS!A:A,DATOS!N:N)) -> 0 | I113: =+I107+1 -> 279 | J113: =IF(LOOKUP(I113,DATOS!A:A,DATOS!C:C)=0,J107,(LOOKUP(I113,DATOS!A:A,DATOS!C:C))) -> 4 | K113: =+K107+1 -> 19 | L113: ACIERTOS | M113: ERROR | N113: Ptos negativos | O113: RESPUESTAS | P113: Control Respuesta | Q113: OPCIONES | R113: =CONCATENATE("X",H113) -> X0 | S113: CONTROL SOLUCION
A114: =IF($E$2="X",0,IF(K115>2,H113,K115)) -> 0 | C114: =+CONCATENATE(I114," ",G114) -> a) 0 | G114: =IF(J114="FIN","",LOOKUP(I113,DATOS!A:A,DATOS!J:J)) -> 0 | I114: a) | J114: =IF(J108="FIN","FIN",IF(J113=J107,"","FIN")) ->  | K114: CONTROL | L114: =IF(M114>0,0,P114) -> 0 | M114: =IF(P115>0,1,0) -> 0 | N114: =IF(M114=1,-1/COUNTA(Q114:Q117),0) -> 0 | O114: =COUNTA(B114:B117) -> 0 | P114: =COUNTIF(R114:R117,R113) -> 0 | Q114: A | R114: =CONCATENATE(B114,Q114) -> A | S114: =IF(P114>0,P114+O114,O114*3) -> 0
C115: =+CONCATENATE(I115," ",G115) -> b) 0 | G115: =IF(J114="FIN","",LOOKUP(I113,DATOS!A:A,DATOS!K:K)) -> 0 | I115: b) | K115: =S114 -> 0 | P115: =O114-P114 -> 0 | Q115: B | R115: =CONCATENATE(B115,Q115) -> B
C116: =+CONCATENATE(I116," ",G116) -> c) 0 | G116: =IF(J114="FIN","",LOOKUP(I113,DATOS!A:A,DATOS!L:L)) -> 0 | I116: c) | Q116: C | R116: =CONCATENATE(B116,Q116) -> C
C117: =+CONCATENATE(I117," ",G117) -> d) 0 | G117: =IF(J114="FIN","",LOOKUP(I113,DATOS!A:A,DATOS!M:M)) -> 0 | I117: d) | Q117: D | R117: =CONCATENATE(B117,Q117) -> D
C119: =+CONCATENATE(K119,".- ",G119) -> 20.- | G119: =IF(J120="FIN","",LOOKUP(I119,DATOS!A:A,DATOS!G:G)) ->  | H119: =IF(J120="FIN",0,LOOKUP(I119,DATOS!A:A,DATOS!N:N)) -> 0 | I119: =+I113+1 -> 280 | J119: =IF(LOOKUP(I119,DATOS!A:A,DATOS!C:C)=0,J113,(LOOKUP(I119,DATOS!A:A,DATOS!C:C))) -> 4 | K119: =+K113+1 -> 20 | L119: ACIERTOS | M119: ERROR | N119: Ptos negativos | O119: RESPUESTAS | P119: Control Respuesta | Q119: OPCIONES | R119: =CONCATENATE("X",H119) -> X0 | S119: CONTROL SOLUCION
A120: =IF($E$2="X",0,IF(K121>2,H119,K121)) -> 0 | C120: =+CONCATENATE(I120," ",G120) -> a) 0 | G120: =IF(J120="FIN","",LOOKUP(I119,DATOS!A:A,DATOS!J:J)) -> 0 | I120: a) | J120: =IF(J114="FIN","FIN",IF(J119=J113,"","FIN")) ->  | K120: CONTROL | L120: =IF(M120>0,0,P120) -> 0 | M120: =IF(P121>0,1,0) -> 0 | N120: =IF(M120=1,-1/COUNTA(Q120:Q123),0) -> 0 | O120: =COUNTA(B120:B123) -> 0 | P120: =COUNTIF(R120:R123,R119) -> 0 | Q120: A | R120: =CONCATENATE(B120,Q120) -> A | S120: =IF(P120>0,P120+O120,O120*3) -> 0
C121: =+CONCATENATE(I121," ",G121) -> b) 0 | G121: =IF(J120="FIN","",LOOKUP(I119,DATOS!A:A,DATOS!K:K)) -> 0 | I121: b) | K121: =S120 -> 0 | P121: =O120-P120 -> 0 | Q121: B | R121: =CONCATENATE(B121,Q121) -> B
C122: =+CONCATENATE(I122," ",G122) -> c) 0 | G122: =IF(J120="FIN","",LOOKUP(I119,DATOS!A:A,DATOS!L:L)) -> 0 | I122: c) | Q122: C | R122: =CONCATENATE(B122,Q122) -> C
C123: =+CONCATENATE(I123," ",G123) -> d) 0 | G123: =IF(J120="FIN","",LOOKUP(I119,DATOS!A:A,DATOS!M:M)) -> 0 | I123: d) | Q123: D | R123: =CONCATENATE(B123,Q123) -> D
C125: =+CONCATENATE(K125,".- ",G125) -> 21.- | G125: =IF(J126="FIN","",LOOKUP(I125,DATOS!A:A,DATOS!G:G)) ->  | H125: =IF(J126="FIN",0,LOOKUP(I125,DATOS!A:A,DATOS!N:N)) -> 0 | I125: =+I119+1 -> 281 | J125: =IF(LOOKUP(I125,DATOS!A:A,DATOS!C:C)=0,J119,(LOOKUP(I125,DATOS!A:A,DATOS!C:C))) -> 4 | K125: =+K119+1 -> 21 | L125: ACIERTOS | M125: ERROR | N125: Ptos negativos | O125: RESPUESTAS | P125: Control Respuesta | Q125: OPCIONES | R125: =CONCATENATE("X",H125) -> X0 | S125: CONTROL SOLUCION
A126: =IF($E$2="X",0,IF(K127>2,H125,K127)) -> 0 | C126: =+CONCATENATE(I126," ",G126) -> a) 0 | G126: =IF(J126="FIN","",LOOKUP(I125,DATOS!A:A,DATOS!J:J)) -> 0 | I126: a) | J126: =IF(J120="FIN","FIN",IF(J125=J119,"","FIN")) ->  | K126: CONTROL | L126: =IF(M126>0,0,P126) -> 0 | M126: =IF(P127>0,1,0) -> 0 | N126: =IF(M126=1,-1/COUNTA(Q126:Q129),0) -> 0 | O126: =COUNTA(B126:B129) -> 0 | P126: =COUNTIF(R126:R129,R125) -> 0 | Q126: A | R126: =CONCATENATE(B126,Q126) -> A | S126: =IF(P126>0,P126+O126,O126*3) -> 0
C127: =+CONCATENATE(I127," ",G127) -> b) 0 | G127: =IF(J126="FIN","",LOOKUP(I125,DATOS!A:A,DATOS!K:K)) -> 0 | I127: b) | K127: =S126 -> 0 | P127: =O126-P126 -> 0 | Q127: B | R127: =CONCATENATE(B127,Q127) -> B
C128: =+CONCATENATE(I128," ",G128) -> c) 0 | G128: =IF(J126="FIN","",LOOKUP(I125,DATOS!A:A,DATOS!L:L)) -> 0 | I128: c) | Q128: C | R128: =CONCATENATE(B128,Q128) -> C
C129: =+CONCATENATE(I129," ",G129) -> d) 0 | G129: =IF(J126="FIN","",LOOKUP(I125,DATOS!A:A,DATOS!M:M)) -> 0 | I129: d) | Q129: D | R129: =CONCATENATE(B129,Q129) -> D
C131: =+CONCATENATE(K131,".- ",G131) -> 22.- | G131: =IF(J132="FIN","",LOOKUP(I131,DATOS!A:A,DATOS!G:G)) ->  | H131: =IF(J132="FIN",0,LOOKUP(I131,DATOS!A:A,DATOS!N:N)) -> 0 | I131: =+I125+1 -> 282 | J131: =IF(LOOKUP(I131,DATOS!A:A,DATOS!C:C)=0,J125,(LOOKUP(I131,DATOS!A:A,DATOS!C:C))) -> 4 | K131: =+K125+1 -> 22 | L131: ACIERTOS | M131: ERROR | N131: Ptos negativos | O131: RESPUESTAS | P131: Control Respuesta | Q131: OPCIONES | R131: =CONCATENATE("X",H131) -> X0 | S131: CONTROL SOLUCION
A132: =IF($E$2="X",0,IF(K133>2,H131,K133)) -> 0 | C132: =+CONCATENATE(I132," ",G132) -> a) 0 | G132: =IF(J132="FIN","",LOOKUP(I131,DATOS!A:A,DATOS!J:J)) -> 0 | I132: a) | J132: =IF(J126="FIN","FIN",IF(J131=J125,"","FIN")) ->  | K132: CONTROL | L132: =IF(M132>0,0,P132) -> 0 | M132: =IF(P133>0,1,0) -> 0 | N132: =IF(M132=1,-1/COUNTA(Q132:Q135),0) -> 0 | O132: =COUNTA(B132:B135) -> 0 | P132: =COUNTIF(R132:R135,R131) -> 0 | Q132: A | R132: =CONCATENATE(B132,Q132) -> A | S132: =IF(P132>0,P132+O132,O132*3) -> 0
C133: =+CONCATENATE(I133," ",G133) -> b) 0 | G133: =IF(J132="FIN","",LOOKUP(I131,DATOS!A:A,DATOS!K:K)) -> 0 | I133: b) | K133: =S132 -> 0 | P133: =O132-P132 -> 0 | Q133: B | R133: =CONCATENATE(B133,Q133) -> B
C134: =+CONCATENATE(I134," ",G134) -> c) 0 | G134: =IF(J132="FIN","",LOOKUP(I131,DATOS!A:A,DATOS!L:L)) -> 0 | I134: c) | Q134: C | R134: =CONCATENATE(B134,Q134) -> C
C135: =+CONCATENATE(I135," ",G135) -> d) 0 | G135: =IF(J132="FIN","",LOOKUP(I131,DATOS!A:A,DATOS!M:M)) -> 0 | I135: d) | Q135: D | R135: =CONCATENATE(B135,Q135) -> D
C137: =+CONCATENATE(K137,".- ",G137) -> 23.- | G137: =IF(J138="FIN","",LOOKUP(I137,DATOS!A:A,DATOS!G:G)) ->  | H137: =IF(J138="FIN",0,LOOKUP(I137,DATOS!A:A,DATOS!N:N)) -> 0 | I137: =+I131+1 -> 283 | J137: =IF(LOOKUP(I137,DATOS!A:A,DATOS!C:C)=0,J131,(LOOKUP(I137,DATOS!A:A,DATOS!C:C))) -> 4 | K137: =+K131+1 -> 23 | L137: ACIERTOS | M137: ERROR | N137: Ptos negativos | O137: RESPUESTAS | P137: Control Respuesta | Q137: OPCIONES | R137: =CONCATENATE("X",H137) -> X0 | S137: CONTROL SOLUCION
A138: =IF($E$2="X",0,IF(K139>2,H137,K139)) -> 0 | C138: =+CONCATENATE(I138," ",G138) -> a) 0 | G138: =IF(J138="FIN","",LOOKUP(I137,DATOS!A:A,DATOS!J:J)) -> 0 | I138: a) | J138: =IF(J132="FIN","FIN",IF(J137=J131,"","FIN")) ->  | K138: CONTROL | L138: =IF(M138>0,0,P138) -> 0 | M138: =IF(P139>0,1,0) -> 0 | N138: =IF(M138=1,-1/COUNTA(Q138:Q141),0) -> 0 | O138: =COUNTA(B138:B141) -> 0 | P138: =COUNTIF(R138:R141,R137) -> 0 | Q138: A | R138: =CONCATENATE(B138,Q138) -> A | S138: =IF(P138>0,P138+O138,O138*3) -> 0
C139: =+CONCATENATE(I139," ",G139) -> b) 0 | G139: =IF(J138="FIN","",LOOKUP(I137,DATOS!A:A,DATOS!K:K)) -> 0 | I139: b) | K139: =S138 -> 0 | P139: =O138-P138 -> 0 | Q139: B | R139: =CONCATENATE(B139,Q139) -> B
C140: =+CONCATENATE(I140," ",G140) -> c) 0 | G140: =IF(J138="FIN","",LOOKUP(I137,DATOS!A:A,DATOS!L:L)) -> 0 | I140: c) | Q140: C | R140: =CONCATENATE(B140,Q140) -> C
C141: =+CONCATENATE(I141," ",G141) -> d) 0 | G141: =IF(J138="FIN","",LOOKUP(I137,DATOS!A:A,DATOS!M:M)) -> 0 | I141: d) | Q141: D | R141: =CONCATENATE(B141,Q141) -> D
C143: =+CONCATENATE(K143,".- ",G143) -> 24.- | G143: =IF(J144="FIN","",LOOKUP(I143,DATOS!A:A,DATOS!G:G)) ->  | H143: =IF(J144="FIN",0,LOOKUP(I143,DATOS!A:A,DATOS!N:N)) -> 0 | I143: =+I137+1 -> 284 | J143: =IF(LOOKUP(I143,DATOS!A:A,DATOS!C:C)=0,J137,(LOOKUP(I143,DATOS!A:A,DATOS!C:C))) -> 4 | K143: =+K137+1 -> 24 | L143: ACIERTOS | M143: ERROR | N143: Ptos negativos | O143: RESPUESTAS | P143: Control Respuesta | Q143: OPCIONES | R143: =CONCATENATE("X",H143) -> X0 | S143: CONTROL SOLUCION
A144: =IF($E$2="X",0,IF(K145>2,H143,K145)) -> 0 | C144: =+CONCATENATE(I144," ",G144) -> a) 0 | G144: =IF(J144="FIN","",LOOKUP(I143,DATOS!A:A,DATOS!J:J)) -> 0 | I144: a) | J144: =IF(J138="FIN","FIN",IF(J143=J137,"","FIN")) ->  | K144: CONTROL | L144: =IF(M144>0,0,P144) -> 0 | M144: =IF(P145>0,1,0) -> 0 | N144: =IF(M144=1,-1/COUNTA(Q144:Q147),0) -> 0 | O144: =COUNTA(B144:B147) -> 0 | P144: =COUNTIF(R144:R147,R143) -> 0 | Q144: A | R144: =CONCATENATE(B144,Q144) -> A | S144: =IF(P144>0,P144+O144,O144*3) -> 0
C145: =+CONCATENATE(I145," ",G145) -> b) 0 | G145: =IF(J144="FIN","",LOOKUP(I143,DATOS!A:A,DATOS!K:K)) -> 0 | I145: b) | K145: =S144 -> 0 | P145: =O144-P144 -> 0 | Q145: B | R145: =CONCATENATE(B145,Q145) -> B
C146: =+CONCATENATE(I146," ",G146) -> c) 0 | G146: =IF(J144="FIN","",LOOKUP(I143,DATOS!A:A,DATOS!L:L)) -> 0 | I146: c) | Q146: C | R146: =CONCATENATE(B146,Q146) -> C
C147: =+CONCATENATE(I147," ",G147) -> d) 0 | G147: =IF(J144="FIN","",LOOKUP(I143,DATOS!A:A,DATOS!M:M)) -> 0 | I147: d) | Q147: D | R147: =CONCATENATE(B147,Q147) -> D
C149: =+CONCATENATE(K149,".- ",G149) -> 25.- | G149: =IF(J150="FIN","",LOOKUP(I149,DATOS!A:A,DATOS!G:G)) ->  | H149: =IF(J150="FIN",0,LOOKUP(I149,DATOS!A:A,DATOS!N:N)) -> 0 | I149: =+I143+1 -> 285 | J149: =IF(LOOKUP(I149,DATOS!A:A,DATOS!C:C)=0,J143,(LOOKUP(I149,DATOS!A:A,DATOS!C:C))) -> 4 | K149: =+K143+1 -> 25 | L149: ACIERTOS | M149: ERROR | N149: Ptos negativos | O149: RESPUESTAS | P149: Control Respuesta | Q149: OPCIONES | R149: =CONCATENATE("X",H149) -> X0 | S149: CONTROL SOLUCION
A150: =IF($E$2="X",0,IF(K151>2,H149,K151)) -> 0 | C150: =+CONCATENATE(I150," ",G150) -> a) 0 | G150: =IF(J150="FIN","",LOOKUP(I149,DATOS!A:A,DATOS!J:J)) -> 0 | I150: a) | J150: =IF(J144="FIN","FIN",IF(J149=J143,"","FIN")) ->  | K150: CONTROL | L150: =IF(M150>0,0,P150) -> 0 | M150: =IF(P151>0,1,0) -> 0 | N150: =IF(M150=1,-1/COUNTA(Q150:Q153),0) -> 0 | O150: =COUNTA(B150:B153) -> 0 | P150: =COUNTIF(R150:R153,R149) -> 0 | Q150: A | R150: =CONCATENATE(B150,Q150) -> A | S150: =IF(P150>0,P150+O150,O150*3) -> 0
C151: =+CONCATENATE(I151," ",G151) -> b) 0 | G151: =IF(J150="FIN","",LOOKUP(I149,DATOS!A:A,DATOS!K:K)) -> 0 | I151: b) | K151: =S150 -> 0 | P151: =O150-P150 -> 0 | Q151: B | R151: =CONCATENATE(B151,Q151) -> B
C152: =+CONCATENATE(I152," ",G152) -> c) 0 | G152: =IF(J150="FIN","",LOOKUP(I149,DATOS!A:A,DATOS!L:L)) -> 0 | I152: c) | Q152: C | R152: =CONCATENATE(B152,Q152) -> C
C153: =+CONCATENATE(I153," ",G153) -> d) 0 | G153: =IF(J150="FIN","",LOOKUP(I149,DATOS!A:A,DATOS!M:M)) -> 0 | I153: d) | Q153: D | R153: =CONCATENATE(B153,Q153) -> D
C155: =+CONCATENATE(K155,".- ",G155) -> 26.- | G155: =IF(J156="FIN","",LOOKUP(I155,DATOS!A:A,DATOS!G:G)) ->  | H155: =IF(J156="FIN",0,LOOKUP(I155,DATOS!A:A,DATOS!N:N)) -> 0 | I155: =+I149+1 -> 286 | J155: =IF(LOOKUP(I155,DATOS!A:A,DATOS!C:C)=0,J149,(LOOKUP(I155,DATOS!A:A,DATOS!C:C))) -> 4 | K155: =+K149+1 -> 26 | L155: ACIERTOS | M155: ERROR | N155: Ptos negativos | O155: RESPUESTAS | P155: Control Respuesta | Q155: OPCIONES | R155: =CONCATENATE("X",H155) -> X0 | S155: CONTROL SOLUCION
A156: =IF($E$2="X",0,IF(K157>2,H155,K157)) -> 0 | C156: =+CONCATENATE(I156," ",G156) -> a) 0 | G156: =IF(J156="FIN","",LOOKUP(I155,DATOS!A:A,DATOS!J:J)) -> 0 | I156: a) | J156: =IF(J150="FIN","FIN",IF(J155=J149,"","FIN")) ->  | K156: CONTROL | L156: =IF(M156>0,0,P156) -> 0 | M156: =IF(P157>0,1,0) -> 0 | N156: =IF(M156=1,-1/COUNTA(Q156:Q159),0) -> 0 | O156: =COUNTA(B156:B159) -> 0 | P156: =COUNTIF(R156:R159,R155) -> 0 | Q156: A | R156: =CONCATENATE(B156,Q156) -> A | S156: =IF(P156>0,P156+O156,O156*3) -> 0
C157: =+CONCATENATE(I157," ",G157) -> b) 0 | G157: =IF(J156="FIN","",LOOKUP(I155,DATOS!A:A,DATOS!K:K)) -> 0 | I157: b) | K157: =S156 -> 0 | P157: =O156-P156 -> 0 | Q157: B | R157: =CONCATENATE(B157,Q157) -> B
C158: =+CONCATENATE(I158," ",G158) -> c) 0 | G158: =IF(J156="FIN","",LOOKUP(I155,DATOS!A:A,DATOS!L:L)) -> 0 | I158: c) | Q158: C | R158: =CONCATENATE(B158,Q158) -> C
C159: =+CONCATENATE(I159," ",G159) -> d) 0 | G159: =IF(J156="FIN","",LOOKUP(I155,DATOS!A:A,DATOS!M:M)) -> 0 | I159: d) | Q159: D | R159: =CONCATENATE(B159,Q159) -> D
C161: =+CONCATENATE(K161,".- ",G161) -> 27.- | G161: =IF(J162="FIN","",LOOKUP(I161,DATOS!A:A,DATOS!G:G)) ->  | H161: =IF(J162="FIN",0,LOOKUP(I161,DATOS!A:A,DATOS!N:N)) -> 0 | I161: =+I155+1 -> 287 | J161: =IF(LOOKUP(I161,DATOS!A:A,DATOS!C:C)=0,J155,(LOOKUP(I161,DATOS!A:A,DATOS!C:C))) -> 4 | K161: =+K155+1 -> 27 | L161: ACIERTOS | M161: ERROR | N161: Ptos negativos | O161: RESPUESTAS | P161: Control Respuesta | Q161: OPCIONES | R161: =CONCATENATE("X",H161) -> X0 | S161: CONTROL SOLUCION
A162: =IF($E$2="X",0,IF(K163>2,H161,K163)) -> 0 | C162: =+CONCATENATE(I162," ",G162) -> a) 0 | G162: =IF(J162="FIN","",LOOKUP(I161,DATOS!A:A,DATOS!J:J)) -> 0 | I162: a) | J162: =IF(J156="FIN","FIN",IF(J161=J155,"","FIN")) ->  | K162: CONTROL | L162: =IF(M162>0,0,P162) -> 0 | M162: =IF(P163>0,1,0) -> 0 | N162: =IF(M162=1,-1/COUNTA(Q162:Q165),0) -> 0 | O162: =COUNTA(B162:B165) -> 0 | P162: =COUNTIF(R162:R165,R161) -> 0 | Q162: A | R162: =CONCATENATE(B162,Q162) -> A | S162: =IF(P162>0,P162+O162,O162*3) -> 0
C163: =+CONCATENATE(I163," ",G163) -> b) 0 | G163: =IF(J162="FIN","",LOOKUP(I161,DATOS!A:A,DATOS!K:K)) -> 0 | I163: b) | K163: =S162 -> 0 | P163: =O162-P162 -> 0 | Q163: B | R163: =CONCATENATE(B163,Q163) -> B
C164: =+CONCATENATE(I164," ",G164) -> c) 0 | G164: =IF(J162="FIN","",LOOKUP(I161,DATOS!A:A,DATOS!L:L)) -> 0 | I164: c) | Q164: C | R164: =CONCATENATE(B164,Q164) -> C
C165: =+CONCATENATE(I165," ",G165) -> d) 0 | G165: =IF(J162="FIN","",LOOKUP(I161,DATOS!A:A,DATOS!M:M)) -> 0 | I165: d) | Q165: D | R165: =CONCATENATE(B165,Q165) -> D
C167: =+CONCATENATE(K167,".- ",G167) -> 28.- | G167: =IF(J168="FIN","",LOOKUP(I167,DATOS!A:A,DATOS!G:G)) ->  | H167: =IF(J168="FIN",0,LOOKUP(I167,DATOS!A:A,DATOS!N:N)) -> 0 | I167: =+I161+1 -> 288 | J167: =IF(LOOKUP(I167,DATOS!A:A,DATOS!C:C)=0,J161,(LOOKUP(I167,DATOS!A:A,DATOS!C:C))) -> 4 | K167: =+K161+1 -> 28 | L167: ACIERTOS | M167: ERROR | N167: Ptos negativos | O167: RESPUESTAS | P167: Control Respuesta | Q167: OPCIONES | R167: =CONCATENATE("X",H167) -> X0 | S167: CONTROL SOLUCION
A168: =IF($E$2="X",0,IF(K169>2,H167,K169)) -> 0 | C168: =+CONCATENATE(I168," ",G168) -> a) 0 | G168: =IF(J168="FIN","",LOOKUP(I167,DATOS!A:A,DATOS!J:J)) -> 0 | I168: a) | J168: =IF(J162="FIN","FIN",IF(J167=J161,"","FIN")) ->  | K168: CONTROL | L168: =IF(M168>0,0,P168) -> 0 | M168: =IF(P169>0,1,0) -> 0 | N168: =IF(M168=1,-1/COUNTA(Q168:Q171),0) -> 0 | O168: =COUNTA(B168:B171) -> 0 | P168: =COUNTIF(R168:R171,R167) -> 0 | Q168: A | R168: =CONCATENATE(B168,Q168) -> A | S168: =IF(P168>0,P168+O168,O168*3) -> 0
C169: =+CONCATENATE(I169," ",G169) -> b) 0 | G169: =IF(J168="FIN","",LOOKUP(I167,DATOS!A:A,DATOS!K:K)) -> 0 | I169: b) | K169: =S168 -> 0 | P169: =O168-P168 -> 0 | Q169: B | R169: =CONCATENATE(B169,Q169) -> B
C170: =+CONCATENATE(I170," ",G170) -> c) 0 | G170: =IF(J168="FIN","",LOOKUP(I167,DATOS!A:A,DATOS!L:L)) -> 0 | I170: c) | Q170: C | R170: =CONCATENATE(B170,Q170) -> C
C171: =+CONCATENATE(I171," ",G171) -> d) 0 | G171: =IF(J168="FIN","",LOOKUP(I167,DATOS!A:A,DATOS!M:M)) -> 0 | I171: d) | Q171: D | R171: =CONCATENATE(B171,Q171) -> D
C173: =+CONCATENATE(K173,".- ",G173) -> 29.- | G173: =IF(J174="FIN","",LOOKUP(I173,DATOS!A:A,DATOS!G:G)) ->  | H173: =IF(J174="FIN",0,LOOKUP(I173,DATOS!A:A,DATOS!N:N)) -> 0 | I173: =+I167+1 -> 289 | J173: =IF(LOOKUP(I173,DATOS!A:A,DATOS!C:C)=0,J167,(LOOKUP(I173,DATOS!A:A,DATOS!C:C))) -> 4 | K173: =+K167+1 -> 29 | L173: ACIERTOS | M173: ERROR | N173: Ptos negativos | O173: RESPUESTAS | P173: Control Respuesta | Q173: OPCIONES | R173: =CONCATENATE("X",H173) -> X0 | S173: CONTROL SOLUCION
A174: =IF($E$2="X",0,IF(K175>2,H173,K175)) -> 0 | C174: =+CONCATENATE(I174," ",G174) -> a) 0 | G174: =IF(J174="FIN","",LOOKUP(I173,DATOS!A:A,DATOS!J:J)) -> 0 | I174: a) | J174: =IF(J168="FIN","FIN",IF(J173=J167,"","FIN")) ->  | K174: CONTROL | L174: =IF(M174>0,0,P174) -> 0 | M174: =IF(P175>0,1,0) -> 0 | N174: =IF(M174=1,-1/COUNTA(Q174:Q177),0) -> 0 | O174: =COUNTA(B174:B177) -> 0 | P174: =COUNTIF(R174:R177,R173) -> 0 | Q174: A | R174: =CONCATENATE(B174,Q174) -> A | S174: =IF(P174>0,P174+O174,O174*3) -> 0
C175: =+CONCATENATE(I175," ",G175) -> b) 0 | G175: =IF(J174="FIN","",LOOKUP(I173,DATOS!A:A,DATOS!K:K)) -> 0 | I175: b) | K175: =S174 -> 0 | P175: =O174-P174 -> 0 | Q175: B | R175: =CONCATENATE(B175,Q175) -> B
C176: =+CONCATENATE(I176," ",G176) -> c) 0 | G176: =IF(J174="FIN","",LOOKUP(I173,DATOS!A:A,DATOS!L:L)) -> 0 | I176: c) | Q176: C | R176: =CONCATENATE(B176,Q176) -> C
C177: =+CONCATENATE(I177," ",G177) -> d) 0 | G177: =IF(J174="FIN","",LOOKUP(I173,DATOS!A:A,DATOS!M:M)) -> 0 | I177: d) | Q177: D | R177: =CONCATENATE(B177,Q177) -> D
C179: =+CONCATENATE(K179,".- ",G179) -> 30.- | G179: =IF(J180="FIN","",LOOKUP(I179,DATOS!A:A,DATOS!G:G)) ->  | H179: =IF(J180="FIN",0,LOOKUP(I179,DATOS!A:A,DATOS!N:N)) -> 0 | I179: =+I173+1 -> 290 | J179: =IF(LOOKUP(I179,DATOS!A:A,DATOS!C:C)=0,J173,(LOOKUP(I179,DATOS!A:A,DATOS!C:C))) -> 4 | K179: =+K173+1 -> 30 | L179: ACIERTOS | M179: ERROR | N179: Ptos negativos | O179: RESPUESTAS | P179: Control Respuesta | Q179: OPCIONES | R179: =CONCATENATE("X",H179) -> X0 | S179: CONTROL SOLUCION
A180: =IF($E$2="X",0,IF(K181>2,H179,K181)) -> 0 | C180: =+CONCATENATE(I180," ",G180) -> a) 0 | G180: =IF(J180="FIN","",LOOKUP(I179,DATOS!A:A,DATOS!J:J)) -> 0 | I180: a) | J180: =IF(J174="FIN","FIN",IF(J179=J173,"","FIN")) ->  | K180: CONTROL | L180: =IF(M180>0,0,P180) -> 0 | M180: =IF(P181>0,1,0) -> 0 | N180: =IF(M180=1,-1/COUNTA(Q180:Q183),0) -> 0 | O180: =COUNTA(B180:B183) -> 0 | P180: =COUNTIF(R180:R183,R179) -> 0 | Q180: A | R180: =CONCATENATE(B180,Q180) -> A | S180: =IF(P180>0,P180+O180,O180*3) -> 0
C181: =+CONCATENATE(I181," ",G181) -> b) 0 | G181: =IF(J180="FIN","",LOOKUP(I179,DATOS!A:A,DATOS!K:K)) -> 0 | I181: b) | K181: =S180 -> 0 | P181: =O180-P180 -> 0 | Q181: B | R181: =CONCATENATE(B181,Q181) -> B
C182: =+CONCATENATE(I182," ",G182) -> c) 0 | G182: =IF(J180="FIN","",LOOKUP(I179,DATOS!A:A,DATOS!L:L)) -> 0 | I182: c) | Q182: C | R182: =CONCATENATE(B182,Q182) -> C
C183: =+CONCATENATE(I183," ",G183) -> d) 0 | G183: =IF(J180="FIN","",LOOKUP(I179,DATOS!A:A,DATOS!M:M)) -> 0 | I183: d) | Q183: D | R183: =CONCATENATE(B183,Q183) -> D
C185: =+CONCATENATE(K185,".- ",G185) -> 31.- | G185: =IF(J186="FIN","",LOOKUP(I185,DATOS!A:A,DATOS!G:G)) ->  | H185: =IF(J186="FIN",0,LOOKUP(I185,DATOS!A:A,DATOS!N:N)) -> 0 | I185: =+I179+1 -> 291 | J185: =IF(LOOKUP(I185,DATOS!A:A,DATOS!C:C)=0,J179,(LOOKUP(I185,DATOS!A:A,DATOS!C:C))) -> 4 | K185: =+K179+1 -> 31 | L185: ACIERTOS | M185: ERROR | N185: Ptos negativos | O185: RESPUESTAS | P185: Control Respuesta | Q185: OPCIONES | R185: =CONCATENATE("X",H185) -> X0 | S185: CONTROL SOLUCION
A186: =IF($E$2="X",0,IF(K187>2,H185,K187)) -> 0 | C186: =+CONCATENATE(I186," ",G186) -> a) 0 | G186: =IF(J186="FIN","",LOOKUP(I185,DATOS!A:A,DATOS!J:J)) -> 0 | I186: a) | J186: =IF(J180="FIN","FIN",IF(J185=J179,"","FIN")) ->  | K186: CONTROL | L186: =IF(M186>0,0,P186) -> 0 | M186: =IF(P187>0,1,0) -> 0 | N186: =IF(M186=1,-1/COUNTA(Q186:Q189),0) -> 0 | O186: =COUNTA(B186:B189) -> 0 | P186: =COUNTIF(R186:R189,R185) -> 0 | Q186: A | R186: =CONCATENATE(B186,Q186) -> A | S186: =IF(P186>0,P186+O186,O186*3) -> 0
C187: =+CONCATENATE(I187," ",G187) -> b) 0 | G187: =IF(J186="FIN","",LOOKUP(I185,DATOS!A:A,DATOS!K:K)) -> 0 | I187: b) | K187: =S186 -> 0 | P187: =O186-P186 -> 0 | Q187: B | R187: =CONCATENATE(B187,Q187) -> B
C188: =+CONCATENATE(I188," ",G188) -> c) 0 | G188: =IF(J186="FIN","",LOOKUP(I185,DATOS!A:A,DATOS!L:L)) -> 0 | I188: c) | Q188: C | R188: =CONCATENATE(B188,Q188) -> C
C189: =+CONCATENATE(I189," ",G189) -> d) 0 | G189: =IF(J186="FIN","",LOOKUP(I185,DATOS!A:A,DATOS!M:M)) -> 0 | I189: d) | Q189: D | R189: =CONCATENATE(B189,Q189) -> D
C191: =+CONCATENATE(K191,".- ",G191) -> 32.- | G191: =IF(J192="FIN","",LOOKUP(I191,DATOS!A:A,DATOS!G:G)) ->  | H191: =IF(J192="FIN",0,LOOKUP(I191,DATOS!A:A,DATOS!N:N)) -> 0 | I191: =+I185+1 -> 292 | J191: =IF(LOOKUP(I191,DATOS!A:A,DATOS!C:C)=0,J185,(LOOKUP(I191,DATOS!A:A,DATOS!C:C))) -> 4 | K191: =+K185+1 -> 32 | L191: ACIERTOS | M191: ERROR | N191: Ptos negativos | O191: RESPUESTAS | P191: Control Respuesta | Q191: OPCIONES | R191: =CONCATENATE("X",H191) -> X0 | S191: CONTROL SOLUCION
A192: =IF($E$2="X",0,IF(K193>2,H191,K193)) -> 0 | C192: =+CONCATENATE(I192," ",G192) -> a) 0 | G192: =IF(J192="FIN","",LOOKUP(I191,DATOS!A:A,DATOS!J:J)) -> 0 | I192: a) | J192: =IF(J186="FIN","FIN",IF(J191=J185,"","FIN")) ->  | K192: CONTROL | L192: =IF(M192>0,0,P192) -> 0 | M192: =IF(P193>0,1,0) -> 0 | N192: =IF(M192=1,-1/COUNTA(Q192:Q195),0) -> 0 | O192: =COUNTA(B192:B195) -> 0 | P192: =COUNTIF(R192:R195,R191) -> 0 | Q192: A | R192: =CONCATENATE(B192,Q192) -> A | S192: =IF(P192>0,P192+O192,O192*3) -> 0
C193: =+CONCATENATE(I193," ",G193) -> b) 0 | G193: =IF(J192="FIN","",LOOKUP(I191,DATOS!A:A,DATOS!K:K)) -> 0 | I193: b) | K193: =S192 -> 0 | P193: =O192-P192 -> 0 | Q193: B | R193: =CONCATENATE(B193,Q193) -> B
C194: =+CONCATENATE(I194," ",G194) -> c) 0 | G194: =IF(J192="FIN","",LOOKUP(I191,DATOS!A:A,DATOS!L:L)) -> 0 | I194: c) | Q194: C | R194: =CONCATENATE(B194,Q194) -> C
C195: =+CONCATENATE(I195," ",G195) -> d) 0 | G195: =IF(J192="FIN","",LOOKUP(I191,DATOS!A:A,DATOS!M:M)) -> 0 | I195: d) | Q195: D | R195: =CONCATENATE(B195,Q195) -> D
C197: =+CONCATENATE(K197,".- ",G197) -> 33.- | G197: =IF(J198="FIN","",LOOKUP(I197,DATOS!A:A,DATOS!G:G)) ->  | H197: =IF(J198="FIN",0,LOOKUP(I197,DATOS!A:A,DATOS!N:N)) -> 0 | I197: =+I191+1 -> 293 | J197: =IF(LOOKUP(I197,DATOS!A:A,DATOS!C:C)=0,J191,(LOOKUP(I197,DATOS!A:A,DATOS!C:C))) -> 4 | K197: =+K191+1 -> 33 | L197: ACIERTOS | M197: ERROR | N197: Ptos negativos | O197: RESPUESTAS | P197: Control Respuesta | Q197: OPCIONES | R197: =CONCATENATE("X",H197) -> X0 | S197: CONTROL SOLUCION
A198: =IF($E$2="X",0,IF(K199>2,H197,K199)) -> 0 | C198: =+CONCATENATE(I198," ",G198) -> a) 0 | G198: =IF(J198="FIN","",LOOKUP(I197,DATOS!A:A,DATOS!J:J)) -> 0 | I198: a) | J198: =IF(J192="FIN","FIN",IF(J197=J191,"","FIN")) ->  | K198: CONTROL | L198: =IF(M198>0,0,P198) -> 0 | M198: =IF(P199>0,1,0) -> 0 | N198: =IF(M198=1,-1/COUNTA(Q198:Q201),0) -> 0 | O198: =COUNTA(B198:B201) -> 0 | P198: =COUNTIF(R198:R201,R197) -> 0 | Q198: A | R198: =CONCATENATE(B198,Q198) -> A | S198: =IF(P198>0,P198+O198,O198*3) -> 0
C199: =+CONCATENATE(I199," ",G199) -> b) 0 | G199: =IF(J198="FIN","",LOOKUP(I197,DATOS!A:A,DATOS!K:K)) -> 0 | I199: b) | K199: =S198 -> 0 | P199: =O198-P198 -> 0 | Q199: B | R199: =CONCATENATE(B199,Q199) -> B
C200: =+CONCATENATE(I200," ",G200) -> c) 0 | G200: =IF(J198="FIN","",LOOKUP(I197,DATOS!A:A,DATOS!L:L)) -> 0 | I200: c) | Q200: C | R200: =CONCATENATE(B200,Q200) -> C
C201: =+CONCATENATE(I201," ",G201) -> d) 0 | G201: =IF(J198="FIN","",LOOKUP(I197,DATOS!A:A,DATOS!M:M)) -> 0 | I201: d) | Q201: D | R201: =CONCATENATE(B201,Q201) -> D
C203: =+CONCATENATE(K203,".- ",G203) -> 34.- | G203: =IF(J204="FIN","",LOOKUP(I203,DATOS!A:A,DATOS!G:G)) ->  | H203: =IF(J204="FIN",0,LOOKUP(I203,DATOS!A:A,DATOS!N:N)) -> 0 | I203: =+I197+1 -> 294 | J203: =IF(LOOKUP(I203,DATOS!A:A,DATOS!C:C)=0,J197,(LOOKUP(I203,DATOS!A:A,DATOS!C:C))) -> 4 | K203: =+K197+1 -> 34 | L203: ACIERTOS | M203: ERROR | N203: Ptos negativos | O203: RESPUESTAS | P203: Control Respuesta | Q203: OPCIONES | R203: =CONCATENATE("X",H203) -> X0 | S203: CONTROL SOLUCION
A204: =IF($E$2="X",0,IF(K205>2,H203,K205)) -> 0 | C204: =+CONCATENATE(I204," ",G204) -> a) 0 | G204: =IF(J204="FIN","",LOOKUP(I203,DATOS!A:A,DATOS!J:J)) -> 0 | I204: a) | J204: =IF(J198="FIN","FIN",IF(J203=J197,"","FIN")) ->  | K204: CONTROL | L204: =IF(M204>0,0,P204) -> 0 | M204: =IF(P205>0,1,0) -> 0 | N204: =IF(M204=1,-1/COUNTA(Q204:Q207),0) -> 0 | O204: =COUNTA(B204:B207) -> 0 | P204: =COUNTIF(R204:R207,R203) -> 0 | Q204: A | R204: =CONCATENATE(B204,Q204) -> A | S204: =IF(P204>0,P204+O204,O204*3) -> 0
C205: =+CONCATENATE(I205," ",G205) -> b) 0 | G205: =IF(J204="FIN","",LOOKUP(I203,DATOS!A:A,DATOS!K:K)) -> 0 | I205: b) | K205: =S204 -> 0 | P205: =O204-P204 -> 0 | Q205: B | R205: =CONCATENATE(B205,Q205) -> B
C206: =+CONCATENATE(I206," ",G206) -> c) 0 | G206: =IF(J204="FIN","",LOOKUP(I203,DATOS!A:A,DATOS!L:L)) -> 0 | I206: c) | Q206: C | R206: =CONCATENATE(B206,Q206) -> C
C207: =+CONCATENATE(I207," ",G207) -> d) 0 | G207: =IF(J204="FIN","",LOOKUP(I203,DATOS!A:A,DATOS!M:M)) -> 0 | I207: d) | Q207: D | R207: =CONCATENATE(B207,Q207) -> D
C209: =+CONCATENATE(K209,".- ",G209) -> 35.- | G209: =IF(J210="FIN","",LOOKUP(I209,DATOS!A:A,DATOS!G:G)) ->  | H209: =IF(J210="FIN",0,LOOKUP(I209,DATOS!A:A,DATOS!N:N)) -> 0 | I209: =+I203+1 -> 295 | J209: =IF(LOOKUP(I209,DATOS!A:A,DATOS!C:C)=0,J203,(LOOKUP(I209,DATOS!A:A,DATOS!C:C))) -> 4 | K209: =+K203+1 -> 35 | L209: ACIERTOS | M209: ERROR | N209: Ptos negativos | O209: RESPUESTAS | P209: Control Respuesta | Q209: OPCIONES | R209: =CONCATENATE("X",H209) -> X0 | S209: CONTROL SOLUCION
A210: =IF($E$2="X",0,IF(K211>2,H209,K211)) -> 0 | C210: =+CONCATENATE(I210," ",G210) -> a) 0 | G210: =IF(J210="FIN","",LOOKUP(I209,DATOS!A:A,DATOS!J:J)) -> 0 | I210: a) | J210: =IF(J204="FIN","FIN",IF(J209=J203,"","FIN")) ->  | K210: CONTROL | L210: =IF(M210>0,0,P210) -> 0 | M210: =IF(P211>0,1,0) -> 0 | N210: =IF(M210=1,-1/COUNTA(Q210:Q213),0) -> 0 | O210: =COUNTA(B210:B213) -> 0 | P210: =COUNTIF(R210:R213,R209) -> 0 | Q210: A | R210: =CONCATENATE(B210,Q210) -> A | S210: =IF(P210>0,P210+O210,O210*3) -> 0
C211: =+CONCATENATE(I211," ",G211) -> b) 0 | G211: =IF(J210="FIN","",LOOKUP(I209,DATOS!A:A,DATOS!K:K)) -> 0 | I211: b) | K211: =S210 -> 0 | P211: =O210-P210 -> 0 | Q211: B | R211: =CONCATENATE(B211,Q211) -> B
C212: =+CONCATENATE(I212," ",G212) -> c) 0 | G212: =IF(J210="FIN","",LOOKUP(I209,DATOS!A:A,DATOS!L:L)) -> 0 | I212: c) | Q212: C | R212: =CONCATENATE(B212,Q212) -> C
C213: =+CONCATENATE(I213," ",G213) -> d) 0 | G213: =IF(J210="FIN","",LOOKUP(I209,DATOS!A:A,DATOS!M:M)) -> 0 | I213: d) | Q213: D | R213: =CONCATENATE(B213,Q213) -> D
C215: =+CONCATENATE(K215,".- ",G215) -> 36.- | G215: =IF(J216="FIN","",LOOKUP(I215,DATOS!A:A,DATOS!G:G)) ->  | H215: =IF(J216="FIN",0,LOOKUP(I215,DATOS!A:A,DATOS!N:N)) -> 0 | I215: =+I209+1 -> 296 | J215: =IF(LOOKUP(I215,DATOS!A:A,DATOS!C:C)=0,J209,(LOOKUP(I215,DATOS!A:A,DATOS!C:C))) -> 4 | K215: =+K209+1 -> 36 | L215: ACIERTOS | M215: ERROR | N215: Ptos negativos | O215: RESPUESTAS | P215: Control Respuesta | Q215: OPCIONES | R215: =CONCATENATE("X",H215) -> X0 | S215: CONTROL SOLUCION
A216: =IF($E$2="X",0,IF(K217>2,H215,K217)) -> 0 | C216: =+CONCATENATE(I216," ",G216) -> a) 0 | G216: =IF(J216="FIN","",LOOKUP(I215,DATOS!A:A,DATOS!J:J)) -> 0 | I216: a) | J216: =IF(J210="FIN","FIN",IF(J215=J209,"","FIN")) ->  | K216: CONTROL | L216: =IF(M216>0,0,P216) -> 0 | M216: =IF(P217>0,1,0) -> 0 | N216: =IF(M216=1,-1/COUNTA(Q216:Q219),0) -> 0 | O216: =COUNTA(B216:B219) -> 0 | P216: =COUNTIF(R216:R219,R215) -> 0 | Q216: A | R216: =CONCATENATE(B216,Q216) -> A | S216: =IF(P216>0,P216+O216,O216*3) -> 0
C217: =+CONCATENATE(I217," ",G217) -> b) 0 | G217: =IF(J216="FIN","",LOOKUP(I215,DATOS!A:A,DATOS!K:K)) -> 0 | I217: b) | K217: =S216 -> 0 | P217: =O216-P216 -> 0 | Q217: B | R217: =CONCATENATE(B217,Q217) -> B
C218: =+CONCATENATE(I218," ",G218) -> c) 0 | G218: =IF(J216="FIN","",LOOKUP(I215,DATOS!A:A,DATOS!L:L)) -> 0 | I218: c) | Q218: C | R218: =CONCATENATE(B218,Q218) -> C
C219: =+CONCATENATE(I219," ",G219) -> d) 0 | G219: =IF(J216="FIN","",LOOKUP(I215,DATOS!A:A,DATOS!M:M)) -> 0 | I219: d) | Q219: D | R219: =CONCATENATE(B219,Q219) -> D
C221: =+CONCATENATE(K221,".- ",G221) -> 37.- | G221: =IF(J222="FIN","",LOOKUP(I221,DATOS!A:A,DATOS!G:G)) ->  | H221: =IF(J222="FIN",0,LOOKUP(I221,DATOS!A:A,DATOS!N:N)) -> 0 | I221: =+I215+1 -> 297 | J221: =IF(LOOKUP(I221,DATOS!A:A,DATOS!C:C)=0,J215,(LOOKUP(I221,DATOS!A:A,DATOS!C:C))) -> 4 | K221: =+K215+1 -> 37 | L221: ACIERTOS | M221: ERROR | N221: Ptos negativos | O221: RESPUESTAS | P221: Control Respuesta | Q221: OPCIONES | R221: =CONCATENATE("X",H221) -> X0 | S221: CONTROL SOLUCION
A222: =IF($E$2="X",0,IF(K223>2,H221,K223)) -> 0 | C222: =+CONCATENATE(I222," ",G222) -> a) 0 | G222: =IF(J222="FIN","",LOOKUP(I221,DATOS!A:A,DATOS!J:J)) -> 0 | I222: a) | J222: =IF(J216="FIN","FIN",IF(J221=J215,"","FIN")) ->  | K222: CONTROL | L222: =IF(M222>0,0,P222) -> 0 | M222: =IF(P223>0,1,0) -> 0 | N222: =IF(M222=1,-1/COUNTA(Q222:Q225),0) -> 0 | O222: =COUNTA(B222:B225) -> 0 | P222: =COUNTIF(R222:R225,R221) -> 0 | Q222: A | R222: =CONCATENATE(B222,Q222) -> A | S222: =IF(P222>0,P222+O222,O222*3) -> 0
C223: =+CONCATENATE(I223," ",G223) -> b) 0 | G223: =IF(J222="FIN","",LOOKUP(I221,DATOS!A:A,DATOS!K:K)) -> 0 | I223: b) | K223: =S222 -> 0 | P223: =O222-P222 -> 0 | Q223: B | R223: =CONCATENATE(B223,Q223) -> B
C224: =+CONCATENATE(I224," ",G224) -> c) 0 | G224: =IF(J222="FIN","",LOOKUP(I221,DATOS!A:A,DATOS!L:L)) -> 0 | I224: c) | Q224: C | R224: =CONCATENATE(B224,Q224) -> C
C225: =+CONCATENATE(I225," ",G225) -> d) 0 | G225: =IF(J222="FIN","",LOOKUP(I221,DATOS!A:A,DATOS!M:M)) -> 0 | I225: d) | Q225: D | R225: =CONCATENATE(B225,Q225) -> D
C227: =+CONCATENATE(K227,".- ",G227) -> 38.- | G227: =IF(J228="FIN","",LOOKUP(I227,DATOS!A:A,DATOS!G:G)) ->  | H227: =IF(J228="FIN",0,LOOKUP(I227,DATOS!A:A,DATOS!N:N)) -> 0 | I227: =+I221+1 -> 298 | J227: =IF(LOOKUP(I227,DATOS!A:A,DATOS!C:C)=0,J221,(LOOKUP(I227,DATOS!A:A,DATOS!C:C))) -> 4 | K227: =+K221+1 -> 38 | L227: ACIERTOS | M227: ERROR | N227: Ptos negativos | O227: RESPUESTAS | P227: Control Respuesta | Q227: OPCIONES | R227: =CONCATENATE("X",H227) -> X0 | S227: CONTROL SOLUCION
A228: =IF($E$2="X",0,IF(K229>2,H227,K229)) -> 0 | C228: =+CONCATENATE(I228," ",G228) -> a) 0 | G228: =IF(J228="FIN","",LOOKUP(I227,DATOS!A:A,DATOS!J:J)) -> 0 | I228: a) | J228: =IF(J222="FIN","FIN",IF(J227=J221,"","FIN")) ->  | K228: CONTROL | L228: =IF(M228>0,0,P228) -> 0 | M228: =IF(P229>0,1,0) -> 0 | N228: =IF(M228=1,-1/COUNTA(Q228:Q231),0) -> 0 | O228: =COUNTA(B228:B231) -> 0 | P228: =COUNTIF(R228:R231,R227) -> 0 | Q228: A | R228: =CONCATENATE(B228,Q228) -> A | S228: =IF(P228>0,P228+O228,O228*3) -> 0
C229: =+CONCATENATE(I229," ",G229) -> b) 0 | G229: =IF(J228="FIN","",LOOKUP(I227,DATOS!A:A,DATOS!K:K)) -> 0 | I229: b) | K229: =S228 -> 0 | P229: =O228-P228 -> 0 | Q229: B | R229: =CONCATENATE(B229,Q229) -> B
C230: =+CONCATENATE(I230," ",G230) -> c) 0 | G230: =IF(J228="FIN","",LOOKUP(I227,DATOS!A:A,DATOS!L:L)) -> 0 | I230: c) | Q230: C | R230: =CONCATENATE(B230,Q230) -> C
C231: =+CONCATENATE(I231," ",G231) -> d) 0 | G231: =IF(J228="FIN","",LOOKUP(I227,DATOS!A:A,DATOS!M:M)) -> 0 | I231: d) | Q231: D | R231: =CONCATENATE(B231,Q231) -> D
C233: =+CONCATENATE(K233,".- ",G233) -> 39.- | G233: =IF(J234="FIN","",LOOKUP(I233,DATOS!A:A,DATOS!G:G)) ->  | H233: =IF(J234="FIN",0,LOOKUP(I233,DATOS!A:A,DATOS!N:N)) -> 0 | I233: =+I227+1 -> 299 | J233: =IF(LOOKUP(I233,DATOS!A:A,DATOS!C:C)=0,J227,(LOOKUP(I233,DATOS!A:A,DATOS!C:C))) -> 4 | K233: =+K227+1 -> 39 | L233: ACIERTOS | M233: ERROR | N233: Ptos negativos | O233: RESPUESTAS | P233: Control Respuesta | Q233: OPCIONES | R233: =CONCATENATE("X",H233) -> X0 | S233: CONTROL SOLUCION
A234: =IF($E$2="X",0,IF(K235>2,H233,K235)) -> 0 | C234: =+CONCATENATE(I234," ",G234) -> a) 0 | G234: =IF(J234="FIN","",LOOKUP(I233,DATOS!A:A,DATOS!J:J)) -> 0 | I234: a) | J234: =IF(J228="FIN","FIN",IF(J233=J227,"","FIN")) ->  | K234: CONTROL | L234: =IF(M234>0,0,P234) -> 0 | M234: =IF(P235>0,1,0) -> 0 | N234: =IF(M234=1,-1/COUNTA(Q234:Q237),0) -> 0 | O234: =COUNTA(B234:B237) -> 0 | P234: =COUNTIF(R234:R237,R233) -> 0 | Q234: A | R234: =CONCATENATE(B234,Q234) -> A | S234: =IF(P234>0,P234+O234,O234*3) -> 0
C235: =+CONCATENATE(I235," ",G235) -> b) 0 | G235: =IF(J234="FIN","",LOOKUP(I233,DATOS!A:A,DATOS!K:K)) -> 0 | I235: b) | K235: =S234 -> 0 | P235: =O234-P234 -> 0 | Q235: B | R235: =CONCATENATE(B235,Q235) -> B
C236: =+CONCATENATE(I236," ",G236) -> c) 0 | G236: =IF(J234="FIN","",LOOKUP(I233,DATOS!A:A,DATOS!L:L)) -> 0 | I236: c) | Q236: C | R236: =CONCATENATE(B236,Q236) -> C
C237: =+CONCATENATE(I237," ",G237) -> d) 0 | G237: =IF(J234="FIN","",LOOKUP(I233,DATOS!A:A,DATOS!M:M)) -> 0 | I237: d) | Q237: D | R237: =CONCATENATE(B237,Q237) -> D
C239: =+CONCATENATE(K239,".- ",G239) -> 40.- | G239: =IF(J240="FIN","",LOOKUP(I239,DATOS!A:A,DATOS!G:G)) ->  | H239: =IF(J240="FIN",0,LOOKUP(I239,DATOS!A:A,DATOS!N:N)) -> 0 | I239: =+I233+1 -> 300 | J239: =IF(LOOKUP(I239,DATOS!A:A,DATOS!C:C)=0,J233,(LOOKUP(I239,DATOS!A:A,DATOS!C:C))) -> 4 | K239: =+K233+1 -> 40 | L239: ACIERTOS | M239: ERROR | N239: Ptos negativos | O239: RESPUESTAS | P239: Control Respuesta | Q239: OPCIONES | R239: =CONCATENATE("X",H239) -> X0 | S239: CONTROL SOLUCION
A240: =IF($E$2="X",0,IF(K241>2,H239,K241)) -> 0 | C240: =+CONCATENATE(I240," ",G240) -> a) 0 | G240: =IF(J240="FIN","",LOOKUP(I239,DATOS!A:A,DATOS!J:J)) -> 0 | I240: a) | J240: =IF(J234="FIN","FIN",IF(J239=J233,"","FIN")) ->  | K240: CONTROL | L240: =IF(M240>0,0,P240) -> 0 | M240: =IF(P241>0,1,0) -> 0 | N240: =IF(M240=1,-1/COUNTA(Q240:Q243),0) -> 0 | O240: =COUNTA(B240:B243) -> 0 | P240: =COUNTIF(R240:R243,R239) -> 0 | Q240: A | R240: =CONCATENATE(B240,Q240) -> A | S240: =IF(P240>0,P240+O240,O240*3) -> 0
C241: =+CONCATENATE(I241," ",G241) -> b) 0 | G241: =IF(J240="FIN","",LOOKUP(I239,DATOS!A:A,DATOS!K:K)) -> 0 | I241: b) | K241: =S240 -> 0 | P241: =O240-P240 -> 0 | Q241: B | R241: =CONCATENATE(B241,Q241) -> B
... 302 more rows

Sheet 5
A1: ◄ | C1: =AO1 -> Tema 3 - RÉGIMEN JURÍDICO DEL SECTOR PÚBLICO I | E1: =ROUND(Q2/K2*10,2) ->  | I1: 5 | J1: COLUMNA | K1: preguntas | L1: aciertos | M1: Fallos | N1: Ptos Negativos | O1: Contestadas | P1: % evolución | Q1: Puntuación | R1: Nota Puntual | S1: Nota Final | T1: Texto Notas | U1: Texto completo | V1: Testo simple | W1: Control Respuestas | X1: Control caducidad | AD1: preguntas | AE1: aciertos | AF1: Fallos | AG1: Ptos Negativos | AH1: Contestadas | AI1: % evolución | AJ1: Puntuación | AK1: Nota Puntual | AL1: Tests | AN1: Test | AO1: =LOOKUP(I5,DATOS!A:A,DATOS!F:F) -> Tema 3 - RÉGIMEN JURÍDICO DEL SECTOR PÚBLICO I
C2: =IF(CONTROL!I4="A",X2,"") -> Test, compuesto por 0 preguntas | K2: =COUNTA(H:H)-COUNT(H:H) -> 0 | L2: =SUM(L3:L1048576) -> 0 | M2: =SUM(M3:M1048576) -> 0 | N2: =SUM(N3:N52) -> 0 | O2: =L2+M2 -> 0 | P2: =+O2/K2 ->  | Q2: =+L2+N2 -> 0 | R2: =ROUND(Q2/(L2+M2)*10,2) ->  | S2: =ROUND(Q2/K2*10,2) ->  | T2: =CONCATENATE("puntual: ", R2," Nota final: ", S2) ->  | U2: =CONCATENATE("Evolución: ", K2," preguntas, ",L2," aciertos, ",M2," errores, ",Q2," puntos. Nota ",T2) ->  | V2: =CONCATENATE("Test, compuesto por ",K2," preguntas") -> Test, compuesto por 0 preguntas | W2: =IF(E2="X",V2,IF(O2>0,U2,V2)) -> Test, compuesto por 0 preguntas | X2: =IF(CONTROL!I4="A",W2,V2) -> Test, compuesto por 0 preguntas | AD2: =IF(CONTROL!$I$4="A",K2,0) -> 0 | AE2: =IF(CONTROL!$I$4="A",L2,0) -> 0 | AF2: =IF(CONTROL!$I$4="A",M2,0) -> 0 | AG2: =IF(CONTROL!$I$4="A",N2,0) -> 0 | AH2: =IF(CONTROL!$I$4="A",O2,0) -> 0 | AI2: =IF(CONTROL!$I$4="A",P2,0) ->  | AJ2: =IF(CONTROL!$I$4="A",Q2,0) -> 0 | AK2: =IF(CONTROL!$I$4="A",R2,0) ->  | AL2: =+AO1 -> Tema 3 - RÉGIMEN JURÍDICO DEL SECTOR PÚBLICO I | AN2: Portada | AO2: =LOOKUP(I5,DATOS!A:A,DATOS!E:E) -> Tema 3 - RÉGIMEN JURÍDICO DEL SECTOR PÚBLICO
C5: =+CONCATENATE(K5,".- ",G5) -> 1.- | G5: =LOOKUP(I5,DATOS!A:A,DATOS!G:G) ->  | H5: =LOOKUP(I5,DATOS!A:A,DATOS!N:N) -> 0 | I5: =LOOKUP(I1,DATOS!C:C,DATOS!A:A) -> 348 | J5: =LOOKUP(I5,DATOS!A:A,DATOS!C:C) -> 5 | K5: 1 | L5: ACIERTOS | M5: ERROR | N5: Ptos negativos | O5: RESPUESTAS | P5: Control Respuesta | Q5: OPCIONES | R5: =CONCATENATE("X",H5) -> X0 | S5: CONTROL SOLUCION
A6: =IF($E$2="X",0,IF(K7>2,H5,K7)) -> 0 | C6: =+CONCATENATE(I6," ",G6) -> a) 0 | G6: =LOOKUP(I5,DATOS!A:A,DATOS!J:J) -> 0 | I6: a) | K6: CONTROL | L6: =IF(M6>0,0,P6) -> 0 | M6: =IF(P7>0,1,0) -> 0 | N6: =IF(M6=1,-1/COUNTA(Q6:Q9),0) -> 0 | O6: =COUNTA(B6:B9) -> 0 | P6: =COUNTIF(R6:R9,R5) -> 0 | Q6: A | R6: =CONCATENATE(B6,Q6) -> A | S6: =IF(P6>0,P6+O6,O6*3) -> 0
C7: =+CONCATENATE(I7," ",G7) -> b) 0 | G7: =LOOKUP(I5,DATOS!A:A,DATOS!K:K) -> 0 | I7: b) | K7: =S6 -> 0 | P7: =O6-P6 -> 0 | Q7: B | R7: =CONCATENATE(B7,Q7) -> B
C8: =+CONCATENATE(I8," ",G8) -> c) 0 | G8: =LOOKUP(I5,DATOS!A:A,DATOS!L:L) -> 0 | I8: c) | Q8: C | R8: =CONCATENATE(B8,Q8) -> C
C9: =+CONCATENATE(I9," ",G9) -> d) 0 | G9: =LOOKUP(I5,DATOS!A:A,DATOS!M:M) -> 0 | I9: d) | Q9: D | R9: =CONCATENATE(B9,Q9) -> D
C11: =+CONCATENATE(K11,".- ",G11) -> 2.- | G11: =IF(J12="FIN","",LOOKUP(I11,DATOS!A:A,DATOS!G:G)) ->  | H11: =IF(J12="FIN",0,LOOKUP(I11,DATOS!A:A,DATOS!N:N)) -> 0 | I11: =+I5+1 -> 349 | J11: =IF(LOOKUP(I11,DATOS!A:A,DATOS!C:C)=0,J5,(LOOKUP(I11,DATOS!A:A,DATOS!C:C))) -> 5 | K11: =+K5+1 -> 2 | L11: ACIERTOS | M11: ERROR | N11: Ptos negativos | O11: RESPUESTAS | P11: Control Respuesta | Q11: OPCIONES | R11: =CONCATENATE("X",H11) -> X0 | S11: CONTROL SOLUCION
A12: =IF($E$2="X",0,IF(K13>2,H11,K13)) -> 0 | C12: =+CONCATENATE(I12," ",G12) -> a) 0 | G12: =IF(J12="FIN","",LOOKUP(I11,DATOS!A:A,DATOS!J:J)) -> 0 | I12: a) | J12: =IF(J6="FIN","FIN",IF(J11=J5,"","FIN")) ->  | K12: CONTROL | L12: =IF(M12>0,0,P12) -> 0 | M12: =IF(P13>0,1,0) -> 0 | N12: =IF(M12=1,-1/COUNTA(Q12:Q15),0) -> 0 | O12: =COUNTA(B12:B15) -> 0 | P12: =COUNTIF(R12:R15,R11) -> 0 | Q12: A | R12: =CONCATENATE(B12,Q12) -> A | S12: =IF(P12>0,P12+O12,O12*3) -> 0
C13: =+CONCATENATE(I13," ",G13) -> b) 0 | G13: =IF(J12="FIN","",LOOKUP(I11,DATOS!A:A,DATOS!K:K)) -> 0 | I13: b) | K13: =S12 -> 0 | P13: =O12-P12 -> 0 | Q13: B | R13: =CONCATENATE(B13,Q13) -> B
C14: =+CONCATENATE(I14," ",G14) -> c) 0 | G14: =IF(J12="FIN","",LOOKUP(I11,DATOS!A:A,DATOS!L:L)) -> 0 | I14: c) | Q14: C | R14: =CONCATENATE(B14,Q14) -> C
C15: =+CONCATENATE(I15," ",G15) -> d) 0 | G15: =IF(J12="FIN","",LOOKUP(I11,DATOS!A:A,DATOS!M:M)) -> 0 | I15: d) | Q15: D | R15: =CONCATENATE(B15,Q15) -> D
C17: =+CONCATENATE(K17,".- ",G17) -> 3.- | G17: =IF(J18="FIN","",LOOKUP(I17,DATOS!A:A,DATOS!G:G)) ->  | H17: =IF(J18="FIN",0,LOOKUP(I17,DATOS!A:A,DATOS!N:N)) -> 0 | I17: =+I11+1 -> 350 | J17: =IF(LOOKUP(I17,DATOS!A:A,DATOS!C:C)=0,J11,(LOOKUP(I17,DATOS!A:A,DATOS!C:C))) -> 5 | K17: =+K11+1 -> 3 | L17: ACIERTOS | M17: ERROR | N17: Ptos negativos | O17: RESPUESTAS | P17: Control Respuesta | Q17: OPCIONES | R17: =CONCATENATE("X",H17) -> X0 | S17: CONTROL SOLUCION
A18: =IF($E$2="X",0,IF(K19>2,H17,K19)) -> 0 | C18: =+CONCATENATE(I18," ",G18) -> a) 0 | G18: =IF(J18="FIN","",LOOKUP(I17,DATOS!A:A,DATOS!J:J)) -> 0 | I18: a) | J18: =IF(J12="FIN","FIN",IF(J17=J11,"","FIN")) ->  | K18: CONTROL | L18: =IF(M18>0,0,P18) -> 0 | M18: =IF(P19>0,1,0) -> 0 | N18: =IF(M18=1,-1/COUNTA(Q18:Q21),0) -> 0 | O18: =COUNTA(B18:B21) -> 0 | P18: =COUNTIF(R18:R21,R17) -> 0 | Q18: A | R18: =CONCATENATE(B18,Q18) -> A | S18: =IF(P18>0,P18+O18,O18*3) -> 0
C19: =+CONCATENATE(I19," ",G19) -> b) 0 | G19: =IF(J18="FIN","",LOOKUP(I17,DATOS!A:A,DATOS!K:K)) -> 0 | I19: b) | K19: =S18 -> 0 | P19: =O18-P18 -> 0 | Q19: B | R19: =CONCATENATE(B19,Q19) -> B
C20: =+CONCATENATE(I20," ",G20) -> c) 0 | G20: =IF(J18="FIN","",LOOKUP(I17,DATOS!A:A,DATOS!L:L)) -> 0 | I20: c) | Q20: C | R20: =CONCATENATE(B20,Q20) -> C
C21: =+CONCATENATE(I21," ",G21) -> d) 0 | G21: =IF(J18="FIN","",LOOKUP(I17,DATOS!A:A,DATOS!M:M)) -> 0 | I21: d) | Q21: D | R21: =CONCATENATE(B21,Q21) -> D
C23: =+CONCATENATE(K23,".- ",G23) -> 4.- (Exa PER ET -2019) | G23: =IF(J24="FIN","",LOOKUP(I23,DATOS!A:A,DATOS!G:G)) -> (Exa PER ET -2019) | H23: =IF(J24="FIN",0,LOOKUP(I23,DATOS!A:A,DATOS!N:N)) -> 0 | I23: =+I17+1 -> 351 | J23: =IF(LOOKUP(I23,DATOS!A:A,DATOS!C:C)=0,J17,(LOOKUP(I23,DATOS!A:A,DATOS!C:C))) -> 5 | K23: =+K17+1 -> 4 | L23: ACIERTOS | M23: ERROR | N23: Ptos negativos | O23: RESPUESTAS | P23: Control Respuesta | Q23: OPCIONES | R23: =CONCATENATE("X",H23) -> X0 | S23: CONTROL SOLUCION
A24: =IF($E$2="X",0,IF(K25>2,H23,K25)) -> 0 | C24: =+CONCATENATE(I24," ",G24) -> a) 0 | G24: =IF(J24="FIN","",LOOKUP(I23,DATOS!A:A,DATOS!J:J)) -> 0 | I24: a) | J24: =IF(J18="FIN","FIN",IF(J23=J17,"","FIN")) ->  | K24: CONTROL | L24: =IF(M24>0,0,P24) -> 0 | M24: =IF(P25>0,1,0) -> 0 | N24: =IF(M24=1,-1/COUNTA(Q24:Q27),0) -> 0 | O24: =COUNTA(B24:B27) -> 0 | P24: =COUNTIF(R24:R27,R23) -> 0 | Q24: A | R24: =CONCATENATE(B24,Q24) -> A | S24: =IF(P24>0,P24+O24,O24*3) -> 0
C25: =+CONCATENATE(I25," ",G25) -> b) 0 | G25: =IF(J24="FIN","",LOOKUP(I23,DATOS!A:A,DATOS!K:K)) -> 0 | I25: b) | K25: =S24 -> 0 | P25: =O24-P24 -> 0 | Q25: B | R25: =CONCATENATE(B25,Q25) -> B
C26: =+CONCATENATE(I26," ",G26) -> c) 0 | G26: =IF(J24="FIN","",LOOKUP(I23,DATOS!A:A,DATOS!L:L)) -> 0 | I26: c) | Q26: C | R26: =CONCATENATE(B26,Q26) -> C
C27: =+CONCATENATE(I27," ",G27) -> d) 0 | G27: =IF(J24="FIN","",LOOKUP(I23,DATOS!A:A,DATOS!M:M)) -> 0 | I27: d) | Q27: D | R27: =CONCATENATE(B27,Q27) -> D
C29: =+CONCATENATE(K29,".- ",G29) -> 5.- (Exa PER ET -2019) | G29: =IF(J30="FIN","",LOOKUP(I29,DATOS!A:A,DATOS!G:G)) -> (Exa PER ET -2019) | H29: =IF(J30="FIN",0,LOOKUP(I29,DATOS!A:A,DATOS!N:N)) -> 0 | I29: =+I23+1 -> 352 | J29: =IF(LOOKUP(I29,DATOS!A:A,DATOS!C:C)=0,J23,(LOOKUP(I29,DATOS!A:A,DATOS!C:C))) -> 5 | K29: =+K23+1 -> 5 | L29: ACIERTOS | M29: ERROR | N29: Ptos negativos | O29: RESPUESTAS | P29: Control Respuesta | Q29: OPCIONES | R29: =CONCATENATE("X",H29) -> X0 | S29: CONTROL SOLUCION
A30: =IF($E$2="X",0,IF(K31>2,H29,K31)) -> 0 | C30: =+CONCATENATE(I30," ",G30) -> a) 0 | G30: =IF(J30="FIN","",LOOKUP(I29,DATOS!A:A,DATOS!J:J)) -> 0 | I30: a) | J30: =IF(J24="FIN","FIN",IF(J29=J23,"","FIN")) ->  | K30: CONTROL | L30: =IF(M30>0,0,P30) -> 0 | M30: =IF(P31>0,1,0) -> 0 | N30: =IF(M30=1,-1/COUNTA(Q30:Q33),0) -> 0 | O30: =COUNTA(B30:B33) -> 0 | P30: =COUNTIF(R30:R33,R29) -> 0 | Q30: A | R30: =CONCATENATE(B30,Q30) -> A | S30: =IF(P30>0,P30+O30,O30*3) -> 0
C31: =+CONCATENATE(I31," ",G31) -> b) 0 | G31: =IF(J30="FIN","",LOOKUP(I29,DATOS!A:A,DATOS!K:K)) -> 0 | I31: b) | K31: =S30 -> 0 | P31: =O30-P30 -> 0 | Q31: B | R31: =CONCATENATE(B31,Q31) -> B
C32: =+CONCATENATE(I32," ",G32) -> c) 0 | G32: =IF(J30="FIN","",LOOKUP(I29,DATOS!A:A,DATOS!L:L)) -> 0 | I32: c) | Q32: C | R32: =CONCATENATE(B32,Q32) -> C
C33: =+CONCATENATE(I33," ",G33) -> d) 0 | G33: =IF(J30="FIN","",LOOKUP(I29,DATOS!A:A,DATOS!M:M)) -> 0 | I33: d) | Q33: D | R33: =CONCATENATE(B33,Q33) -> D
C35: =+CONCATENATE(K35,".- ",G35) -> 6.- (Exa PER ET -2019) | G35: =IF(J36="FIN","",LOOKUP(I35,DATOS!A:A,DATOS!G:G)) -> (Exa PER ET -2019) | H35: =IF(J36="FIN",0,LOOKUP(I35,DATOS!A:A,DATOS!N:N)) -> 0 | I35: =+I29+1 -> 353 | J35: =IF(LOOKUP(I35,DATOS!A:A,DATOS!C:C)=0,J29,(LOOKUP(I35,DATOS!A:A,DATOS!C:C))) -> 5 | K35: =+K29+1 -> 6 | L35: ACIERTOS | M35: ERROR | N35: Ptos negativos | O35: RESPUESTAS | P35: Control Respuesta | Q35: OPCIONES | R35: =CONCATENATE("X",H35) -> X0 | S35: CONTROL SOLUCION
A36: =IF($E$2="X",0,IF(K37>2,H35,K37)) -> 0 | C36: =+CONCATENATE(I36," ",G36) -> a) 0 | G36: =IF(J36="FIN","",LOOKUP(I35,DATOS!A:A,DATOS!J:J)) -> 0 | I36: a) | J36: =IF(J30="FIN","FIN",IF(J35=J29,"","FIN")) ->  | K36: CONTROL | L36: =IF(M36>0,0,P36) -> 0 | M36: =IF(P37>0,1,0) -> 0 | N36: =IF(M36=1,-1/COUNTA(Q36:Q39),0) -> 0 | O36: =COUNTA(B36:B39) -> 0 | P36: =COUNTIF(R36:R39,R35) -> 0 | Q36: A | R36: =CONCATENATE(B36,Q36) -> A | S36: =IF(P36>0,P36+O36,O36*3) -> 0
C37: =+CONCATENATE(I37," ",G37) -> b) 0 | G37: =IF(J36="FIN","",LOOKUP(I35,DATOS!A:A,DATOS!K:K)) -> 0 | I37: b) | K37: =S36 -> 0 | P37: =O36-P36 -> 0 | Q37: B | R37: =CONCATENATE(B37,Q37) -> B
C38: =+CONCATENATE(I38," ",G38) -> c) 0 | G38: =IF(J36="FIN","",LOOKUP(I35,DATOS!A:A,DATOS!L:L)) -> 0 | I38: c) | Q38: C | R38: =CONCATENATE(B38,Q38) -> C
C39: =+CONCATENATE(I39," ",G39) -> d) 0 | G39: =IF(J36="FIN","",LOOKUP(I35,DATOS!A:A,DATOS!M:M)) -> 0 | I39: d) | Q39: D | R39: =CONCATENATE(B39,Q39) -> D
C41: =+CONCATENATE(K41,".- ",G41) -> 7.- | G41: =IF(J42="FIN","",LOOKUP(I41,DATOS!A:A,DATOS!G:G)) ->  | H41: =IF(J42="FIN",0,LOOKUP(I41,DATOS!A:A,DATOS!N:N)) -> 0 | I41: =+I35+1 -> 354 | J41: =IF(LOOKUP(I41,DATOS!A:A,DATOS!C:C)=0,J35,(LOOKUP(I41,DATOS!A:A,DATOS!C:C))) -> 5 | K41: =+K35+1 -> 7 | L41: ACIERTOS | M41: ERROR | N41: Ptos negativos | O41: RESPUESTAS | P41: Control Respuesta | Q41: OPCIONES | R41: =CONCATENATE("X",H41) -> X0 | S41: CONTROL SOLUCION
A42: =IF($E$2="X",0,IF(K43>2,H41,K43)) -> 0 | C42: =+CONCATENATE(I42," ",G42) -> a) 0 | G42: =IF(J42="FIN","",LOOKUP(I41,DATOS!A:A,DATOS!J:J)) -> 0 | I42: a) | J42: =IF(J36="FIN","FIN",IF(J41=J35,"","FIN")) ->  | K42: CONTROL | L42: =IF(M42>0,0,P42) -> 0 | M42: =IF(P43>0,1,0) -> 0 | N42: =IF(M42=1,-1/COUNTA(Q42:Q45),0) -> 0 | O42: =COUNTA(B42:B45) -> 0 | P42: =COUNTIF(R42:R45,R41) -> 0 | Q42: A | R42: =CONCATENATE(B42,Q42) -> A | S42: =IF(P42>0,P42+O42,O42*3) -> 0
C43: =+CONCATENATE(I43," ",G43) -> b) 0 | G43: =IF(J42="FIN","",LOOKUP(I41,DATOS!A:A,DATOS!K:K)) -> 0 | I43: b) | K43: =S42 -> 0 | P43: =O42-P42 -> 0 | Q43: B | R43: =CONCATENATE(B43,Q43) -> B
C44: =+CONCATENATE(I44," ",G44) -> c) 0 | G44: =IF(J42="FIN","",LOOKUP(I41,DATOS!A:A,DATOS!L:L)) -> 0 | I44: c) | Q44: C | R44: =CONCATENATE(B44,Q44) -> C
C45: =+CONCATENATE(I45," ",G45) -> d) 0 | G45: =IF(J42="FIN","",LOOKUP(I41,DATOS!A:A,DATOS!M:M)) -> 0 | I45: d) | Q45: D | R45: =CONCATENATE(B45,Q45) -> D
C47: =+CONCATENATE(K47,".- ",G47) -> 8.- | G47: =IF(J48="FIN","",LOOKUP(I47,DATOS!A:A,DATOS!G:G)) ->  | H47: =IF(J48="FIN",0,LOOKUP(I47,DATOS!A:A,DATOS!N:N)) -> 0 | I47: =+I41+1 -> 355 | J47: =IF(LOOKUP(I47,DATOS!A:A,DATOS!C:C)=0,J41,(LOOKUP(I47,DATOS!A:A,DATOS!C:C))) -> 5 | K47: =+K41+1 -> 8 | L47: ACIERTOS | M47: ERROR | N47: Ptos negativos | O47: RESPUESTAS | P47: Control Respuesta | Q47: OPCIONES | R47: =CONCATENATE("X",H47) -> X0 | S47: CONTROL SOLUCION
A48: =IF($E$2="X",0,IF(K49>2,H47,K49)) -> 0 | C48: =+CONCATENATE(I48," ",G48) -> a) 0 | G48: =IF(J48="FIN","",LOOKUP(I47,DATOS!A:A,DATOS!J:J)) -> 0 | I48: a) | J48: =IF(J42="FIN","FIN",IF(J47=J41,"","FIN")) ->  | K48: CONTROL | L48: =IF(M48>0,0,P48) -> 0 | M48: =IF(P49>0,1,0) -> 0 | N48: =IF(M48=1,-1/COUNTA(Q48:Q51),0) -> 0 | O48: =COUNTA(B48:B51) -> 0 | P48: =COUNTIF(R48:R51,R47) -> 0 | Q48: A | R48: =CONCATENATE(B48,Q48) -> A | S48: =IF(P48>0,P48+O48,O48*3) -> 0
C49: =+CONCATENATE(I49," ",G49) -> b) 0 | G49: =IF(J48="FIN","",LOOKUP(I47,DATOS!A:A,DATOS!K:K)) -> 0 | I49: b) | K49: =S48 -> 0 | P49: =O48-P48 -> 0 | Q49: B | R49: =CONCATENATE(B49,Q49) -> B
C50: =+CONCATENATE(I50," ",G50) -> c) 0 | G50: =IF(J48="FIN","",LOOKUP(I47,DATOS!A:A,DATOS!L:L)) -> 0 | I50: c) | Q50: C | R50: =CONCATENATE(B50,Q50) -> C
